Workbook

Sheet ADSI
B1: =IF($G$12<>"",CONCATENATE(PROPER($G$12),", ",PROPER($G$14),IF($G$18<>"",", "&$G$18,""),", ADSI-",$K$12),IF($G$16<>"",CONCATENATE("Mega City: ",PROPER($G$16),", ADSI-",$K$12))) -> Goa, , ADSI-2022 | K1: ADSI v3.0 | L1: 2016-12-22
A3: =IF(ADSI!$L$10=1,LangMaster!A2,LangMaster!B2) -> Accidental Deaths & Suicides in India
A4: =IF(ADSI!$L$10=1,LangMaster!A3,LangMaster!B3) -> (Proformae Revision year 2016)
A6: =IF(ADSI!$L$10=1,LangMaster!A4,LangMaster!B4) -> Data Entry Module v5.0
J10: Language: | L10: 1
H11: Code | K11: =YEAR(NOW())-1 -> 2022
C12: =IF(ADSI!$L$10=1,LangMaster!A5,LangMaster!B5) -> Select the State/UT Name | G12: GOA | H12: =IF(ISERROR(LOOKUP(G12,StateList,StateCode)),"",LOOKUP(G12,StateList,StateCode)) -> 6 | J12: =IF(ADSI!$L$10=1,LangMaster!A13,LangMaster!B13) -> Data Year | K12: 2022
G13: =SUBSTITUTE(SUBSTITUTE(G12," ","_"),"&","_") -> GOA
C14: =IF(ADSI!$L$10=1,LangMaster!A6,LangMaster!B6) -> Select the District Name | H14: =IF(ISERROR(LOOKUP(G14,INDIRECT(G13),INDIRECT(CONCATENATE(MID(G13,1,7),"Code")))),"",LOOKUP(G14,INDIRECT(G13),INDIRECT(CONCATENATE(MID(G13,1,7),"Code")))) ->  | K14: =IF(ADSI!$L$10=1,LangMaster!A14,LangMaster!B14) -> Number of Errors Found: | L14: =SUM('P-I:P-XXIII'!C2) -> 0
C16: =IF(ADSI!$L$10=1,LangMaster!A7,LangMaster!B7) -> Select the Metropolitan City Name | H16: =IF(ISNA(LOOKUP(G16,MegaCityName,MegaCityCode)),"",LOOKUP(G16,MegaCityName,MegaCityCode)) ->  | K16: =IF(ADSI!$L$10=1,LangMaster!A15,LangMaster!B15) -> Total Abnormal variations in data: | L16: =SUM('P-I:P-XXIII'!F2) -> 55
C18: =IF(ADSI!$L$10=1,LangMaster!A8,LangMaster!B8) -> Police Station Name
C20: =IF(ADSI!$L$10=1,LangMaster!A9,LangMaster!B9) -> Name of the Officer preparing this report
K21: =IF(ADSI!$L$10=1,LangMaster!A16,LangMaster!B16) -> (Authorized Signatory)
C22: =IF(ADSI!$L$10=1,LangMaster!A10,LangMaster!B10) -> Whether Original / Revised data? | G22: Original data | J22: =IF(ADSI!$L$10=1,LangMaster!A17,LangMaster!B17) -> Name : | K22: BOSSUET SILVA,GPS
J23: =IF(ADSI!$L$10=1,LangMaster!A18,LangMaster!B18) -> Rank : | K23: SUPERINTENDENT OF POLICE
C24: =IF(ADSI!$L$10=1,LangMaster!A11,LangMaster!B11) -> Date of Submission of this report | G24: =NOW() -> 2023-03-24T15:27:19.930 | J24: =IF(ADSI!$L$10=1,LangMaster!A19,LangMaster!B19) -> Office seal :
C26: =IF(ADSI!$L$10=1,LangMaster!A20,LangMaster!B20) -> Note: 1. The output file (after data entry) must be saved in .xlsm format only.
D27: =IF(ADSI!$L$10=1,LangMaster!A21,LangMaster!B21) -> 2. NCRB/SCRB can not import/accept the data until the data is error free (i.e. Error count = 0)
D28: =IF(ADSI!$L$10=1,LangMaster!A22,LangMaster!B22) -> 3. The proformae output can be printed only on LEGAL size paper.
A495: Errors: | C495: =L14 -> 0

Sheet FormData (hidden)
A1: StateCode | B1: StateList | D1: A&N ISLCode | E1: A&N ISLANDS | G1: ANDHRA Code | H1: ANDHRA PRADESH | J1: ARUNACHCode | K1: ARUNACHAL PRADESH | M1: ASSAMCode | N1: ASSAM | P1: BIHARCode | Q1: BIHAR | S1: CHANDIGCode | T1: CHANDIGARH | V1: CHHATTICode | W1: CHHATTISGARH | Y1: D&N HAVCode | Z1: D&N HAVELI AND DAMAN&DIU | AB1: LADAKHCode | AC1: LADAKH | AE1: DELHICode | AF1: DELHI | AH1: GOACode | AI1: GOA | AK1: GUJARATCode | AL1: GUJARAT | AN1: HARYANACode | AO1: HARYANA | AQ1: HIMACHACode | AR1: HIMACHAL PRADESH | AT1: JAMMU &Code | AU1: JAMMU & KASHMIR | AW1: JHARKHACode | AX1: JHARKHAND | AZ1: KARNATACode | BA1: KARNATAKA | BC1: KERALACode | BD1: KERALA | BF1: LAKSHADCode | BG1: LAKSHADWEEP | BI1: MADHYA Code | BJ1: MADHYA PRADESH | BL1: MAHARASCode | BM1: MAHARASHTRA | BO1: MANIPURCode | BP1: MANIPUR | BR1: MEGHALACode | BS1: MEGHALAYA | BU1: MIZORAMCode | BV1: MIZORAM | BX1: NAGALANCode | BY1: NAGALAND | CA1: ODISHACode | CB1: ODISHA | CD1: PUDUCHECode | CE1: PUDUCHERRY | CG1: PUNJABCode | CH1: PUNJAB | CJ1: RAJASTHCode | CK1: RAJASTHAN | CM1: SIKKIMCode | CN1: SIKKIM | CP1: TAMIL NCode | CQ1: TAMIL NADU | CS1: TELANGACode | CT1: TELANGANA | CV1: TRIPURACode | CW1: TRIPURA | CY1: UTTAR PCode | CZ1: UTTAR PRADESH | DB1: UTTARAKCode | DC1: UTTARAKHAND | DE1: WEST BECode | DF1: WEST BENGAL | DH1: MegaCityCode | DI1: MegaCityName | DK1: LangCode | DL1: LangName
A2: 29 | B2: A&N ISLANDS | D2: 0 | E2: - All Districts - | G2: 0 | H2: - All Districts - | J2: 0 | K2: - All Districts - | M2: 0 | N2: - All Districts - | P2: 0 | Q2: - All Districts - | S2: 0 | T2: - All Districts - | V2: 0 | W2: - All Districts - | Y2: 0 | Z2: - All Districts - | AB2: 0 | AC2: - All Districts - | AE2: 0 | AF2: - All Districts - | AH2: 0 | AI2: - All Districts - | AK2: 0 | AL2: - All Districts - | AN2: 0 | AO2: - All Districts - | AQ2: 0 | AR2: - All Districts - | AT2: 0 | AU2: - All Districts - | AW2: 0 | AX2: - All Districts - | AZ2: 0 | BA2: - All Districts - | BC2: 0 | BD2: - All Districts - | BF2: 0 | BG2: - All Districts - | BI2: 0 | BJ2: - All Districts - | BL2: 0 | BM2: - All Districts - | BO2: 0 | BP2: - All Districts - | BR2: 0 | BS2: - All Districts - | BU2: 0 | BV2: - All Districts - | BX2: 0 | BY2: - All Districts - | CA2: 0 | CB2: - All Districts - | CD2: 0 | CE2: - All Districts - | CG2: 0 | CH2: - All Districts - | CJ2: 0 | CK2: - All Districts - | CM2: 0 | CN2: - All Districts - | CP2: 0 | CQ2: - All Districts - | CS2: 0 | CT2: - All Districts - | CV2: 0 | CW2: - All Districts - | CY2: 0 | CZ2: - All Districts - | DB2: 0 | DC2: - All Districts - | DE2: 0 | DF2: - All Districts - | DH2: 37 | DI2: AGRA | DK2: 1 | DL2: English
A3: 1 | B3: ANDHRA PRADESH | D3: 3 | E3: Nicobar | G3: 21 | H3: Alluri Sitharama Raju | J3: 1 | K3: Anjaw | M3: 41 | N3: Bajali | P3: 46 | Q3: Anti Terrorist Squad | S3: 1 | T3: Chandigarh | V3: 1 | W3: Balod | Y3: 1 | Z3: D&N Haveli | AB3: 1 | AC3: Kargil | AE3: 1 | AF3: Central | AH3: 3 | AI3: CID | AK3: 1 | AL3: Ahmedabad City | AN3: 25 | AO3: Ambala | AQ3: 1 | AR3: Baddi | AT3: 1 | AU3: Anantnag | AW3: 1 | AX3: Bokaro | AZ3: 1 | BA3: Bagalkot | BC3: 1 | BD3: Alapuzha | BF3: 1 | BG3: Lakshadweep | BI3: 1 | BJ3: Agar | BL3: 1 | BM3: Ahmednagar | BO3: 1 | BP3: Bishnupur | BR3: 12 | BS3: Cyber Cell | BU3: 1 | BV3: Aizawl | BX3: 1 | BY3: Dimapur | CA3: 1 | CB3: Angul | CD3: 1 | CE3: Karaikal | CG3: 1 | CH3: Amritsar Rural | CJ3: 1 | CK3: Ajmer | CM3: 5 | CN3: CID | CP3: 1 | CQ3: Ariyalur | CS3: 30 | CT3: Adilabad | CV3: 1 | CW3: Dhalai | CY3: 1 | CZ3: Agra | DB3: 1 | DC3: Almora | DE3: 3 | DF3: Alipurduar | DH3: 38 | DI3: AHMEDABAD | DK3: 2 | DL3: Hindi
A4: 2 | B4: ARUNACHAL PRADESH | D4: 2 | E4: North & Middle Andaman | G4: 22 | H4: Anakapalli | J4: 2 | K4: Changlang | M4: 3 | N4: Baksa | P4: 1 | Q4: Araria | V4: 2 | W4: Balodbazar | Y4: 2 | Z4: Daman | AB4: 2 | AC4: Leh | AE4: 2 | AF4: Crime Branch | AH4: 1 | AI4: North Goa | AK4: 2 | AL4: Ahmedabad Rural | AN4: 3 | AO4: Bhiwani | AQ4: 2 | AR4: Bilaspur | AT4: 33 | AU4: Anti Narcotic Task Force Jammu | AW4: 2 | AX4: Chaibasa | AZ4: 5 | BA4: Ballari | BC4: 21 | BD4: Crime Branch | BI4: 2 | BJ4: Alirajpur | BL4: 2 | BM4: Akola | BO4: 2 | BP4: Chandel | BR4: 1 | BS4: Garo Hills East | BU4: 2 | BV4: Champhai | BX4: 2 | BY4: Kiphire | CA4: 2 | CB4: Balasore | CD4: 2 | CE4: Puducherry | CG4: 2 | CH4: Barnala | CJ4: 2 | CK4: Alwar | CM4: 1 | CN4: Gangtok (East) | CP4: 49 | CQ4: Avadi | CS4: 31 | CT4: Badhradhri Kothagudem | CV4: 2 | CW4: Gomati | CY4: 2 | CZ4: Aligarh | DB4: 2 | DC4: Bageshwar | DE4: 4 | DF4: Asansol-Durgapur PC | DH4: 39 | DI4: ALLAHABAD | DK4: 3 | DL4: Regional Language
A5: 3 | B5: ASSAM | D5: 1 | E5: South Andaman | G5: 23 | H5: Anantapuramu | J5: 3 | K5: Crime Branch | M5: 2 | N5: Barpeta | P5: 2 | Q5: Arwal | V5: 3 | W5: Balrampur | Y5: 3 | Z5: Diu | AE5: 22 | AF5: Dwarka | AH5: 2 | AI5: South Goa | AK5: 3 | AL5: Amreli | AN5: 26 | AO5: Charkhi Dadri | AQ5: 3 | AR5: Chamba | AT5: 34 | AU5: Anti Narcotic Task Force Kashmir | AW5: 3 | AX5: Chatra | AZ5: 36 | BA5: Belagavi City | BC5: 2 | BD5: Ernakulam Commr. | BI5: 3 | BJ5: Anuppur | BL5: 3 | BM5: Amravati Commr. | BO5: 3 | BP5: Churachandpur | BR5: 2 | BS5: Garo Hills North | BU5: 11 | BV5: Hnahthial | BX5: 3 | BY5: Kohima | CA5: 3 | CB5: Baragarh | CG5: 3 | CH5: Batala | CJ5: 3 | CK5: Banswara | CM5: 7 | CN5: Gyalshing (West) | CP5: 43 | CQ5: Chengalpattu | CS5: 21 | CT5: Cyberabad Commissionerate | CV5: 3 | CW5: GRP | CY5: 3 | CZ5: Allahabad | DB5: 3 | DC5: Chamoli | DE5: 5 | DF5: Bankura | DH5: 40 | DI5: AMRITSAR
A6: 4 | B6: BIHAR | G6: 24 | H6: Annamayya | J6: 4 | K6: Dibang Valley | M6: 1 | N6: BIEO | P6: 3 | Q6: Aurangabad | V6: 4 | W6: Bemetra | AE6: 3 | AF6: East | AK6: 4 | AL6: Anand | AN6: 4 | AO6: Faridabad | AQ6: 4 | AR6: CID | AT6: 2 | AU6: Awantipora | AW6: 4 | AX6: Deoghar | AZ6: 4 | BA6: Belagavi District | BC6: 3 | BD6: Ernakulam Rural | BI6: 4 | BJ6: Ashok Nagar | BL6: 4 | BM6: Amravati Rural | BO6: 4 | BP6: CID | BR6: 3 | BS6: Garo Hills South | BU6: 12 | BV6: Khawzawl | BX6: 4 | BY6: Longleng | CA6: 4 | CB6: Berhampur | CG6: 4 | CH6: Bathinda | CJ6: 4 | CK6: Baran | CM6: 2 | CN6: Mangan (North) | CP6: 2 | CQ6: Chennai | CS6: 22 | CT6: Hyderabad Commissionerate | CV6: 4 | CW6: Kowai | CY6: 4 | CZ6: Ambedkar Nagar | DB6: 4 | DC6: Champawat | DE6: 38 | DF6: Barasat Police District | DH6: 41 | DI6: ASANSOL
A7: 30 | B7: CHANDIGARH | G7: 25 | H7: Bapatla | J7: 5 | K7: Kameng East | M7: 37 | N7: Biswanath | P7: 4 | Q7: Bagaha | V7: 5 | W7: Bilaspur | AE7: 4 | AF7: EOW | AK7: 5 | AL7: Arvalli | AN7: 5 | AO7: Fatehabad | AQ7: 5 | AR7: GRP | AT7: 3 | AU7: Bandipora | AW7: 5 | AX7: Dhanbad | AZ7: 2 | BA7: Bengaluru City | BC7: 4 | BD7: Idukki | BI7: 5 | BJ7: Balaghat | BL7: 5 | BM7: Aurangabad Commr. | BO7: 5 | BP7: Imphal East | BR7: 4 | BS7: Garo Hills South West | BU7: 3 | BV7: Kolasib | BX7: 5 | BY7: Mokokchung | CA7: 5 | CB7: Bhadrak | CG7: 5 | CH7: CP Amritsar | CJ7: 5 | CK7: Barmer | CM7: 3 | CN7: Namchi (South) | CP7: 3 | CQ7: Coimbatore | CS7: 32 | CT7: Jagityal | CV7: 5 | CW7: North | CY7: 5 | CZ7: Amethi | DB7: 5 | DC7: Dehradun | DE7: 6 | DF7: Barrackpur PC | DH7: 42 | DI7: AURANGABAD
A8: 5 | B8: CHHATTISGARH | G8: 26 | H8: Chittoor | J8: 6 | K8: Kameng West | M8: 4 | N8: Bongaigaon | P8: 5 | Q8: Banka | V8: 6 | W8: Bizapur | AE8: 5 | AF8: IGI Airport | AK8: 6 | AL8: Banaskantha | AN8: 6 | AO8: GRP | AQ8: 6 | AR8: Hamirpur | AT8: 4 | AU8: Baramulla | AW8: 6 | AX8: Dhanbad Railway | AZ8: 3 | BA8: Bengaluru District | BC8: 5 | BD8: Kannur City | BI8: 6 | BJ8: Barwani | BL8: 48 | BM8: Aurangabad Railway | BO8: 6 | BP8: Imphal West | BR8: 5 | BS8: Garo Hills West | BU8: 4 | BV8: Lawngtlai | BX8: 6 | BY8: Mon | CA8: 6 | CB8: Bolangir | CG8: 6 | CH8: CP Jalandhar | CJ8: 6 | CK8: Bharatpur | CM8: 6 | CN8: Pakyong (East) | CP8: 4 | CQ8: Coimbatore City | CS8: 33 | CT8: Jayashankar Bhupalpalli | CV8: 6 | CW8: Sipahijala | CY8: 6 | CZ8: Amroha | DB8: 14 | DC8: GRP | DE8: 31 | DF8: Baruipur Police | DH8: 43 | DI8: BENGALURU
A9: 31 | B9: D&N HAVELI AND DAMAN & DIU | G9: 27 | H9: Dr BR Ambedkar Konaseema | J9: 27 | K9: Kamle | M9: 6 | N9: Cachar | P9: 6 | Q9: Begusarai | V9: 7 | W9: Dantewara | AE9: 6 | AF9: Metro | AK9: 7 | AL9: Bharuch | AN9: 7 | AO9: Gurgaon | AQ9: 7 | AR9: Kangra | AT9: 5 | AU9: Budgam | AW9: 7 | AX9: Dumka | AZ9: 6 | BA9: Bidar | BC9: 22 | BD9: Kannur Rural | BI9: 7 | BJ9: Betul | BL9: 6 | BM9: Aurangabad Rural | BO9: 11 | BP9: Jiribam | BR9: 7 | BS9: Jaintia Hills East | BU9: 5 | BV9: Lunglei | BX9: 7 | BY9: Peren | CA9: 7 | CB9: Boudh | CG9: 7 | CH9: CP Ludhiana | CJ9: 7 | CK9: Bhilwara | CM9: 4 | CN9: Soreng (West) | CP9: 5 | CQ9: Cuddalore | CS9: 34 | CT9: Jogulamba Gadwal | CV9: 7 | CW9: South | CY9: 7 | CZ9: Auraiya | DB9: 6 | DC9: Haridwar | DE9: 43 | DF9: Basirhat Police District | DH9: 44 | DI9: BHOPAL
A10: 32 | B10: DELHI | G10: 28 | H10: East Godavari | J10: 23 | K10: Kra Daadi | M10: 40 | N10: Charaideo | P10: 7 | Q10: Bettiah | V10: 8 | W10: Dhamtari | AE10: 7 | AF10: New Delhi | AK10: 8 | AL10: Bhavnagar | AN10: 27 | AO10: Hansi | AQ10: 8 | AR10: Kinnaur | AT10: 37 | AU10: CICE Jammu | AW10: 8 | AX10: Garhwa | AZ10: 9 | BA10: Chamarajnagar | BC10: 6 | BD10: Kasargod | BI10: 8 | BJ10: Bhind | BL10: 7 | BM10: Beed | BO10: 13 | BP10: Kakching | BR10: 6 | BS10: Jaintia Hills West | BU10: 6 | BV10: Mamit | BX10: 8 | BY10: Phek | CA10: 8 | CB10: Cuttack | CG10: 8 | CH10: Faridkot | CJ10: 49 | CK10: Bhiwadi | CP10: 41 | CQ10: Cyber Cell | CS10: 35 | CT10: Kamareddy | CV10: 8 | CW10: Unakoti | CY10: 8 | CZ10: Azamgarh | DB10: 7 | DC10: Nainital | DE10: 7 | DF10: Bidhannagar PC | DH10: 45 | DI10: CHANDIGARH CITY
A11: 6 | B11: GOA | G11: 29 | H11: Eluru | J11: 7 | K11: Kurung Kumey | M11: 7 | N11: Chirang | P11: 8 | Q11: Bhabhua | V11: 9 | W11: Durg | AE11: 8 | AF11: North | AK11: 9 | AL11: Botad | AN11: 8 | AO11: Hissar | AQ11: 9 | AR11: Kullu | AT11: 38 | AU11: CICE Kashmir | AW11: 9 | AX11: Giridih | AZ11: 8 | BA11: Chikkaballapura | BC11: 7 | BD11: Kollam Commr. | BI11: 9 | BJ11: Bhopal commissionerate | BL11: 8 | BM11: Bhandara | BO11: 15 | BP11: Kamjong | BR11: 8 | BS11: Khasi Hills East | BU11: 7 | BV11: Saiha | BX11: 9 | BY11: Tuensang | CA11: 9 | CB11: DCP BBSR | CG11: 9 | CH11: Fatehgarh Sahib | CJ11: 8 | CK11: Bikaner | CP11: 6 | CQ11: Dharmapuri | CS11: 23 | CT11: Karimnagar Commissionerate | CV11: 9 | CW11: West | CY11: 9 | CZ11: Badaun | DB11: 8 | DC11: Pauri Garhwal | DE11: 8 | DF11: Birbhum | DH11: 46 | DI11: CHENNAI
A12: 7 | B12: GUJARAT | G12: 30 | H12: Guntakal Railway | J12: 25 | K12: Lepa Rada | M12: 5 | N12: CID | P12: 9 | Q12: Bhagalpur | V12: 10 | W12: Gariyaband | AE12: 9 | AF12: North-East | AK12: 10 | AL12: Chhotaudepur | AN12: 24 | AO12: Irrigation & Power | AQ12: 10 | AR12: Lahaul & Spiti | AT12: 31 | AU12: Cyber Crime Jammu | AW12: 10 | AX12: Godda | AZ12: 10 | BA12: Chikkamagaluru | BC12: 8 | BD12: Kollam Rural | BI12: 10 | BJ12: Bhopal Railway | BL12: 9 | BM12: Buldhana | BO12: 12 | BP12: Kangpokpi | BR12: 13 | BS12: Khasi Hills Eastern West | BU12: 13 | BV12: Saitual | BX12: 10 | BY12: Wokha | CA12: 10 | CB12: DCP CTC | CG12: 10 | CH12: Fazilka | CJ12: 9 | CK12: Bundi | CP12: 7 | CQ12: Dindigul | CS12: 24 | CT12: Khammam Commissionerate | CY12: 10 | CZ12: Baghpat | DB12: 9 | DC12: Pithoragarh | DE12: 37 | DF12: Bongaon Police District | DH12: 47 | DI12: COIMBATORE
A13: 8 | B13: HARYANA | G13: 31 | H13: Guntur | J13: 8 | K13: Lohit | M13: 8 | N13: Darrang | P13: 10 | Q13: Bhojpur | V13: 30 | W13: Gaurela-Pendra-Marwahi | AE13: 10 | AF13: North-West | AK13: 11 | AL13: CID Crime | AN13: 9 | AO13: Jhajjar | AQ13: 11 | AR13: Mandi | AT13: 32 | AU13: Cyber Crime Kashmir | AW13: 11 | AX13: Gumla | AZ13: 11 | BA13: Chitradurga | BC13: 9 | BD13: Kottayam | BI13: 57 | BJ13: Bhopal Rural | BL13: 10 | BM13: Chandrapur | BO13: 16 | BP13: Noney | BR13: 9 | BS13: Khasi Hills South West | BU13: 8 | BV13: Serchhip | BX13: 11 | BY13: Zunheboto | CA13: 11 | CB13: Deogarh | CG13: 11 | CH13: Ferozepur | CJ13: 10 | CK13: Chittorgarh | CP13: 8 | CQ13: Erode | CS13: 36 | CT13: Komarmbheem Asifabad | CY13: 11 | CZ13: Bahraich | DB13: 10 | DC13: Rudra Prayag | DE13: 32 | DF13: Chandannagar PC | DH13: 48 | DI13: DELHI CITY
A14: 9 | B14: HIMACHAL PRADESH | G14: 32 | H14: Kakinada | J14: 9 | K14: Longding | M14: 9 | N14: Dhemaji | P14: 11 | Q14: Buxar | V14: 11 | W14: GRP Raipur | AE14: 11 | AF14: Outer | AK14: 12 | AL14: Dahod | AN14: 10 | AO14: Jind | AQ14: 12 | AR14: Shimla | AT14: 8 | AU14: Doda | AW14: 12 | AX14: Hazaribagh | AZ14: 12 | BA14: Dakshina Kannada | BC14: 10 | BD14: Kozhikode Commr. | BI14: 11 | BJ14: Burhanpur | BL14: 11 | BM14: Dhule | BO14: 17 | BP14: Pherzawl | BR14: 10 | BS14: Khasi Hills West | BU14: 10 | BV14: Spl Narcotic | CA14: 12 | CB14: Dhenkanal | CG14: 12 | CH14: G.R.P | CJ14: 11 | CK14: Churu | CP14: 44 | CQ14: Kallakurichi | CS14: 37 | CT14: Mahabubbad | CY14: 12 | CZ14: Ballia | DB14: 11 | DC14: Tehri Garhwal | DE14: 10 | DF14: Coochbehar | DH14: 49 | DI14: DHANBAD
A15: 33 | B15: JAMMU & KASHMIR | G15: 33 | H15: Krishna | J15: 10 | K15: Lower Dibang Valley | M15: 10 | N15: Dhubri | P15: 12 | Q15: Darbhanga | V15: 12 | W15: Jagdalpur | AE15: 23 | AF15: Outer North | AK15: 13 | AL15: Dang | AN15: 11 | AO15: Kaithal | AQ15: 13 | AR15: Sirmaur | AT15: 35 | AU15: EOW Jammu | AW15: 13 | AX15: Jamshedpur | AZ15: 13 | BA15: Davanagere | BC15: 11 | BD15: Kozhikode Rural | BI15: 12 | BJ15: Chhatarpur | BL15: 12 | BM15: Gadchiroli | BO15: 7 | BP15: Senapati | BR15: 11 | BS15: Ri-Bhoi | BU15: 9 | BV15: Spl Traffic | CA15: 13 | CB15: Gajapati | CG15: 13 | CH15: Gurdaspur | CJ15: 12 | CK15: Dausa | CP15: 9 | CQ15: Kanchipuram | CS15: 38 | CT15: Mahabubnagar | CY15: 13 | CZ15: Balrampur | DB15: 12 | DC15: Udhamsingh Nagar | DE15: 11 | DF15: Dakshin Dinajpur | DH15: 50 | DI15: DURG-BHILAINAGAR
A16: 10 | B16: JHARKHAND | G16: 34 | H16: Kurnool | J16: 22 | K16: Lower Siang | M16: 11 | N16: Dibrugarh | P16: 45 | Q16: Economic Offences Unit | V16: 13 | W16: Janjgir | AE16: 12 | AF16: RAILWAY | AK16: 14 | AL16: Devbhumi Dwarka | AN16: 12 | AO16: Karnal | AQ16: 14 | AR16: Solan | AT16: 36 | AU16: EOW Kashmir | AW16: 14 | AX16: Jamshedpur Railway | AZ16: 14 | BA16: Dharwad | BC16: 12 | BD16: Malappuram | BI16: 13 | BJ16: Chhindwara | BL16: 13 | BM16: Gondia | BO16: 8 | BP16: Tamenglong | CA16: 14 | CB16: Ganjam | CG16: 14 | CH16: Hoshiarpur | CJ16: 13 | CK16: Dholpur | CP16: 10 | CQ16: Kanyakumari | CS16: 39 | CT16: Medak | CY16: 14 | CZ16: Banda | DB16: 13 | DC16: Uttarkashi | DE16: 12 | DF16: Darjeeling | DH16: 51 | DI16: FARIDABAD
A17: 11 | B17: KARNATAKA | G17: 35 | H17: Nandyal | J17: 20 | K17: Namsai | M17: 25 | N17: Dima Hasao | P17: 13 | Q17: Gaya | V17: 14 | W17: Jashpur | AE17: 20 | AF17: Rohini | AK17: 15 | AL17: Gandhinagar | AN17: 13 | AO17: Kurukshetra | AQ17: 15 | AR17: Una | AT17: 9 | AU17: Ganderbal | AW17: 15 | AX17: Jamtara | AZ17: 15 | BA17: Gadag | BC17: 13 | BD17: Palakkad | BI17: 55 | BJ17: Cyber Crime Cell | BL17: 14 | BM17: Hingoli | BO17: 14 | BP17: Tengnoupal | CA17: 15 | CB17: Jagatsinghpur | CG17: 15 | CH17: Jalandhar Rural | CJ17: 43 | CK17: DISCOM | CP17: 11 | CQ17: Karur | CS17: 49 | CT17: Mulug | CY17: 15 | CZ17: Barabanki | DE17: 33 | DF17: Diamond Harbour Police | DH17: 52 | DI17: GHAZIABAD
A18: 12 | B18: KERALA | G18: 36 | H18: NTR | J18: 26 | K18: Pakke Kessang | M18: 13 | N18: Goalpara | P18: 14 | Q18: Gopalganj | V18: 15 | W18: Kabirdham | AE18: 21 | AF18: Shahdara | AK18: 16 | AL18: Gir Somnath | AN18: 14 | AO18: Mahendergarh | AT18: 10 | AU18: Handwara | AW18: 16 | AX18: Khunti | AZ18: 17 | BA18: Hassan | BC18: 14 | BD18: Pathanamthitta | BI18: 14 | BJ18: Damoh | BL18: 15 | BM18: Jalgaon | BO18: 9 | BP18: Thoubal | CA18: 16 | CB18: Jajpur | CG18: 16 | CH18: Kapurthala | CJ18: 14 | CK18: Dungarpur | CP18: 12 | CQ18: Krishnagiri | CS18: 40 | CT18: Nagarkurnool | CY18: 16 | CZ18: Bareilly | DE18: 13 | DF18: Hooghly Rural Police | DH18: 53 | DI18: GWALIOR
A19: 34 | B19: LADAKH | G19: 37 | H19: Palnadu | J19: 11 | K19: Papum Pare City | M19: 14 | N19: Golaghat | P19: 15 | Q19: Jamalpur Railway | V19: 16 | W19: Kanker | AE19: 13 | AF19: South | AK19: 17 | AL19: Jamnagar | AN19: 15 | AO19: Mewat | AT19: 11 | AU19: Jammu | AW19: 17 | AX19: Koderma | AZ19: 18 | BA19: Haveri | BC19: 15 | BD19: Railways | BI19: 15 | BJ19: Datia | BL19: 16 | BM19: Jalna | BO19: 10 | BP19: Ukhrul | CA19: 17 | CB19: Jharsuguda | CG19: 17 | CH19: Khanna | CJ19: 15 | CK19: G.R.P.Ajmer | CP19: 13 | CQ19: Madurai | CS19: 41 | CT19: Nalgonda | CY19: 17 | CZ19: Basti | DE19: 14 | DF19: Howrah G. R. P. | DH19: 54 | DI19: HYDERABAD
A20: 35 | B20: LAKSHADWEEP | G20: 38 | H20: Parvathipuram Manyam | J20: 12 | K20: Papum Pare Rural | M20: 12 | N20: GRP | P20: 16 | Q20: Jamui | V20: 31 | W20: Khairagarh - Chhuikhadan-Gandai | AE20: 14 | AF20: South-East | AK20: 18 | AL20: Junagadh | AN20: 16 | AO20: Palwal | AT20: 13 | AU20: Kathua | AW20: 18 | AX20: Latehar | AZ20: 19 | BA20: Hubballi Dharwad City | BC20: 16 | BD20: Thrissur Commr. | BI20: 16 | BJ20: Dewas | BL20: 17 | BM20: Kolhapur | CA20: 18 | CB20: Kalahandi | CG20: 18 | CH20: Ludhiana Rural | CJ20: 16 | CK20: G.R.P.Jodhpur | CP20: 14 | CQ20: Madurai City | CS20: 50 | CT20: Narayanpet | CY20: 18 | CZ20: Bijnor | DE20: 15 | DF20: Howrah PC | DH20: 55 | DI20: INDORE
A21: 13 | B21: MADHYA PRADESH | G21: 39 | H21: Prakasam | J21: 24 | K21: Shiyomi | M21: 15 | N21: Guwahati City | P21: 17 | Q21: Jehanabad | V21: 17 | W21: Kondagaon | AE21: 15 | AF21: South-West | AK21: 19 | AL21: Kachchh East(G) | AN21: 17 | AO21: Panchkula | AT21: 14 | AU21: Kishtwar | AW21: 19 | AX21: Lohardagga | AZ21: 20 | BA21: K.G.F. | BC21: 17 | BD21: Thrissur Rural | BI21: 17 | BJ21: Dhar | BL21: 18 | BM21: Latur | CA21: 19 | CB21: Kandhamal | CG21: 29 | CH21: Malerkotla | CJ21: 17 | CK21: Ganganagar | CP21: 48 | CQ21: Mayiladuthurai | CS21: 42 | CT21: Nirmal | CY21: 19 | CZ21: Bulandshahar | DE21: 16 | DF21: Howrah Rural | DH21: 56 | DI21: JABALPUR
A22: 14 | B22: MAHARASHTRA | G22: 40 | H22: Sri Potti Sriramulu Nellore | J22: 21 | K22: Siang | M22: 16 | N22: Hailakandi | P22: 18 | Q22: Katihar | V22: 18 | W22: Korba | AE22: 16 | AF22: Spl Cell | AK22: 20 | AL22: Kachchh West(B) | AN22: 18 | AO22: Panipat | AT22: 15 | AU22: Kulgam | AW22: 20 | AX22: Pakur | AZ22: 29 | BA22: K.Railways | BC22: 18 | BD22: Trivandrum Commr. | BI22: 18 | BJ22: Dindori | BL22: 49 | BM22: Mira Bhayandar Vasai Virar | CA22: 20 | CB22: Kendrapara | CG22: 19 | CH22: Mansa | CJ22: 18 | CK22: Hanumangarh | CP22: 15 | CQ22: Nagapattinam | CS22: 25 | CT22: Nizamabad Commissionerate | CY22: 20 | CZ22: Chandoli | DE22: 39 | DF22: Islampore Police District | DH22: 57 | DI22: JAIPUR
A23: 15 | B23: MANIPUR | G23: 41 | H23: Sri Sathya Sai | J23: 13 | K23: Siang East | M23: 17 | N23: Hamren | P23: 19 | Q23: Katihar Railway | V23: 20 | W23: Koriya | AE23: 17 | AF23: SPUWAC | AK23: 21 | AL23: Kheda | AN23: 19 | AO23: Rewari | AT23: 16 | AU23: Kupwara | AW23: 21 | AX23: Palamu | AZ23: 16 | BA23: Kalaburgi | BC23: 19 | BD23: Trivandrum Rural | BI23: 19 | BJ23: Guna | BL23: 19 | BM23: Mumbai Commr. | CA23: 21 | CB23: Keonjhar | CG23: 20 | CH23: Moga | CJ23: 48 | CK23: Jaipur Crime | CP23: 16 | CQ23: Namakkal | CS23: 26 | CT23: Rachakonda Commissionerate | CY23: 21 | CZ23: Chitrakoot | DE23: 17 | DF23: Jalpaiguri | DH23: 58 | DI23: JAMSHEDPUR
A24: 16 | B24: MEGHALAYA | G24: 42 | H24: Srikakulam | J24: 14 | K24: Siang Upper | M24: 38 | N24: Hojai | P24: 20 | Q24: Khagaria | V24: 21 | W24: Mahasamund | AE24: 18 | AF24: Vigilance | AK24: 22 | AL24: Mahisagar | AN24: 20 | AO24: Rohtak | AT24: 18 | AU24: Poonch | AW24: 22 | AX24: Ramgarh | AZ24: 37 | BA24: Kalaburgi City | BC24: 20 | BD24: Wayanadu | BI24: 20 | BJ24: Gwalior | BL24: 20 | BM24: Mumbai Railway | CA24: 22 | CB24: Khurda | CG24: 21 | CH24: Muktsar | CJ24: 19 | CK24: Jaipur East | CP24: 17 | CQ24: Nilgiris | CS24: 48 | CT24: Railway Police Secunderabad | CY24: 22 | CZ24: Deoria | DE24: 46 | DF24: Jangipur Police District | DH24: 59 | DI24: JODHPUR
A25: 17 | B25: MIZORAM | G25: 43 | H25: Tirupati | J25: 15 | K25: Siang West | M25: 18 | N25: Jorhat | P25: 21 | Q25: Kishanganj | V25: 32 | W25: Manendragarh-Chirmiri-Bharatpur | AE25: 19 | AF25: West | AK25: 23 | AL25: Mehsana | AN25: 21 | AO25: Sirsa | AT25: 19 | AU25: Pulwama | AW25: 23 | AX25: Ranchi | AZ25: 21 | BA25: Kodagu | BI25: 21 | BJ25: Harda | BL25: 21 | BM25: Nagpur Commr. | CA25: 23 | CB25: Koraput | CG25: 22 | CH25: Pathankot | CJ25: 44 | CK25: Jaipur Metro | CP25: 42 | CQ25: Other Units | CS25: 43 | CT25: Rajanna Siricilla | CY25: 23 | CZ25: Etah | DE25: 18 | DF25: Jhargram | DH25: 60 | DI25: KANNUR
A26: 18 | B26: NAGALAND | G26: 44 | H26: Viiayawada Railway | J26: 16 | K26: Subansiri Lower | M26: 19 | N26: Kamrup | P26: 22 | Q26: Lakhisarai | V26: 33 | W26: Mohla-Manpur-Ambagarh Chouki | AK26: 24 | AL26: Morbi | AN26: 22 | AO26: Sonipat | AT26: 20 | AU26: Railways Jammu | AW26: 24 | AX26: Sahebganj | AZ26: 22 | BA26: Kolar | BI26: 23 | BJ26: Indore commissionerate | BL26: 22 | BM26: Nagpur Railway | CA26: 24 | CB26: Malkangiri | CG26: 23 | CH26: Patiala | CJ26: 20 | CK26: Jaipur North | CP26: 18 | CQ26: Perambalur | CS26: 27 | CT26: Ramagundam Commissionerate | CY26: 24 | CZ26: Etawah | DE26: 34 | DF26: Kalimpong | DH26: 61 | DI26: KANPUR
A27: 19 | B27: ODISHA | G27: 45 | H27: Visakhapatnam | J27: 17 | K27: Subansiri Upper | M27: 20 | N27: Karbi Anglong | P27: 23 | Q27: Madhepura | V27: 22 | W27: Mungali | AK27: 25 | AL27: Narmada | AN27: 23 | AO27: Yamunanagar | AT27: 21 | AU27: Railways Kashmir | AW27: 25 | AX27: Saraikela | AZ27: 23 | BA27: Koppal | BI27: 24 | BJ27: Indore Railway | BL27: 23 | BM27: Nagpur Rural | CA27: 25 | CB27: Mayurbhanj | CG27: 24 | CH27: Ropar | CJ27: 21 | CK27: Jaipur Rural | CP27: 19 | CQ27: Pudukottai | CS27: 44 | CT27: Sangareddy | CY27: 25 | CZ27: Faizabad | DE27: 19 | DF27: Kharagpur G. R. P. | DH27: 62 | DI27: KOCHI
A28: 36 | B28: PUDUCHERRY | G28: 46 | H28: Vizianagaram | J28: 18 | K28: Tawang | M28: 21 | N28: Karimganj | P28: 24 | Q28: Madhubani | V28: 23 | W28: Narayanpur | AK28: 26 | AL28: Navsari | AT28: 22 | AU28: Railways Katra | AW28: 26 | AX28: Simdega | AZ28: 24 | BA28: Mandya | BI28: 58 | BJ28: Indore Rural | BL28: 24 | BM28: Nanded | CA28: 27 | CB28: Nabarangpur | CG28: 25 | CH28: Sangrur | CJ28: 22 | CK28: Jaipur South | CP28: 21 | CQ28: Railway Chennai | CS28: 28 | CT28: Siddipet Commissionerate | CY28: 26 | CZ28: Fatehgarh | DE28: 20 | DF28: Kolkata | DH28: 63 | DI28: KOLKATA
A29: 20 | B29: PUNJAB | G29: 47 | H29: West Godavari | J29: 19 | K29: Tirap | M29: 22 | N29: Kokrajhar | P29: 25 | Q29: Motihari | V29: 24 | W29: Raigarh | AK29: 27 | AL29: Panchmahal | AT29: 23 | AU29: Rajouri | AZ29: 25 | BA29: Mangaluru City | BI29: 25 | BJ29: Jabalpur | BL29: 25 | BM29: Nandurbar | CA29: 26 | CB29: Nayagarh | CG29: 26 | CH29: SAS Nagar | CJ29: 23 | CK29: Jaipur West | CP29: 22 | CQ29: Railway Trichy | CS29: 45 | CT29: Suryapet | CY29: 27 | CZ29: Fatehpur | DE29: 45 | DF29: Krishna Nagar Police District | DH29: 64 | DI29: KOLLAM
A30: 21 | B30: RAJASTHAN | G30: 48 | H30: YSR | M30: 23 | N30: Lakhimpur | P30: 26 | Q30: Munger | V30: 25 | W30: Raipur | AK30: 28 | AL30: Patan | AT30: 24 | AU30: Ramban | AZ30: 26 | BA30: Mysuru City | BI30: 26 | BJ30: Jabalpur Railway | BL30: 26 | BM30: Nasik Commr. | CA30: 28 | CB30: Nuapada | CG30: 27 | CH30: SBS Nagar | CJ30: 24 | CK30: Jaisalmer | CP30: 20 | CQ30: Ramnathapuram | CS30: 46 | CT30: Vikarabad | CY30: 28 | CZ30: Firozabad | DE30: 21 | DF30: Malda | DH30: 65 | DI30: KOTA
A31: 22 | B31: SIKKIM | M31: 36 | N31: Majuli | P31: 27 | Q31: Muzaffarpur | V31: 26 | W31: Rajnandgaon | AK31: 29 | AL31: Porbandar | AT31: 25 | AU31: Reasi | AZ31: 27 | BA31: Mysuru District | BI31: 27 | BJ31: Jhabua | BL31: 27 | BM31: Nasik Rural | CA31: 29 | CB31: Puri | CG31: 28 | CH31: Tarn Taran | CJ31: 25 | CK31: Jalore | CP31: 45 | CQ31: Ranipet | CS31: 47 | CT31: Wanaparthy | CY31: 29 | CZ31: G.R.P. | DE31: 22 | DF31: Murshidabad Police District | DH31: 66 | DI31: KOZHIKODE
A32: 23 | B32: TAMIL NADU | M32: 24 | N32: Morigaon | P32: 28 | Q32: Muzaffarpur Railway | V32: 34 | W32: Sakti | AK32: 30 | AL32: Rajkot City | AT32: 26 | AU32: Samba | AZ32: 28 | BA32: Raichur | BI32: 28 | BJ32: Katni | BL32: 28 | BM32: Navi Mumbai | CA32: 30 | CB32: Rayagada | CJ32: 26 | CK32: Jhalawar | CP32: 23 | CQ32: Salem | CS32: 29 | CT32: Warangal Commissionerate | CY32: 30 | CZ32: Gautambudh Nagar Commissionerate | DE32: 24 | DF32: Paschim Medinipur | DH32: 67 | DI32: LUCKNOW
A33: 24 | B33: TELANGANA | M33: 26 | N33: Nagaon | P33: 29 | Q33: Nalanda | V33: 35 | W33: Sarangarh-Bilaigarh | AK33: 31 | AL33: Rajkot Rural | AT33: 27 | AU33: Shopian | AZ33: 30 | BA33: Ramanagara | BI33: 29 | BJ33: Khandwa | BL33: 29 | BM33: Osmanabad | CA33: 31 | CB33: Rourkela | CJ33: 27 | CK33: Jhunjhunu | CP33: 24 | CQ33: Salem City | CY33: 31 | CZ33: Ghaziabad | DE33: 25 | DF33: Purab Medinipur | DH33: 68 | DI33: LUDHIANA
A34: 25 | B34: TRIPURA | M34: 27 | N34: Nalbari | P34: 30 | Q34: Naugachia | V34: 27 | W34: Sarguja | AK34: 32 | AL34: Sabarkantha | AT34: 28 | AU34: Sopore | AZ34: 31 | BA34: Shimoga | BI34: 30 | BJ34: Khargone | BL34: 30 | BM34: Palghar | CA34: 32 | CB34: Sambalpur | CJ34: 28 | CK34: Jodhpur (East) | CP34: 25 | CQ34: Sivagangai | CY34: 32 | CZ34: Ghazipur | DE34: 35 | DF34: Purba Bardhaman | DH34: 69 | DI34: MADURAI
A35: 26 | B35: UTTAR PRADESH | M35: 28 | N35: RPO | P35: 31 | Q35: Nawadah | V35: 28 | W35: Sukma | AK35: 33 | AL35: Surat City | AT35: 6 | AU35: Special Crime Wing Jammu | AZ35: 32 | BA35: Tumakuru | BI35: 31 | BJ35: Mandla | BL35: 31 | BM35: Parbhani | CA35: 33 | CB35: Sonepur | CJ35: 29 | CK35: Jodhpur (West) | CP35: 50 | CQ35: Tambaram | CY35: 33 | CZ35: Gonda | DE35: 26 | DF35: Purulia | DH35: 70 | DI35: MALAPPURAM
A36: 27 | B36: UTTARAKHAND | M36: 35 | N36: Sadia | P36: 32 | Q36: Patna | V36: 29 | W36: Surajpur | AK36: 34 | AL36: Surat Rural | AT36: 7 | AU36: Special Crime Wing Kashmir | AZ36: 33 | BA36: Udupi | BI36: 32 | BJ36: Mandsaur | BL36: 47 | BM36: Pimpri Chinchwad City | CA36: 34 | CB36: SRP(Cuttack) | CJ36: 30 | CK36: Jodhpur Rural | CP36: 47 | CQ36: Tenkasi | CY36: 34 | CZ36: Gorakhpur | DE36: 44 | DF36: Raiganj Police District | DH36: 71 | DI36: MEERUT
A37: 28 | B37: WEST BENGAL | M37: 31 | N37: Sibsagar | P37: 33 | Q37: Patna Railway | AK37: 35 | AL37: Surendranagar | AT37: 29 | AU37: Srinagar | AZ37: 34 | BA37: Uttara Kannada | BI37: 33 | BJ37: Morena | BL37: 32 | BM37: Pune Commr. | CA37: 35 | CB37: SRP(Rourkela) | CJ37: 31 | CK37: Karauli | CP37: 26 | CQ37: Thanjavur | CY37: 35 | CZ37: Hamirpur | DE37: 40 | DF37: Ranaghat Police District | DH37: 72 | DI37: MUMBAI
M38: 32 | N38: Sonitpur | P38: 34 | Q38: Purnea | AK38: 36 | AL38: Tapi | AT38: 30 | AU38: Udhampur | AZ38: 38 | BA38: Vijayanagara | BI38: 22 | BJ38: Narmadapuram | BL38: 33 | BM38: Pune Railway | CA38: 36 | CB38: Sundargarh | CJ38: 32 | CK38: Kota City | CP38: 27 | CQ38: Theni | CY38: 36 | CZ38: Hapur | DE38: 27 | DF38: Sealdah G. R. P. | DH38: 73 | DI38: NAGPUR
M39: 29 | N39: SOU | P39: 35 | Q39: Rohtas | AK39: 37 | AL39: Vadodara City | AZ39: 7 | BA39: Vijayapura | BI39: 34 | BJ39: Narsinghpur | BL39: 34 | BM39: Pune Rural | CJ39: 33 | CK39: Kota Rural | CP39: 28 | CQ39: Thirunelveli | CY39: 37 | CZ39: Hardoi | DE39: 28 | DF39: Siliguri G. R. P. | DH39: 74 | DI39: NASIK
M40: 39 | N40: South Salmara | P40: 36 | Q40: Saharsa | AK40: 38 | AL40: Vadodara Rural | AZ40: 35 | BA40: Yadgiri | BI40: 35 | BJ40: Neemuch | BL40: 35 | BM40: Raigad | CJ40: 34 | CK40: Nagaur | CP40: 29 | CQ40: Thirunelveli City | CY40: 38 | CZ40: Hathras | DE40: 29 | DF40: Siliguri PC | DH40: 75 | DI40: PATNA
M41: 30 | N41: STF | P41: 37 | Q41: Samastipur | AK41: 39 | AL41: Valsad | BI41: 56 | BJ41: Niwari | BL41: 36 | BM41: Ratnagiri | CJ41: 35 | CK41: Pali | CP41: 30 | CQ41: Thiruvallur | CY41: 39 | CZ41: Jalaun | DE41: 36 | DF41: Sundarban Police District | DH41: 76 | DI41: PUNE
M42: 42 | N42: Tamulpur | P42: 38 | Q42: Saran | AK42: 40 | AL42: W.Rly Ahmedabad | BI42: 36 | BJ42: Panna | BL42: 37 | BM42: Sangli | CJ42: 36 | CK42: Pratapgarh | CP42: 31 | CQ42: Thiruvannamalai | CY42: 40 | CZ42: Jaunpur | DH42: 77 | DI42: RAIPUR
M43: 33 | N43: Tinsukia | P43: 39 | Q43: Sheikhpura | AK43: 41 | AL43: W.Rly Vadodara | BI43: 37 | BJ43: Raisen | BL43: 38 | BM43: Satara | CJ43: 37 | CK43: Rajsamand | CP43: 32 | CQ43: Thiruvarur | CY43: 41 | CZ43: Jhansi | DH43: 78 | DI43: RAJKOT
M44: 34 | N44: Udalguri | P44: 40 | Q44: Sheohar | BI44: 38 | BJ44: Rajgarh | BL44: 39 | BM44: Sindhudurg | CJ44: 38 | CK44: Sawai Madhopur | CP44: 33 | CQ44: Thoothukudi | CY44: 42 | CZ44: Kannauj | DH44: 79 | DI44: RANCHI
P45: 41 | Q45: Sitamarhi | BI45: 39 | BJ45: Ratlam | BL45: 40 | BM45: Solapur Commr. | CJ45: 45 | CK45: SCRB | CP45: 46 | CQ45: Tiruppattur | CY45: 44 | CZ45: Kanpur Commissionerate | DH45: 80 | DI45: SRINAGAR
P46: 42 | Q46: Siwan | BI46: 40 | BJ46: Rewa | BL46: 41 | BM46: Solapur Rural | CJ46: 39 | CK46: Sikar | CP46: 34 | CQ46: Tiruppur | CY46: 43 | CZ46: Kanpur Dehat | DH46: 81 | DI46: SURAT
P47: 48 | Q47: Special Unit Vigilence | BI47: 41 | BJ47: Sagar | BL47: 42 | BM47: Thane Commr. | CJ47: 40 | CK47: Sirohi | CP47: 35 | CQ47: Tiruppur City | CY47: 78 | CZ47: Kanpur Outer | DH47: 82 | DI47: THIRUVANANTHAPURAM
P48: 47 | Q48: State Vigilence | BI48: 42 | BJ48: Satna | BL48: 43 | BM48: Thane Rural | CJ48: 46 | CK48: SOG | CP48: 36 | CQ48: Trichy | CY48: 45 | CZ48: Kasganj | DH48: 83 | DI48: THRISSUR
P49: 43 | Q49: Supaul | BI49: 49 | BJ49: Sehore | BL49: 44 | BM49: Wardha | CJ49: 47 | CK49: SSB | CP49: 37 | CQ49: Trichy City | CY49: 46 | CZ49: Kaushambi | DH49: 84 | DI49: TIRUCHIRAPALLI
P50: 44 | Q50: Vaishali | BI50: 43 | BJ50: Seoni | BL50: 45 | BM50: Washim | CJ50: 41 | CK50: Tonk | CP50: 38 | CQ50: Vellore | CY50: 47 | CZ50: Khiri | DH50: 85 | DI50: VADODARA
BI51: 44 | BJ51: Shahdol | BL51: 46 | BM51: Yavatmal | CJ51: 42 | CK51: Udaipur | CP51: 39 | CQ51: Villupuram | CY51: 48 | CZ51: Kushi Nagar | DH51: 86 | DI51: VARANASI
BI52: 45 | BJ52: Shajapur | CP52: 40 | CQ52: Virudhunagar | CY52: 49 | CZ52: Lalitpur | DH52: 87 | DI52: VASAI VIRAR
BI53: 46 | BJ53: Sheopur | CY53: 50 | CZ53: Lucknow Commissionerate | DH53: 88 | DI53: VIJAYAWADA
BI54: 47 | BJ54: Shivpuri | CY54: 77 | CZ54: Lucknow Grameen | DH54: 89 | DI54: VISHAKHAPATNAM
BI55: 48 | BJ55: Sidhi | CY55: 51 | CZ55: Maharajganj
BI56: 50 | BJ56: Singrauli | CY56: 52 | CZ56: Mahoba
BI57: 51 | BJ57: Tikamgarh | CY57: 53 | CZ57: Mainpuri
BI58: 52 | BJ58: Ujjain | CY58: 54 | CZ58: Mathura
BI59: 53 | BJ59: Umaria | CY59: 55 | CZ59: Mau
BI60: 54 | BJ60: Vidisha | CY60: 56 | CZ60: Meerut
CY61: 57 | CZ61: Mirzapur
CY62: 58 | CZ62: Moradabad
CY63: 59 | CZ63: Muzaffarnagar
CY64: 60 | CZ64: Pilibhit
CY65: 61 | CZ65: Pratapgarh
CY66: 62 | CZ66: Raibareilly
CY67: 63 | CZ67: Rampur
CY68: 64 | CZ68: Saharanpur
CY69: 65 | CZ69: Sambhal
CY70: 66 | CZ70: Sant Kabirnagar
CY71: 67 | CZ71: Shahjahanpur
CY72: 68 | CZ72: Shamli
CY73: 69 | CZ73: Shrawasti
CY74: 70 | CZ74: Sidharthnagar
CY75: 71 | CZ75: Sitapur
CY76: 72 | CZ76: Sonbhadra
CY77: 73 | CZ77: St.Ravidasnagar
CY78: 74 | CZ78: Sultanpur
CY79: 75 | CZ79: Unnao
CY80: 76 | CZ80: Varanasi Commissionerate
CY81: 79 | CZ81: Varanasi Dehat

Sheet P-I
A1: =ADSI!$B$1 -> Goa, , ADSI-2022
A2: =IF(ADSI!$L$10=1,LangMaster!A23,LangMaster!B23) -> Proforma-I | E2: Abnormal Variations | F2: =COUNTIF(D24:Y24,"ABVAR") -> 5
A3: =IF(ADSI!$L$10=1,LangMaster!A24,LangMaster!B24) -> Accidental Deaths due to Natural Calamities
A4: =IF(ADSI!$L$10=1,LangMaster!A26,LangMaster!B26) -> Code | B4: =IF(ADSI!$L$10=1,LangMaster!A27,LangMaster!B27) -> S.No. | C4: =IF(ADSI!$L$10=1,LangMaster!A28,LangMaster!B28) -> Factors | D4: =IF(ADSI!$L$10=1,LangMaster!A29,LangMaster!B29) -> Number of Accidental Deaths | Y4: =IF(ADSI!$L$10=1,LangMaster!A473,LangMaster!B473) -> Grand Total (9) + (16)+(23)
D5: =IF(ADSI!$L$10=1,LangMaster!A30,LangMaster!B30) -> Male | K5: =IF(ADSI!$L$10=1,LangMaster!A31,LangMaster!B31) -> Female | R5: =IF(ADSI!$L$10=1,LangMaster!A32,LangMaster!B32) -> Transgender
D6: =IF(ADSI!$L$10=1,LangMaster!A461,LangMaster!B461) -> below 14 years | E6: =IF(ADSI!$L$10=1,LangMaster!A462,LangMaster!B462) -> 14 and above – below 18 years | F6: =IF(ADSI!$L$10=1,LangMaster!A463,LangMaster!B463) -> 18 and above – below 30 years | G6: =IF(ADSI!$L$10=1,LangMaster!A464,LangMaster!B464) -> 30 and above – below 45 years | H6: =IF(ADSI!$L$10=1,LangMaster!A465,LangMaster!B465) -> 45 and above – below 60 years | I6: =IF(ADSI!$L$10=1,LangMaster!A466,LangMaster!B466) -> 60 years & above | J6: =IF(ADSI!$L$10=1,LangMaster!A470,LangMaster!B470) -> Total [sum of (3) to (8)] | K6: =IF(ADSI!$L$10=1,LangMaster!A461,LangMaster!B461) -> below 14 years | L6: =IF(ADSI!$L$10=1,LangMaster!A462,LangMaster!B462) -> 14 and above – below 18 years | M6: =IF(ADSI!$L$10=1,LangMaster!A463,LangMaster!B463) -> 18 and above – below 30 years | N6: =IF(ADSI!$L$10=1,LangMaster!A464,LangMaster!B464) -> 30 and above – below 45 years | O6: =IF(ADSI!$L$10=1,LangMaster!A465,LangMaster!B465) -> 45 and above – below 60 years | P6: =IF(ADSI!$L$10=1,LangMaster!A466,LangMaster!B466) -> 60 years & above | Q6: =IF(ADSI!$L$10=1,LangMaster!A471,LangMaster!B471) -> Total [sum of (10) to (15)] | R6: =IF(ADSI!$L$10=1,LangMaster!A461,LangMaster!B461) -> below 14 years | S6: =IF(ADSI!$L$10=1,LangMaster!A462,LangMaster!B462) -> 14 and above – below 18 years | T6: =IF(ADSI!$L$10=1,LangMaster!A463,LangMaster!B463) -> 18 and above – below 30 years | U6: =IF(ADSI!$L$10=1,LangMaster!A464,LangMaster!B464) -> 30 and above – below 45 years | V6: =IF(ADSI!$L$10=1,LangMaster!A465,LangMaster!B465) -> 45 and above – below 60 years | W6: =IF(ADSI!$L$10=1,LangMaster!A466,LangMaster!B466) -> 60 years & above | X6: =IF(ADSI!$L$10=1,LangMaster!A472,LangMaster!B472) -> Total [sum of (17) to (22)]
B7: (1) | C7: (2) | D7: (3) | E7: (4) | F7: (5) | G7: (6) | H7: (7) | I7: (8) | J7: (9) | K7: (10) | L7: (11) | M7: (12) | N7: (13) | O7: (14) | P7: (15) | Q7: (16) | R7: (17) | S7: (18) | T7: (19) | U7: (20) | V7: (21) | W7: (22) | X7: (23) | Y7: (24)
A8: 1 | B8: 1 | C8: =IF(ADSI!$L$10=1,LangMaster!A42,LangMaster!B42) -> Avalanche | D8: 0 | E8: 0 | F8: 0 | G8: 0 | H8: 0 | I8: 0 | J8: =SUM(D8:I8) -> 0 | K8: 0 | L8: 0 | M8: 0 | N8: 0 | O8: 0 | P8: 0 | Q8: =SUM(K8:P8) -> 0 | R8: 0 | S8: 0 | T8: 0 | U8: 0 | V8: 0 | W8: 0 | X8: =SUM(R8:W8) -> 0 | Y8: =J8+Q8+X8 -> 0
A9: 2 | B9: 2 | C9: =IF(ADSI!$L$10=1,LangMaster!A43,LangMaster!B43) -> Exposure to cold | D9: 0 | E9: 0 | F9: 0 | G9: 0 | H9: 0 | I9: 0 | J9: =SUM(D9:I9) -> 0 | K9: 0 | L9: 0 | M9: 0 | N9: 0 | O9: 0 | P9: 0 | Q9: =SUM(K9:P9) -> 0 | R9: 0 | S9: 0 | T9: 0 | U9: 0 | V9: 0 | W9: 0 | X9: =SUM(R9:W9) -> 0 | Y9: =J9+Q9+X9 -> 0
A10: 3 | B10: 3 | C10: =IF(ADSI!$L$10=1,LangMaster!A44,LangMaster!B44) -> Cyclone | D10: 0 | E10: 0 | F10: 0 | G10: 0 | H10: 0 | I10: 0 | J10: 0 | K10: 0 | L10: 0 | M10: 0 | N10: 0 | O10: 0 | P10: 0 | Q10: 0 | R10: 0 | S10: 0 | T10: 0 | U10: 0 | V10: 0 | W10: 0 | X10: 0 | Y10: 0
A11: 4 | B11: 4 | C11: =IF(ADSI!$L$10=1,LangMaster!A45,LangMaster!B45) -> Tornado | D11: 0 | E11: 0 | F11: 0 | G11: 0 | H11: 0 | I11: 0 | J11: 0 | K11: 0 | L11: 0 | M11: 0 | N11: 0 | O11: 0 | P11: 0 | Q11: 0 | R11: 0 | S11: 0 | T11: 0 | U11: 0 | V11: 0 | W11: 0 | X11: 0 | Y11: 0
A12: 5 | B12: 5 | C12: =IF(ADSI!$L$10=1,LangMaster!A46,LangMaster!B46) -> Tsunami | D12: 0 | E12: 0 | F12: 0 | G12: 0 | H12: 0 | I12: 0 | J12: 0 | K12: 0 | L12: 0 | M12: 0 | N12: 0 | O12: 0 | P12: 0 | Q12: 0 | R12: 0 | S12: 0 | T12: 0 | U12: 0 | V12: 0 | W12: 0 | X12: 0 | Y12: 0
A13: 6 | B13: 6 | C13: =IF(ADSI!$L$10=1,LangMaster!A47,LangMaster!B47) -> Starvation due to natural calamity | D13: 0 | E13: 0 | F13: 0 | G13: 0 | H13: 0 | I13: 0 | J13: 0 | K13: 0 | L13: 0 | M13: 0 | N13: 0 | O13: 0 | P13: 0 | Q13: 0 | R13: 0 | S13: 0 | T13: 0 | U13: 0 | V13: 0 | W13: 0 | X13: 0 | Y13: 0
A14: 7 | B14: 7 | C14: =IF(ADSI!$L$10=1,LangMaster!A48,LangMaster!B48) -> Earthquake | D14: 0 | E14: 0 | F14: 0 | G14: 0 | H14: 0 | I14: 0 | J14: 0 | K14: 0 | L14: 0 | M14: 0 | N14: 0 | O14: 0 | P14: 0 | Q14: 0 | R14: 0 | S14: 0 | T14: 0 | U14: 0 | V14: 0 | W14: 0 | X14: 0 | Y14: 0
A15: 8 | B15: 8 | C15: =IF(ADSI!$L$10=1,LangMaster!A49,LangMaster!B49) -> Epidemic | D15: 0 | E15: 0 | F15: 0 | G15: 0 | H15: 0 | I15: 0 | J15: 0 | K15: 0 | L15: 0 | M15: 0 | N15: 0 | O15: 0 | P15: 0 | Q15: 0 | R15: 0 | S15: 0 | T15: 0 | U15: 0 | V15: 0 | W15: 0 | X15: 0 | Y15: 0
A16: 9 | B16: 9 | C16: =IF(ADSI!$L$10=1,LangMaster!A50,LangMaster!B50) -> Flood | D16: 0 | E16: 0 | F16: 0 | G16: 0 | H16: 0 | I16: 0 | J16: 0 | K16: 0 | L16: 0 | M16: 0 | N16: 0 | O16: 0 | P16: 0 | Q16: 0 | R16: 0 | S16: 0 | T16: 0 | U16: 0 | V16: 0 | W16: 0 | X16: 0 | Y16: 0
A17: 10 | B17: 10 | C17: =IF(ADSI!$L$10=1,LangMaster!A51,LangMaster!B51) -> Heat/Sun Stroke | D17: 0 | E17: 0 | F17: 0 | G17: 0 | H17: 0 | I17: 0 | J17: 0 | K17: 0 | L17: 0 | M17: 0 | N17: 0 | O17: 0 | P17: 0 | Q17: 0 | R17: 0 | S17: 0 | T17: 0 | U17: 0 | V17: 0 | W17: 0 | X17: 0 | Y17: 0
A18: 11 | B18: 11 | C18: =IF(ADSI!$L$10=1,LangMaster!A52,LangMaster!B52) -> Landslide | D18: 0 | E18: 0 | F18: 0 | G18: 0 | H18: 0 | I18: 0 | J18: 0 | K18: 0 | L18: 0 | M18: 0 | N18: 0 | O18: 0 | P18: 1 | Q18: 1 | R18: 0 | S18: 0 | T18: 0 | U18: 0 | V18: 0 | W18: 0 | X18: 0 | Y18: 1
A19: 12 | B19: 12 | C19: =IF(ADSI!$L$10=1,LangMaster!A53,LangMaster!B53) -> Lightning | D19: 0 | E19: 0 | F19: 0 | G19: 1 | H19: 0 | I19: 0 | J19: 1 | K19: 0 | L19: 0 | M19: 0 | N19: 0 | O19: 0 | P19: 0 | Q19: 0 | R19: 0 | S19: 0 | T19: 0 | U19: 0 | V19: 0 | W19: 0 | X19: 0 | Y19: 1
A20: 13 | B20: 13 | C20: =IF(ADSI!$L$10=1,LangMaster!A54,LangMaster!B54) -> Torrential Rain | D20: 0 | E20: 0 | F20: 0 | G20: 0 | H20: 0 | I20: 0 | J20: 0 | K20: 0 | L20: 0 | M20: 0 | N20: 0 | O20: 0 | P20: 0 | Q20: 0 | R20: 0 | S20: 0 | T20: 0 | U20: 0 | V20: 0 | W20: 0 | X20: 0 | Y20: 0
A21: 14 | B21: 14 | C21: =IF(ADSI!$L$10=1,LangMaster!A55,LangMaster!B55) -> Forest Fire | D21: 0 | E21: 0 | F21: 0 | G21: 0 | H21: 0 | I21: 0 | J21: 0 | K21: 0 | L21: 0 | M21: 0 | N21: 0 | O21: 0 | P21: 0 | Q21: 0 | R21: 0 | S21: 0 | T21: 0 | U21: 0 | V21: 0 | W21: 0 | X21: 0 | Y21: 0
A22: 15 | B22: 15 | C22: =IF(ADSI!$L$10=1,LangMaster!A56,LangMaster!B56) -> Other Natural Causes | D22: 0 | E22: 0 | F22: 0 | G22: 0 | H22: 1 | I22: 0 | J22: 1 | K22: 0 | L22: 0 | M22: 0 | N22: 1 | O22: 0 | P22: 0 | Q22: 1 | R22: 0 | S22: 0 | T22: 0 | U22: 0 | V22: 0 | W22: 0 | X22: 0 | Y22: 2
A23: 30 | B23: 16 | C23: =IF(ADSI!$L$10=1,LangMaster!A102,LangMaster!B102) -> Total (sum of Sl. 1 to 15) | D23: =SUM(D8:D22) -> 0 | E23: =SUM(E8:E22) -> 0 | F23: 0 | G23: 1 | H23: 1 | I23: 0 | J23: =SUM(D23:I23) -> 2 | K23: 0 | L23: 0 | M23: 0 | N23: 1 | O23: 0 | P23: 1 | Q23: =SUM(K23:P23) -> 2 | R23: =SUM(R8:R22) -> 0 | S23: 0 | T23: 0 | U23: 0 | V23: 0 | W23: 0 | X23: =SUM(R23:W23) -> 0 | Y23: =J23+Q23+X23 -> 4
A24: SL-15 ABNORMAL VARIATION IN "OTHER NATURAL CAUSES" DATA | D24: =IF(D23>0,IF((D22/D23*100)>20,"ABVAR",""),"") ->  | E24: =IF(E23>0,IF((E22/E23*100)>20,"ABVAR",""),"") ->  | H24: ABVAR | J24: ABVAR | N24: ABVAR | Q24: ABVAR | Y24: ABVAR
BA200: =A1 -> Goa, , ADSI-2022
BA201: =A2 -> Proforma-I | BE201: =E2 -> Abnormal Variations | BF201: =F2 -> 5
BA202: =A3 -> Accidental Deaths due to Natural Calamities
BA203: =B4 -> S.No. | BB203: =C4 -> Factors | BC203: =D4 -> Number of Accidental Deaths | BX203: =Y4 -> Grand Total (9) + (16)+(23)
BC204: =D5 -> Male | BJ204: =K5 -> Female | BQ204: =R5 -> Transgender
BC205: below 14 years | BD205: =E6 -> 14 and above – below 18 years | BE205: =F6 -> 18 and above – below 30 years | BF205: =G6 -> 30 and above – below 45 years | BG205: =H6 -> 45 and above – below 60 years | BH205: =I6 -> 60 years & above | BI205: =J6 -> Total [sum of (3) to (8)] | BJ205: below 14 years | BK205: =L6 -> 14 and above – below 18 years | BL205: =M6 -> 18 and above – below 30 years | BM205: =N6 -> 30 and above – below 45 years | BN205: =O6 -> 45 and above – below 60 years | BO205: =P6 -> 60 years & above | BP205: =Q6 -> Total [sum of (10) to (15)] | BQ205: below 14 years | BR205: =S6 -> 14 and above – below 18 years | BS205: =T6 -> 18 and above – below 30 years | BT205: =U6 -> 30 and above – below 45 years | BU205: =V6 -> 45 and above – below 60 years | BV205: =W6 -> 60 years & above | BW205: =X6 -> Total [sum of (17) to (22)]
BA206: =B7 -> (1) | BB206: =C7 -> (2) | BC206: (3) | BD206: (4) | BE206: (5) | BF206: (6) | BG206: (7) | BH206: (8) | BI206: (9) | BJ206: (10) | BK206: (11) | BL206: (12) | BM206: (13) | BN206: (14) | BO206: (15) | BP206: (16) | BQ206: (17) | BR206: (18) | BS206: (19) | BT206: (20) | BU206: (21) | BV206: (22) | BW206: (23) | BX206: =Y7 -> (24)
BA207: 1 | BB207: Avalanche | BC207: 0 | BD207: 0 | BE207: 0 | BF207: 0 | BG207: 0 | BH207: 0 | BI207: 0 | BJ207: 0 | BK207: 0 | BL207: 0 | BM207: 0 | BN207: 0 | BO207: 0 | BP207: 0 | BQ207: 0 | BR207: 0 | BS207: 0 | BT207: 0 | BU207: 0 | BV207: 0 | BW207: 0 | BX207: 0
BA208: 2 | BB208: Exposure to cold | BC208: 0 | BD208: 0 | BE208: 0 | BF208: 0 | BG208: 0 | BH208: 0 | BI208: 0 | BJ208: 0 | BK208: 0 | BL208: 0 | BM208: 0 | BN208: 0 | BO208: 0 | BP208: 0 | BQ208: 0 | BR208: 0 | BS208: 0 | BT208: 0 | BU208: 0 | BV208: 0 | BW208: 0 | BX208: 0
BA209: 3 | BB209: Cyclone | BC209: 0 | BD209: 0 | BE209: 0 | BF209: 0 | BG209: 0 | BH209: 0 | BI209: 0 | BJ209: 0 | BK209: 0 | BL209: 0 | BM209: 0 | BN209: 0 | BO209: 0 | BP209: 0 | BQ209: 0 | BR209: 0 | BS209: 0 | BT209: 0 | BU209: 0 | BV209: 0 | BW209: 0 | BX209: 0
BA210: 4 | BB210: Tornado | BC210: 0 | BD210: 0 | BE210: 0 | BF210: 0 | BG210: 0 | BH210: 0 | BI210: 0 | BJ210: 0 | BK210: 0 | BL210: 0 | BM210: 0 | BN210: 0 | BO210: 0 | BP210: 0 | BQ210: 0 | BR210: 0 | BS210: 0 | BT210: 0 | BU210: 0 | BV210: 0 | BW210: 0 | BX210: 0
BA211: 5 | BB211: Tsunami | BC211: 0 | BD211: 0 | BE211: 0 | BF211: 0 | BG211: 0 | BH211: 0 | BI211: 0 | BJ211: 0 | BK211: 0 | BL211: 0 | BM211: 0 | BN211: 0 | BO211: 0 | BP211: 0 | BQ211: 0 | BR211: 0 | BS211: 0 | BT211: 0 | BU211: 0 | BV211: 0 | BW211: 0 | BX211: 0
BA212: 6 | BB212: Starvation due to natural calamity | BC212: 0 | BD212: 0 | BE212: 0 | BF212: 0 | BG212: 0 | BH212: 0 | BI212: 0 | BJ212: 0 | BK212: 0 | BL212: 0 | BM212: 0 | BN212: 0 | BO212: 0 | BP212: 0 | BQ212: 0 | BR212: 0 | BS212: 0 | BT212: 0 | BU212: 0 | BV212: 0 | BW212: 0 | BX212: 0
BA213: 7 | BB213: Earthquake | BC213: 0 | BD213: 0 | BE213: 0 | BF213: 0 | BG213: 0 | BH213: 0 | BI213: 0 | BJ213: 0 | BK213: 0 | BL213: 0 | BM213: 0 | BN213: 0 | BO213: 0 | BP213: 0 | BQ213: 0 | BR213: 0 | BS213: 0 | BT213: 0 | BU213: 0 | BV213: 0 | BW213: 0 | BX213: 0
BA214: 8 | BB214: Epidemic | BC214: 0 | BD214: 0 | BE214: 0 | BF214: 0 | BG214: 0 | BH214: 0 | BI214: 0 | BJ214: 0 | BK214: 0 | BL214: 0 | BM214: 0 | BN214: 0 | BO214: 0 | BP214: 0 | BQ214: 0 | BR214: 0 | BS214: 0 | BT214: 0 | BU214: 0 | BV214: 0 | BW214: 0 | BX214: 0
BA215: 9 | BB215: Flood | BC215: 0 | BD215: 0 | BE215: 0 | BF215: 0 | BG215: 0 | BH215: 0 | BI215: 0 | BJ215: 0 | BK215: 0 | BL215: 0 | BM215: 0 | BN215: 0 | BO215: 0 | BP215: 0 | BQ215: 0 | BR215: 0 | BS215: 0 | BT215: 0 | BU215: 0 | BV215: 0 | BW215: 0 | BX215: 0
BA216: 10 | BB216: Heat/Sun Stroke | BC216: 0 | BD216: 0 | BE216: 0 | BF216: 0 | BG216: 0 | BH216: 0 | BI216: 0 | BJ216: 0 | BK216: 0 | BL216: 0 | BM216: 0 | BN216: 0 | BO216: 0 | BP216: 0 | BQ216: 0 | BR216: 0 | BS216: 0 | BT216: 0 | BU216: 0 | BV216: 0 | BW216: 0 | BX216: 0
BA217: 11 | BB217: Landslide | BC217: 0 | BD217: 0 | BE217: 0 | BF217: 0 | BG217: 0 | BH217: 0 | BI217: 0 | BJ217: 0 | BK217: 0 | BL217: 0 | BM217: 0 | BN217: 0 | BO217: 1 | BP217: 1 | BQ217: 0 | BR217: 0 | BS217: 0 | BT217: 0 | BU217: 0 | BV217: 0 | BW217: 0 | BX217: 1
BA218: 12 | BB218: Lightning | BC218: 0 | BD218: 0 | BE218: 0 | BF218: 1 | BG218: 0 | BH218: 0 | BI218: 1 | BJ218: 0 | BK218: 0 | BL218: 0 | BM218: 0 | BN218: 0 | BO218: 0 | BP218: 0 | BQ218: 0 | BR218: 0 | BS218: 0 | BT218: 0 | BU218: 0 | BV218: 0 | BW218: 0 | BX218: 1
BA219: 13 | BB219: Torrential Rain | BC219: 0 | BD219: 0 | BE219: 0 | BF219: 0 | BG219: 0 | BH219: 0 | BI219: 0 | BJ219: 0 | BK219: 0 | BL219: 0 | BM219: 0 | BN219: 0 | BO219: 0 | BP219: 0 | BQ219: 0 | BR219: 0 | BS219: 0 | BT219: 0 | BU219: 0 | BV219: 0 | BW219: 0 | BX219: 0
BA220: 14 | BB220: Forest Fire | BC220: 0 | BD220: 0 | BE220: 0 | BF220: 0 | BG220: 0 | BH220: 0 | BI220: 0 | BJ220: 0 | BK220: 0 | BL220: 0 | BM220: 0 | BN220: 0 | BO220: 0 | BP220: 0 | BQ220: 0 | BR220: 0 | BS220: 0 | BT220: 0 | BU220: 0 | BV220: 0 | BW220: 0 | BX220: 0
BA221: 15 | BB221: Other Natural Causes | BC221: 0 | BD221: 0 | BE221: 0 | BF221: 0 | BG221: 1 | BH221: 0 | BI221: 1 | BJ221: 0 | BK221: 0 | BL221: 0 | BM221: 1 | BN221: 0 | BO221: 0 | BP221: 1 | BQ221: 0 | BR221: 0 | BS221: 0 | BT221: 0 | BU221: 0 | BV221: 0 | BW221: 0 | BX221: 2
BA222: 16 | BB222: Total (sum of Sl. 1 to 15) | BC222: 0 | BD222: 0 | BE222: 0 | BF222: 1 | BG222: 1 | BH222: 0 | BI222: 2 | BJ222: 0 | BK222: 0 | BL222: 0 | BM222: 1 | BN222: 0 | BO222: 1 | BP222: 2 | BQ222: 0 | BR222: 0 | BS222: 0 | BT222: 0 | BU222: 0 | BV222: 0 | BW222: 0 | BX222: 4
BA223: =A24 -> SL-15 ABNORMAL VARIATION IN "OTHER NATURAL CAUSES" DATA | BG223: ABVAR | BI223: ABVAR | BM223: ABVAR | BP223: ABVAR | BX223: ABVAR
A500: StateUTCityCode | B500: DistrictCode | C500: CrimeCode | D500: DataYear | E500: Male_below 14 years | F500: Male_14 and above – below 18 years | G500: Male_18 and above – below 30 years | H500: Male_30 and above – below 45 years | I500: Male_45 and above – below 60 years | J500: Male_60 years & above | K500: Male_Total | L500: Female_below 14 years | M500: Female_14 and above – below 18 years | N500: Female_18 and above – below 30 years | O500: Female_30 and above – below 45 years | P500: Female_45 and above – below 60 years | Q500: Female_60 years & above | R500: Female_Total | S500: Trans_below 14 years | T500: Trans_14 and above – below 18 years | U500: Trans_18 and above – below 30 years | V500: Trans_30 and above – below 45 years | W500: Trans_45 and above – below 60 years | X500: Trans_60 years & above | Y500: Trans_Total | Z500: Grand Total
A501: =IF(ADSI!$G$12="",ADSI!$H$16,ADSI!$H$12) -> 6 | B501: =IF(ADSI!$G$12="",ADSI!$H$16,ADSI!$H$14) ->  | C501: =A8 -> 1 | D501: =ADSI!$K$12 -> 2022 | E501: =D8 -> 0 | F501: =E8 -> 0 | G501: 0 | H501: 0 | I501: 0 | J501: 0 | K501: 0 | L501: 0 | M501: 0 | N501: 0 | O501: 0 | P501: 0 | Q501: 0 | R501: 0 | S501: 0 | T501: 0 | U501: 0 | V501: 0 | W501: 0 | X501: 0 | Y501: 0 | Z501: 0
A502: =IF(ADSI!$G$12="",ADSI!$H$16,ADSI!$H$12) -> 6 | B502: =IF(ADSI!$G$12="",ADSI!$H$16,ADSI!$H$14) ->  | C502: =A9 -> 2 | D502: =ADSI!$K$12 -> 2022 | E502: =D9 -> 0 | F502: 0 | G502: 0 | H502: 0 | I502: 0 | J502: 0 | K502: 0 | L502: 0 | M502: 0 | N502: 0 | O502: 0 | P502: 0 | Q502: 0 | R502: 0 | S502: 0 | T502: 0 | U502: 0 | V502: 0 | W502: 0 | X502: 0 | Y502: 0 | Z502: 0
A503: =IF(ADSI!$G$12="",ADSI!$H$16,ADSI!$H$12) -> 6 | B503: =IF(ADSI!$G$12="",ADSI!$H$16,ADSI!$H$14) ->  | C503: 3 | D503: =ADSI!$K$12 -> 2022 | E503: =D10 -> 0 | F503: 0 | G503: 0 | H503: 0 | I503: 0 | J503: 0 | K503: 0 | L503: 0 | M503: 0 | N503: 0 | O503: 0 | P503: 0 | Q503: 0 | R503: 0 | S503: 0 | T503: 0 | U503: 0 | V503: 0 | W503: 0 | X503: 0 | Y503: 0 | Z503: 0
A504: =IF(ADSI!$G$12="",ADSI!$H$16,ADSI!$H$12) -> 6 | B504: =IF(ADSI!$G$12="",ADSI!$H$16,ADSI!$H$14) ->  | C504: 4 | D504: =ADSI!$K$12 -> 2022 | E504: =D11 -> 0 | F504: 0 | G504: 0 | H504: 0 | I504: 0 | J504: 0 | K504: 0 | L504: 0 | M504: 0 | N504: 0 | O504: 0 | P504: 0 | Q504: 0 | R504: 0 | S504: 0 | T504: 0 | U504: 0 | V504: 0 | W504: 0 | X504: 0 | Y504: 0 | Z504: 0
A505: =IF(ADSI!$G$12="",ADSI!$H$16,ADSI!$H$12) -> 6 | B505: =IF(ADSI!$G$12="",ADSI!$H$16,ADSI!$H$14) ->  | C505: 5 | D505: =ADSI!$K$12 -> 2022 | E505: =D12 -> 0 | F505: 0 | G505: 0 | H505: 0 | I505: 0 | J505: 0 | K505: 0 | L505: 0 | M505: 0 | N505: 0 | O505: 0 | P505: 0 | Q505: 0 | R505: 0 | S505: 0 | T505: 0 | U505: 0 | V505: 0 | W505: 0 | X505: 0 | Y505: 0 | Z505: 0
A506: =IF(ADSI!$G$12="",ADSI!$H$16,ADSI!$H$12) -> 6 | B506: =IF(ADSI!$G$12="",ADSI!$H$16,ADSI!$H$14) ->  | C506: 6 | D506: =ADSI!$K$12 -> 2022 | E506: =D13 -> 0 | F506: 0 | G506: 0 | H506: 0 | I506: 0 | J506: 0 | K506: 0 | L506: 0 | M506: 0 | N506: 0 | O506: 0 | P506: 0 | Q506: 0 | R506: 0 | S506: 0 | T506: 0 | U506: 0 | V506: 0 | W506: 0 | X506: 0 | Y506: 0 | Z506: 0
A507: =IF(ADSI!$G$12="",ADSI!$H$16,ADSI!$H$12) -> 6 | B507: =IF(ADSI!$G$12="",ADSI!$H$16,ADSI!$H$14) ->  | C507: 7 | D507: =ADSI!$K$12 -> 2022 | E507: =D14 -> 0 | F507: 0 | G507: 0 | H507: 0 | I507: 0 | J507: 0 | K507: 0 | L507: 0 | M507: 0 | N507: 0 | O507: 0 | P507: 0 | Q507: 0 | R507: 0 | S507: 0 | T507: 0 | U507: 0 | V507: 0 | W507: 0 | X507: 0 | Y507: 0 | Z507: 0
A508: =IF(ADSI!$G$12="",ADSI!$H$16,ADSI!$H$12) -> 6 | B508: =IF(ADSI!$G$12="",ADSI!$H$16,ADSI!$H$14) ->  | C508: 8 | D508: =ADSI!$K$12 -> 2022 | E508: =D15 -> 0 | F508: 0 | G508: 0 | H508: 0 | I508: 0 | J508: 0 | K508: 0 | L508: 0 | M508: 0 | N508: 0 | O508: 0 | P508: 0 | Q508: 0 | R508: 0 | S508: 0 | T508: 0 | U508: 0 | V508: 0 | W508: 0 | X508: 0 | Y508: 0 | Z508: 0
A509: =IF(ADSI!$G$12="",ADSI!$H$16,ADSI!$H$12) -> 6 | B509: =IF(ADSI!$G$12="",ADSI!$H$16,ADSI!$H$14) ->  | C509: 9 | D509: =ADSI!$K$12 -> 2022 | E509: =D16 -> 0 | F509: 0 | G509: 0 | H509: 0 | I509: 0 | J509: 0 | K509: 0 | L509: 0 | M509: 0 | N509: 0 | O509: 0 | P509: 0 | Q509: 0 | R509: 0 | S509: 0 | T509: 0 | U509: 0 | V509: 0 | W509: 0 | X509: 0 | Y509: 0 | Z509: 0
A510: =IF(ADSI!$G$12="",ADSI!$H$16,ADSI!$H$12) -> 6 | B510: =IF(ADSI!$G$12="",ADSI!$H$16,ADSI!$H$14) ->  | C510: 10 | D510: =ADSI!$K$12 -> 2022 | E510: =D17 -> 0 | F510: 0 | G510: 0 | H510: 0 | I510: 0 | J510: 0 | K510: 0 | L510: 0 | M510: 0 | N510: 0 | O510: 0 | P510: 0 | Q510: 0 | R510: 0 | S510: 0 | T510: 0 | U510: 0 | V510: 0 | W510: 0 | X510: 0 | Y510: 0 | Z510: 0
A511: =IF(ADSI!$G$12="",ADSI!$H$16,ADSI!$H$12) -> 6 | B511: =IF(ADSI!$G$12="",ADSI!$H$16,ADSI!$H$14) ->  | C511: 11 | D511: =ADSI!$K$12 -> 2022 | E511: =D18 -> 0 | F511: 0 | G511: 0 | H511: 0 | I511: 0 | J511: 0 | K511: 0 | L511: 0 | M511: 0 | N511: 0 | O511: 0 | P511: 0 | Q511: 1 | R511: 1 | S511: 0 | T511: 0 | U511: 0 | V511: 0 | W511: 0 | X511: 0 | Y511: 0 | Z511: 1
A512: =IF(ADSI!$G$12="",ADSI!$H$16,ADSI!$H$12) -> 6 | B512: =IF(ADSI!$G$12="",ADSI!$H$16,ADSI!$H$14) ->  | C512: 12 | D512: =ADSI!$K$12 -> 2022 | E512: =D19 -> 0 | F512: 0 | G512: 0 | H512: 1 | I512: 0 | J512: 0 | K512: 1 | L512: 0 | M512: 0 | N512: 0 | O512: 0 | P512: 0 | Q512: 0 | R512: 0 | S512: 0 | T512: 0 | U512: 0 | V512: 0 | W512: 0 | X512: 0 | Y512: 0 | Z512: 1
A513: =IF(ADSI!$G$12="",ADSI!$H$16,ADSI!$H$12) -> 6 | B513: =IF(ADSI!$G$12="",ADSI!$H$16,ADSI!$H$14) ->  | C513: 13 | D513: =ADSI!$K$12 -> 2022 | E513: =D20 -> 0 | F513: 0 | G513: 0 | H513: 0 | I513: 0 | J513: 0 | K513: 0 | L513: 0 | M513: 0 | N513: 0 | O513: 0 | P513: 0 | Q513: 0 | R513: 0 | S513: 0 | T513: 0 | U513: 0 | V513: 0 | W513: 0 | X513: 0 | Y513: 0 | Z513: 0
A514: =IF(ADSI!$G$12="",ADSI!$H$16,ADSI!$H$12) -> 6 | B514: =IF(ADSI!$G$12="",ADSI!$H$16,ADSI!$H$14) ->  | C514: 14 | D514: =ADSI!$K$12 -> 2022 | E514: =D21 -> 0 | F514: 0 | G514: 0 | H514: 0 | I514: 0 | J514: 0 | K514: 0 | L514: 0 | M514: 0 | N514: 0 | O514: 0 | P514: 0 | Q514: 0 | R514: 0 | S514: 0 | T514: 0 | U514: 0 | V514: 0 | W514: 0 | X514: 0 | Y514: 0 | Z514: 0
A515: =IF(ADSI!$G$12="",ADSI!$H$16,ADSI!$H$12) -> 6 | B515: =IF(ADSI!$G$12="",ADSI!$H$16,ADSI!$H$14) ->  | C515: 15 | D515: =ADSI!$K$12 -> 2022 | E515: =D22 -> 0 | F515: 0 | G515: 0 | H515: 0 | I515: 1 | J515: 0 | K515: 1 | L515: 0 | M515: 0 | N515: 0 | O515: 1 | P515: 0 | Q515: 0 | R515: 1 | S515: 0 | T515: 0 | U515: 0 | V515: 0 | W515: 0 | X515: 0 | Y515: 0 | Z515: 2
A516: =IF(ADSI!$G$12="",ADSI!$H$16,ADSI!$H$12) -> 6 | B516: =IF(ADSI!$G$12="",ADSI!$H$16,ADSI!$H$14) ->  | C516: 30 | D516: =ADSI!$K$12 -> 2022 | E516: =D23 -> 0 | F516: 0 | G516: 0 | H516: 1 | I516: 1 | J516: 0 | K516: 2 | L516: 0 | M516: 0 | N516: 0 | O516: 1 | P516: 0 | Q516: 1 | R516: 2 | S516: 0 | T516: 0 | U516: 0 | V516: 0 | W516: 0 | X516: 0 | Y516: 0 | Z516: 4

Sheet P-II
A1: =ADSI!$B$1 -> Goa, , ADSI-2022
A2: Errors | C2: =COUNTIF(E8:E51,FALSE) -> 0 | E2: Abnormal Variations | F2: =COUNTIF(D52:M54,"ABVAR") -> 0
A3: =IF(ADSI!$L$10=1,LangMaster!A57,LangMaster!B57) -> Proforma-II
A4: =IF(ADSI!$L$10=1,LangMaster!A58,LangMaster!B58) -> Cause-wise distribution of Un-natural Accidents
A5: =IF(ADSI!$L$10=1,LangMaster!A26,LangMaster!B26) -> Code | B5: =IF(ADSI!$L$10=1,LangMaster!A27,LangMaster!B27) -> S.No. | C5: =IF(ADSI!$L$10=1,LangMaster!A478,LangMaster!B478) -> Causes | D5: =IF(ADSI!$L$10=1,LangMaster!A479,LangMaster!B479) -> No. of Cases | E5: =IF(ADSI!$L$10=1,LangMaster!A480,LangMaster!B480) -> VALIDATION WITH NUMBER OF CASES | F5: =IF(ADSI!$L$10=1,LangMaster!A481,LangMaster!B481) -> No. of Persons Injured | J5: =IF(ADSI!$L$10=1,LangMaster!A482,LangMaster!B482) -> No. of Persons Died
F6: =IF(ADSI!$L$10=1,LangMaster!A30,LangMaster!B30) -> Male | G6: =IF(ADSI!$L$10=1,LangMaster!A31,LangMaster!B31) -> Female | H6: =IF(ADSI!$L$10=1,LangMaster!A32,LangMaster!B32) -> Transgender | I6: =IF(ADSI!$L$10=1,LangMaster!A483,LangMaster!B483) -> Total[sum of (4) to (6)] | J6: =IF(ADSI!$L$10=1,LangMaster!A30,LangMaster!B30) -> Male | K6: =IF(ADSI!$L$10=1,LangMaster!A31,LangMaster!B31) -> Female | L6: =IF(ADSI!$L$10=1,LangMaster!A32,LangMaster!B32) -> Transgender | M6: =IF(ADSI!$L$10=1,LangMaster!A484,LangMaster!B484) -> Total[sum of (8) to (10)]
B7: (1) | C7: (2) | D7: (3) | F7: (4) | G7: (5) | H7: (6) | I7: (7) | J7: (8) | K7: (9) | L7: (10) | M7: (11)
A8: 50 | B8: 1 | C8: =IF(ADSI!$L$10=1,LangMaster!A59,LangMaster!B59) -> Air Crash | D8: 0 | E8: =IF(AND(OR(I8>0,M8>0),D8=0),FALSE,"") ->  | F8: 0 | G8: 0 | H8: 0 | I8: =SUM(F8:H8) -> 0 | J8: 0 | K8: 0 | L8: 0 | M8: =SUM(J8:L8) -> 0
A9: 51 | B9: 2 | C9: =IF(ADSI!$L$10=1,LangMaster!A60,LangMaster!B60) -> Ship Accidents | D9: 0 | E9: =IF(AND(OR(I9>0,M9>0),D9=0),FALSE,"") ->  | F9: 0 | G9: 0 | H9: 0 | I9: =SUM(F9:H9) -> 0 | J9: 0 | K9: 0 | L9: 0 | M9: =SUM(J9:L9) -> 0
A10: 52 | B10: 3 | C10: =IF(ADSI!$L$10=1,LangMaster!A61,LangMaster!B61) -> Collapse of Structure (Total) (sum of 3.1 to 3.5) | D10: =SUM(D11:D15) -> 4 | F10: =SUM(F11:F15) -> 0 | G10: 0 | H10: 0 | I10: 0 | J10: 4 | K10: =SUM(K11:K15) -> 0 | L10: =SUM(L11:L15) -> 0 | M10: 4
A11: 53 | C11: =IF(ADSI!$L$10=1,LangMaster!A62,LangMaster!B62) -> 3.1 Collapse of Dwelling House/Residential building | D11: 3 | F11: 0 | G11: 0 | H11: 0 | I11: 0 | J11: 3 | K11: 0 | L11: 0 | M11: 3
A12: 54 | C12: =IF(ADSI!$L$10=1,LangMaster!A63,LangMaster!B63) -> 3.2 Collapse of Official/Commercial Building | D12: 0 | F12: 0 | G12: 0 | H12: 0 | I12: 0 | J12: 0 | K12: 0 | L12: 0 | M12: 0
A13: 55 | C13: =IF(ADSI!$L$10=1,LangMaster!A64,LangMaster!B64) -> 3.3 Collapse of Dam | D13: 0 | F13: 0 | G13: 0 | H13: 0 | I13: 0 | J13: 0 | K13: 0 | L13: 0 | M13: 0
A14: 56 | C14: =IF(ADSI!$L$10=1,LangMaster!A65,LangMaster!B65) -> 3.4 Collapse of Bridge | D14: 0 | F14: 0 | G14: 0 | H14: 0 | I14: 0 | J14: 0 | K14: 0 | L14: 0 | M14: 0
A15: 57 | C15: =IF(ADSI!$L$10=1,LangMaster!A66,LangMaster!B66) -> 3.5 Others | D15: 1 | F15: 0 | G15: 0 | H15: 0 | I15: 0 | J15: 1 | K15: 0 | L15: 0 | M15: 1
A16: 58 | B16: 4 | C16: =IF(ADSI!$L$10=1,LangMaster!A67,LangMaster!B67) -> Drowning (Total) (sum of 4.1 to 4.3) | D16: =SUM(D17:D19) -> 97 | F16: =SUM(F17:F19) -> 0 | G16: 0 | H16: 0 | I16: 0 | J16: =SUM(J17:J19) -> 92 | K16: =SUM(K17:K19) -> 8 | L16: =SUM(L17:L19) -> 0 | M16: 100
A17: 59 | C17: =IF(ADSI!$L$10=1,LangMaster!A68,LangMaster!B68) -> 4.1 Boat Capsize | D17: 0 | F17: 0 | G17: 0 | H17: 0 | I17: 0 | J17: 0 | K17: 0 | L17: 0 | M17: 0
A18: 60 | C18: =IF(ADSI!$L$10=1,LangMaster!A69,LangMaster!B69) -> 4.2 Accidental Falls into Waterbody | D18: 78 | F18: 0 | G18: 0 | H18: 0 | I18: 0 | J18: 76 | K18: 5 | L18: 0 | M18: 81
A19: 61 | C19: =IF(ADSI!$L$10=1,LangMaster!A70,LangMaster!B70) -> 4.3 Other Cases | D19: 19 | F19: 0 | G19: 0 | H19: 0 | I19: 0 | J19: 16 | K19: 3 | L19: 0 | M19: 19
A20: 62 | B20: 5 | C20: =IF(ADSI!$L$10=1,LangMaster!A71,LangMaster!B71) -> Electrocution | D20: 15 | F20: 0 | G20: 0 | H20: 0 | I20: 0 | J20: 14 | K20: 1 | L20: 0 | M20: 15
A21: 63 | B21: 6 | C21: =IF(ADSI!$L$10=1,LangMaster!A72,LangMaster!B72) -> Accidental Explosion (Total) (sum of 6.1 to 6.4) | D21: =SUM(D22:D25) -> 0 | F21: =SUM(F22:F25) -> 0 | G21: 0 | H21: 0 | I21: 0 | J21: =SUM(J22:J25) -> 0 | K21: 0 | L21: 0 | M21: 0
A22: 64 | C22: =IF(ADSI!$L$10=1,LangMaster!A73,LangMaster!B73) -> 6.1 Domestic Gas Cylinder | D22: 0 | F22: 0 | G22: 0 | H22: 0 | I22: 0 | J22: 0 | K22: 0 | L22: 0 | M22: 0
A23: 65 | C23: =IF(ADSI!$L$10=1,LangMaster!A74,LangMaster!B74) -> 6.2 Industrial Boiler/Gas cylinder explosion | D23: 0 | F23: 0 | G23: 0 | H23: 0 | I23: 0 | J23: 0 | K23: 0 | L23: 0 | M23: 0
A24: 66 | C24: =IF(ADSI!$L$10=1,LangMaster!A75,LangMaster!B75) -> 6.3 Ammunition explosion in Armed Forces/Police/CPMF | D24: 0 | F24: 0 | G24: 0 | H24: 0 | I24: 0 | J24: 0 | K24: 0 | L24: 0 | M24: 0
A25: 67 | C25: =IF(ADSI!$L$10=1,LangMaster!A76,LangMaster!B76) -> 6.4 Other | D25: 0 | F25: 0 | G25: 0 | H25: 0 | I25: 0 | J25: 0 | K25: 0 | L25: 0 | M25: 0
A26: 68 | B26: 7 | C26: =IF(ADSI!$L$10=1,LangMaster!A77,LangMaster!B77) -> Falls (Total) (sum of 7.1 to 7.6) | D26: =SUM(D27:D32) -> 142 | F26: =SUM(F27:F32) -> 4 | G26: 0 | H26: 0 | I26: 4 | J26: =SUM(J27:J32) -> 125 | K26: 15 | L26: 0 | M26: 140
A27: 69 | C27: =IF(ADSI!$L$10=1,LangMaster!A78,LangMaster!B78) -> 7.1 Fall from Height | D27: 84 | F27: 2 | G27: 0 | H27: 0 | I27: 2 | J27: 74 | K27: 9 | L27: 0 | M27: 83
A28: 70 | C28: =IF(ADSI!$L$10=1,LangMaster!A79,LangMaster!B79) -> 7.2 Fall from Vehicles (Automobile like Bus, Trucks, etc.) | D28: 0 | F28: 0 | G28: 0 | H28: 0 | I28: 0 | J28: 0 | K28: 0 | L28: 0 | M28: 0
A29: 71 | C29: =IF(ADSI!$L$10=1,LangMaster!A80,LangMaster!B80) -> 7.3 Fall into Manhole / Sewer | D29: 3 | F29: 1 | G29: 0 | H29: 0 | I29: 1 | J29: 3 | K29: 0 | L29: 0 | M29: 3
A30: 72 | C30: =IF(ADSI!$L$10=1,LangMaster!A81,LangMaster!B81) -> 7.4 Fall into Pit | D30: 0 | F30: 0 | G30: 0 | H30: 0 | I30: 0 | J30: 0 | K30: 0 | L30: 0 | M30: 0
A31: 73 | C31: =IF(ADSI!$L$10=1,LangMaster!A82,LangMaster!B82) -> 7.5 Fall into Borewell | D31: 0 | F31: 0 | G31: 0 | H31: 0 | I31: 0 | J31: 0 | K31: 0 | L31: 0 | M31: 0
A32: 74 | C32: =IF(ADSI!$L$10=1,LangMaster!A83,LangMaster!B83) -> 7.6 Others | D32: 55 | F32: 1 | G32: 0 | H32: 0 | I32: 1 | J32: 48 | K32: 6 | L32: 0 | M32: 54
A33: 75 | B33: 8 | C33: =IF(ADSI!$L$10=1,LangMaster!A84,LangMaster!B84) -> Factory/Machine accidents | D33: 0 | F33: 0 | G33: 0 | H33: 0 | I33: 0 | J33: 0 | K33: 0 | L33: 0 | M33: 0
A34: 76 | B34: 9 | C34: =IF(ADSI!$L$10=1,LangMaster!A85,LangMaster!B85) -> Accidental Fire (Total) (sum of 9.1 to 9.5) | D34: =SUM(D35:D39) -> 55 | F34: =SUM(F35:F39) -> 0 | G34: 0 | H34: 0 | I34: 0 | J34: =SUM(J35:J39) -> 5 | K34: 13 | L34: 0 | M34: 18
A35: 77 | C35: =IF(ADSI!$L$10=1,LangMaster!A86,LangMaster!B86) -> 9.1 Electrical Short circuit | D35: 21 | F35: 0 | G35: 0 | H35: 0 | I35: 0 | J35: 1 | K35: 0 | L35: 0 | M35: 1
A36: 78 | C36: =IF(ADSI!$L$10=1,LangMaster!A87,LangMaster!B87) -> 9.2 Riot/Agitation | D36: 0 | F36: 0 | G36: 0 | H36: 0 | I36: 0 | J36: 0 | K36: 0 | L36: 0 | M36: 0
A37: 79 | C37: =IF(ADSI!$L$10=1,LangMaster!A88,LangMaster!B88) -> 9.3 Fireworks | D37: 0 | F37: 0 | G37: 0 | H37: 0 | I37: 0 | J37: 0 | K37: 0 | L37: 0 | M37: 0
A38: 80 | C38: =IF(ADSI!$L$10=1,LangMaster!A89,LangMaster!B89) -> 9.4 Cooking Gas cylinder/stove burst | D38: 6 | F38: 0 | G38: 0 | H38: 0 | I38: 0 | J38: 1 | K38: 4 | L38: 0 | M38: 5
A39: 81 | C39: =IF(ADSI!$L$10=1,LangMaster!A90,LangMaster!B90) -> 9.5 Other Causes | D39: 28 | F39: 0 | G39: 0 | H39: 0 | I39: 0 | J39: 3 | K39: 9 | L39: 0 | M39: 12
A40: 82 | B40: 10 | C40: =IF(ADSI!$L$10=1,LangMaster!A91,LangMaster!B91) -> Firearm | D40: 0 | F40: 0 | G40: 0 | H40: 0 | I40: 0 | J40: 0 | K40: 0 | L40: 0 | M40: 0
A41: 83 | B41: 11 | C41: =IF(ADSI!$L$10=1,LangMaster!A92,LangMaster!B92) -> Mines or Quarry disaster | D41: 0 | F41: 0 | G41: 0 | H41: 0 | I41: 0 | J41: 0 | K41: 0 | L41: 0 | M41: 0
A42: 84 | B42: 12 | C42: =IF(ADSI!$L$10=1,LangMaster!A93,LangMaster!B93) -> Traffic Accidents (Total) (sum of 12.1, 12.2 and 12.3) | D42: =SUM(D43,D46:D47) -> 3066 | F42: =SUM(F43,F46:F47) -> 842 | G42: 229 | H42: 0 | I42: 1071 | J42: =SUM(J43,J46:J47) -> 287 | K42: 41 | L42: 0 | M42: 328
A43: 85 | C43: =IF(ADSI!$L$10=1,LangMaster!A94,LangMaster!B94) -> 12.1 Road Accidents | D43: =SUM(D44:D45) -> 3012 | F43: =SUM(F44:F45) -> 842 | G43: 229 | H43: 0 | I43: 1071 | J43: =SUM(J44:J45) -> 233 | K43: 41 | L43: 0 | M43: 274
A44: 86 | C44: =IF(ADSI!$L$10=1,LangMaster!A95,LangMaster!B95) -> 0 | D44: 0 | F44: 0 | G44: 0 | H44: 0 | I44: 0 | J44: 0 | K44: 0 | L44: 0 | M44: 0
A45: 87 | C45: =IF(ADSI!$L$10=1,LangMaster!A96,LangMaster!B96) -> 0 | D45: 3012 | F45: 842 | G45: 229 | H45: 0 | I45: 1071 | J45: 233 | K45: 41 | L45: 0 | M45: 274
A46: 88 | C46: =IF(ADSI!$L$10=1,LangMaster!A97,LangMaster!B97) -> 12.2 Railway Crossing Accidents | D46: 0 | F46: 0 | G46: 0 | H46: 0 | I46: 0 | J46: 0 | K46: 0 | L46: 0 | M46: 0
A47: 89 | C47: =IF(ADSI!$L$10=1,LangMaster!A98,LangMaster!B98) -> 12.3 Railway Accidents | D47: 54 | F47: 0 | G47: 0 | H47: 0 | I47: 0 | J47: 54 | K47: 0 | L47: 0 | M47: 54
A48: 90 | B48: 13 | C48: =IF(ADSI!$L$10=1,LangMaster!A99,LangMaster!B99) -> Stampede | D48: 0 | F48: 0 | G48: 0 | H48: 0 | I48: 0 | J48: 0 | K48: 0 | L48: 0 | M48: 0
A49: 91 | B49: 14 | C49: =IF(ADSI!$L$10=1,LangMaster!A100,LangMaster!B100) -> Other Unnatural Causes | D49: 12 | F49: 0 | G49: 0 | H49: 0 | I49: 0 | J49: 5 | K49: 7 | L49: 0 | M49: 12
A50: 92 | B50: 15 | C50: =IF(ADSI!$L$10=1,LangMaster!A101,LangMaster!B101) -> Causes not known | D50: 17 | F50: 0 | G50: 0 | H50: 0 | I50: 0 | J50: 15 | K50: 2 | L50: 0 | M50: 17
A51: 120 | B51: 16 | C51: =IF(ADSI!$L$10=1,LangMaster!A102,LangMaster!B102) -> Total (sum of Sl. 1 to 15) | D51: =SUM(D8:D10,D16,D20:D21,D26,D33:D34,D40:D41,D42,D48:D50) -> 3408 | F51: =SUM(F8:F10,F16,F20:F21,F26,F33:F34,F40:F41,F42,F48:F50) -> 846 | G51: 229 | H51: 0 | I51: 1075 | J51: 547 | K51: 87 | L51: 0 | M51: 634
A52: SL-12.1.1 ABNORMAL VARIATION IN "ROAD RAGE INCIDENTS" DATA | D52: =IF(D43>0,IF((D44/D43*100)>10,"ABVAR",""),"") ->  | F52: =IF(F43>0,IF((F44/F43*100)>10,"ABVAR",""),"") -> 
A53: SL-14 ABNORMAL VARIATION IN "OTHER UNNATURAL CAUSES" DATA | D53: =IF(D51>0,IF((D49/D51*100)>20,"ABVAR",""),"") ->  | F53: =IF(F51>0,IF((F49/F51*100)>20,"ABVAR",""),"") -> 
A54: SL-15 ABNORMAL VARIATION IN "CAUSES NOT KNOWN" DATA | D54: =IF(D51>0,IF((D50/D51*100)>20,"ABVAR",""),"") ->  | F54: =IF(F51>0,IF((F50/F51*100)>20,"ABVAR",""),"") -> 
BA200: =A1 -> Goa, , ADSI-2022
BA201: =A2 -> Errors | BB201: =C2 -> 0 | BD201: =E2 -> Abnormal Variations | BE201: =F2 -> 0
BA202: =A3 -> Proforma-II
BA203: =A4 -> Cause-wise distribution of Un-natural Accidents
BA204: =B5 -> S.No. | BB204: =C5 -> Causes | BC204: =D5 -> No. of Cases | BD204: =E5 -> VALIDATION WITH NUMBER OF CASES | BE204: =F5 -> No. of Persons Injured | BI204: =J5 -> No. of Persons Died
BE205: =F6 -> Male | BF205: =G6 -> Female | BG205: =H6 -> Transgender | BH205: =I6 -> Total[sum of (4) to (6)] | BI205: Male | BJ205: =K6 -> Female | BK205: =L6 -> Transgender | BL205: =M6 -> Total[sum of (8) to (10)]
BA206: =B7 -> (1) | BB206: =C7 -> (2) | BC206: =D7 -> (3) | BE206: (4) | BF206: (5) | BG206: (6) | BH206: (7) | BI206: (8) | BJ206: (9) | BK206: (10) | BL206: (11)
BA207: =B8 -> 1 | BB207: Air Crash | BC207: 0 | BD207: =E8 ->  | BE207: 0 | BF207: 0 | BG207: 0 | BH207: 0 | BI207: 0 | BJ207: 0 | BK207: 0 | BL207: 0
BA208: =B9 -> 2 | BB208: Ship Accidents | BC208: 0 | BD208: =E9 ->  | BE208: 0 | BF208: 0 | BG208: 0 | BH208: 0 | BI208: 0 | BJ208: 0 | BK208: 0 | BL208: 0
BA209: =B10 -> 3 | BB209: Collapse of Structure (Total) (sum of 3.1 to 3.5) | BC209: 4 | BE209: 0 | BF209: 0 | BG209: 0 | BH209: 0 | BI209: 4 | BJ209: 0 | BK209: 0 | BL209: 4
BB210: 3.1 Collapse of Dwelling House/Residential building | BC210: 3 | BE210: 0 | BF210: 0 | BG210: 0 | BH210: 0 | BI210: 3 | BJ210: 0 | BK210: 0 | BL210: 3
BB211: 3.2 Collapse of Official/Commercial Building | BC211: 0 | BE211: 0 | BF211: 0 | BG211: 0 | BH211: 0 | BI211: 0 | BJ211: 0 | BK211: 0 | BL211: 0
BB212: 3.3 Collapse of Dam | BC212: 0 | BE212: 0 | BF212: 0 | BG212: 0 | BH212: 0 | BI212: 0 | BJ212: 0 | BK212: 0 | BL212: 0
BB213: 3.4 Collapse of Bridge | BC213: 0 | BE213: 0 | BF213: 0 | BG213: 0 | BH213: 0 | BI213: 0 | BJ213: 0 | BK213: 0 | BL213: 0
BB214: 3.5 Others | BC214: 1 | BE214: 0 | BF214: 0 | BG214: 0 | BH214: 0 | BI214: 1 | BJ214: 0 | BK214: 0 | BL214: 1
BA215: =B16 -> 4 | BB215: Drowning (Total) (sum of 4.1 to 4.3) | BC215: 97 | BE215: 0 | BF215: 0 | BG215: 0 | BH215: 0 | BI215: 92 | BJ215: 8 | BK215: 0 | BL215: 100
BB216: 4.1 Boat Capsize | BC216: 0 | BE216: 0 | BF216: 0 | BG216: 0 | BH216: 0 | BI216: 0 | BJ216: 0 | BK216: 0 | BL216: 0
BB217: 4.2 Accidental Falls into Waterbody | BC217: 78 | BE217: 0 | BF217: 0 | BG217: 0 | BH217: 0 | BI217: 76 | BJ217: 5 | BK217: 0 | BL217: 81
BB218: 4.3 Other Cases | BC218: 19 | BE218: 0 | BF218: 0 | BG218: 0 | BH218: 0 | BI218: 16 | BJ218: 3 | BK218: 0 | BL218: 19
BA219: =B20 -> 5 | BB219: Electrocution | BC219: 15 | BE219: 0 | BF219: 0 | BG219: 0 | BH219: 0 | BI219: 14 | BJ219: 1 | BK219: 0 | BL219: 15
BA220: =B21 -> 6 | BB220: Accidental Explosion (Total) (sum of 6.1 to 6.4) | BC220: 0 | BE220: 0 | BF220: 0 | BG220: 0 | BH220: 0 | BI220: 0 | BJ220: 0 | BK220: 0 | BL220: 0
BB221: 6.1 Domestic Gas Cylinder | BC221: 0 | BE221: 0 | BF221: 0 | BG221: 0 | BH221: 0 | BI221: 0 | BJ221: 0 | BK221: 0 | BL221: 0
BB222: 6.2 Industrial Boiler/Gas cylinder explosion | BC222: 0 | BE222: 0 | BF222: 0 | BG222: 0 | BH222: 0 | BI222: 0 | BJ222: 0 | BK222: 0 | BL222: 0
BB223: 6.3 Ammunition explosion in Armed Forces/Police/CPMF | BC223: 0 | BE223: 0 | BF223: 0 | BG223: 0 | BH223: 0 | BI223: 0 | BJ223: 0 | BK223: 0 | BL223: 0
BB224: 6.4 Other | BC224: 0 | BE224: 0 | BF224: 0 | BG224: 0 | BH224: 0 | BI224: 0 | BJ224: 0 | BK224: 0 | BL224: 0
BA225: =B26 -> 7 | BB225: Falls (Total) (sum of 7.1 to 7.6) | BC225: 142 | BE225: 4 | BF225: 0 | BG225: 0 | BH225: 4 | BI225: 125 | BJ225: 15 | BK225: 0 | BL225: 140
BB226: 7.1 Fall from Height | BC226: 84 | BE226: 2 | BF226: 0 | BG226: 0 | BH226: 2 | BI226: 74 | BJ226: 9 | BK226: 0 | BL226: 83
BB227: 7.2 Fall from Vehicles (Automobile like Bus, Trucks, etc.) | BC227: 0 | BE227: 0 | BF227: 0 | BG227: 0 | BH227: 0 | BI227: 0 | BJ227: 0 | BK227: 0 | BL227: 0
BB228: 7.3 Fall into Manhole / Sewer | BC228: 3 | BE228: 1 | BF228: 0 | BG228: 0 | BH228: 1 | BI228: 3 | BJ228: 0 | BK228: 0 | BL228: 3
BB229: 7.4 Fall into Pit | BC229: 0 | BE229: 0 | BF229: 0 | BG229: 0 | BH229: 0 | BI229: 0 | BJ229: 0 | BK229: 0 | BL229: 0
BB230: 7.5 Fall into Borewell | BC230: 0 | BE230: =F31 -> 0 | BF230: =G31 -> 0 | BG230: =H31 -> 0 | BH230: =I31 -> 0 | BI230: =J31 -> 0 | BJ230: =K31 -> 0 | BK230: =L31 -> 0 | BL230: =M31 -> 0
BB231: =C32 -> 7.6 Others | BC231: =D32 -> 55 | BE231: =F32 -> 1 | BF231: =G32 -> 0 | BG231: =H32 -> 0 | BH231: =I32 -> 1 | BI231: =J32 -> 48 | BJ231: =K32 -> 6 | BK231: =L32 -> 0 | BL231: =M32 -> 54
BA232: =B33 -> 8 | BB232: Factory/Machine accidents | BC232: 0 | BE232: 0 | BF232: 0 | BG232: 0 | BH232: 0 | BI232: 0 | BJ232: 0 | BK232: 0 | BL232: 0
BA233: =B34 -> 9 | BB233: Accidental Fire (Total) (sum of 9.1 to 9.5) | BC233: 55 | BE233: 0 | BF233: 0 | BG233: 0 | BH233: 0 | BI233: 5 | BJ233: 13 | BK233: 0 | BL233: 18
BB234: 9.1 Electrical Short circuit | BC234: 21 | BE234: 0 | BF234: 0 | BG234: 0 | BH234: 0 | BI234: 1 | BJ234: 0 | BK234: 0 | BL234: 1
BB235: 9.2 Riot/Agitation | BC235: 0 | BE235: 0 | BF235: 0 | BG235: 0 | BH235: 0 | BI235: 0 | BJ235: 0 | BK235: 0 | BL235: 0
BB236: 9.3 Fireworks | BC236: 0 | BE236: 0 | BF236: 0 | BG236: 0 | BH236: 0 | BI236: 0 | BJ236: 0 | BK236: 0 | BL236: 0
BB237: 9.4 Cooking Gas cylinder/stove burst | BC237: 6 | BE237: 0 | BF237: 0 | BG237: 0 | BH237: 0 | BI237: 1 | BJ237: 4 | BK237: 0 | BL237: 5
BB238: 9.5 Other Causes | BC238: 28 | BE238: 0 | BF238: 0 | BG238: 0 | BH238: 0 | BI238: 3 | BJ238: 9 | BK238: 0 | BL238: 12
BA239: =B40 -> 10 | BB239: Firearm | BC239: 0 | BE239: 0 | BF239: 0 | BG239: 0 | BH239: 0 | BI239: 0 | BJ239: 0 | BK239: 0 | BL239: 0
BA240: =B41 -> 11 | BB240: Mines or Quarry disaster | BC240: 0 | BE240: 0 | BF240: 0 | BG240: 0 | BH240: 0 | BI240: 0 | BJ240: 0 | BK240: 0 | BL240: 0
BA241: =B42 -> 12 | BB241: Traffic Accidents (Total) (sum of 12.1, 12.2 and 12.3) | BC241: 3066 | BE241: 842 | BF241: 229 | BG241: 0 | BH241: 1071 | BI241: 287 | BJ241: 41 | BK241: 0 | BL241: 328
BB242: 12.1 Road Accidents | BC242: 3012 | BE242: 842 | BF242: 229 | BG242: 0 | BH242: 1071 | BI242: 233 | BJ242: 41 | BK242: 0 | BL242: 274
BB243: 0 | BC243: 0 | BE243: 0 | BF243: 0 | BG243: 0 | BH243: 0 | BI243: 0 | BJ243: 0 | BK243: 0 | BL243: 0
BB244: 0 | BC244: 3012 | BE244: 842 | BF244: 229 | BG244: 0 | BH244: 1071 | BI244: 233 | BJ244: 41 | BK244: 0 | BL244: 274
BB245: 12.2 Railway Crossing Accidents | BC245: 0 | BE245: 0 | BF245: 0 | BG245: 0 | BH245: 0 | BI245: 0 | BJ245: 0 | BK245: 0 | BL245: 0
BB246: 12.3 Railway Accidents | BC246: 54 | BE246: 0 | BF246: 0 | BG246: 0 | BH246: 0 | BI246: 54 | BJ246: 0 | BK246: 0 | BL246: 54
BA247: =B48 -> 13 | BB247: Stampede | BC247: 0 | BE247: 0 | BF247: 0 | BG247: 0 | BH247: 0 | BI247: 0 | BJ247: 0 | BK247: 0 | BL247: 0
BA248: =B49 -> 14 | BB248: Other Unnatural Causes | BC248: 12 | BE248: 0 | BF248: 0 | BG248: 0 | BH248: 0 | BI248: 5 | BJ248: 7 | BK248: 0 | BL248: 12
BA249: =B50 -> 15 | BB249: Causes not known | BC249: 17 | BE249: 0 | BF249: 0 | BG249: 0 | BH249: 0 | BI249: 15 | BJ249: 2 | BK249: 0 | BL249: 17
BA250: =B51 -> 16 | BB250: Total (sum of Sl. 1 to 15) | BC250: 3408 | BE250: 846 | BF250: 229 | BG250: 0 | BH250: 1075 | BI250: 547 | BJ250: 87 | BK250: 0 | BL250: 634
BA251: =A52 -> SL-12.1.1 ABNORMAL VARIATION IN "ROAD RAGE INCIDENTS" DATA | BC251: =D52 -> 
BA252: =A53 -> SL-14 ABNORMAL VARIATION IN "OTHER UNNATURAL CAUSES" DATA | BC252: =D53 -> 
BA253: SL-15 ABNORMAL VARIATION IN "CAUSES NOT KNOWN" DATA
A500: StateUTCityCode | B500: DistrictCode | C500: CrimeCode | D500: DataYear | E500: Number of Cases | F500: Injured_Male | G500: Injured_Female | H500: Injured_Trans | I500: Injured_Total | J500: Died_Male | K500: Died_Female | L500: Died_Trans | M500: Died_Total
A501: =IF(ADSI!$G$12="",ADSI!$H$16,ADSI!$H$12) -> 6 | B501: =IF(ADSI!$G$12="",ADSI!$H$16,ADSI!$H$14) ->  | C501: =A8 -> 50 | D501: =ADSI!$K$12 -> 2022 | E501: =D8 -> 0 | F501: =F8 -> 0 | G501: =G8 -> 0 | H501: 0 | I501: 0 | J501: =J8 -> 0 | K501: 0 | L501: 0 | M501: 0
A502: =IF(ADSI!$G$12="",ADSI!$H$16,ADSI!$H$12) -> 6 | B502: =IF(ADSI!$G$12="",ADSI!$H$16,ADSI!$H$14) ->  | C502: =A9 -> 51 | D502: =ADSI!$K$12 -> 2022 | E502: =D9 -> 0 | F502: =F9 -> 0 | G502: 0 | H502: 0 | I502: 0 | J502: 0 | K502: 0 | L502: 0 | M502: 0
A503: =IF(ADSI!$G$12="",ADSI!$H$16,ADSI!$H$12) -> 6 | B503: =IF(ADSI!$G$12="",ADSI!$H$16,ADSI!$H$14) ->  | C503: 52 | D503: =ADSI!$K$12 -> 2022 | E503: 4 | F503: =F10 -> 0 | G503: 0 | H503: 0 | I503: 0 | J503: 4 | K503: 0 | L503: 0 | M503: 4
A504: =IF(ADSI!$G$12="",ADSI!$H$16,ADSI!$H$12) -> 6 | B504: =IF(ADSI!$G$12="",ADSI!$H$16,ADSI!$H$14) ->  | C504: 53 | D504: =ADSI!$K$12 -> 2022 | E504: 3 | F504: =F11 -> 0 | G504: 0 | H504: 0 | I504: 0 | J504: 3 | K504: 0 | L504: 0 | M504: 3
A505: =IF(ADSI!$G$12="",ADSI!$H$16,ADSI!$H$12) -> 6 | B505: =IF(ADSI!$G$12="",ADSI!$H$16,ADSI!$H$14) ->  | C505: 54 | D505: =ADSI!$K$12 -> 2022 | E505: 0 | F505: =F12 -> 0 | G505: 0 | H505: 0 | I505: 0 | J505: 0 | K505: 0 | L505: 0 | M505: 0
A506: =IF(ADSI!$G$12="",ADSI!$H$16,ADSI!$H$12) -> 6 | B506: =IF(ADSI!$G$12="",ADSI!$H$16,ADSI!$H$14) ->  | C506: 55 | D506: =ADSI!$K$12 -> 2022 | E506: 0 | F506: =F13 -> 0 | G506: 0 | H506: 0 | I506: 0 | J506: 0 | K506: 0 | L506: 0 | M506: 0
A507: =IF(ADSI!$G$12="",ADSI!$H$16,ADSI!$H$12) -> 6 | B507: =IF(ADSI!$G$12="",ADSI!$H$16,ADSI!$H$14) ->  | C507: 56 | D507: =ADSI!$K$12 -> 2022 | E507: 0 | F507: =F14 -> 0 | G507: 0 | H507: 0 | I507: 0 | J507: 0 | K507: 0 | L507: 0 | M507: 0
A508: =IF(ADSI!$G$12="",ADSI!$H$16,ADSI!$H$12) -> 6 | B508: =IF(ADSI!$G$12="",ADSI!$H$16,ADSI!$H$14) ->  | C508: 57 | D508: =ADSI!$K$12 -> 2022 | E508: 1 | F508: =F15 -> 0 | G508: 0 | H508: 0 | I508: 0 | J508: 1 | K508: 0 | L508: 0 | M508: 1
A509: =IF(ADSI!$G$12="",ADSI!$H$16,ADSI!$H$12) -> 6 | B509: =IF(ADSI!$G$12="",ADSI!$H$16,ADSI!$H$14) ->  | C509: 58 | D509: =ADSI!$K$12 -> 2022 | E509: 97 | F509: =F16 -> 0 | G509: 0 | H509: 0 | I509: 0 | J509: 92 | K509: 8 | L509: 0 | M509: 100
A510: =IF(ADSI!$G$12="",ADSI!$H$16,ADSI!$H$12) -> 6 | B510: =IF(ADSI!$G$12="",ADSI!$H$16,ADSI!$H$14) ->  | C510: 59 | D510: =ADSI!$K$12 -> 2022 | E510: 0 | F510: =F17 -> 0 | G510: 0 | H510: 0 | I510: 0 | J510: 0 | K510: 0 | L510: 0 | M510: 0
A511: =IF(ADSI!$G$12="",ADSI!$H$16,ADSI!$H$12) -> 6 | B511: =IF(ADSI!$G$12="",ADSI!$H$16,ADSI!$H$14) ->  | C511: 60 | D511: =ADSI!$K$12 -> 2022 | E511: 78 | F511: =F18 -> 0 | G511: 0 | H511: 0 | I511: 0 | J511: 76 | K511: 5 | L511: 0 | M511: 81
A512: =IF(ADSI!$G$12="",ADSI!$H$16,ADSI!$H$12) -> 6 | B512: =IF(ADSI!$G$12="",ADSI!$H$16,ADSI!$H$14) ->  | C512: 61 | D512: =ADSI!$K$12 -> 2022 | E512: 19 | F512: =F19 -> 0 | G512: 0 | H512: 0 | I512: 0 | J512: 16 | K512: 3 | L512: 0 | M512: 19
A513: =IF(ADSI!$G$12="",ADSI!$H$16,ADSI!$H$12) -> 6 | B513: =IF(ADSI!$G$12="",ADSI!$H$16,ADSI!$H$14) ->  | C513: 62 | D513: =ADSI!$K$12 -> 2022 | E513: 15 | F513: =F20 -> 0 | G513: 0 | H513: 0 | I513: 0 | J513: 14 | K513: 1 | L513: 0 | M513: 15
A514: =IF(ADSI!$G$12="",ADSI!$H$16,ADSI!$H$12) -> 6 | B514: =IF(ADSI!$G$12="",ADSI!$H$16,ADSI!$H$14) ->  | C514: 63 | D514: =ADSI!$K$12 -> 2022 | E514: 0 | F514: =F21 -> 0 | G514: 0 | H514: 0 | I514: 0 | J514: 0 | K514: 0 | L514: 0 | M514: 0
A515: =IF(ADSI!$G$12="",ADSI!$H$16,ADSI!$H$12) -> 6 | B515: =IF(ADSI!$G$12="",ADSI!$H$16,ADSI!$H$14) ->  | C515: 64 | D515: =ADSI!$K$12 -> 2022 | E515: 0 | F515: =F22 -> 0 | G515: 0 | H515: 0 | I515: 0 | J515: 0 | K515: 0 | L515: 0 | M515: 0
A516: =IF(ADSI!$G$12="",ADSI!$H$16,ADSI!$H$12) -> 6 | B516: =IF(ADSI!$G$12="",ADSI!$H$16,ADSI!$H$14) ->  | C516: 65 | D516: =ADSI!$K$12 -> 2022 | E516: 0 | F516: =F23 -> 0 | G516: 0 | H516: 0 | I516: 0 | J516: 0 | K516: 0 | L516: 0 | M516: 0
A517: =IF(ADSI!$G$12="",ADSI!$H$16,ADSI!$H$12) -> 6 | B517: =IF(ADSI!$G$12="",ADSI!$H$16,ADSI!$H$14) ->  | C517: 66 | D517: =ADSI!$K$12 -> 2022 | E517: 0 | F517: =F24 -> 0 | G517: 0 | H517: 0 | I517: 0 | J517: 0 | K517: 0 | L517: 0 | M517: 0
A518: =IF(ADSI!$G$12="",ADSI!$H$16,ADSI!$H$12) -> 6 | B518: =IF(ADSI!$G$12="",ADSI!$H$16,ADSI!$H$14) ->  | C518: 67 | D518: =ADSI!$K$12 -> 2022 | E518: 0 | F518: =F25 -> 0 | G518: 0 | H518: 0 | I518: 0 | J518: 0 | K518: 0 | L518: 0 | M518: 0
A519: =IF(ADSI!$G$12="",ADSI!$H$16,ADSI!$H$12) -> 6 | B519: =IF(ADSI!$G$12="",ADSI!$H$16,ADSI!$H$14) ->  | C519: 68 | D519: =ADSI!$K$12 -> 2022 | E519: 142 | F519: =F26 -> 4 | G519: 0 | H519: 0 | I519: 4 | J519: 125 | K519: 15 | L519: 0 | M519: 140
A520: =IF(ADSI!$G$12="",ADSI!$H$16,ADSI!$H$12) -> 6 | B520: =IF(ADSI!$G$12="",ADSI!$H$16,ADSI!$H$14) ->  | C520: 69 | D520: =ADSI!$K$12 -> 2022 | E520: 84 | F520: =F27 -> 2 | G520: 0 | H520: 0 | I520: 2 | J520: 74 | K520: 9 | L520: 0 | M520: 83
A521: =IF(ADSI!$G$12="",ADSI!$H$16,ADSI!$H$12) -> 6 | B521: =IF(ADSI!$G$12="",ADSI!$H$16,ADSI!$H$14) ->  | C521: 70 | D521: =ADSI!$K$12 -> 2022 | E521: 0 | F521: =F28 -> 0 | G521: 0 | H521: 0 | I521: 0 | J521: 0 | K521: 0 | L521: 0 | M521: 0
A522: =IF(ADSI!$G$12="",ADSI!$H$16,ADSI!$H$12) -> 6 | B522: =IF(ADSI!$G$12="",ADSI!$H$16,ADSI!$H$14) ->  | C522: 71 | D522: =ADSI!$K$12 -> 2022 | E522: 3 | F522: =F29 -> 1 | G522: 0 | H522: 0 | I522: 1 | J522: 3 | K522: 0 | L522: 0 | M522: 3
A523: =IF(ADSI!$G$12="",ADSI!$H$16,ADSI!$H$12) -> 6 | B523: =IF(ADSI!$G$12="",ADSI!$H$16,ADSI!$H$14) ->  | C523: 72 | D523: =ADSI!$K$12 -> 2022 | E523: 0 | F523: =F30 -> 0 | G523: 0 | H523: 0 | I523: 0 | J523: 0 | K523: 0 | L523: 0 | M523: 0
A524: =IF(ADSI!$G$12="",ADSI!$H$16,ADSI!$H$12) -> 6 | B524: =IF(ADSI!$G$12="",ADSI!$H$16,ADSI!$H$14) ->  | C524: 73 | D524: =ADSI!$K$12 -> 2022 | E524: 0 | F524: =F31 -> 0 | G524: 0 | H524: 0 | I524: 0 | J524: 0 | K524: 0 | L524: 0 | M524: 0
A525: =IF(ADSI!$G$12="",ADSI!$H$16,ADSI!$H$12) -> 6 | B525: =IF(ADSI!$G$12="",ADSI!$H$16,ADSI!$H$14) ->  | C525: 74 | D525: =ADSI!$K$12 -> 2022 | E525: 55 | F525: =F32 -> 1 | G525: 0 | H525: 0 | I525: 1 | J525: 48 | K525: 6 | L525: 0 | M525: 54
A526: =IF(ADSI!$G$12="",ADSI!$H$16,ADSI!$H$12) -> 6 | B526: =IF(ADSI!$G$12="",ADSI!$H$16,ADSI!$H$14) ->  | C526: 75 | D526: =ADSI!$K$12 -> 2022 | E526: 0 | F526: =F33 -> 0 | G526: 0 | H526: 0 | I526: 0 | J526: 0 | K526: 0 | L526: 0 | M526: 0
A527: =IF(ADSI!$G$12="",ADSI!$H$16,ADSI!$H$12) -> 6 | B527: =IF(ADSI!$G$12="",ADSI!$H$16,ADSI!$H$14) ->  | C527: 76 | D527: =ADSI!$K$12 -> 2022 | E527: 55 | F527: =F34 -> 0 | G527: 0 | H527: 0 | I527: 0 | J527: 5 | K527: 13 | L527: 0 | M527: 18
A528: =IF(ADSI!$G$12="",ADSI!$H$16,ADSI!$H$12) -> 6 | B528: =IF(ADSI!$G$12="",ADSI!$H$16,ADSI!$H$14) ->  | C528: 77 | D528: =ADSI!$K$12 -> 2022 | E528: 21 | F528: =F35 -> 0 | G528: 0 | H528: 0 | I528: 0 | J528: 1 | K528: 0 | L528: 0 | M528: 1
A529: =IF(ADSI!$G$12="",ADSI!$H$16,ADSI!$H$12) -> 6 | B529: =IF(ADSI!$G$12="",ADSI!$H$16,ADSI!$H$14) ->  | C529: 78 | D529: =ADSI!$K$12 -> 2022 | E529: 0 | F529: =F36 -> 0 | G529: 0 | H529: 0 | I529: 0 | J529: 0 | K529: 0 | L529: 0 | M529: 0
A530: =IF(ADSI!$G$12="",ADSI!$H$16,ADSI!$H$12) -> 6 | B530: =IF(ADSI!$G$12="",ADSI!$H$16,ADSI!$H$14) ->  | C530: 79 | D530: =ADSI!$K$12 -> 2022 | E530: 0 | F530: =F37 -> 0 | G530: 0 | H530: 0 | I530: 0 | J530: 0 | K530: 0 | L530: 0 | M530: 0
A531: =IF(ADSI!$G$12="",ADSI!$H$16,ADSI!$H$12) -> 6 | B531: =IF(ADSI!$G$12="",ADSI!$H$16,ADSI!$H$14) ->  | C531: 80 | D531: =ADSI!$K$12 -> 2022 | E531: 6 | F531: =F38 -> 0 | G531: 0 | H531: 0 | I531: 0 | J531: 1 | K531: 4 | L531: 0 | M531: 5
A532: =IF(ADSI!$G$12="",ADSI!$H$16,ADSI!$H$12) -> 6 | B532: =IF(ADSI!$G$12="",ADSI!$H$16,ADSI!$H$14) ->  | C532: 81 | D532: =ADSI!$K$12 -> 2022 | E532: 28 | F532: =F39 -> 0 | G532: 0 | H532: 0 | I532: 0 | J532: 3 | K532: 9 | L532: 0 | M532: 12
A533: =IF(ADSI!$G$12="",ADSI!$H$16,ADSI!$H$12) -> 6 | B533: =IF(ADSI!$G$12="",ADSI!$H$16,ADSI!$H$14) ->  | C533: 82 | D533: =ADSI!$K$12 -> 2022 | E533: 0 | F533: =F40 -> 0 | G533: 0 | H533: 0 | I533: 0 | J533: 0 | K533: 0 | L533: 0 | M533: 0
A534: =IF(ADSI!$G$12="",ADSI!$H$16,ADSI!$H$12) -> 6 | B534: =IF(ADSI!$G$12="",ADSI!$H$16,ADSI!$H$14) ->  | C534: 83 | D534: =ADSI!$K$12 -> 2022 | E534: 0 | F534: =F41 -> 0 | G534: 0 | H534: 0 | I534: 0 | J534: 0 | K534: 0 | L534: 0 | M534: 0
A535: =IF(ADSI!$G$12="",ADSI!$H$16,ADSI!$H$12) -> 6 | B535: =IF(ADSI!$G$12="",ADSI!$H$16,ADSI!$H$14) ->  | C535: 84 | D535: =ADSI!$K$12 -> 2022 | E535: 3066 | F535: =F42 -> 842 | G535: 229 | H535: 0 | I535: 1071 | J535: 287 | K535: 41 | L535: 0 | M535: 328
A536: =IF(ADSI!$G$12="",ADSI!$H$16,ADSI!$H$12) -> 6 | B536: =IF(ADSI!$G$12="",ADSI!$H$16,ADSI!$H$14) ->  | C536: 85 | D536: =ADSI!$K$12 -> 2022 | E536: 3012 | F536: =F43 -> 842 | G536: 229 | H536: 0 | I536: 1071 | J536: 233 | K536: 41 | L536: 0 | M536: 274
A537: =IF(ADSI!$G$12="",ADSI!$H$16,ADSI!$H$12) -> 6 | B537: =IF(ADSI!$G$12="",ADSI!$H$16,ADSI!$H$14) ->  | C537: =A44 -> 86 | D537: =ADSI!$K$12 -> 2022 | E537: 0 | F537: =F44 -> 0 | G537: 0 | H537: 0 | I537: 0 | J537: 0 | K537: 0 | L537: 0 | M537: 0
A538: =IF(ADSI!$G$12="",ADSI!$H$16,ADSI!$H$12) -> 6 | B538: =IF(ADSI!$G$12="",ADSI!$H$16,ADSI!$H$14) ->  | C538: 87 | D538: =ADSI!$K$12 -> 2022 | E538: 3012 | F538: =F45 -> 842 | G538: 229 | H538: 0 | I538: 1071 | J538: 233 | K538: 41 | L538: 0 | M538: 274
A539: =IF(ADSI!$G$12="",ADSI!$H$16,ADSI!$H$12) -> 6 | B539: =IF(ADSI!$G$12="",ADSI!$H$16,ADSI!$H$14) ->  | C539: 88 | D539: =ADSI!$K$12 -> 2022 | E539: 0 | F539: =F46 -> 0 | G539: 0 | H539: 0 | I539: 0 | J539: 0 | K539: 0 | L539: 0 | M539: 0
A540: =IF(ADSI!$G$12="",ADSI!$H$16,ADSI!$H$12) -> 6 | B540: =IF(ADSI!$G$12="",ADSI!$H$16,ADSI!$H$14) ->  | C540: 89 | D540: =ADSI!$K$12 -> 2022 | E540: 54 | F540: =F47 -> 0 | G540: 0 | H540: 0 | I540: 0 | J540: 54 | K540: 0 | L540: 0 | M540: 54
A541: =IF(ADSI!$G$12="",ADSI!$H$16,ADSI!$H$12) -> 6 | B541: =IF(ADSI!$G$12="",ADSI!$H$16,ADSI!$H$14) ->  | C541: 90 | D541: =ADSI!$K$12 -> 2022 | E541: 0 | F541: =F48 -> 0 | G541: 0 | H541: 0 | I541: 0 | J541: 0 | K541: 0 | L541: 0 | M541: 0
A542: =IF(ADSI!$G$12="",ADSI!$H$16,ADSI!$H$12) -> 6 | B542: =IF(ADSI!$G$12="",ADSI!$H$16,ADSI!$H$14) ->  | C542: 91 | D542: =ADSI!$K$12 -> 2022 | E542: 12 | F542: =F49 -> 0 | G542: 0 | H542: 0 | I542: 0 | J542: 5 | K542: 7 | L542: 0 | M542: 12
A543: =IF(ADSI!$G$12="",ADSI!$H$16,ADSI!$H$12) -> 6 | B543: =IF(ADSI!$G$12="",ADSI!$H$16,ADSI!$H$14) ->  | C543: =A50 -> 92 | D543: =ADSI!$K$12 -> 2022 | E543: 17 | F543: =F50 -> 0 | G543: 0 | H543: 0 | I543: 0 | J543: 15 | K543: 2 | L543: 0 | M543: 17
A544: =IF(ADSI!$G$12="",ADSI!$H$16,ADSI!$H$12) -> 6 | B544: =IF(ADSI!$G$12="",ADSI!$H$16,ADSI!$H$14) ->  | C544: 120 | D544: =ADSI!$K$12 -> 2022 | E544: 3408 | F544: =F51 -> 846 | G544: 229 | H544: 0 | I544: 1075 | J544: 547 | K544: 87 | L544: 0 | M544: 634

Sheet P-II-A
A1: =ADSI!$B$1 -> Goa, , ADSI-2022
A2: Errors | C2: =COUNTIF(E8:E21,FALSE)+COUNTIF(D23:M23,FALSE) -> 0 | E2: Abnormal Variations | F2: =COUNTIF(D24:M24,"ABVAR") -> 4
A3: =IF(ADSI!$L$10=1,LangMaster!A103,LangMaster!B103) -> Proforma-II(A)
A4: =IF(ADSI!$L$10=1,LangMaster!A104,LangMaster!B104) -> Fire Accidents classified according to Place of Occurrence
A5: =IF(ADSI!$L$10=1,LangMaster!A26,LangMaster!B26) -> Code | B5: =IF(ADSI!$L$10=1,LangMaster!A27,LangMaster!B27) -> S.No. | C5: =IF(ADSI!$L$10=1,LangMaster!A105,LangMaster!B105) -> Place of occurrence | D5: =IF(ADSI!$L$10=1,LangMaster!A479,LangMaster!B479) -> No. of Cases | E5: =IF(ADSI!$L$10=1,LangMaster!A480,LangMaster!B480) -> VALIDATION WITH NUMBER OF CASES | F5: =IF(ADSI!$L$10=1,LangMaster!A481,LangMaster!B481) -> No. of Persons Injured | J5: =IF(ADSI!$L$10=1,LangMaster!A482,LangMaster!B482) -> No. of Persons Died
F6: =IF(ADSI!$L$10=1,LangMaster!A30,LangMaster!B30) -> Male | G6: =IF(ADSI!$L$10=1,LangMaster!A31,LangMaster!B31) -> Female | H6: =IF(ADSI!$L$10=1,LangMaster!A32,LangMaster!B32) -> Transgender | I6: =IF(ADSI!$L$10=1,LangMaster!A483,LangMaster!B483) -> Total[sum of (4) to (6)] | J6: =IF(ADSI!$L$10=1,LangMaster!A30,LangMaster!B30) -> Male | K6: =IF(ADSI!$L$10=1,LangMaster!A31,LangMaster!B31) -> Female | L6: =IF(ADSI!$L$10=1,LangMaster!A32,LangMaster!B32) -> Transgender | M6: =IF(ADSI!$L$10=1,LangMaster!A484,LangMaster!B484) -> Total[sum of (8) to (10)]
B7: (1) | C7: (2) | D7: (3) | F7: (4) | G7: (5) | H7: (6) | I7: (7) | J7: (8) | K7: (9) | L7: (10) | M7: (11)
A8: 150 | B8: 1 | C8: =IF(ADSI!$L$10=1,LangMaster!A106,LangMaster!B106) -> Fire in School Buildings | D8: 1 | E8: =IF(AND(OR(I8>0,M8>0),D8=0),FALSE,"") ->  | F8: 0 | G8: 0 | H8: 0 | I8: =SUM(F8:H8) -> 0 | J8: 0 | K8: 0 | L8: 0 | M8: =SUM(J8:L8) -> 0
A9: 151 | B9: 2 | C9: =IF(ADSI!$L$10=1,LangMaster!A107,LangMaster!B107) -> Fire in Commercial Buildings | D9: 2 | E9: =IF(AND(OR(I9>0,M9>0),D9=0),FALSE,"") ->  | F9: 0 | G9: 0 | H9: 0 | I9: =SUM(F9:H9) -> 0 | J9: 0 | K9: 0 | L9: 0 | M9: =SUM(J9:L9) -> 0
A10: 152 | B10: 3 | C10: =IF(ADSI!$L$10=1,LangMaster!A108,LangMaster!B108) -> Fire in Residential/Dwelling Building | D10: 17 | F10: 0 | G10: 0 | H10: 0 | I10: 0 | J10: 2 | K10: 9 | L10: 0 | M10: 11
A11: 153 | B11: 4 | C11: =IF(ADSI!$L$10=1,LangMaster!A109,LangMaster!B109) -> Fire in Government Buildings | D11: 2 | F11: 0 | G11: 0 | H11: 0 | I11: 0 | J11: 0 | K11: 0 | L11: 0 | M11: 0
A12: 154 | B12: 5 | C12: =IF(ADSI!$L$10=1,LangMaster!A110,LangMaster!B110) -> Fire in the Mines | D12: 0 | F12: 0 | G12: 0 | H12: 0 | I12: 0 | J12: 0 | K12: 0 | L12: 0 | M12: 0
A13: 155 | B13: 6 | C13: =IF(ADSI!$L$10=1,LangMaster!A111,LangMaster!B111) -> Fire in Factory manufacturing combustible materials including Cracker/Match Box Factories | D13: 0 | F13: 0 | G13: 0 | H13: 0 | I13: 0 | J13: 0 | K13: 0 | L13: 0 | M13: 0
A14: 156 | B14: 7 | C14: =IF(ADSI!$L$10=1,LangMaster!A112,LangMaster!B112) -> Fire in the factories (other than Sl.-6) | D14: 0 | F14: 0 | G14: 0 | H14: 0 | I14: 0 | J14: 0 | K14: 0 | L14: 0 | M14: 0
A15: 157 | B15: 8 | C15: =IF(ADSI!$L$10=1,LangMaster!A113,LangMaster!B113) -> Accidental Fire in Train(s) | D15: 0 | F15: 0 | G15: 0 | H15: 0 | I15: 0 | J15: 0 | K15: 0 | L15: 0 | M15: 0
A16: 158 | B16: 9 | C16: =IF(ADSI!$L$10=1,LangMaster!A114,LangMaster!B114) -> Accidental Fire in Vehicles (Automobiles) (Total) (sum of 9.1 to 9.3) | D16: =SUM(D17:D19) -> 19 | F16: =SUM(F17:F19) -> 0 | G16: 0 | H16: 0 | I16: 0 | J16: =SUM(J17:J19) -> 0 | K16: 0 | L16: 0 | M16: 0
A17: 159 | C17: =IF(ADSI!$L$10=1,LangMaster!A115,LangMaster!B115) -> 9.1 Passenger Vehicle (e.g. Bus/Taxi/ Auto/etc.) | D17: 3 | F17: 0 | G17: 0 | H17: 0 | I17: 0 | J17: 0 | K17: 0 | L17: 0 | M17: 0
A18: 160 | C18: =IF(ADSI!$L$10=1,LangMaster!A116,LangMaster!B116) -> 9.2 Private Vehicle | D18: 12 | F18: 0 | G18: 0 | H18: 0 | I18: 0 | J18: 0 | K18: 0 | L18: 0 | M18: 0
A19: 161 | C19: =IF(ADSI!$L$10=1,LangMaster!A117,LangMaster!B117) -> 9.3 Goods Carriers | D19: 4 | F19: 0 | G19: 0 | H19: 0 | I19: 0 | J19: 0 | K19: 0 | L19: 0 | M19: 0
A20: 162 | B20: 10 | C20: =IF(ADSI!$L$10=1,LangMaster!A118,LangMaster!B118) -> Others | D20: 14 | F20: 0 | G20: 0 | H20: 0 | I20: 0 | J20: 3 | K20: 4 | L20: 0 | M20: 7
A21: 180 | B21: 11 | C21: =IF(ADSI!$L$10=1,LangMaster!A119,LangMaster!B119) -> Total (sum of Sl. 1 to 10) | D21: =SUM(D8:D16, (D20:D20)) -> 55 | F21: =SUM(F8:F16, (F20:F20)) -> 0 | G21: 0 | H21: 0 | I21: 0 | J21: 5 | K21: 13 | L21: 0 | M21: 18
A22: PROFORMA–II VALUES [Sl.– 9 (Accidental Fire (Total))] | D22: ='P-II'!D34 -> 55 | F22: ='P-II'!F34 -> 0 | G22: ='P-II'!G34 -> 0 | H22: ='P-II'!H34 -> 0 | I22: ='P-II'!I34 -> 0 | J22: ='P-II'!J34 -> 5 | K22: ='P-II'!K34 -> 13 | L22: ='P-II'!L34 -> 0 | M22: ='P-II'!M34 -> 18
A23: VALIDATION WITH PROFORMA–II [Sl.– 9 (Accidental Fire (Total))] | D23: =IF(D21='P-II'!D34, "", FALSE) ->  | F23: =IF(F21='P-II'!F34, "", FALSE) ->  | G23: =IF(G21='P-II'!G34, "", FALSE) ->  | H23: =IF(H21='P-II'!H34, "", FALSE) ->  | I23: =IF(I21='P-II'!I34, "", FALSE) ->  | J23: =IF(J21='P-II'!J34, "", FALSE) ->  | K23: =IF(K21='P-II'!K34, "", FALSE) ->  | L23: =IF(L21='P-II'!L34, "", FALSE) ->  | M23: =IF(M21='P-II'!M34, "", FALSE) -> 
A24: SL-10 ABNORMAL VARIATION IN "OTHERS" DATA | D24: =IF(D21>0,IF((D20/D21*100)>20,"ABVAR",""),"") -> ABVAR | F24: =IF(F21>0,IF((F20/F21*100)>20,"ABVAR",""),"") ->  | J24: ABVAR | K24: ABVAR | M24: ABVAR
BA200: =A1 -> Goa, , ADSI-2022
BA201: =A2 -> Errors | BB201: =C2 -> 0 | BD201: =E2 -> Abnormal Variations | BE201: =F2 -> 4
BA202: =A3 -> Proforma-II(A)
BA203: =A4 -> Fire Accidents classified according to Place of Occurrence
BA204: =B5 -> S.No. | BB204: =C5 -> Place of occurrence | BC204: =D5 -> No. of Cases | BD204: =E5 -> VALIDATION WITH NUMBER OF CASES | BE204: =F5 -> No. of Persons Injured | BI204: =J5 -> No. of Persons Died
BE205: Male | BF205: =G6 -> Female | BG205: =H6 -> Transgender | BH205: =I6 -> Total[sum of (4) to (6)] | BI205: Male | BJ205: =K6 -> Female | BK205: =L6 -> Transgender | BL205: =M6 -> Total[sum of (8) to (10)]
BA206: =B7 -> (1) | BB206: =C7 -> (2) | BC206: =D7 -> (3) | BE206: (4) | BF206: (5) | BG206: (6) | BH206: (7) | BI206: (8) | BJ206: (9) | BK206: (10) | BL206: (11)
BA207: 1 | BB207: Fire in School Buildings | BC207: 1 | BD207: =E8 ->  | BE207: 0 | BF207: 0 | BG207: 0 | BH207: 0 | BI207: 0 | BJ207: 0 | BK207: 0 | BL207: 0
BA208: 2 | BB208: Fire in Commercial Buildings | BC208: 2 | BD208: =E9 ->  | BE208: 0 | BF208: 0 | BG208: 0 | BH208: 0 | BI208: 0 | BJ208: 0 | BK208: 0 | BL208: 0
BA209: 3 | BB209: Fire in Residential/Dwelling Building | BC209: 17 | BE209: 0 | BF209: 0 | BG209: 0 | BH209: 0 | BI209: 2 | BJ209: 9 | BK209: 0 | BL209: 11
BA210: 4 | BB210: Fire in Government Buildings | BC210: 2 | BE210: 0 | BF210: 0 | BG210: 0 | BH210: 0 | BI210: 0 | BJ210: 0 | BK210: 0 | BL210: 0
BA211: 5 | BB211: Fire in the Mines | BC211: 0 | BE211: 0 | BF211: 0 | BG211: 0 | BH211: 0 | BI211: 0 | BJ211: 0 | BK211: 0 | BL211: 0
BA212: 6 | BB212: Fire in Factory manufacturing combustible materials including Cracker/Match Box Factories | BC212: 0 | BE212: 0 | BF212: 0 | BG212: 0 | BH212: 0 | BI212: 0 | BJ212: 0 | BK212: 0 | BL212: 0
BA213: 7 | BB213: Fire in the factories (other than Sl.-6) | BC213: 0 | BE213: 0 | BF213: 0 | BG213: 0 | BH213: 0 | BI213: 0 | BJ213: 0 | BK213: 0 | BL213: 0
BA214: 8 | BB214: Accidental Fire in Train(s) | BC214: 0 | BE214: 0 | BF214: 0 | BG214: 0 | BH214: 0 | BI214: 0 | BJ214: 0 | BK214: 0 | BL214: 0
BA215: 9 | BB215: Accidental Fire in Vehicles (Automobiles) (Total) (sum of 9.1 to 9.3) | BC215: 19 | BE215: 0 | BF215: 0 | BG215: 0 | BH215: 0 | BI215: 0 | BJ215: 0 | BK215: 0 | BL215: 0
BB216: =C17 -> 9.1 Passenger Vehicle (e.g. Bus/Taxi/ Auto/etc.) | BC216: 3 | BE216: 0 | BF216: 0 | BG216: 0 | BH216: 0 | BI216: 0 | BJ216: 0 | BK216: 0 | BL216: 0
BB217: 9.2 Private Vehicle | BC217: 12 | BE217: 0 | BF217: 0 | BG217: 0 | BH217: 0 | BI217: 0 | BJ217: 0 | BK217: 0 | BL217: 0
BB218: 9.3 Goods Carriers | BC218: 4 | BE218: 0 | BF218: 0 | BG218: 0 | BH218: 0 | BI218: 0 | BJ218: 0 | BK218: 0 | BL218: 0
BA219: =B20 -> 10 | BB219: =C20 -> Others | BC219: =D20 -> 14 | BE219: =F20 -> 0 | BF219: =G20 -> 0 | BG219: =H20 -> 0 | BH219: =I20 -> 0 | BI219: =J20 -> 3 | BJ219: =K20 -> 4 | BK219: =L20 -> 0 | BL219: =M20 -> 7
BA220: =B21 -> 11 | BB220: Total (sum of Sl. 1 to 10) | BC220: 55 | BE220: 0 | BF220: 0 | BG220: 0 | BH220: 0 | BI220: 5 | BJ220: 13 | BK220: 0 | BL220: 18
BA221: =A22 -> PROFORMA–II VALUES [Sl.– 9 (Accidental Fire (Total))] | BC221: =D22 -> 55 | BE221: 0 | BF221: 0 | BG221: 0 | BH221: 0 | BI221: 5 | BJ221: 13 | BK221: 0 | BL221: 18
BA222: =A23 -> VALIDATION WITH PROFORMA–II [Sl.– 9 (Accidental Fire (Total))] | BC222: =D23 -> 
BA223: =A24 -> SL-10 ABNORMAL VARIATION IN "OTHERS" DATA | BC223: =D24 -> ABVAR | BI223: ABVAR | BJ223: ABVAR | BL223: ABVAR
A500: StateUTCityCode | B500: DistrictCode | C500: CrimeCode | D500: DataYear | E500: Number of Cases | F500: Injured_Male | G500: Injured_Female | H500: Injured_Trans | I500: Injured_Total | J500: Died_Male | K500: Died_Female | L500: Died_Trans | M500: Died_Total
A501: =IF(ADSI!$G$12="",ADSI!$H$16,ADSI!$H$12) -> 6 | B501: =IF(ADSI!$G$12="",ADSI!$H$16,ADSI!$H$14) ->  | C501: =A8 -> 150 | D501: =ADSI!$K$12 -> 2022 | E501: =D8 -> 1 | F501: =F8 -> 0 | G501: =G8 -> 0 | H501: 0 | I501: 0 | J501: 0 | K501: 0 | L501: 0 | M501: 0
A502: =IF(ADSI!$G$12="",ADSI!$H$16,ADSI!$H$12) -> 6 | B502: =IF(ADSI!$G$12="",ADSI!$H$16,ADSI!$H$14) ->  | C502: =A9 -> 151 | D502: =ADSI!$K$12 -> 2022 | E502: =D9 -> 2 | F502: =F9 -> 0 | G502: 0 | H502: 0 | I502: 0 | J502: 0 | K502: 0 | L502: 0 | M502: 0
A503: =IF(ADSI!$G$12="",ADSI!$H$16,ADSI!$H$12) -> 6 | B503: =IF(ADSI!$G$12="",ADSI!$H$16,ADSI!$H$14) ->  | C503: 152 | D503: =ADSI!$K$12 -> 2022 | E503: 17 | F503: =F10 -> 0 | G503: 0 | H503: 0 | I503: 0 | J503: 2 | K503: 9 | L503: 0 | M503: 11
A504: =IF(ADSI!$G$12="",ADSI!$H$16,ADSI!$H$12) -> 6 | B504: =IF(ADSI!$G$12="",ADSI!$H$16,ADSI!$H$14) ->  | C504: 153 | D504: =ADSI!$K$12 -> 2022 | E504: 2 | F504: =F11 -> 0 | G504: 0 | H504: 0 | I504: 0 | J504: 0 | K504: 0 | L504: 0 | M504: 0
A505: =IF(ADSI!$G$12="",ADSI!$H$16,ADSI!$H$12) -> 6 | B505: =IF(ADSI!$G$12="",ADSI!$H$16,ADSI!$H$14) ->  | C505: 154 | D505: =ADSI!$K$12 -> 2022 | E505: 0 | F505: =F12 -> 0 | G505: 0 | H505: 0 | I505: 0 | J505: 0 | K505: 0 | L505: 0 | M505: 0
A506: =IF(ADSI!$G$12="",ADSI!$H$16,ADSI!$H$12) -> 6 | B506: =IF(ADSI!$G$12="",ADSI!$H$16,ADSI!$H$14) ->  | C506: 155 | D506: =ADSI!$K$12 -> 2022 | E506: 0 | F506: =F13 -> 0 | G506: 0 | H506: 0 | I506: 0 | J506: 0 | K506: 0 | L506: 0 | M506: 0
A507: =IF(ADSI!$G$12="",ADSI!$H$16,ADSI!$H$12) -> 6 | B507: =IF(ADSI!$G$12="",ADSI!$H$16,ADSI!$H$14) ->  | C507: 156 | D507: =ADSI!$K$12 -> 2022 | E507: 0 | F507: =F14 -> 0 | G507: 0 | H507: 0 | I507: 0 | J507: 0 | K507: 0 | L507: 0 | M507: 0
A508: =IF(ADSI!$G$12="",ADSI!$H$16,ADSI!$H$12) -> 6 | B508: =IF(ADSI!$G$12="",ADSI!$H$16,ADSI!$H$14) ->  | C508: 157 | D508: =ADSI!$K$12 -> 2022 | E508: 0 | F508: =F15 -> 0 | G508: 0 | H508: 0 | I508: 0 | J508: 0 | K508: 0 | L508: 0 | M508: 0
A509: =IF(ADSI!$G$12="",ADSI!$H$16,ADSI!$H$12) -> 6 | B509: =IF(ADSI!$G$12="",ADSI!$H$16,ADSI!$H$14) ->  | C509: 158 | D509: =ADSI!$K$12 -> 2022 | E509: 19 | F509: =F16 -> 0 | G509: 0 | H509: 0 | I509: 0 | J509: 0 | K509: 0 | L509: 0 | M509: 0
A510: =IF(ADSI!$G$12="",ADSI!$H$16,ADSI!$H$12) -> 6 | B510: =IF(ADSI!$G$12="",ADSI!$H$16,ADSI!$H$14) ->  | C510: 159 | D510: =ADSI!$K$12 -> 2022 | E510: 3 | F510: =F17 -> 0 | G510: 0 | H510: 0 | I510: 0 | J510: 0 | K510: 0 | L510: 0 | M510: 0
A511: =IF(ADSI!$G$12="",ADSI!$H$16,ADSI!$H$12) -> 6 | B511: =IF(ADSI!$G$12="",ADSI!$H$16,ADSI!$H$14) ->  | C511: 160 | D511: =ADSI!$K$12 -> 2022 | E511: 12 | F511: =F18 -> 0 | G511: 0 | H511: 0 | I511: 0 | J511: 0 | K511: 0 | L511: 0 | M511: 0
A512: =IF(ADSI!$G$12="",ADSI!$H$16,ADSI!$H$12) -> 6 | B512: =IF(ADSI!$G$12="",ADSI!$H$16,ADSI!$H$14) ->  | C512: 161 | D512: =ADSI!$K$12 -> 2022 | E512: 4 | F512: =F19 -> 0 | G512: 0 | H512: 0 | I512: 0 | J512: 0 | K512: 0 | L512: 0 | M512: 0
A513: =IF(ADSI!$G$12="",ADSI!$H$16,ADSI!$H$12) -> 6 | B513: =IF(ADSI!$G$12="",ADSI!$H$16,ADSI!$H$14) ->  | C513: 162 | D513: =ADSI!$K$12 -> 2022 | E513: 14 | F513: =F20 -> 0 | G513: 0 | H513: 0 | I513: 0 | J513: 3 | K513: 4 | L513: 0 | M513: 7
A514: =IF(ADSI!$G$12="",ADSI!$H$16,ADSI!$H$12) -> 6 | B514: =IF(ADSI!$G$12="",ADSI!$H$16,ADSI!$H$14) ->  | C514: 180 | D514: =ADSI!$K$12 -> 2022 | E514: 55 | F514: =F21 -> 0 | G514: 0 | H514: 0 | I514: 0 | J514: 5 | K514: 13 | L514: 0 | M514: 18

Sheet P-III
A1: =ADSI!$B$1 -> Goa, , ADSI-2022
A2: Errors | C2: =COUNTIF(L9:L52,FALSE)+COUNTIF(U9:U52,FALSE)+COUNTIF(AD9:AD52,FALSE)+COUNTIF(AG9:AG52,FALSE) -> 0 | E2: Abnormal Variations | F2: =COUNTIF(D53:AG55,"ABVAR") -> 1
A3: =IF(ADSI!$L$10=1,LangMaster!A120,LangMaster!B120) -> Proforma-III
A4: =IF(ADSI!$L$10=1,LangMaster!A121,LangMaster!B121) -> Age wise Distribution of Accidental Deaths by Un-Natural Causes
A5: =IF(ADSI!$L$10=1,LangMaster!A26,LangMaster!B26) -> Code | B5: =IF(ADSI!$L$10=1,LangMaster!A27,LangMaster!B27) -> S.No. | C5: =IF(ADSI!$L$10=1,LangMaster!A478,LangMaster!B478) -> Causes | D5: =IF(ADSI!$L$10=1,LangMaster!A29,LangMaster!B29) -> Number of Accidental Deaths | AE5: =IF(ADSI!$L$10=1,LangMaster!A473,LangMaster!B473) -> Grand Total (9) + (16)+(23) | AF5: PROFORMA–II VALUES [Col.–(11) (Total Died)] | AG5: VALIDATION WITH PROFORMA-II [Col.–(11) (Total Died)]
D6: =IF(ADSI!$L$10=1,LangMaster!A30,LangMaster!B30) -> Male | M6: =IF(ADSI!$L$10=1,LangMaster!A31,LangMaster!B31) -> Female | V6: =IF(ADSI!$L$10=1,LangMaster!A32,LangMaster!B32) -> Transgender
D7: =IF(ADSI!$L$10=1,LangMaster!A461,LangMaster!B461) -> below 14 years | E7: =IF(ADSI!$L$10=1,LangMaster!A462,LangMaster!B462) -> 14 and above – below 18 years | F7: =IF(ADSI!$L$10=1,LangMaster!A463,LangMaster!B463) -> 18 and above – below 30 years | G7: =IF(ADSI!$L$10=1,LangMaster!A464,LangMaster!B464) -> 30 and above – below 45 years | H7: =IF(ADSI!$L$10=1,LangMaster!A465,LangMaster!B465) -> 45 and above – below 60 years | I7: =IF(ADSI!$L$10=1,LangMaster!A466,LangMaster!B466) -> 60 years & above | J7: =IF(ADSI!$L$10=1,LangMaster!A470,LangMaster!B470) -> Total [sum of (3) to (8)] | K7: PROFORMA–II VALUES [Col.–(8) (Male Died)] | L7: VALIDATION WITH PROFORMA-II [Col.–(8) (Male Died)] | M7: =IF(ADSI!$L$10=1,LangMaster!A461,LangMaster!B461) -> below 14 years | N7: =IF(ADSI!$L$10=1,LangMaster!A462,LangMaster!B462) -> 14 and above – below 18 years | O7: =IF(ADSI!$L$10=1,LangMaster!A463,LangMaster!B463) -> 18 and above – below 30 years | P7: =IF(ADSI!$L$10=1,LangMaster!A464,LangMaster!B464) -> 30 and above – below 45 years | Q7: =IF(ADSI!$L$10=1,LangMaster!A465,LangMaster!B465) -> 45 and above – below 60 years | R7: =IF(ADSI!$L$10=1,LangMaster!A466,LangMaster!B466) -> 60 years & above | S7: =IF(ADSI!$L$10=1,LangMaster!A471,LangMaster!B471) -> Total [sum of (10) to (15)] | T7: PROFORMA–II VALUES [Col.–(9) (Female Died)] | U7: VALIDATION WITH PROFORMA-II [Col.–(9) (Female Died)] | V7: =IF(ADSI!$L$10=1,LangMaster!A461,LangMaster!B461) -> below 14 years | W7: =IF(ADSI!$L$10=1,LangMaster!A462,LangMaster!B462) -> 14 and above – below 18 years | X7: =IF(ADSI!$L$10=1,LangMaster!A463,LangMaster!B463) -> 18 and above – below 30 years | Y7: =IF(ADSI!$L$10=1,LangMaster!A464,LangMaster!B464) -> 30 and above – below 45 years | Z7: =IF(ADSI!$L$10=1,LangMaster!A465,LangMaster!B465) -> 45 and above – below 60 years | AA7: =IF(ADSI!$L$10=1,LangMaster!A466,LangMaster!B466) -> 60 years & above | AB7: =IF(ADSI!$L$10=1,LangMaster!A472,LangMaster!B472) -> Total [sum of (17) to (22)] | AC7: PROFORMA–II VALUES [Col.–(10) (Transgender Died)] | AD7: VALIDATION WITH PROFORMA-II [Col.–(10) (Transgender Died)]
B8: (1) | C8: (2) | D8: (3) | E8: (4) | F8: (5) | G8: (6) | H8: (7) | I8: (8) | J8: (9) | M8: (10) | N8: (11) | O8: (12) | P8: (13) | Q8: (14) | R8: (15) | S8: (16) | V8: (17) | W8: (18) | X8: (19) | Y8: (20) | Z8: (21) | AA8: (22) | AB8: (23) | AE8: (24)
A9: 200 | B9: 1 | C9: =IF(ADSI!$L$10=1,LangMaster!A59,LangMaster!B59) -> Air Crash | D9: 0 | E9: 0 | F9: 0 | G9: 0 | H9: 0 | I9: 0 | J9: =SUM(D9:I9) -> 0 | K9: ='P-II'!J8 -> 0 | L9: =IF(J9='P-II'!J8,"",FALSE) ->  | M9: 0 | N9: 0 | O9: 0 | P9: 0 | Q9: 0 | R9: 0 | S9: =SUM(M9:R9) -> 0 | T9: ='P-II'!K8 -> 0 | U9: =IF(S9='P-II'!K8,"",FALSE) ->  | V9: 0 | W9: 0 | X9: 0 | Y9: 0 | Z9: 0 | AA9: 0 | AB9: =SUM(V9:AA9) -> 0 | AC9: ='P-II'!L8 -> 0 | AD9: =IF(AB9='P-II'!L8,"",FALSE) ->  | AE9: =SUM(J9+S9+AB9) -> 0 | AF9: ='P-II'!M8 -> 0 | AG9: =IF(AE9='P-II'!M8,"",FALSE) -> 
A10: 201 | B10: 2 | C10: =IF(ADSI!$L$10=1,LangMaster!A60,LangMaster!B60) -> Ship Accidents | D10: 0 | E10: 0 | F10: 0 | G10: 0 | H10: 0 | I10: 0 | J10: 0 | K10: ='P-II'!J9 -> 0 | L10: =IF(J10='P-II'!J9,"",FALSE) ->  | M10: 0 | N10: 0 | O10: 0 | P10: 0 | Q10: 0 | R10: 0 | S10: =SUM(M10:R10) -> 0 | T10: ='P-II'!K9 -> 0 | U10: =IF(S10='P-II'!K9,"",FALSE) ->  | V10: 0 | W10: 0 | X10: 0 | Y10: 0 | Z10: 0 | AA10: 0 | AB10: =SUM(V10:AA10) -> 0 | AC10: ='P-II'!L9 -> 0 | AD10: =IF(AB10='P-II'!L9,"",FALSE) ->  | AE10: =SUM(J10+S10+AB10) -> 0 | AF10: ='P-II'!M9 -> 0 | AG10: =IF(AE10='P-II'!M9,"",FALSE) -> 
A11: 202 | B11: 3 | C11: =IF(ADSI!$L$10=1,LangMaster!A61,LangMaster!B61) -> Collapse of Structure (Total) (sum of 3.1 to 3.5) | D11: =SUM(D12:D16) -> 0 | E11: =SUM(E12:E16) -> 0 | F11: 1 | G11: 3 | H11: =SUM(H12:H16) -> 0 | I11: =SUM(I12:I16) -> 0 | J11: 4 | K11: ='P-II'!J10 -> 4 | L11: =IF(J11='P-II'!J10,"",FALSE) ->  | M11: 0 | N11: =SUM(N12:N16) -> 0 | O11: =SUM(O12:O16) -> 0 | P11: =SUM(P12:P16) -> 0 | Q11: =SUM(Q12:Q16) -> 0 | R11: =SUM(R12:R16) -> 0 | S11: 0 | T11: ='P-II'!K10 -> 0 | U11: =IF(S11='P-II'!K10,"",FALSE) ->  | V11: 0 | W11: 0 | X11: 0 | Y11: 0 | Z11: 0 | AA11: 0 | AB11: 0 | AC11: ='P-II'!L10 -> 0 | AD11: =IF(AB11='P-II'!L10,"",FALSE) ->  | AE11: 4 | AF11: ='P-II'!M10 -> 4 | AG11: =IF(AE11='P-II'!M10,"",FALSE) -> 
A12: 203 | C12: =IF(ADSI!$L$10=1,LangMaster!A62,LangMaster!B62) -> 3.1 Collapse of Dwelling House/Residential building | D12: 0 | E12: 0 | F12: 1 | G12: 2 | H12: 0 | I12: 0 | J12: 3 | K12: ='P-II'!J11 -> 3 | L12: =IF(J12='P-II'!J11,"",FALSE) ->  | M12: 0 | N12: 0 | O12: 0 | P12: 0 | Q12: 0 | R12: 0 | S12: 0 | T12: ='P-II'!K11 -> 0 | U12: =IF(S12='P-II'!K11,"",FALSE) ->  | V12: 0 | W12: 0 | X12: 0 | Y12: 0 | Z12: 0 | AA12: 0 | AB12: 0 | AC12: ='P-II'!L11 -> 0 | AD12: =IF(AB12='P-II'!L11,"",FALSE) ->  | AE12: 3 | AF12: ='P-II'!M11 -> 3 | AG12: =IF(AE12='P-II'!M11,"",FALSE) -> 
A13: 204 | C13: =IF(ADSI!$L$10=1,LangMaster!A63,LangMaster!B63) -> 3.2 Collapse of Official/Commercial Building | D13: 0 | E13: 0 | F13: 0 | G13: 0 | H13: 0 | I13: 0 | J13: 0 | K13: ='P-II'!J12 -> 0 | L13: =IF(J13='P-II'!J12,"",FALSE) ->  | M13: 0 | N13: 0 | O13: 0 | P13: 0 | Q13: 0 | R13: 0 | S13: 0 | T13: ='P-II'!K12 -> 0 | U13: =IF(S13='P-II'!K12,"",FALSE) ->  | V13: 0 | W13: 0 | X13: 0 | Y13: 0 | Z13: 0 | AA13: 0 | AB13: 0 | AC13: ='P-II'!L12 -> 0 | AD13: =IF(AB13='P-II'!L12,"",FALSE) ->  | AE13: 0 | AF13: ='P-II'!M12 -> 0 | AG13: =IF(AE13='P-II'!M12,"",FALSE) -> 
A14: 205 | C14: =IF(ADSI!$L$10=1,LangMaster!A64,LangMaster!B64) -> 3.3 Collapse of Dam | D14: 0 | E14: 0 | F14: 0 | G14: 0 | H14: 0 | I14: 0 | J14: 0 | K14: ='P-II'!J13 -> 0 | L14: =IF(J14='P-II'!J13,"",FALSE) ->  | M14: 0 | N14: 0 | O14: 0 | P14: 0 | Q14: 0 | R14: 0 | S14: 0 | T14: ='P-II'!K13 -> 0 | U14: =IF(S14='P-II'!K13,"",FALSE) ->  | V14: 0 | W14: 0 | X14: 0 | Y14: 0 | Z14: 0 | AA14: 0 | AB14: 0 | AC14: ='P-II'!L13 -> 0 | AD14: =IF(AB14='P-II'!L13,"",FALSE) ->  | AE14: 0 | AF14: ='P-II'!M13 -> 0 | AG14: =IF(AE14='P-II'!M13,"",FALSE) -> 
A15: 206 | C15: =IF(ADSI!$L$10=1,LangMaster!A65,LangMaster!B65) -> 3.4 Collapse of Bridge | D15: 0 | E15: 0 | F15: 0 | G15: 0 | H15: 0 | I15: 0 | J15: 0 | K15: ='P-II'!J14 -> 0 | L15: =IF(J15='P-II'!J14,"",FALSE) ->  | M15: 0 | N15: 0 | O15: 0 | P15: 0 | Q15: 0 | R15: 0 | S15: 0 | T15: ='P-II'!K14 -> 0 | U15: =IF(S15='P-II'!K14,"",FALSE) ->  | V15: 0 | W15: 0 | X15: 0 | Y15: 0 | Z15: 0 | AA15: 0 | AB15: 0 | AC15: ='P-II'!L14 -> 0 | AD15: =IF(AB15='P-II'!L14,"",FALSE) ->  | AE15: 0 | AF15: ='P-II'!M14 -> 0 | AG15: =IF(AE15='P-II'!M14,"",FALSE) -> 
A16: 207 | C16: =IF(ADSI!$L$10=1,LangMaster!A66,LangMaster!B66) -> 3.5 Others | D16: 0 | E16: 0 | F16: 0 | G16: 1 | H16: 0 | I16: 0 | J16: 1 | K16: ='P-II'!J15 -> 1 | L16: =IF(J16='P-II'!J15,"",FALSE) ->  | M16: 0 | N16: 0 | O16: 0 | P16: 0 | Q16: 0 | R16: 0 | S16: 0 | T16: ='P-II'!K15 -> 0 | U16: =IF(S16='P-II'!K15,"",FALSE) ->  | V16: 0 | W16: 0 | X16: 0 | Y16: 0 | Z16: 0 | AA16: 0 | AB16: 0 | AC16: ='P-II'!L15 -> 0 | AD16: =IF(AB16='P-II'!L15,"",FALSE) ->  | AE16: 1 | AF16: ='P-II'!M15 -> 1 | AG16: =IF(AE16='P-II'!M15,"",FALSE) -> 
A17: 208 | B17: 4 | C17: =IF(ADSI!$L$10=1,LangMaster!A67,LangMaster!B67) -> Drowning (Total) (sum of 4.1 to 4.3) | D17: =SUM(D18:D20) -> 7 | E17: =SUM(E18:E20) -> 2 | F17: 30 | G17: 23 | H17: 18 | I17: 12 | J17: 92 | K17: ='P-II'!J16 -> 92 | L17: =IF(J17='P-II'!J16,"",FALSE) ->  | M17: 1 | N17: =SUM(N18:N20) -> 2 | O17: =SUM(O18:O20) -> 3 | P17: =SUM(P18:P20) -> 0 | Q17: =SUM(Q18:Q20) -> 0 | R17: =SUM(R18:R20) -> 2 | S17: 8 | T17: ='P-II'!K16 -> 8 | U17: =IF(S17='P-II'!K16,"",FALSE) ->  | V17: =SUM(V18:V20) -> 0 | W17: =SUM(W18:W20) -> 0 | X17: 0 | Y17: 0 | Z17: 0 | AA17: 0 | AB17: 0 | AC17: ='P-II'!L16 -> 0 | AD17: =IF(AB17='P-II'!L16,"",FALSE) ->  | AE17: 100 | AF17: ='P-II'!M16 -> 100 | AG17: =IF(AE17='P-II'!M16,"",FALSE) -> 
A18: 209 | C18: =IF(ADSI!$L$10=1,LangMaster!A68,LangMaster!B68) -> 4.1 Boat Capsize | D18: 0 | E18: 0 | F18: 0 | G18: 0 | H18: 0 | I18: 0 | J18: 0 | K18: ='P-II'!J17 -> 0 | L18: =IF(J18='P-II'!J17,"",FALSE) ->  | M18: 0 | N18: 0 | O18: 0 | P18: 0 | Q18: 0 | R18: 0 | S18: 0 | T18: ='P-II'!K17 -> 0 | U18: =IF(S18='P-II'!K17,"",FALSE) ->  | V18: 0 | W18: 0 | X18: 0 | Y18: 0 | Z18: 0 | AA18: 0 | AB18: 0 | AC18: ='P-II'!L17 -> 0 | AD18: =IF(AB18='P-II'!L17,"",FALSE) ->  | AE18: 0 | AF18: ='P-II'!M17 -> 0 | AG18: =IF(AE18='P-II'!M17,"",FALSE) -> 
A19: 210 | C19: =IF(ADSI!$L$10=1,LangMaster!A69,LangMaster!B69) -> 4.2 Accidental Falls into Waterbody | D19: 6 | E19: 2 | F19: 23 | G19: 18 | H19: 16 | I19: 11 | J19: 76 | K19: ='P-II'!J18 -> 76 | L19: =IF(J19='P-II'!J18,"",FALSE) ->  | M19: 1 | N19: 1 | O19: 1 | P19: 0 | Q19: 0 | R19: 2 | S19: 5 | T19: ='P-II'!K18 -> 5 | U19: =IF(S19='P-II'!K18,"",FALSE) ->  | V19: 0 | W19: 0 | X19: 0 | Y19: 0 | Z19: 0 | AA19: 0 | AB19: 0 | AC19: ='P-II'!L18 -> 0 | AD19: =IF(AB19='P-II'!L18,"",FALSE) ->  | AE19: 81 | AF19: ='P-II'!M18 -> 81 | AG19: =IF(AE19='P-II'!M18,"",FALSE) -> 
A20: 211 | C20: =IF(ADSI!$L$10=1,LangMaster!A70,LangMaster!B70) -> 4.3 Other Cases | D20: 1 | E20: 0 | F20: 7 | G20: 5 | H20: 2 | I20: 1 | J20: 16 | K20: ='P-II'!J19 -> 16 | L20: =IF(J20='P-II'!J19,"",FALSE) ->  | M20: 0 | N20: 1 | O20: 2 | P20: 0 | Q20: 0 | R20: 0 | S20: 3 | T20: ='P-II'!K19 -> 3 | U20: =IF(S20='P-II'!K19,"",FALSE) ->  | V20: 0 | W20: 0 | X20: 0 | Y20: 0 | Z20: 0 | AA20: 0 | AB20: 0 | AC20: ='P-II'!L19 -> 0 | AD20: =IF(AB20='P-II'!L19,"",FALSE) ->  | AE20: 19 | AF20: ='P-II'!M19 -> 19 | AG20: =IF(AE20='P-II'!M19,"",FALSE) -> 
A21: 212 | B21: 5 | C21: =IF(ADSI!$L$10=1,LangMaster!A71,LangMaster!B71) -> Electrocution | D21: 1 | E21: 2 | F21: 5 | G21: 5 | H21: 1 | I21: 0 | J21: 14 | K21: ='P-II'!J20 -> 14 | L21: =IF(J21='P-II'!J20,"",FALSE) ->  | M21: 0 | N21: 0 | O21: 0 | P21: 0 | Q21: 0 | R21: 1 | S21: 1 | T21: ='P-II'!K20 -> 1 | U21: =IF(S21='P-II'!K20,"",FALSE) ->  | V21: 0 | W21: 0 | X21: 0 | Y21: 0 | Z21: 0 | AA21: 0 | AB21: 0 | AC21: ='P-II'!L20 -> 0 | AD21: =IF(AB21='P-II'!L20,"",FALSE) ->  | AE21: 15 | AF21: ='P-II'!M20 -> 15 | AG21: =IF(AE21='P-II'!M20,"",FALSE) -> 
A22: 213 | B22: 6 | C22: =IF(ADSI!$L$10=1,LangMaster!A72,LangMaster!B72) -> Accidental Explosion (Total) (sum of 6.1 to 6.4) | D22: =SUM(D23:D26) -> 0 | E22: =SUM(E23:E26) -> 0 | F22: 0 | G22: 0 | H22: 0 | I22: 0 | J22: 0 | K22: ='P-II'!J21 -> 0 | L22: =IF(J22='P-II'!J21,"",FALSE) ->  | M22: =SUM(M23:M26) -> 0 | N22: =SUM(N23:N26) -> 0 | O22: =SUM(O23:O26) -> 0 | P22: =SUM(P23:P26) -> 0 | Q22: =SUM(Q23:Q26) -> 0 | R22: =SUM(R23:R26) -> 0 | S22: 0 | T22: ='P-II'!K21 -> 0 | U22: =IF(S22='P-II'!K21,"",FALSE) ->  | V22: =SUM(V23:V26) -> 0 | W22: =SUM(W23:W26) -> 0 | X22: 0 | Y22: 0 | Z22: 0 | AA22: 0 | AB22: 0 | AC22: ='P-II'!L21 -> 0 | AD22: =IF(AB22='P-II'!L21,"",FALSE) ->  | AE22: 0 | AF22: ='P-II'!M21 -> 0 | AG22: =IF(AE22='P-II'!M21,"",FALSE) -> 
A23: 214 | C23: =IF(ADSI!$L$10=1,LangMaster!A73,LangMaster!B73) -> 6.1 Domestic Gas Cylinder | D23: 0 | E23: 0 | F23: 0 | G23: 0 | H23: 0 | I23: 0 | J23: 0 | K23: ='P-II'!J22 -> 0 | L23: =IF(J23='P-II'!J22,"",FALSE) ->  | M23: 0 | N23: 0 | O23: 0 | P23: 0 | Q23: 0 | R23: 0 | S23: 0 | T23: ='P-II'!K22 -> 0 | U23: =IF(S23='P-II'!K22,"",FALSE) ->  | V23: 0 | W23: 0 | X23: 0 | Y23: 0 | Z23: 0 | AA23: 0 | AB23: 0 | AC23: ='P-II'!L22 -> 0 | AD23: =IF(AB23='P-II'!L22,"",FALSE) ->  | AE23: 0 | AF23: ='P-II'!M22 -> 0 | AG23: =IF(AE23='P-II'!M22,"",FALSE) -> 
A24: 215 | C24: =IF(ADSI!$L$10=1,LangMaster!A74,LangMaster!B74) -> 6.2 Industrial Boiler/Gas cylinder explosion | D24: 0 | E24: 0 | F24: 0 | G24: 0 | H24: 0 | I24: 0 | J24: 0 | K24: ='P-II'!J23 -> 0 | L24: =IF(J24='P-II'!J23,"",FALSE) ->  | M24: 0 | N24: 0 | O24: 0 | P24: 0 | Q24: 0 | R24: 0 | S24: 0 | T24: ='P-II'!K23 -> 0 | U24: =IF(S24='P-II'!K23,"",FALSE) ->  | V24: 0 | W24: 0 | X24: 0 | Y24: 0 | Z24: 0 | AA24: 0 | AB24: 0 | AC24: ='P-II'!L23 -> 0 | AD24: =IF(AB24='P-II'!L23,"",FALSE) ->  | AE24: 0 | AF24: ='P-II'!M23 -> 0 | AG24: =IF(AE24='P-II'!M23,"",FALSE) -> 
A25: 216 | C25: =IF(ADSI!$L$10=1,LangMaster!A75,LangMaster!B75) -> 6.3 Ammunition explosion in Armed Forces/Police/CPMF | D25: 0 | E25: 0 | F25: 0 | G25: 0 | H25: 0 | I25: 0 | J25: 0 | K25: ='P-II'!J24 -> 0 | L25: =IF(J25='P-II'!J24,"",FALSE) ->  | M25: 0 | N25: 0 | O25: 0 | P25: 0 | Q25: 0 | R25: 0 | S25: 0 | T25: ='P-II'!K24 -> 0 | U25: =IF(S25='P-II'!K24,"",FALSE) ->  | V25: 0 | W25: 0 | X25: 0 | Y25: 0 | Z25: 0 | AA25: 0 | AB25: 0 | AC25: ='P-II'!L24 -> 0 | AD25: =IF(AB25='P-II'!L24,"",FALSE) ->  | AE25: 0 | AF25: ='P-II'!M24 -> 0 | AG25: =IF(AE25='P-II'!M24,"",FALSE) -> 
A26: 217 | C26: =IF(ADSI!$L$10=1,LangMaster!A76,LangMaster!B76) -> 6.4 Other | D26: 0 | E26: 0 | F26: 0 | G26: 0 | H26: 0 | I26: 0 | J26: 0 | K26: ='P-II'!J25 -> 0 | L26: =IF(J26='P-II'!J25,"",FALSE) ->  | M26: 0 | N26: 0 | O26: 0 | P26: 0 | Q26: 0 | R26: 0 | S26: 0 | T26: ='P-II'!K25 -> 0 | U26: =IF(S26='P-II'!K25,"",FALSE) ->  | V26: 0 | W26: 0 | X26: 0 | Y26: 0 | Z26: 0 | AA26: 0 | AB26: 0 | AC26: ='P-II'!L25 -> 0 | AD26: =IF(AB26='P-II'!L25,"",FALSE) ->  | AE26: =SUM(J26+S26+AB26) -> 0 | AF26: ='P-II'!M25 -> 0 | AG26: =IF(AE26='P-II'!M25,"",FALSE) -> 
A27: 218 | B27: 7 | C27: =IF(ADSI!$L$10=1,LangMaster!A77,LangMaster!B77) -> Falls (Total) (sum of 7.1 to 7.6) | D27: =SUM(D28:D33) -> 1 | E27: =SUM(E28:E33) -> 1 | F27: 13 | G27: 40 | H27: 38 | I27: 32 | J27: 125 | K27: ='P-II'!J26 -> 125 | L27: =IF(J27='P-II'!J26,"",FALSE) ->  | M27: =SUM(M28:M33) -> 1 | N27: =SUM(N28:N33) -> 0 | O27: =SUM(O28:O33) -> 1 | P27: =SUM(P28:P33) -> 2 | Q27: =SUM(Q28:Q33) -> 2 | R27: =SUM(R28:R33) -> 9 | S27: 15 | T27: ='P-II'!K26 -> 15 | U27: =IF(S27='P-II'!K26,"",FALSE) ->  | V27: =SUM(V28:V33) -> 0 | W27: =SUM(W28:W33) -> 0 | X27: 0 | Y27: 0 | Z27: 0 | AA27: 0 | AB27: 0 | AC27: ='P-II'!L26 -> 0 | AD27: =IF(AB27='P-II'!L26,"",FALSE) ->  | AE27: 140 | AF27: ='P-II'!M26 -> 140 | AG27: =IF(AE27='P-II'!M26,"",FALSE) -> 
A28: 219 | C28: =IF(ADSI!$L$10=1,LangMaster!A78,LangMaster!B78) -> 7.1 Fall from Height | D28: 1 | E28: 1 | F28: 11 | G28: 28 | H28: 19 | I28: 14 | J28: 74 | K28: ='P-II'!J27 -> 74 | L28: =IF(J28='P-II'!J27,"",FALSE) ->  | M28: 1 | N28: 0 | O28: 1 | P28: 1 | Q28: 1 | R28: 5 | S28: 9 | T28: ='P-II'!K27 -> 9 | U28: =IF(S28='P-II'!K27,"",FALSE) ->  | V28: 0 | W28: 0 | X28: 0 | Y28: 0 | Z28: 0 | AA28: 0 | AB28: 0 | AC28: ='P-II'!L27 -> 0 | AD28: =IF(AB28='P-II'!L27,"",FALSE) ->  | AE28: 83 | AF28: ='P-II'!M27 -> 83 | AG28: =IF(AE28='P-II'!M27,"",FALSE) -> 
A29: 220 | C29: =IF(ADSI!$L$10=1,LangMaster!A79,LangMaster!B79) -> 7.2 Fall from Vehicles (Automobile like Bus, Trucks, etc.) | D29: 0 | E29: 0 | F29: 0 | G29: 0 | H29: 0 | I29: 0 | J29: 0 | K29: ='P-II'!J28 -> 0 | L29: =IF(J29='P-II'!J28,"",FALSE) ->  | M29: 0 | N29: 0 | O29: 0 | P29: 0 | Q29: 0 | R29: 0 | S29: 0 | T29: ='P-II'!K28 -> 0 | U29: =IF(S29='P-II'!K28,"",FALSE) ->  | V29: 0 | W29: 0 | X29: 0 | Y29: 0 | Z29: 0 | AA29: 0 | AB29: 0 | AC29: ='P-II'!L28 -> 0 | AD29: =IF(AB29='P-II'!L28,"",FALSE) ->  | AE29: 0 | AF29: ='P-II'!M28 -> 0 | AG29: =IF(AE29='P-II'!M28,"",FALSE) -> 
A30: 221 | C30: =IF(ADSI!$L$10=1,LangMaster!A80,LangMaster!B80) -> 7.3 Fall into Manhole / Sewer | D30: 0 | E30: 0 | F30: 1 | G30: 2 | H30: 0 | I30: 0 | J30: 3 | K30: ='P-II'!J29 -> 3 | L30: =IF(J30='P-II'!J29,"",FALSE) ->  | M30: 0 | N30: 0 | O30: 0 | P30: 0 | Q30: 0 | R30: 0 | S30: 0 | T30: ='P-II'!K29 -> 0 | U30: =IF(S30='P-II'!K29,"",FALSE) ->  | V30: 0 | W30: 0 | X30: 0 | Y30: 0 | Z30: 0 | AA30: 0 | AB30: 0 | AC30: ='P-II'!L29 -> 0 | AD30: =IF(AB30='P-II'!L29,"",FALSE) ->  | AE30: 3 | AF30: ='P-II'!M29 -> 3 | AG30: =IF(AE30='P-II'!M29,"",FALSE) -> 
A31: 222 | C31: =IF(ADSI!$L$10=1,LangMaster!A81,LangMaster!B81) -> 7.4 Fall into Pit | D31: 0 | E31: 0 | F31: 0 | G31: 0 | H31: 0 | I31: 0 | J31: 0 | K31: ='P-II'!J30 -> 0 | L31: =IF(J31='P-II'!J30,"",FALSE) ->  | M31: 0 | N31: 0 | O31: 0 | P31: 0 | Q31: 0 | R31: 0 | S31: 0 | T31: ='P-II'!K30 -> 0 | U31: =IF(S31='P-II'!K30,"",FALSE) ->  | V31: 0 | W31: 0 | X31: 0 | Y31: 0 | Z31: 0 | AA31: 0 | AB31: 0 | AC31: ='P-II'!L30 -> 0 | AD31: =IF(AB31='P-II'!L30,"",FALSE) ->  | AE31: =SUM(J31+S31+AB31) -> 0 | AF31: ='P-II'!M30 -> 0 | AG31: =IF(AE31='P-II'!M30,"",FALSE) -> 
A32: 223 | C32: =IF(ADSI!$L$10=1,LangMaster!A82,LangMaster!B82) -> 7.5 Fall into Borewell | D32: 0 | E32: 0 | F32: 0 | G32: 0 | H32: 0 | I32: 0 | J32: 0 | K32: ='P-II'!J31 -> 0 | L32: =IF(J32='P-II'!J31,"",FALSE) ->  | M32: 0 | N32: 0 | O32: 0 | P32: 0 | Q32: 0 | R32: 0 | S32: 0 | T32: ='P-II'!K31 -> 0 | U32: =IF(S32='P-II'!K31,"",FALSE) ->  | V32: 0 | W32: 0 | X32: 0 | Y32: 0 | Z32: 0 | AA32: 0 | AB32: 0 | AC32: ='P-II'!L31 -> 0 | AD32: =IF(AB32='P-II'!L31,"",FALSE) ->  | AE32: =SUM(J32+S32+AB32) -> 0 | AF32: ='P-II'!M31 -> 0 | AG32: =IF(AE32='P-II'!M31,"",FALSE) -> 
A33: 224 | C33: =IF(ADSI!$L$10=1,LangMaster!A83,LangMaster!B83) -> 7.6 Others | D33: 0 | E33: 0 | F33: 1 | G33: 10 | H33: 19 | I33: 18 | J33: 48 | K33: ='P-II'!J32 -> 48 | L33: =IF(J33='P-II'!J32,"",FALSE) ->  | M33: 0 | N33: 0 | O33: 0 | P33: 1 | Q33: 1 | R33: 4 | S33: 6 | T33: ='P-II'!K32 -> 6 | U33: =IF(S33='P-II'!K32,"",FALSE) ->  | V33: 0 | W33: 0 | X33: 0 | Y33: 0 | Z33: 0 | AA33: 0 | AB33: 0 | AC33: ='P-II'!L32 -> 0 | AD33: =IF(AB33='P-II'!L32,"",FALSE) ->  | AE33: 54 | AF33: ='P-II'!M32 -> 54 | AG33: =IF(AE33='P-II'!M32,"",FALSE) -> 
A34: 225 | B34: 8 | C34: =IF(ADSI!$L$10=1,LangMaster!A84,LangMaster!B84) -> Factory/Machine accidents | D34: 0 | E34: 0 | F34: 0 | G34: 0 | H34: 0 | I34: 0 | J34: 0 | K34: ='P-II'!J33 -> 0 | L34: =IF(J34='P-II'!J33,"",FALSE) ->  | M34: 0 | N34: 0 | O34: 0 | P34: 0 | Q34: 0 | R34: 0 | S34: 0 | T34: ='P-II'!K33 -> 0 | U34: =IF(S34='P-II'!K33,"",FALSE) ->  | V34: 0 | W34: 0 | X34: 0 | Y34: 0 | Z34: 0 | AA34: 0 | AB34: 0 | AC34: ='P-II'!L33 -> 0 | AD34: =IF(AB34='P-II'!L33,"",FALSE) ->  | AE34: 0 | AF34: ='P-II'!M33 -> 0 | AG34: =IF(AE34='P-II'!M33,"",FALSE) -> 
A35: 226 | B35: 9 | C35: =IF(ADSI!$L$10=1,LangMaster!A85,LangMaster!B85) -> Accidental Fire (Total) (sum of 9.1 to 9.5) | D35: =SUM(D36:D40) -> 0 | E35: =SUM(E36:E40) -> 0 | F35: 2 | G35: 1 | H35: 1 | I35: =SUM(I36:I40) -> 1 | J35: 5 | K35: ='P-II'!J34 -> 5 | L35: =IF(J35='P-II'!J34,"",FALSE) ->  | M35: =SUM(M36:M40) -> 0 | N35: =SUM(N36:N40) -> 0 | O35: =SUM(O36:O40) -> 4 | P35: =SUM(P36:P40) -> 1 | Q35: =SUM(Q36:Q40) -> 4 | R35: =SUM(R36:R40) -> 4 | S35: 13 | T35: ='P-II'!K34 -> 13 | U35: =IF(S35='P-II'!K34,"",FALSE) ->  | V35: =SUM(V36:V40) -> 0 | W35: 0 | X35: 0 | Y35: 0 | Z35: 0 | AA35: 0 | AB35: 0 | AC35: ='P-II'!L34 -> 0 | AD35: =IF(AB35='P-II'!L34,"",FALSE) ->  | AE35: 18 | AF35: ='P-II'!M34 -> 18 | AG35: =IF(AE35='P-II'!M34,"",FALSE) -> 
A36: 227 | C36: =IF(ADSI!$L$10=1,LangMaster!A86,LangMaster!B86) -> 9.1 Electrical Short circuit | D36: 0 | E36: 0 | F36: 1 | G36: 0 | H36: 0 | I36: 0 | J36: 1 | K36: ='P-II'!J35 -> 1 | L36: =IF(J36='P-II'!J35,"",FALSE) ->  | M36: 0 | N36: 0 | O36: 0 | P36: 0 | Q36: 0 | R36: 0 | S36: 0 | T36: ='P-II'!K35 -> 0 | U36: =IF(S36='P-II'!K35,"",FALSE) ->  | V36: 0 | W36: 0 | X36: 0 | Y36: 0 | Z36: 0 | AA36: 0 | AB36: 0 | AC36: ='P-II'!L35 -> 0 | AD36: =IF(AB36='P-II'!L35,"",FALSE) ->  | AE36: 1 | AF36: ='P-II'!M35 -> 1 | AG36: =IF(AE36='P-II'!M35,"",FALSE) -> 
A37: 228 | C37: =IF(ADSI!$L$10=1,LangMaster!A87,LangMaster!B87) -> 9.2 Riot/Agitation | D37: 0 | E37: 0 | F37: 0 | G37: 0 | H37: 0 | I37: 0 | J37: 0 | K37: ='P-II'!J36 -> 0 | L37: =IF(J37='P-II'!J36,"",FALSE) ->  | M37: 0 | N37: 0 | O37: 0 | P37: 0 | Q37: 0 | R37: 0 | S37: 0 | T37: ='P-II'!K36 -> 0 | U37: =IF(S37='P-II'!K36,"",FALSE) ->  | V37: 0 | W37: 0 | X37: 0 | Y37: 0 | Z37: 0 | AA37: 0 | AB37: 0 | AC37: ='P-II'!L36 -> 0 | AD37: =IF(AB37='P-II'!L36,"",FALSE) ->  | AE37: 0 | AF37: ='P-II'!M36 -> 0 | AG37: =IF(AE37='P-II'!M36,"",FALSE) -> 
A38: 229 | C38: =IF(ADSI!$L$10=1,LangMaster!A88,LangMaster!B88) -> 9.3 Fireworks | D38: 0 | E38: 0 | F38: 0 | G38: 0 | H38: 0 | I38: 0 | J38: 0 | K38: ='P-II'!J37 -> 0 | L38: =IF(J38='P-II'!J37,"",FALSE) ->  | M38: 0 | N38: 0 | O38: 0 | P38: 0 | Q38: 0 | R38: 0 | S38: 0 | T38: ='P-II'!K37 -> 0 | U38: =IF(S38='P-II'!K37,"",FALSE) ->  | V38: 0 | W38: 0 | X38: 0 | Y38: 0 | Z38: 0 | AA38: 0 | AB38: 0 | AC38: ='P-II'!L37 -> 0 | AD38: =IF(AB38='P-II'!L37,"",FALSE) ->  | AE38: 0 | AF38: ='P-II'!M37 -> 0 | AG38: =IF(AE38='P-II'!M37,"",FALSE) -> 
A39: 230 | C39: =IF(ADSI!$L$10=1,LangMaster!A89,LangMaster!B89) -> 9.4 Cooking Gas cylinder/stove burst | D39: 0 | E39: 0 | F39: 0 | G39: 1 | H39: 0 | I39: 0 | J39: 1 | K39: ='P-II'!J38 -> 1 | L39: =IF(J39='P-II'!J38,"",FALSE) ->  | M39: 0 | N39: 0 | O39: 2 | P39: 0 | Q39: 2 | R39: 0 | S39: 4 | T39: ='P-II'!K38 -> 4 | U39: =IF(S39='P-II'!K38,"",FALSE) ->  | V39: 0 | W39: 0 | X39: 0 | Y39: 0 | Z39: 0 | AA39: 0 | AB39: 0 | AC39: ='P-II'!L38 -> 0 | AD39: =IF(AB39='P-II'!L38,"",FALSE) ->  | AE39: 5 | AF39: ='P-II'!M38 -> 5 | AG39: =IF(AE39='P-II'!M38,"",FALSE) -> 
A40: 231 | C40: =IF(ADSI!$L$10=1,LangMaster!A90,LangMaster!B90) -> 9.5 Other Causes | D40: 0 | E40: 0 | F40: 1 | G40: 0 | H40: 1 | I40: 1 | J40: 3 | K40: ='P-II'!J39 -> 3 | L40: =IF(J40='P-II'!J39,"",FALSE) ->  | M40: 0 | N40: 0 | O40: 2 | P40: 1 | Q40: 2 | R40: 4 | S40: 9 | T40: ='P-II'!K39 -> 9 | U40: =IF(S40='P-II'!K39,"",FALSE) ->  | V40: 0 | W40: 0 | X40: 0 | Y40: 0 | Z40: 0 | AA40: 0 | AB40: 0 | AC40: ='P-II'!L39 -> 0 | AD40: =IF(AB40='P-II'!L39,"",FALSE) ->  | AE40: 12 | AF40: ='P-II'!M39 -> 12 | AG40: =IF(AE40='P-II'!M39,"",FALSE) -> 
A41: 232 | B41: 10 | C41: =IF(ADSI!$L$10=1,LangMaster!A91,LangMaster!B91) -> Firearm | D41: 0 | E41: 0 | F41: 0 | G41: 0 | H41: 0 | I41: 0 | J41: 0 | K41: ='P-II'!J40 -> 0 | L41: =IF(J41='P-II'!J40,"",FALSE) ->  | M41: 0 | N41: 0 | O41: 0 | P41: 0 | Q41: 0 | R41: 0 | S41: 0 | T41: ='P-II'!K40 -> 0 | U41: =IF(S41='P-II'!K40,"",FALSE) ->  | V41: 0 | W41: 0 | X41: 0 | Y41: 0 | Z41: 0 | AA41: 0 | AB41: 0 | AC41: ='P-II'!L40 -> 0 | AD41: =IF(AB41='P-II'!L40,"",FALSE) ->  | AE41: 0 | AF41: ='P-II'!M40 -> 0 | AG41: =IF(AE41='P-II'!M40,"",FALSE) -> 
A42: 233 | B42: 11 | C42: =IF(ADSI!$L$10=1,LangMaster!A92,LangMaster!B92) -> Mines or Quarry disaster | D42: 0 | E42: 0 | F42: 0 | G42: 0 | H42: 0 | I42: 0 | J42: 0 | K42: ='P-II'!J41 -> 0 | L42: =IF(J42='P-II'!J41,"",FALSE) ->  | M42: 0 | N42: 0 | O42: 0 | P42: 0 | Q42: 0 | R42: 0 | S42: 0 | T42: ='P-II'!K41 -> 0 | U42: =IF(S42='P-II'!K41,"",FALSE) ->  | V42: 0 | W42: 0 | X42: 0 | Y42: 0 | Z42: 0 | AA42: 0 | AB42: 0 | AC42: ='P-II'!L41 -> 0 | AD42: =IF(AB42='P-II'!L41,"",FALSE) ->  | AE42: 0 | AF42: ='P-II'!M41 -> 0 | AG42: =IF(AE42='P-II'!M41,"",FALSE) -> 
A43: 234 | B43: 12 | C43: =IF(ADSI!$L$10=1,LangMaster!A93,LangMaster!B93) -> Traffic Accidents (Total) (sum of 12.1, 12.2 and 12.3) | D43: =SUM(D44,D47,D48) -> 3 | E43: =SUM(E44,E47,E48) -> 6 | F43: 89 | G43: 94 | H43: 64 | I43: 31 | J43: 287 | K43: ='P-II'!J42 -> 287 | L43: =IF(J43='P-II'!J42,"",FALSE) ->  | M43: =SUM(M44,M47,M48) -> 1 | N43: =SUM(N44,N47,N48) -> 0 | O43: =SUM(O44,O47,O48) -> 6 | P43: =SUM(P44,P47,P48) -> 11 | Q43: =SUM(Q44,Q47,Q48) -> 13 | R43: =SUM(R44,R47,R48) -> 10 | S43: 41 | T43: ='P-II'!K42 -> 41 | U43: =IF(S43='P-II'!K42,"",FALSE) ->  | V43: 0 | W43: 0 | X43: 0 | Y43: 0 | Z43: 0 | AA43: 0 | AB43: 0 | AC43: ='P-II'!L42 -> 0 | AD43: =IF(AB43='P-II'!L42,"",FALSE) ->  | AE43: 328 | AF43: ='P-II'!M42 -> 328 | AG43: =IF(AE43='P-II'!M42,"",FALSE) -> 
A44: 235 | C44: =IF(ADSI!$L$10=1,LangMaster!A94,LangMaster!B94) -> 12.1 Road Accidents | D44: =SUM(D45:D46) -> 3 | E44: =SUM(E45:E46) -> 6 | F44: 79 | G44: 65 | H44: 53 | I44: 27 | J44: 233 | K44: ='P-II'!J43 -> 233 | L44: =IF(J44='P-II'!J43,"",FALSE) ->  | M44: =SUM(M45:M46) -> 1 | N44: =SUM(N45:N46) -> 0 | O44: =SUM(O45:O46) -> 6 | P44: =SUM(P45:P46) -> 11 | Q44: =SUM(Q45:Q46) -> 13 | R44: =SUM(R45:R46) -> 10 | S44: 41 | T44: ='P-II'!K43 -> 41 | U44: =IF(S44='P-II'!K43,"",FALSE) ->  | V44: 0 | W44: 0 | X44: 0 | Y44: 0 | Z44: 0 | AA44: 0 | AB44: 0 | AC44: ='P-II'!L43 -> 0 | AD44: =IF(AB44='P-II'!L43,"",FALSE) ->  | AE44: 274 | AF44: ='P-II'!M43 -> 274 | AG44: =IF(AE44='P-II'!M43,"",FALSE) -> 
A45: 236 | C45: =IF(ADSI!$L$10=1,LangMaster!A95,LangMaster!B95) -> 0 | D45: 0 | E45: 0 | F45: 0 | G45: 0 | H45: 0 | I45: 0 | J45: 0 | K45: ='P-II'!J44 -> 0 | L45: =IF(J45='P-II'!J44,"",FALSE) ->  | M45: 0 | N45: 0 | O45: 0 | P45: 0 | Q45: 0 | R45: 0 | S45: 0 | T45: ='P-II'!K44 -> 0 | U45: =IF(S45='P-II'!K44,"",FALSE) ->  | V45: 0 | W45: 0 | X45: 0 | Y45: 0 | Z45: 0 | AA45: 0 | AB45: 0 | AC45: ='P-II'!L44 -> 0 | AD45: =IF(AB45='P-II'!L44,"",FALSE) ->  | AE45: 0 | AF45: ='P-II'!M44 -> 0 | AG45: =IF(AE45='P-II'!M44,"",FALSE) -> 
A46: 237 | C46: =IF(ADSI!$L$10=1,LangMaster!A96,LangMaster!B96) -> 0 | D46: 3 | E46: 6 | F46: 79 | G46: 65 | H46: 53 | I46: 27 | J46: 233 | K46: ='P-II'!J45 -> 233 | L46: =IF(J46='P-II'!J45,"",FALSE) ->  | M46: 1 | N46: 0 | O46: 6 | P46: 11 | Q46: 13 | R46: 10 | S46: 41 | T46: ='P-II'!K45 -> 41 | U46: =IF(S46='P-II'!K45,"",FALSE) ->  | V46: 0 | W46: 0 | X46: 0 | Y46: 0 | Z46: 0 | AA46: 0 | AB46: 0 | AC46: ='P-II'!L45 -> 0 | AD46: =IF(AB46='P-II'!L45,"",FALSE) ->  | AE46: 274 | AF46: ='P-II'!M45 -> 274 | AG46: =IF(AE46='P-II'!M45,"",FALSE) -> 
A47: 238 | C47: =IF(ADSI!$L$10=1,LangMaster!A97,LangMaster!B97) -> 12.2 Railway Crossing Accidents | D47: 0 | E47: 0 | F47: 0 | G47: 0 | H47: 0 | I47: 0 | J47: 0 | K47: ='P-II'!J46 -> 0 | L47: =IF(J47='P-II'!J46,"",FALSE) ->  | M47: 0 | N47: 0 | O47: 0 | P47: 0 | Q47: 0 | R47: 0 | S47: 0 | T47: ='P-II'!K46 -> 0 | U47: =IF(S47='P-II'!K46,"",FALSE) ->  | V47: 0 | W47: 0 | X47: 0 | Y47: 0 | Z47: 0 | AA47: 0 | AB47: 0 | AC47: ='P-II'!L46 -> 0 | AD47: =IF(AB47='P-II'!L46,"",FALSE) ->  | AE47: =SUM(J47+S47+AB47) -> 0 | AF47: ='P-II'!M46 -> 0 | AG47: =IF(AE47='P-II'!M46,"",FALSE) -> 
A48: 239 | C48: =IF(ADSI!$L$10=1,LangMaster!A98,LangMaster!B98) -> 12.3 Railway Accidents | D48: 0 | E48: 0 | F48: 10 | G48: 29 | H48: 11 | I48: 4 | J48: 54 | K48: ='P-II'!J47 -> 54 | L48: =IF(J48='P-II'!J47,"",FALSE) ->  | M48: 0 | N48: 0 | O48: 0 | P48: 0 | Q48: 0 | R48: 0 | S48: 0 | T48: ='P-II'!K47 -> 0 | U48: =IF(S48='P-II'!K47,"",FALSE) ->  | V48: 0 | W48: 0 | X48: 0 | Y48: 0 | Z48: 0 | AA48: 0 | AB48: 0 | AC48: ='P-II'!L47 -> 0 | AD48: =IF(AB48='P-II'!L47,"",FALSE) ->  | AE48: 54 | AF48: ='P-II'!M47 -> 54 | AG48: =IF(AE48='P-II'!M47,"",FALSE) -> 
A49: 240 | B49: 13 | C49: =IF(ADSI!$L$10=1,LangMaster!A99,LangMaster!B99) -> Stampede | D49: 0 | E49: 0 | F49: 0 | G49: 0 | H49: 0 | I49: 0 | J49: 0 | K49: ='P-II'!J48 -> 0 | L49: =IF(J49='P-II'!J48,"",FALSE) ->  | M49: 0 | N49: 0 | O49: 0 | P49: 0 | Q49: 0 | R49: 0 | S49: 0 | T49: ='P-II'!K48 -> 0 | U49: =IF(S49='P-II'!K48,"",FALSE) ->  | V49: 0 | W49: 0 | X49: 0 | Y49: 0 | Z49: 0 | AA49: 0 | AB49: 0 | AC49: ='P-II'!L48 -> 0 | AD49: =IF(AB49='P-II'!L48,"",FALSE) ->  | AE49: 0 | AF49: ='P-II'!M48 -> 0 | AG49: =IF(AE49='P-II'!M48,"",FALSE) -> 
A50: 241 | B50: 14 | C50: =IF(ADSI!$L$10=1,LangMaster!A100,LangMaster!B100) -> Other Unnatural Causes | D50: 0 | E50: 0 | F50: 0 | G50: 3 | H50: 1 | I50: 1 | J50: 5 | K50: ='P-II'!J49 -> 5 | L50: =IF(J50='P-II'!J49,"",FALSE) ->  | M50: 1 | N50: 0 | O50: 3 | P50: 3 | Q50: 0 | R50: 0 | S50: 7 | T50: ='P-II'!K49 -> 7 | U50: =IF(S50='P-II'!K49,"",FALSE) ->  | V50: 0 | W50: 0 | X50: 0 | Y50: 0 | Z50: 0 | AA50: 0 | AB50: 0 | AC50: ='P-II'!L49 -> 0 | AD50: =IF(AB50='P-II'!L49,"",FALSE) ->  | AE50: 12 | AF50: ='P-II'!M49 -> 12 | AG50: =IF(AE50='P-II'!M49,"",FALSE) -> 
A51: 242 | B51: 15 | C51: =IF(ADSI!$L$10=1,LangMaster!A101,LangMaster!B101) -> Causes not known | D51: 0 | E51: 0 | F51: 2 | G51: 4 | H51: 6 | I51: 3 | J51: 15 | K51: ='P-II'!J50 -> 15 | L51: =IF(J51='P-II'!J50,"",FALSE) ->  | M51: 0 | N51: 0 | O51: 1 | P51: 1 | Q51: 0 | R51: 0 | S51: 2 | T51: ='P-II'!K50 -> 2 | U51: =IF(S51='P-II'!K50,"",FALSE) ->  | V51: 0 | W51: 0 | X51: 0 | Y51: 0 | Z51: 0 | AA51: 0 | AB51: =SUM(V51:AA51) -> 0 | AC51: ='P-II'!L50 -> 0 | AD51: =IF(AB51='P-II'!L50,"",FALSE) ->  | AE51: 17 | AF51: ='P-II'!M50 -> 17 | AG51: =IF(AE51='P-II'!M50,"",FALSE) -> 
A52: 270 | B52: 16 | C52: =IF(ADSI!$L$10=1,LangMaster!A102,LangMaster!B102) -> Total (sum of Sl. 1 to 15) | D52: =SUM(D9,D10,D11,D17,D21:D22,D27,D34:D35,D41:D43,D49:D51) -> 12 | E52: =SUM(E9,E10,E11,E17,E21:E22,E27,E34:E35,E41:E43,E49:E51) -> 11 | F52: 142 | G52: 173 | H52: 129 | I52: 80 | J52: 547 | K52: ='P-II'!J51 -> 547 | L52: =IF(J52='P-II'!J51,"",FALSE) ->  | M52: 4 | N52: =SUM(N9,N10,N11,N17,N21:N22,N27,N34:N35,N41:N43,N49:N51) -> 2 | O52: =SUM(O9,O10,O11,O17,O21:O22,O27,O34:O35,O41:O43,O49:O51) -> 18 | P52: =SUM(P9,P10,P11,P17,P21:P22,P27,P34:P35,P41:P43,P49:P51) -> 18 | Q52: =SUM(Q9,Q10,Q11,Q17,Q21:Q22,Q27,Q34:Q35,Q41:Q43,Q49:Q51) -> 19 | R52: =SUM(R9,R10,R11,R17,R21:R22,R27,R34:R35,R41:R43,R49:R51) -> 26 | S52: =SUM(S9,S10,S11,S17,S21:S22,S27,S34:S35,S41:S43,S49:S51) -> 87 | T52: ='P-II'!K51 -> 87 | U52: =IF(S52='P-II'!K51,"",FALSE) ->  | V52: 0 | W52: 0 | X52: 0 | Y52: 0 | Z52: 0 | AA52: 0 | AB52: 0 | AC52: ='P-II'!L51 -> 0 | AD52: =IF(AB52='P-II'!L51,"",FALSE) ->  | AE52: 634 | AF52: ='P-II'!M51 -> 634 | AG52: =IF(AE52='P-II'!M51,"",FALSE) -> 
A53: SL-12.1.1 ABNORMAL VARIATION IN "ROAD RAGE INCIDENTS" DATA | D53: =IF(D44>0,IF((D45/D44*100)>10,"ABVAR",""),"") ->  | E53: =IF(E44>0,IF((E45/E44*100)>10,"ABVAR",""),"") -> 
A54: SL-14 ABNORMAL VARIATION IN "OTHER UNNATURAL CAUSES" DATA | D54: =IF(D52>0,IF((D50/D52*100)>20,"ABVAR",""),"") ->  | E54: =IF(E52>0,IF((E50/E52*100)>20,"ABVAR",""),"") ->  | M54: ABVAR
A55: SL-15 ABNORMAL VARIATION IN "CAUSES NOT KNOWN" DATA | D55: =IF(D52>0,IF((D51/D52*100)>20,"ABVAR",""),"") ->  | E55: =IF(E52>0,IF((E51/E52*100)>20,"ABVAR",""),"") -> 
BA200: =A1 -> Goa, , ADSI-2022
BA201: =A2 -> Errors | BB201: =C2 -> 0 | BD201: =E2 -> Abnormal Variations | BE201: =F2 -> 1
BA202: =A3 -> Proforma-III
BA203: =A4 -> Age wise Distribution of Accidental Deaths by Un-Natural Causes
BA204: =B5 -> S.No. | BB204: =C5 -> Causes | BC204: =D5 -> Number of Accidental Deaths | CD204: =AE5 -> Grand Total (9) + (16)+(23) | CE204: =AF5 -> PROFORMA–II VALUES [Col.–(11) (Total Died)] | CF204: =AG5 -> VALIDATION WITH PROFORMA-II [Col.–(11) (Total Died)]
BC205: =D6 -> Male | BL205: =M6 -> Female | BU205: =V6 -> Transgender
BC206: below 14 years | BD206: =E7 -> 14 and above – below 18 years | BE206: 18 and above – below 30 years | BF206: 30 and above – below 45 years | BG206: 45 and above – below 60 years | BH206: 60 years & above | BI206: Total [sum of (3) to (8)] | BJ206: PROFORMA–II VALUES [Col.–(8) (Male Died)] | BK206: VALIDATION WITH PROFORMA-II [Col.–(8) (Male Died)] | BL206: below 14 years | BM206: =N7 -> 14 and above – below 18 years | BN206: 18 and above – below 30 years | BO206: 30 and above – below 45 years | BP206: 45 and above – below 60 years | BQ206: 60 years & above | BR206: Total [sum of (10) to (15)] | BS206: PROFORMA–II VALUES [Col.–(9) (Female Died)] | BT206: VALIDATION WITH PROFORMA-II [Col.–(9) (Female Died)] | BU206: below 14 years | BV206: =W7 -> 14 and above – below 18 years | BW206: 18 and above – below 30 years | BX206: 30 and above – below 45 years | BY206: 45 and above – below 60 years | BZ206: 60 years & above | CA206: Total [sum of (17) to (22)] | CB206: PROFORMA–II VALUES [Col.–(10) (Transgender Died)] | CC206: VALIDATION WITH PROFORMA-II [Col.–(10) (Transgender Died)]
BA207: =B8 -> (1) | BB207: =C8 -> (2) | BC207: (3) | BD207: =E8 -> (4) | BE207: =F8 -> (5) | BF207: =G8 -> (6) | BG207: =H8 -> (7) | BH207: =I8 -> (8) | BI207: =J8 -> (9) | BL207: (10) | BM207: =N8 -> (11) | BN207: =O8 -> (12) | BO207: =P8 -> (13) | BP207: =Q8 -> (14) | BQ207: =R8 -> (15) | BR207: =S8 -> (16) | BU207: (17) | BV207: =W8 -> (18) | BW207: =X8 -> (19) | BX207: =Y8 -> (20) | BY207: =Z8 -> (21) | BZ207: =AA8 -> (22) | CA207: =AB8 -> (23) | CD207: =AE8 -> (24)
BA208: 1 | BB208: Air Crash | BC208: 0 | BD208: 0 | BE208: 0 | BF208: 0 | BG208: 0 | BH208: 0 | BI208: 0 | BJ208: =K9 -> 0 | BK208: =L9 ->  | BL208: 0 | BM208: 0 | BN208: 0 | BO208: 0 | BP208: 0 | BQ208: 0 | BR208: 0 | BS208: =T9 -> 0 | BT208: =U9 ->  | BU208: 0 | BV208: 0 | BW208: 0 | BX208: 0 | BY208: 0 | BZ208: 0 | CA208: 0 | CB208: =AC9 -> 0 | CC208: =AD9 ->  | CD208: 0 | CE208: =AF9 -> 0 | CF208: =AG9 -> 
BA209: 2 | BB209: Ship Accidents | BC209: 0 | BD209: 0 | BE209: 0 | BF209: 0 | BG209: 0 | BH209: 0 | BI209: 0 | BJ209: 0 | BL209: 0 | BM209: 0 | BN209: 0 | BO209: 0 | BP209: 0 | BQ209: 0 | BR209: 0 | BS209: 0 | BU209: 0 | BV209: 0 | BW209: 0 | BX209: 0 | BY209: 0 | BZ209: 0 | CA209: 0 | CB209: 0 | CD209: 0 | CE209: 0
BA210: 3 | BB210: Collapse of Structure (Total) (sum of 3.1 to 3.5) | BC210: 0 | BD210: 0 | BE210: 1 | BF210: 3 | BG210: 0 | BH210: 0 | BI210: 4 | BJ210: 4 | BL210: 0 | BM210: 0 | BN210: 0 | BO210: 0 | BP210: 0 | BQ210: 0 | BR210: 0 | BS210: 0 | BU210: 0 | BV210: 0 | BW210: 0 | BX210: 0 | BY210: 0 | BZ210: 0 | CA210: 0 | CB210: 0 | CD210: 4 | CE210: 4
BB211: 3.1 Collapse of Dwelling House/Residential building | BC211: 0 | BD211: 0 | BE211: 1 | BF211: 2 | BG211: 0 | BH211: 0 | BI211: 3 | BJ211: 3 | BL211: 0 | BM211: 0 | BN211: 0 | BO211: 0 | BP211: 0 | BQ211: 0 | BR211: 0 | BS211: 0 | BU211: 0 | BV211: 0 | BW211: 0 | BX211: 0 | BY211: 0 | BZ211: 0 | CA211: 0 | CB211: 0 | CD211: 3 | CE211: 3
BB212: 3.2 Collapse of Official/Commercial Building | BC212: 0 | BD212: 0 | BE212: 0 | BF212: 0 | BG212: 0 | BH212: 0 | BI212: 0 | BJ212: 0 | BL212: 0 | BM212: 0 | BN212: 0 | BO212: 0 | BP212: 0 | BQ212: 0 | BR212: 0 | BS212: 0 | BU212: 0 | BV212: 0 | BW212: 0 | BX212: 0 | BY212: 0 | BZ212: 0 | CA212: 0 | CB212: 0 | CD212: 0 | CE212: 0
BB213: 3.3 Collapse of Dam | BC213: 0 | BD213: 0 | BE213: 0 | BF213: 0 | BG213: 0 | BH213: 0 | BI213: 0 | BJ213: 0 | BL213: 0 | BM213: 0 | BN213: 0 | BO213: 0 | BP213: 0 | BQ213: 0 | BR213: 0 | BS213: 0 | BU213: 0 | BV213: 0 | BW213: 0 | BX213: 0 | BY213: 0 | BZ213: 0 | CA213: 0 | CB213: 0 | CD213: 0 | CE213: 0
BB214: 3.4 Collapse of Bridge | BC214: 0 | BD214: 0 | BE214: 0 | BF214: 0 | BG214: 0 | BH214: 0 | BI214: 0 | BJ214: 0 | BL214: 0 | BM214: 0 | BN214: 0 | BO214: 0 | BP214: 0 | BQ214: 0 | BR214: 0 | BS214: 0 | BU214: 0 | BV214: 0 | BW214: 0 | BX214: 0 | BY214: 0 | BZ214: 0 | CA214: 0 | CB214: 0 | CD214: 0 | CE214: 0
BB215: 3.5 Others | BC215: 0 | BD215: 0 | BE215: 0 | BF215: 1 | BG215: 0 | BH215: 0 | BI215: 1 | BJ215: 1 | BL215: 0 | BM215: 0 | BN215: 0 | BO215: 0 | BP215: 0 | BQ215: 0 | BR215: 0 | BS215: 0 | BU215: 0 | BV215: 0 | BW215: 0 | BX215: 0 | BY215: 0 | BZ215: 0 | CA215: 0 | CB215: 0 | CD215: 1 | CE215: 1
BA216: 4 | BB216: Drowning (Total) (sum of 4.1 to 4.3) | BC216: 7 | BD216: 2 | BE216: 30 | BF216: 23 | BG216: 18 | BH216: 12 | BI216: 92 | BJ216: 92 | BL216: 1 | BM216: 2 | BN216: 3 | BO216: 0 | BP216: 0 | BQ216: 2 | BR216: 8 | BS216: 8 | BU216: 0 | BV216: 0 | BW216: 0 | BX216: 0 | BY216: 0 | BZ216: 0 | CA216: 0 | CB216: 0 | CD216: 100 | CE216: 100
BB217: 4.1 Boat Capsize | BC217: 0 | BD217: 0 | BE217: 0 | BF217: 0 | BG217: 0 | BH217: 0 | BI217: 0 | BJ217: 0 | BL217: 0 | BM217: 0 | BN217: 0 | BO217: 0 | BP217: 0 | BQ217: 0 | BR217: 0 | BS217: 0 | BU217: 0 | BV217: 0 | BW217: 0 | BX217: 0 | BY217: 0 | BZ217: 0 | CA217: 0 | CB217: 0 | CD217: 0 | CE217: 0
BB218: 4.2 Accidental Falls into Waterbody | BC218: 6 | BD218: 2 | BE218: 23 | BF218: 18 | BG218: 16 | BH218: 11 | BI218: 76 | BJ218: 76 | BL218: 1 | BM218: 1 | BN218: 1 | BO218: 0 | BP218: 0 | BQ218: 2 | BR218: 5 | BS218: 5 | BU218: 0 | BV218: 0 | BW218: 0 | BX218: 0 | BY218: 0 | BZ218: 0 | CA218: 0 | CB218: 0 | CD218: 81 | CE218: 81
BB219: 4.3 Other Cases | BC219: 1 | BD219: 0 | BE219: 7 | BF219: 5 | BG219: 2 | BH219: 1 | BI219: 16 | BJ219: 16 | BL219: 0 | BM219: 1 | BN219: 2 | BO219: 0 | BP219: 0 | BQ219: 0 | BR219: 3 | BS219: 3 | BU219: 0 | BV219: 0 | BW219: 0 | BX219: 0 | BY219: 0 | BZ219: 0 | CA219: 0 | CB219: 0 | CD219: 19 | CE219: 19
BA220: 5 | BB220: Electrocution | BC220: 1 | BD220: 2 | BE220: 5 | BF220: 5 | BG220: 1 | BH220: 0 | BI220: 14 | BJ220: 14 | BL220: 0 | BM220: 0 | BN220: 0 | BO220: 0 | BP220: 0 | BQ220: 1 | BR220: 1 | BS220: 1 | BU220: 0 | BV220: 0 | BW220: 0 | BX220: 0 | BY220: 0 | BZ220: 0 | CA220: 0 | CB220: 0 | CD220: 15 | CE220: 15
BA221: 6 | BB221: Accidental Explosion (Total) (sum of 6.1 to 6.4) | BC221: 0 | BD221: 0 | BE221: 0 | BF221: 0 | BG221: 0 | BH221: 0 | BI221: 0 | BJ221: 0 | BL221: 0 | BM221: 0 | BN221: 0 | BO221: 0 | BP221: 0 | BQ221: 0 | BR221: 0 | BS221: 0 | BU221: 0 | BV221: 0 | BW221: 0 | BX221: 0 | BY221: 0 | BZ221: 0 | CA221: 0 | CB221: 0 | CD221: 0 | CE221: 0
BB222: 6.1 Domestic Gas Cylinder | BC222: 0 | BD222: 0 | BE222: 0 | BF222: 0 | BG222: 0 | BH222: 0 | BI222: 0 | BJ222: 0 | BL222: 0 | BM222: 0 | BN222: 0 | BO222: 0 | BP222: 0 | BQ222: 0 | BR222: 0 | BS222: 0 | BU222: 0 | BV222: 0 | BW222: 0 | BX222: 0 | BY222: 0 | BZ222: 0 | CA222: 0 | CB222: 0 | CD222: 0 | CE222: 0
BB223: 6.2 Industrial Boiler/Gas cylinder explosion | BC223: 0 | BD223: 0 | BE223: 0 | BF223: 0 | BG223: 0 | BH223: 0 | BI223: 0 | BJ223: 0 | BL223: 0 | BM223: 0 | BN223: 0 | BO223: 0 | BP223: 0 | BQ223: 0 | BR223: 0 | BS223: 0 | BU223: 0 | BV223: 0 | BW223: 0 | BX223: 0 | BY223: 0 | BZ223: 0 | CA223: 0 | CB223: 0 | CD223: 0 | CE223: 0
BB224: 6.3 Ammunition explosion in Armed Forces/Police/CPMF | BC224: 0 | BD224: 0 | BE224: 0 | BF224: 0 | BG224: 0 | BH224: 0 | BI224: 0 | BJ224: 0 | BL224: 0 | BM224: 0 | BN224: 0 | BO224: 0 | BP224: 0 | BQ224: 0 | BR224: 0 | BS224: 0 | BU224: 0 | BV224: 0 | BW224: 0 | BX224: 0 | BY224: 0 | BZ224: 0 | CA224: 0 | CB224: 0 | CD224: 0 | CE224: 0
BB225: 6.4 Other | BC225: 0 | BD225: 0 | BE225: 0 | BF225: 0 | BG225: 0 | BH225: 0 | BI225: 0 | BJ225: 0 | BL225: 0 | BM225: 0 | BN225: 0 | BO225: 0 | BP225: 0 | BQ225: 0 | BR225: 0 | BS225: 0 | BU225: 0 | BV225: 0 | BW225: 0 | BX225: 0 | BY225: 0 | BZ225: 0 | CA225: 0 | CB225: 0 | CD225: 0 | CE225: 0
BA226: 7 | BB226: Falls (Total) (sum of 7.1 to 7.6) | BC226: 1 | BD226: 1 | BE226: 13 | BF226: 40 | BG226: 38 | BH226: 32 | BI226: 125 | BJ226: 125 | BL226: 1 | BM226: 0 | BN226: 1 | BO226: 2 | BP226: 2 | BQ226: 9 | BR226: 15 | BS226: 15 | BU226: 0 | BV226: 0 | BW226: 0 | BX226: 0 | BY226: 0 | BZ226: 0 | CA226: 0 | CB226: 0 | CD226: 140 | CE226: 140
BB227: 7.1 Fall from Height | BC227: 1 | BD227: 1 | BE227: 11 | BF227: 28 | BG227: 19 | BH227: 14 | BI227: 74 | BJ227: 74 | BL227: 1 | BM227: 0 | BN227: 1 | BO227: 1 | BP227: 1 | BQ227: 5 | BR227: 9 | BS227: 9 | BU227: 0 | BV227: 0 | BW227: 0 | BX227: 0 | BY227: 0 | BZ227: 0 | CA227: 0 | CB227: 0 | CD227: 83 | CE227: 83
BB228: 7.2 Fall from Vehicles (Automobile like Bus, Trucks, etc.) | BC228: 0 | BD228: 0 | BE228: 0 | BF228: 0 | BG228: 0 | BH228: 0 | BI228: 0 | BJ228: 0 | BL228: 0 | BM228: 0 | BN228: 0 | BO228: 0 | BP228: 0 | BQ228: 0 | BR228: 0 | BS228: 0 | BU228: 0 | BV228: 0 | BW228: 0 | BX228: 0 | BY228: 0 | BZ228: 0 | CA228: 0 | CB228: 0 | CD228: 0 | CE228: 0
BB229: 7.3 Fall into Manhole / Sewer | BC229: 0 | BD229: 0 | BE229: 1 | BF229: 2 | BG229: 0 | BH229: 0 | BI229: 3 | BJ229: 3 | BL229: 0 | BM229: 0 | BN229: 0 | BO229: 0 | BP229: 0 | BQ229: 0 | BR229: 0 | BS229: 0 | BU229: 0 | BV229: 0 | BW229: 0 | BX229: 0 | BY229: 0 | BZ229: 0 | CA229: 0 | CB229: 0 | CD229: 3 | CE229: 3
BB230: =C31 -> 7.4 Fall into Pit | BC230: 0 | BD230: 0 | BE230: 0 | BF230: 0 | BG230: 0 | BH230: 0 | BI230: 0 | BJ230: 0 | BL230: 0 | BM230: 0 | BN230: 0 | BO230: 0 | BP230: 0 | BQ230: 0 | BR230: 0 | BS230: 0 | BU230: 0 | BV230: 0 | BW230: 0 | BX230: 0 | BY230: 0 | BZ230: 0 | CA230: 0 | CB230: 0 | CD230: 0 | CE230: 0
BB231: =C32 -> 7.5 Fall into Borewell | BC231: 0 | BD231: 0 | BE231: 0 | BF231: 0 | BG231: 0 | BH231: 0 | BI231: 0 | BJ231: 0 | BL231: =M32 -> 0 | BM231: 0 | BN231: 0 | BO231: 0 | BP231: 0 | BQ231: 0 | BR231: 0 | BS231: 0 | BU231: =V32 -> 0 | BV231: 0 | BW231: 0 | BX231: 0 | BY231: 0 | BZ231: 0 | CA231: 0 | CB231: 0 | CD231: =AE32 -> 0 | CE231: =AF32 -> 0
BB232: =C33 -> 7.6 Others | BC232: =D33 -> 0 | BD232: =E33 -> 0 | BE232: =F33 -> 1 | BF232: =G33 -> 10 | BG232: =H33 -> 19 | BH232: =I33 -> 18 | BI232: =J33 -> 48 | BJ232: =K33 -> 48 | BK232: =L33 ->  | BL232: =M33 -> 0 | BM232: =N33 -> 0 | BN232: =O33 -> 0 | BO232: =P33 -> 1 | BP232: =Q33 -> 1 | BQ232: =R33 -> 4 | BR232: =S33 -> 6 | BS232: =T33 -> 6 | BT232: =U33 ->  | BU232: =V33 -> 0 | BV232: =W33 -> 0 | BW232: =X33 -> 0 | BX232: =Y33 -> 0 | BY232: =Z33 -> 0 | BZ232: =AA33 -> 0 | CA232: =AB33 -> 0 | CB232: =AC33 -> 0 | CC232: =AD33 ->  | CD232: =AE33 -> 54 | CE232: =AF33 -> 54 | CF232: =AG33 -> 
BA233: 8 | BB233: Factory/Machine accidents | BC233: 0 | BD233: 0 | BE233: 0 | BF233: 0 | BG233: 0 | BH233: 0 | BI233: 0 | BJ233: 0 | BL233: 0 | BM233: 0 | BN233: 0 | BO233: 0 | BP233: 0 | BQ233: 0 | BR233: 0 | BS233: 0 | BU233: 0 | BV233: 0 | BW233: 0 | BX233: 0 | BY233: 0 | BZ233: 0 | CA233: 0 | CB233: 0 | CD233: 0 | CE233: 0
BA234: 9 | BB234: Accidental Fire (Total) (sum of 9.1 to 9.5) | BC234: 0 | BD234: 0 | BE234: 2 | BF234: 1 | BG234: 1 | BH234: 1 | BI234: 5 | BJ234: 5 | BL234: 0 | BM234: 0 | BN234: 4 | BO234: 1 | BP234: 4 | BQ234: 4 | BR234: 13 | BS234: 13 | BU234: 0 | BV234: 0 | BW234: 0 | BX234: 0 | BY234: 0 | BZ234: 0 | CA234: 0 | CB234: 0 | CD234: 18 | CE234: 18
BB235: 9.1 Electrical Short circuit | BC235: 0 | BD235: 0 | BE235: 1 | BF235: 0 | BG235: 0 | BH235: 0 | BI235: 1 | BJ235: 1 | BL235: 0 | BM235: 0 | BN235: 0 | BO235: 0 | BP235: 0 | BQ235: 0 | BR235: 0 | BS235: 0 | BU235: 0 | BV235: 0 | BW235: 0 | BX235: 0 | BY235: 0 | BZ235: 0 | CA235: 0 | CB235: 0 | CD235: 1 | CE235: 1
BB236: 9.2 Riot/Agitation | BC236: 0 | BD236: 0 | BE236: 0 | BF236: 0 | BG236: 0 | BH236: 0 | BI236: 0 | BJ236: 0 | BL236: 0 | BM236: 0 | BN236: 0 | BO236: 0 | BP236: 0 | BQ236: 0 | BR236: 0 | BS236: 0 | BU236: 0 | BV236: 0 | BW236: 0 | BX236: 0 | BY236: 0 | BZ236: 0 | CA236: 0 | CB236: 0 | CD236: 0 | CE236: 0
BB237: 9.3 Fireworks | BC237: 0 | BD237: 0 | BE237: 0 | BF237: 0 | BG237: 0 | BH237: 0 | BI237: 0 | BJ237: 0 | BL237: 0 | BM237: 0 | BN237: 0 | BO237: 0 | BP237: 0 | BQ237: 0 | BR237: 0 | BS237: 0 | BU237: 0 | BV237: 0 | BW237: 0 | BX237: 0 | BY237: 0 | BZ237: 0 | CA237: 0 | CB237: 0 | CD237: 0 | CE237: 0
BB238: 9.4 Cooking Gas cylinder/stove burst | BC238: 0 | BD238: 0 | BE238: 0 | BF238: 1 | BG238: 0 | BH238: 0 | BI238: 1 | BJ238: 1 | BL238: 0 | BM238: 0 | BN238: 2 | BO238: 0 | BP238: 2 | BQ238: 0 | BR238: 4 | BS238: 4 | BU238: 0 | BV238: 0 | BW238: 0 | BX238: 0 | BY238: 0 | BZ238: 0 | CA238: 0 | CB238: 0 | CD238: 5 | CE238: 5
BB239: 9.5 Other Causes | BC239: 0 | BD239: 0 | BE239: 1 | BF239: 0 | BG239: 1 | BH239: 1 | BI239: 3 | BJ239: 3 | BL239: 0 | BM239: 0 | BN239: 2 | BO239: 1 | BP239: 2 | BQ239: 4 | BR239: 9 | BS239: 9 | BU239: 0 | BV239: 0 | BW239: 0 | BX239: 0 | BY239: 0 | BZ239: 0 | CA239: 0 | CB239: 0 | CD239: 12 | CE239: 12
BA240: 10 | BB240: Firearm | BC240: 0 | BD240: 0 | BE240: 0 | BF240: 0 | BG240: 0 | BH240: 0 | BI240: 0 | BJ240: 0 | BL240: 0 | BM240: 0 | BN240: 0 | BO240: 0 | BP240: 0 | BQ240: 0 | BR240: 0 | BS240: 0 | BU240: 0 | BV240: 0 | BW240: 0 | BX240: 0 | BY240: 0 | BZ240: 0 | CA240: 0 | CB240: 0 | CD240: 0 | CE240: 0
BA241: 11 | BB241: Mines or Quarry disaster | BC241: 0 | BD241: 0 | BE241: 0 | BF241: 0 | BG241: 0 | BH241: 0 | BI241: 0 | BJ241: 0 | BL241: 0 | BM241: 0 | BN241: 0 | BO241: 0 | BP241: 0 | BQ241: 0 | BR241: 0 | BS241: 0 | BU241: 0 | BV241: 0 | BW241: 0 | BX241: 0 | BY241: 0 | BZ241: 0 | CA241: 0 | CB241: 0 | CD241: 0 | CE241: 0
BA242: 12 | BB242: Traffic Accidents (Total) (sum of 12.1, 12.2 and 12.3) | BC242: 3 | BD242: 6 | BE242: 89 | BF242: 94 | BG242: 64 | BH242: 31 | BI242: 287 | BJ242: 287 | BL242: 1 | BM242: 0 | BN242: 6 | BO242: 11 | BP242: 13 | BQ242: 10 | BR242: 41 | BS242: 41 | BU242: 0 | BV242: 0 | BW242: 0 | BX242: 0 | BY242: 0 | BZ242: 0 | CA242: 0 | CB242: 0 | CD242: 328 | CE242: 328
BB243: 12.1 Road Accidents | BC243: 3 | BD243: 6 | BE243: 79 | BF243: 65 | BG243: 53 | BH243: 27 | BI243: 233 | BJ243: 233 | BL243: 1 | BM243: 0 | BN243: 6 | BO243: 11 | BP243: 13 | BQ243: 10 | BR243: 41 | BS243: 41 | BU243: 0 | BV243: 0 | BW243: 0 | BX243: 0 | BY243: 0 | BZ243: 0 | CA243: 0 | CB243: 0 | CD243: 274 | CE243: 274
BB244: 0 | BC244: 0 | BD244: 0 | BE244: 0 | BF244: 0 | BG244: 0 | BH244: 0 | BI244: 0 | BJ244: 0 | BL244: 0 | BM244: 0 | BN244: 0 | BO244: 0 | BP244: 0 | BQ244: 0 | BR244: 0 | BS244: 0 | BU244: 0 | BV244: 0 | BW244: 0 | BX244: 0 | BY244: 0 | BZ244: 0 | CA244: 0 | CB244: 0 | CD244: 0 | CE244: 0
BB245: 0 | BC245: 3 | BD245: 6 | BE245: 79 | BF245: 65 | BG245: 53 | BH245: 27 | BI245: 233 | BJ245: 233 | BL245: 1 | BM245: 0 | BN245: 6 | BO245: 11 | BP245: 13 | BQ245: 10 | BR245: 41 | BS245: 41 | BU245: 0 | BV245: 0 | BW245: 0 | BX245: 0 | BY245: 0 | BZ245: 0 | CA245: 0 | CB245: 0 | CD245: 274 | CE245: 274
BB246: 12.2 Railway Crossing Accidents | BC246: 0 | BD246: 0 | BE246: 0 | BF246: 0 | BG246: 0 | BH246: 0 | BI246: 0 | BJ246: 0 | BL246: 0 | BM246: 0 | BN246: 0 | BO246: 0 | BP246: 0 | BQ246: 0 | BR246: 0 | BS246: 0 | BU246: 0 | BV246: 0 | BW246: 0 | BX246: 0 | BY246: 0 | BZ246: 0 | CA246: 0 | CB246: 0 | CD246: 0 | CE246: 0
BB247: 12.3 Railway Accidents | BC247: 0 | BD247: 0 | BE247: 10 | BF247: 29 | BG247: 11 | BH247: 4 | BI247: 54 | BJ247: 54 | BL247: 0 | BM247: 0 | BN247: 0 | BO247: 0 | BP247: 0 | BQ247: 0 | BR247: 0 | BS247: 0 | BU247: 0 | BV247: 0 | BW247: 0 | BX247: 0 | BY247: 0 | BZ247: 0 | CA247: 0 | CB247: 0 | CD247: 54 | CE247: 54
BA248: 13 | BB248: Stampede | BC248: 0 | BD248: 0 | BE248: 0 | BF248: 0 | BG248: 0 | BH248: 0 | BI248: 0 | BJ248: 0 | BL248: 0 | BM248: 0 | BN248: 0 | BO248: 0 | BP248: 0 | BQ248: 0 | BR248: 0 | BS248: 0 | BU248: 0 | BV248: 0 | BW248: 0 | BX248: 0 | BY248: 0 | BZ248: 0 | CA248: 0 | CB248: 0 | CD248: 0 | CE248: 0
BA249: 14 | BB249: Other Unnatural Causes | BC249: 0 | BD249: 0 | BE249: 0 | BF249: 3 | BG249: 1 | BH249: 1 | BI249: 5 | BJ249: 5 | BL249: 1 | BM249: 0 | BN249: 3 | BO249: 3 | BP249: 0 | BQ249: 0 | BR249: 7 | BS249: 7 | BU249: 0 | BV249: 0 | BW249: 0 | BX249: 0 | BY249: 0 | BZ249: 0 | CA249: 0 | CB249: 0 | CD249: 12 | CE249: 12
BA250: 15 | BB250: Causes not known | BC250: 0 | BD250: 0 | BE250: 2 | BF250: 4 | BG250: 6 | BH250: 3 | BI250: 15 | BJ250: 15 | BL250: 0 | BM250: 0 | BN250: 1 | BO250: 1 | BP250: 0 | BQ250: 0 | BR250: 2 | BS250: 2 | BU250: 0 | BV250: 0 | BW250: 0 | BX250: 0 | BY250: 0 | BZ250: 0 | CA250: 0 | CB250: 0 | CD250: 17 | CE250: 17
BA251: 16 | BB251: Total (sum of Sl. 1 to 15) | BC251: 12 | BD251: 11 | BE251: 142 | BF251: 173 | BG251: 129 | BH251: 80 | BI251: 547 | BJ251: 547 | BL251: 4 | BM251: 2 | BN251: 18 | BO251: 18 | BP251: 19 | BQ251: 26 | BR251: 87 | BS251: 87 | BU251: 0 | BV251: 0 | BW251: 0 | BX251: 0 | BY251: 0 | BZ251: 0 | CA251: 0 | CB251: 0 | CD251: 634 | CE251: 634
BA252: =A53 -> SL-12.1.1 ABNORMAL VARIATION IN "ROAD RAGE INCIDENTS" DATA | BC252: =D53 -> 
BA253: =A54 -> SL-14 ABNORMAL VARIATION IN "OTHER UNNATURAL CAUSES" DATA | BC253: =D54 ->  | BL253: ABVAR | CD253: =AE54 -> 
BA254: SL-15 ABNORMAL VARIATION IN "CAUSES NOT KNOWN" DATA
A500: StateUTCityCode | B500: DistrictCode | C500: CrimeCode | D500: DataYear | E500: Male_below 14 years | F500: Male_14 and above – below 18 years | G500: Male_18 and above – below 30 years | H500: Male_30 and above – below 45 years | I500: Male_45 and above – below 60 years | J500: Male_60 years & above | K500: Male_Total | L500: Female_below 14 years | M500: Female_14 and above – below 18 years | N500: Female_18 and above – below 30 years | O500: Female_30 and above – below 45 years | P500: Female_45 and above – below 60 years | Q500: Female_60 years & above | R500: Female_Total | S500: Trans_below 14 years | T500: Trans_14 and above – below 18 years | U500: Trans_18 and above – below 30 years | V500: Trans_30 and above – below 45 years | W500: Trans_45 and above – below 60 years | X500: Trans_60 years & above | Y500: Trans_Total | Z500: Grand Total
A501: =IF(ADSI!$G$12="",ADSI!$H$16,ADSI!$H$12) -> 6 | B501: =IF(ADSI!$G$12="",ADSI!$H$16,ADSI!$H$14) ->  | C501: =A9 -> 200 | D501: =ADSI!$K$12 -> 2022 | E501: =D9 -> 0 | F501: =E9 -> 0 | G501: 0 | H501: 0 | I501: 0 | J501: 0 | K501: 0 | L501: =M9 -> 0 | M501: =N9 -> 0 | N501: 0 | O501: 0 | P501: 0 | Q501: 0 | R501: 0 | S501: =V9 -> 0 | T501: =W9 -> 0 | U501: 0 | V501: 0 | W501: 0 | X501: 0 | Y501: 0 | Z501: =AE9 -> 0
A502: =IF(ADSI!$G$12="",ADSI!$H$16,ADSI!$H$12) -> 6 | B502: =IF(ADSI!$G$12="",ADSI!$H$16,ADSI!$H$14) ->  | C502: =A10 -> 201 | D502: =ADSI!$K$12 -> 2022 | E502: =D10 -> 0 | F502: 0 | G502: 0 | H502: 0 | I502: 0 | J502: 0 | K502: 0 | L502: =M10 -> 0 | M502: 0 | N502: 0 | O502: 0 | P502: 0 | Q502: 0 | R502: 0 | S502: =V10 -> 0 | T502: =W10 -> 0 | U502: =X10 -> 0 | V502: =Y10 -> 0 | W502: =Z10 -> 0 | X502: =AA10 -> 0 | Y502: =AB10 -> 0 | Z502: =AE10 -> 0
A503: =IF(ADSI!$G$12="",ADSI!$H$16,ADSI!$H$12) -> 6 | B503: =IF(ADSI!$G$12="",ADSI!$H$16,ADSI!$H$14) ->  | C503: 202 | D503: =ADSI!$K$12 -> 2022 | E503: =D11 -> 0 | F503: 0 | G503: 1 | H503: 3 | I503: 0 | J503: 0 | K503: 4 | L503: =M11 -> 0 | M503: 0 | N503: 0 | O503: 0 | P503: 0 | Q503: 0 | R503: 0 | S503: 0 | T503: 0 | U503: 0 | V503: 0 | W503: 0 | X503: 0 | Y503: 0 | Z503: 4
A504: =IF(ADSI!$G$12="",ADSI!$H$16,ADSI!$H$12) -> 6 | B504: =IF(ADSI!$G$12="",ADSI!$H$16,ADSI!$H$14) ->  | C504: 203 | D504: =ADSI!$K$12 -> 2022 | E504: =D12 -> 0 | F504: 0 | G504: 1 | H504: 2 | I504: 0 | J504: 0 | K504: 3 | L504: =M12 -> 0 | M504: 0 | N504: 0 | O504: 0 | P504: 0 | Q504: 0 | R504: 0 | S504: 0 | T504: 0 | U504: 0 | V504: 0 | W504: 0 | X504: 0 | Y504: 0 | Z504: 3
A505: =IF(ADSI!$G$12="",ADSI!$H$16,ADSI!$H$12) -> 6 | B505: =IF(ADSI!$G$12="",ADSI!$H$16,ADSI!$H$14) ->  | C505: 204 | D505: =ADSI!$K$12 -> 2022 | E505: =D13 -> 0 | F505: 0 | G505: 0 | H505: 0 | I505: 0 | J505: 0 | K505: 0 | L505: =M13 -> 0 | M505: 0 | N505: 0 | O505: 0 | P505: 0 | Q505: 0 | R505: 0 | S505: 0 | T505: 0 | U505: 0 | V505: 0 | W505: 0 | X505: 0 | Y505: 0 | Z505: 0
A506: =IF(ADSI!$G$12="",ADSI!$H$16,ADSI!$H$12) -> 6 | B506: =IF(ADSI!$G$12="",ADSI!$H$16,ADSI!$H$14) ->  | C506: 205 | D506: =ADSI!$K$12 -> 2022 | E506: =D14 -> 0 | F506: 0 | G506: 0 | H506: 0 | I506: 0 | J506: 0 | K506: 0 | L506: =M14 -> 0 | M506: 0 | N506: 0 | O506: 0 | P506: 0 | Q506: 0 | R506: 0 | S506: 0 | T506: 0 | U506: 0 | V506: 0 | W506: 0 | X506: 0 | Y506: 0 | Z506: 0
A507: =IF(ADSI!$G$12="",ADSI!$H$16,ADSI!$H$12) -> 6 | B507: =IF(ADSI!$G$12="",ADSI!$H$16,ADSI!$H$14) ->  | C507: 206 | D507: =ADSI!$K$12 -> 2022 | E507: =D15 -> 0 | F507: 0 | G507: 0 | H507: 0 | I507: 0 | J507: 0 | K507: 0 | L507: =M15 -> 0 | M507: 0 | N507: 0 | O507: 0 | P507: 0 | Q507: 0 | R507: 0 | S507: 0 | T507: 0 | U507: 0 | V507: 0 | W507: 0 | X507: 0 | Y507: 0 | Z507: 0
A508: =IF(ADSI!$G$12="",ADSI!$H$16,ADSI!$H$12) -> 6 | B508: =IF(ADSI!$G$12="",ADSI!$H$16,ADSI!$H$14) ->  | C508: 207 | D508: =ADSI!$K$12 -> 2022 | E508: =D16 -> 0 | F508: 0 | G508: 0 | H508: 1 | I508: 0 | J508: 0 | K508: 1 | L508: =M16 -> 0 | M508: 0 | N508: 0 | O508: 0 | P508: 0 | Q508: 0 | R508: 0 | S508: 0 | T508: 0 | U508: 0 | V508: 0 | W508: 0 | X508: 0 | Y508: 0 | Z508: 1
A509: =IF(ADSI!$G$12="",ADSI!$H$16,ADSI!$H$12) -> 6 | B509: =IF(ADSI!$G$12="",ADSI!$H$16,ADSI!$H$14) ->  | C509: 208 | D509: =ADSI!$K$12 -> 2022 | E509: =D17 -> 7 | F509: 2 | G509: 30 | H509: 23 | I509: 18 | J509: 12 | K509: 92 | L509: =M17 -> 1 | M509: 2 | N509: 3 | O509: 0 | P509: 0 | Q509: 2 | R509: 8 | S509: 0 | T509: 0 | U509: 0 | V509: 0 | W509: 0 | X509: 0 | Y509: 0 | Z509: 100
A510: =IF(ADSI!$G$12="",ADSI!$H$16,ADSI!$H$12) -> 6 | B510: =IF(ADSI!$G$12="",ADSI!$H$16,ADSI!$H$14) ->  | C510: 209 | D510: =ADSI!$K$12 -> 2022 | E510: =D18 -> 0 | F510: 0 | G510: 0 | H510: 0 | I510: 0 | J510: 0 | K510: 0 | L510: =M18 -> 0 | M510: 0 | N510: 0 | O510: 0 | P510: 0 | Q510: 0 | R510: 0 | S510: 0 | T510: 0 | U510: 0 | V510: 0 | W510: 0 | X510: 0 | Y510: 0 | Z510: 0
A511: =IF(ADSI!$G$12="",ADSI!$H$16,ADSI!$H$12) -> 6 | B511: =IF(ADSI!$G$12="",ADSI!$H$16,ADSI!$H$14) ->  | C511: 210 | D511: =ADSI!$K$12 -> 2022 | E511: =D19 -> 6 | F511: 2 | G511: 23 | H511: 18 | I511: 16 | J511: 11 | K511: 76 | L511: =M19 -> 1 | M511: 1 | N511: 1 | O511: 0 | P511: 0 | Q511: 2 | R511: 5 | S511: 0 | T511: 0 | U511: 0 | V511: 0 | W511: 0 | X511: 0 | Y511: 0 | Z511: 81
A512: =IF(ADSI!$G$12="",ADSI!$H$16,ADSI!$H$12) -> 6 | B512: =IF(ADSI!$G$12="",ADSI!$H$16,ADSI!$H$14) ->  | C512: 211 | D512: =ADSI!$K$12 -> 2022 | E512: =D20 -> 1 | F512: 0 | G512: 7 | H512: 5 | I512: 2 | J512: 1 | K512: 16 | L512: =M20 -> 0 | M512: 1 | N512: 2 | O512: 0 | P512: 0 | Q512: 0 | R512: 3 | S512: 0 | T512: 0 | U512: 0 | V512: 0 | W512: 0 | X512: 0 | Y512: 0 | Z512: 19
A513: =IF(ADSI!$G$12="",ADSI!$H$16,ADSI!$H$12) -> 6 | B513: =IF(ADSI!$G$12="",ADSI!$H$16,ADSI!$H$14) ->  | C513: 212 | D513: =ADSI!$K$12 -> 2022 | E513: =D21 -> 1 | F513: 2 | G513: 5 | H513: 5 | I513: 1 | J513: 0 | K513: 14 | L513: =M21 -> 0 | M513: 0 | N513: 0 | O513: 0 | P513: 0 | Q513: 1 | R513: 1 | S513: 0 | T513: 0 | U513: 0 | V513: 0 | W513: 0 | X513: 0 | Y513: 0 | Z513: 15
A514: =IF(ADSI!$G$12="",ADSI!$H$16,ADSI!$H$12) -> 6 | B514: =IF(ADSI!$G$12="",ADSI!$H$16,ADSI!$H$14) ->  | C514: 213 | D514: =ADSI!$K$12 -> 2022 | E514: =D22 -> 0 | F514: 0 | G514: 0 | H514: 0 | I514: 0 | J514: 0 | K514: 0 | L514: =M22 -> 0 | M514: 0 | N514: 0 | O514: 0 | P514: 0 | Q514: 0 | R514: 0 | S514: 0 | T514: 0 | U514: 0 | V514: 0 | W514: 0 | X514: 0 | Y514: 0 | Z514: 0
A515: =IF(ADSI!$G$12="",ADSI!$H$16,ADSI!$H$12) -> 6 | B515: =IF(ADSI!$G$12="",ADSI!$H$16,ADSI!$H$14) ->  | C515: 214 | D515: =ADSI!$K$12 -> 2022 | E515: =D23 -> 0 | F515: 0 | G515: 0 | H515: 0 | I515: 0 | J515: 0 | K515: 0 | L515: =M23 -> 0 | M515: 0 | N515: 0 | O515: 0 | P515: 0 | Q515: 0 | R515: 0 | S515: 0 | T515: 0 | U515: 0 | V515: 0 | W515: 0 | X515: 0 | Y515: 0 | Z515: 0
A516: =IF(ADSI!$G$12="",ADSI!$H$16,ADSI!$H$12) -> 6 | B516: =IF(ADSI!$G$12="",ADSI!$H$16,ADSI!$H$14) ->  | C516: 215 | D516: =ADSI!$K$12 -> 2022 | E516: =D24 -> 0 | F516: 0 | G516: 0 | H516: 0 | I516: 0 | J516: 0 | K516: 0 | L516: =M24 -> 0 | M516: 0 | N516: 0 | O516: 0 | P516: 0 | Q516: 0 | R516: 0 | S516: 0 | T516: 0 | U516: 0 | V516: 0 | W516: 0 | X516: 0 | Y516: 0 | Z516: 0
A517: =IF(ADSI!$G$12="",ADSI!$H$16,ADSI!$H$12) -> 6 | B517: =IF(ADSI!$G$12="",ADSI!$H$16,ADSI!$H$14) ->  | C517: 216 | D517: =ADSI!$K$12 -> 2022 | E517: =D25 -> 0 | F517: 0 | G517: 0 | H517: 0 | I517: 0 | J517: 0 | K517: 0 | L517: =M25 -> 0 | M517: 0 | N517: 0 | O517: 0 | P517: 0 | Q517: 0 | R517: 0 | S517: 0 | T517: 0 | U517: 0 | V517: 0 | W517: 0 | X517: 0 | Y517: 0 | Z517: 0
A518: =IF(ADSI!$G$12="",ADSI!$H$16,ADSI!$H$12) -> 6 | B518: =IF(ADSI!$G$12="",ADSI!$H$16,ADSI!$H$14) ->  | C518: 217 | D518: =ADSI!$K$12 -> 2022 | E518: =D26 -> 0 | F518: 0 | G518: 0 | H518: 0 | I518: 0 | J518: 0 | K518: 0 | L518: =M26 -> 0 | M518: 0 | N518: 0 | O518: 0 | P518: 0 | Q518: 0 | R518: 0 | S518: 0 | T518: 0 | U518: 0 | V518: 0 | W518: 0 | X518: 0 | Y518: 0 | Z518: 0
A519: =IF(ADSI!$G$12="",ADSI!$H$16,ADSI!$H$12) -> 6 | B519: =IF(ADSI!$G$12="",ADSI!$H$16,ADSI!$H$14) ->  | C519: 218 | D519: =ADSI!$K$12 -> 2022 | E519: =D27 -> 1 | F519: 1 | G519: 13 | H519: 40 | I519: 38 | J519: 32 | K519: 125 | L519: =M27 -> 1 | M519: 0 | N519: 1 | O519: 2 | P519: 2 | Q519: 9 | R519: 15 | S519: 0 | T519: 0 | U519: 0 | V519: 0 | W519: 0 | X519: 0 | Y519: 0 | Z519: 140
A520: =IF(ADSI!$G$12="",ADSI!$H$16,ADSI!$H$12) -> 6 | B520: =IF(ADSI!$G$12="",ADSI!$H$16,ADSI!$H$14) ->  | C520: 219 | D520: =ADSI!$K$12 -> 2022 | E520: =D28 -> 1 | F520: 1 | G520: 11 | H520: 28 | I520: 19 | J520: 14 | K520: 74 | L520: =M28 -> 1 | M520: 0 | N520: 1 | O520: 1 | P520: 1 | Q520: 5 | R520: 9 | S520: 0 | T520: 0 | U520: 0 | V520: 0 | W520: 0 | X520: 0 | Y520: 0 | Z520: 83
A521: =IF(ADSI!$G$12="",ADSI!$H$16,ADSI!$H$12) -> 6 | B521: =IF(ADSI!$G$12="",ADSI!$H$16,ADSI!$H$14) ->  | C521: 220 | D521: =ADSI!$K$12 -> 2022 | E521: =D29 -> 0 | F521: 0 | G521: 0 | H521: 0 | I521: 0 | J521: 0 | K521: 0 | L521: =M29 -> 0 | M521: 0 | N521: 0 | O521: 0 | P521: 0 | Q521: 0 | R521: 0 | S521: 0 | T521: 0 | U521: 0 | V521: 0 | W521: 0 | X521: 0 | Y521: 0 | Z521: 0
A522: =IF(ADSI!$G$12="",ADSI!$H$16,ADSI!$H$12) -> 6 | B522: =IF(ADSI!$G$12="",ADSI!$H$16,ADSI!$H$14) ->  | C522: 221 | D522: =ADSI!$K$12 -> 2022 | E522: =D30 -> 0 | F522: 0 | G522: 1 | H522: 2 | I522: 0 | J522: 0 | K522: 3 | L522: =M30 -> 0 | M522: 0 | N522: 0 | O522: 0 | P522: 0 | Q522: 0 | R522: 0 | S522: 0 | T522: 0 | U522: 0 | V522: 0 | W522: 0 | X522: 0 | Y522: 0 | Z522: 3
A523: =IF(ADSI!$G$12="",ADSI!$H$16,ADSI!$H$12) -> 6 | B523: =IF(ADSI!$G$12="",ADSI!$H$16,ADSI!$H$14) ->  | C523: =A31 -> 222 | D523: =ADSI!$K$12 -> 2022 | E523: =D31 -> 0 | F523: 0 | G523: 0 | H523: 0 | I523: 0 | J523: 0 | K523: 0 | L523: =M31 -> 0 | M523: 0 | N523: 0 | O523: 0 | P523: 0 | Q523: 0 | R523: 0 | S523: 0 | T523: 0 | U523: 0 | V523: 0 | W523: 0 | X523: 0 | Y523: 0 | Z523: 0
A524: =IF(ADSI!$G$12="",ADSI!$H$16,ADSI!$H$12) -> 6 | B524: =IF(ADSI!$G$12="",ADSI!$H$16,ADSI!$H$14) ->  | C524: 223 | D524: =ADSI!$K$12 -> 2022 | E524: =D32 -> 0 | F524: 0 | G524: 0 | H524: 0 | I524: 0 | J524: 0 | K524: 0 | L524: =M32 -> 0 | M524: 0 | N524: 0 | O524: 0 | P524: 0 | Q524: 0 | R524: 0 | S524: 0 | T524: 0 | U524: 0 | V524: 0 | W524: 0 | X524: 0 | Y524: 0 | Z524: 0
A525: =IF(ADSI!$G$12="",ADSI!$H$16,ADSI!$H$12) -> 6 | B525: =IF(ADSI!$G$12="",ADSI!$H$16,ADSI!$H$14) ->  | C525: 224 | D525: =ADSI!$K$12 -> 2022 | E525: =D33 -> 0 | F525: 0 | G525: 1 | H525: 10 | I525: 19 | J525: 18 | K525: 48 | L525: =M33 -> 0 | M525: 0 | N525: 0 | O525: 1 | P525: 1 | Q525: 4 | R525: 6 | S525: 0 | T525: 0 | U525: 0 | V525: 0 | W525: 0 | X525: 0 | Y525: 0 | Z525: 54
A526: =IF(ADSI!$G$12="",ADSI!$H$16,ADSI!$H$12) -> 6 | B526: =IF(ADSI!$G$12="",ADSI!$H$16,ADSI!$H$14) ->  | C526: =A34 -> 225 | D526: =ADSI!$K$12 -> 2022 | E526: =D34 -> 0 | F526: 0 | G526: 0 | H526: 0 | I526: 0 | J526: 0 | K526: 0 | L526: =M34 -> 0 | M526: 0 | N526: 0 | O526: 0 | P526: 0 | Q526: 0 | R526: 0 | S526: 0 | T526: 0 | U526: 0 | V526: 0 | W526: 0 | X526: 0 | Y526: 0 | Z526: 0
A527: =IF(ADSI!$G$12="",ADSI!$H$16,ADSI!$H$12) -> 6 | B527: =IF(ADSI!$G$12="",ADSI!$H$16,ADSI!$H$14) ->  | C527: 226 | D527: =ADSI!$K$12 -> 2022 | E527: =D35 -> 0 | F527: 0 | G527: 2 | H527: 1 | I527: 1 | J527: 1 | K527: 5 | L527: =M35 -> 0 | M527: 0 | N527: 4 | O527: 1 | P527: 4 | Q527: 4 | R527: 13 | S527: 0 | T527: 0 | U527: 0 | V527: 0 | W527: 0 | X527: 0 | Y527: 0 | Z527: 18
A528: =IF(ADSI!$G$12="",ADSI!$H$16,ADSI!$H$12) -> 6 | B528: =IF(ADSI!$G$12="",ADSI!$H$16,ADSI!$H$14) ->  | C528: =A36 -> 227 | D528: =ADSI!$K$12 -> 2022 | E528: =D36 -> 0 | F528: 0 | G528: 1 | H528: 0 | I528: 0 | J528: 0 | K528: 1 | L528: =M36 -> 0 | M528: 0 | N528: 0 | O528: 0 | P528: 0 | Q528: 0 | R528: 0 | S528: 0 | T528: 0 | U528: 0 | V528: 0 | W528: 0 | X528: 0 | Y528: 0 | Z528: 1
A529: =IF(ADSI!$G$12="",ADSI!$H$16,ADSI!$H$12) -> 6 | B529: =IF(ADSI!$G$12="",ADSI!$H$16,ADSI!$H$14) ->  | C529: 228 | D529: =ADSI!$K$12 -> 2022 | E529: =D37 -> 0 | F529: 0 | G529: 0 | H529: 0 | I529: 0 | J529: 0 | K529: 0 | L529: =M37 -> 0 | M529: 0 | N529: 0 | O529: 0 | P529: 0 | Q529: 0 | R529: 0 | S529: 0 | T529: 0 | U529: 0 | V529: 0 | W529: 0 | X529: 0 | Y529: 0 | Z529: 0
A530: =IF(ADSI!$G$12="",ADSI!$H$16,ADSI!$H$12) -> 6 | B530: =IF(ADSI!$G$12="",ADSI!$H$16,ADSI!$H$14) ->  | C530: 229 | D530: =ADSI!$K$12 -> 2022 | E530: =D38 -> 0 | F530: 0 | G530: 0 | H530: 0 | I530: 0 | J530: 0 | K530: 0 | L530: =M38 -> 0 | M530: 0 | N530: 0 | O530: 0 | P530: 0 | Q530: 0 | R530: 0 | S530: 0 | T530: 0 | U530: 0 | V530: 0 | W530: 0 | X530: 0 | Y530: 0 | Z530: 0
A531: =IF(ADSI!$G$12="",ADSI!$H$16,ADSI!$H$12) -> 6 | B531: =IF(ADSI!$G$12="",ADSI!$H$16,ADSI!$H$14) ->  | C531: =A39 -> 230 | D531: =ADSI!$K$12 -> 2022 | E531: =D39 -> 0 | F531: 0 | G531: 0 | H531: 1 | I531: 0 | J531: 0 | K531: 1 | L531: =M39 -> 0 | M531: 0 | N531: 2 | O531: 0 | P531: 2 | Q531: 0 | R531: 4 | S531: 0 | T531: 0 | U531: 0 | V531: 0 | W531: 0 | X531: 0 | Y531: 0 | Z531: 5
A532: =IF(ADSI!$G$12="",ADSI!$H$16,ADSI!$H$12) -> 6 | B532: =IF(ADSI!$G$12="",ADSI!$H$16,ADSI!$H$14) ->  | C532: 231 | D532: =ADSI!$K$12 -> 2022 | E532: =D40 -> 0 | F532: 0 | G532: 1 | H532: 0 | I532: 1 | J532: 1 | K532: 3 | L532: =M40 -> 0 | M532: 0 | N532: 2 | O532: 1 | P532: 2 | Q532: 4 | R532: 9 | S532: 0 | T532: 0 | U532: 0 | V532: 0 | W532: 0 | X532: 0 | Y532: 0 | Z532: 12
A533: =IF(ADSI!$G$12="",ADSI!$H$16,ADSI!$H$12) -> 6 | B533: =IF(ADSI!$G$12="",ADSI!$H$16,ADSI!$H$14) ->  | C533: 232 | D533: =ADSI!$K$12 -> 2022 | E533: =D41 -> 0 | F533: 0 | G533: 0 | H533: 0 | I533: 0 | J533: 0 | K533: 0 | L533: =M41 -> 0 | M533: 0 | N533: 0 | O533: 0 | P533: 0 | Q533: 0 | R533: 0 | S533: 0 | T533: 0 | U533: 0 | V533: 0 | W533: 0 | X533: 0 | Y533: 0 | Z533: 0
A534: =IF(ADSI!$G$12="",ADSI!$H$16,ADSI!$H$12) -> 6 | B534: =IF(ADSI!$G$12="",ADSI!$H$16,ADSI!$H$14) ->  | C534: =A42 -> 233 | D534: =ADSI!$K$12 -> 2022 | E534: =D42 -> 0 | F534: 0 | G534: 0 | H534: 0 | I534: 0 | J534: 0 | K534: 0 | L534: =M42 -> 0 | M534: 0 | N534: 0 | O534: 0 | P534: 0 | Q534: 0 | R534: 0 | S534: 0 | T534: 0 | U534: 0 | V534: 0 | W534: 0 | X534: 0 | Y534: 0 | Z534: 0
A535: =IF(ADSI!$G$12="",ADSI!$H$16,ADSI!$H$12) -> 6 | B535: =IF(ADSI!$G$12="",ADSI!$H$16,ADSI!$H$14) ->  | C535: 234 | D535: =ADSI!$K$12 -> 2022 | E535: =D43 -> 3 | F535: 6 | G535: 89 | H535: 94 | I535: 64 | J535: 31 | K535: 287 | L535: =M43 -> 1 | M535: 0 | N535: 6 | O535: 11 | P535: 13 | Q535: 10 | R535: 41 | S535: 0 | T535: 0 | U535: 0 | V535: 0 | W535: 0 | X535: 0 | Y535: 0 | Z535: 328
A536: =IF(ADSI!$G$12="",ADSI!$H$16,ADSI!$H$12) -> 6 | B536: =IF(ADSI!$G$12="",ADSI!$H$16,ADSI!$H$14) ->  | C536: 235 | D536: =ADSI!$K$12 -> 2022 | E536: =D44 -> 3 | F536: 6 | G536: 79 | H536: 65 | I536: 53 | J536: 27 | K536: 233 | L536: =M44 -> 1 | M536: 0 | N536: 6 | O536: 11 | P536: 13 | Q536: 10 | R536: 41 | S536: 0 | T536: 0 | U536: 0 | V536: 0 | W536: 0 | X536: 0 | Y536: 0 | Z536: 274
A537: =IF(ADSI!$G$12="",ADSI!$H$16,ADSI!$H$12) -> 6 | B537: =IF(ADSI!$G$12="",ADSI!$H$16,ADSI!$H$14) ->  | C537: 236 | D537: =ADSI!$K$12 -> 2022 | E537: =D45 -> 0 | F537: 0 | G537: 0 | H537: 0 | I537: 0 | J537: 0 | K537: 0 | L537: =M45 -> 0 | M537: 0 | N537: 0 | O537: 0 | P537: 0 | Q537: 0 | R537: 0 | S537: 0 | T537: 0 | U537: 0 | V537: 0 | W537: 0 | X537: 0 | Y537: 0 | Z537: 0
A538: =IF(ADSI!$G$12="",ADSI!$H$16,ADSI!$H$12) -> 6 | B538: =IF(ADSI!$G$12="",ADSI!$H$16,ADSI!$H$14) ->  | C538: 237 | D538: =ADSI!$K$12 -> 2022 | E538: =D46 -> 3 | F538: 6 | G538: 79 | H538: 65 | I538: 53 | J538: 27 | K538: 233 | L538: =M46 -> 1 | M538: 0 | N538: 6 | O538: 11 | P538: 13 | Q538: 10 | R538: 41 | S538: 0 | T538: 0 | U538: 0 | V538: 0 | W538: 0 | X538: 0 | Y538: 0 | Z538: 274
A539: =IF(ADSI!$G$12="",ADSI!$H$16,ADSI!$H$12) -> 6 | B539: =IF(ADSI!$G$12="",ADSI!$H$16,ADSI!$H$14) ->  | C539: 238 | D539: =ADSI!$K$12 -> 2022 | E539: =D47 -> 0 | F539: 0 | G539: 0 | H539: 0 | I539: 0 | J539: 0 | K539: 0 | L539: =M47 -> 0 | M539: 0 | N539: 0 | O539: 0 | P539: 0 | Q539: 0 | R539: 0 | S539: 0 | T539: 0 | U539: 0 | V539: 0 | W539: 0 | X539: 0 | Y539: 0 | Z539: 0
A540: =IF(ADSI!$G$12="",ADSI!$H$16,ADSI!$H$12) -> 6 | B540: =IF(ADSI!$G$12="",ADSI!$H$16,ADSI!$H$14) ->  | C540: 239 | D540: =ADSI!$K$12 -> 2022 | E540: =D48 -> 0 | F540: 0 | G540: 10 | H540: 29 | I540: 11 | J540: 4 | K540: 54 | L540: =M48 -> 0 | M540: 0 | N540: 0 | O540: 0 | P540: 0 | Q540: 0 | R540: 0 | S540: 0 | T540: 0 | U540: 0 | V540: 0 | W540: 0 | X540: 0 | Y540: 0 | Z540: 54
A541: =IF(ADSI!$G$12="",ADSI!$H$16,ADSI!$H$12) -> 6 | B541: =IF(ADSI!$G$12="",ADSI!$H$16,ADSI!$H$14) ->  | C541: 240 | D541: =ADSI!$K$12 -> 2022 | E541: =D49 -> 0 | F541: 0 | G541: 0 | H541: 0 | I541: 0 | J541: 0 | K541: 0 | L541: =M49 -> 0 | M541: 0 | N541: 0 | O541: 0 | P541: 0 | Q541: 0 | R541: 0 | S541: 0 | T541: 0 | U541: 0 | V541: 0 | W541: 0 | X541: 0 | Y541: 0 | Z541: 0
A542: =IF(ADSI!$G$12="",ADSI!$H$16,ADSI!$H$12) -> 6 | B542: =IF(ADSI!$G$12="",ADSI!$H$16,ADSI!$H$14) ->  | C542: 241 | D542: =ADSI!$K$12 -> 2022 | E542: =D50 -> 0 | F542: 0 | G542: 0 | H542: 3 | I542: 1 | J542: 1 | K542: 5 | L542: =M50 -> 1 | M542: 0 | N542: 3 | O542: 3 | P542: 0 | Q542: 0 | R542: 7 | S542: 0 | T542: 0 | U542: 0 | V542: 0 | W542: 0 | X542: 0 | Y542: 0 | Z542: 12
A543: =IF(ADSI!$G$12="",ADSI!$H$16,ADSI!$H$12) -> 6 | B543: =IF(ADSI!$G$12="",ADSI!$H$16,ADSI!$H$14) ->  | C543: 242 | D543: =ADSI!$K$12 -> 2022 | E543: =D51 -> 0 | F543: 0 | G543: 2 | H543: 4 | I543: 6 | J543: 3 | K543: 15 | L543: =M51 -> 0 | M543: 0 | N543: 1 | O543: 1 | P543: 0 | Q543: 0 | R543: 2 | S543: 0 | T543: 0 | U543: 0 | V543: 0 | W543: 0 | X543: 0 | Y543: 0 | Z543: 17
A544: =IF(ADSI!$G$12="",ADSI!$H$16,ADSI!$H$12) -> 6 | B544: =IF(ADSI!$G$12="",ADSI!$H$16,ADSI!$H$14) ->  | C544: 270 | D544: =ADSI!$K$12 -> 2022 | E544: =D52 -> 12 | F544: 11 | G544: 142 | H544: 173 | I544: 129 | J544: 80 | K544: 547 | L544: =M52 -> 4 | M544: 2 | N544: 18 | O544: 18 | P544: 19 | Q544: 26 | R544: 87 | S544: 0 | T544: 0 | U544: 0 | V544: 0 | W544: 0 | X544: 0 | Y544: 0 | Z544: 634

Sheet P-IV
A1: =ADSI!$B$1 -> Goa, , ADSI-2022
A2: Errors | C2: =COUNTIF(E8:E28,FALSE) -> 0
A3: =IF(ADSI!$L$10=1,LangMaster!A122,LangMaster!B122) -> Proforma-IV
A4: =IF(ADSI!$L$10=1,LangMaster!A123,LangMaster!B123) -> Profile of Accidents due to Other than Un-natural Causes
A5: =IF(ADSI!$L$10=1,LangMaster!A26,LangMaster!B26) -> Code | B5: =IF(ADSI!$L$10=1,LangMaster!A27,LangMaster!B27) -> S.No. | C5: =IF(ADSI!$L$10=1,LangMaster!A478,LangMaster!B478) -> Causes | D5: =IF(ADSI!$L$10=1,LangMaster!A479,LangMaster!B479) -> No. of Cases | E5: =IF(ADSI!$L$10=1,LangMaster!A480,LangMaster!B480) -> VALIDATION WITH NUMBER OF CASES | F5: =IF(ADSI!$L$10=1,LangMaster!A481,LangMaster!B481) -> No. of Persons Injured | J5: =IF(ADSI!$L$10=1,LangMaster!A482,LangMaster!B482) -> No. of Persons Died
F6: =IF(ADSI!$L$10=1,LangMaster!A30,LangMaster!B30) -> Male | G6: =IF(ADSI!$L$10=1,LangMaster!A31,LangMaster!B31) -> Female | H6: =IF(ADSI!$L$10=1,LangMaster!A32,LangMaster!B32) -> Transgender | I6: =IF(ADSI!$L$10=1,LangMaster!A483,LangMaster!B483) -> Total[sum of (4) to (6)] | J6: =IF(ADSI!$L$10=1,LangMaster!A30,LangMaster!B30) -> Male | K6: =IF(ADSI!$L$10=1,LangMaster!A31,LangMaster!B31) -> Female | L6: =IF(ADSI!$L$10=1,LangMaster!A32,LangMaster!B32) -> Transgender | M6: =IF(ADSI!$L$10=1,LangMaster!A484,LangMaster!B484) -> Total[sum of (8) to (10)]
B7: (1) | C7: (2) | D7: (3) | F7: (4) | G7: (5) | H7: (6) | I7: (7) | J7: (8) | K7: (9) | L7: (10) | M7: (11)
A8: 300 | B8: 1 | C8: =IF(ADSI!$L$10=1,LangMaster!A124,LangMaster!B124) -> Sudden Deaths (Total) (sum of 1.1 to 1.3) | D8: =SUM(D9:D11) -> 49 | E8: =IF(AND(OR(I8>0,M8>0),D8=0),FALSE,"") ->  | F8: =SUM(F9:F11) -> 0 | G8: 0 | H8: 0 | I8: =SUM(F8:H8) -> 0 | J8: 42 | K8: 9 | L8: 0 | M8: =SUM(J8:L8) -> 51
A9: 301 | C9: =IF(ADSI!$L$10=1,LangMaster!A125,LangMaster!B125) -> 1.1 Industrial Accidents | D9: 1 | E9: =IF(AND(OR(I9>0,M9>0),D9=0),FALSE,"") ->  | F9: 0 | G9: 0 | H9: 0 | I9: =SUM(F9:H9) -> 0 | J9: 3 | K9: 0 | L9: 0 | M9: =SUM(J9:L9) -> 3
A10: 302 | C10: =IF(ADSI!$L$10=1,LangMaster!A126,LangMaster!B126) -> 1.2 Heart Attack | D10: 39 | F10: 0 | G10: 0 | H10: 0 | I10: 0 | J10: 32 | K10: 7 | L10: 0 | M10: 39
A11: 303 | C11: =IF(ADSI!$L$10=1,LangMaster!A127,LangMaster!B127) -> 1.3 Others | D11: 9 | F11: 0 | G11: 0 | H11: 0 | I11: 0 | J11: 7 | K11: 2 | L11: 0 | M11: 9
A12: 304 | B12: 2 | C12: =IF(ADSI!$L$10=1,LangMaster!A128,LangMaster!B128) -> Deaths of Women during Pregnancy (Total) (sum of 2.1 and 2.2) | D12: =SUM(D13:D14) -> 0 | F12: =SUM(F13:F14) -> 0 | G12: 0 | H12: 0 | I12: 0 | J12: 0 | K12: 0 | L12: 0 | M12: 0
A13: 305 | C13: =IF(ADSI!$L$10=1,LangMaster!A129,LangMaster!B129) -> 2.1 Due to Abortions | D13: 0 | F13: 0 | G13: 0 | H13: 0 | I13: 0 | J13: 0 | K13: 0 | L13: 0 | M13: 0
A14: 306 | C14: =IF(ADSI!$L$10=1,LangMaster!A130,LangMaster!B130) -> 2.2 Due to Other accidents during Pregnancy | D14: 0 | F14: 0 | G14: 0 | H14: 0 | I14: 0 | J14: 0 | K14: 0 | L14: 0 | M14: 0
A15: 307 | B15: 3 | C15: =IF(ADSI!$L$10=1,LangMaster!A131,LangMaster!B131) -> Deaths Due to consumption of Illicit/Spurious Liquor | D15: 0 | F15: 0 | G15: 0 | H15: 0 | I15: 0 | J15: 0 | K15: 0 | L15: 0 | M15: 0
A16: 308 | B16: 4 | C16: =IF(ADSI!$L$10=1,LangMaster!A132,LangMaster!B132) -> Killed by animals | D16: 0 | F16: 0 | G16: 0 | H16: 0 | I16: 0 | J16: 0 | K16: 0 | L16: 0 | M16: 0
A17: 309 | B17: 5 | C17: =IF(ADSI!$L$10=1,LangMaster!A133,LangMaster!B133) -> Poisoning (Total) (sum of 5.1 to 5.3 & 5.4 to 5.6) | D17: =SUM(D18:D20,D23:D25) -> 4 | F17: =SUM(F18:F20,F23:F25) -> 0 | G17: 0 | H17: 0 | I17: 0 | J17: 3 | K17: 1 | L17: 0 | M17: 4
A18: 310 | C18: =IF(ADSI!$L$10=1,LangMaster!A134,LangMaster!B134) -> 5.1 Food Poisoning | D18: 0 | F18: 0 | G18: 0 | H18: 0 | I18: 0 | J18: 0 | K18: 0 | L18: 0 | M18: 0
A19: 311 | C19: =IF(ADSI!$L$10=1,LangMaster!A135,LangMaster!B135) -> 5.2 Accidental intake of Insecticides/Pesticides | D19: 3 | F19: 0 | G19: 0 | H19: 0 | I19: 0 | J19: 2 | K19: 1 | L19: 0 | M19: 3
A20: 312 | C20: =IF(ADSI!$L$10=1,LangMaster!A136,LangMaster!B136) -> 5.3 Poisonous Gases (Total) (sum of 5.3.1 & 5.3.2) | D20: =SUM(D21:D22) -> 0 | F20: =SUM(F21:F22) -> 0 | G20: 0 | H20: 0 | I20: 0 | J20: 0 | K20: 0 | L20: 0 | M20: 0
A21: 313 | C21: =IF(ADSI!$L$10=1,LangMaster!A137,LangMaster!B137) -> 5.3.1 Carbon Monoxide (CO) Gas | D21: 0 | F21: 0 | G21: 0 | H21: 0 | I21: 0 | J21: 0 | K21: 0 | L21: 0 | M21: 0
A22: 314 | C22: =IF(ADSI!$L$10=1,LangMaster!A138,LangMaster!B138) -> 5.3.2 Other poisonous Gases | D22: 0 | F22: 0 | G22: 0 | H22: 0 | I22: 0 | J22: 0 | K22: 0 | L22: 0 | M22: 0
A23: 315 | C23: =IF(ADSI!$L$10=1,LangMaster!A139,LangMaster!B139) -> 5.4 Snake bite | D23: 1 | F23: 0 | G23: 0 | H23: 0 | I23: 0 | J23: 1 | K23: 0 | L23: 0 | M23: 1
A24: 316 | C24: =IF(ADSI!$L$10=1,LangMaster!A140,LangMaster!B140) -> 5.5 Animal/Reptiles/Insects bite | D24: 0 | F24: 0 | G24: 0 | H24: 0 | I24: 0 | J24: 0 | K24: 0 | L24: 0 | M24: 0
A25: 317 | C25: =IF(ADSI!$L$10=1,LangMaster!A141,LangMaster!B141) -> 5.6 Other | D25: 0 | F25: 0 | G25: 0 | H25: 0 | I25: 0 | J25: 0 | K25: 0 | L25: 0 | M25: 0
A26: 318 | B26: 6 | C26: =IF(ADSI!$L$10=1,LangMaster!A142,LangMaster!B142) -> Suffocation | D26: 1 | F26: 0 | G26: 0 | H26: 0 | I26: 0 | J26: 1 | K26: 0 | L26: 0 | M26: 1
A27: 319 | B27: 7 | C27: =IF(ADSI!$L$10=1,LangMaster!A143,LangMaster!B143) -> Drug Overdose | D27: 2 | F27: 0 | G27: 0 | H27: 0 | I27: 0 | J27: 1 | K27: 1 | L27: 0 | M27: 2
A28: 335 | B28: 8 | C28: =IF(ADSI!$L$10=1,LangMaster!A144,LangMaster!B144) -> Total (sum of Sl. 1 to 7) | D28: =SUM(D8,D12,D15:D17,D26:D27) -> 56 | F28: =SUM(F8,F12,F15:F17,F26:F27) -> 0 | G28: =SUM(G8,G12,G15:G17,G26:G27) -> 0 | H28: =SUM(H8,H12,H15:H17,H26:H27) -> 0 | I28: 0 | J28: =SUM(J8,J12,J15:J17,J26:J27) -> 47 | K28: =SUM(K8,K12,K15:K17,K26:K27) -> 11 | L28: =SUM(L8,L12,L15:L17,L26:L27) -> 0 | M28: 58
BA200: =A1 -> Goa, , ADSI-2022
BA201: =A2 -> Errors | BB201: =C2 -> 0
BA202: =A3 -> Proforma-IV
BA203: =A4 -> Profile of Accidents due to Other than Un-natural Causes
BA204: =B5 -> S.No. | BB204: =C5 -> Causes | BC204: =D5 -> No. of Cases | BD204: =E5 -> VALIDATION WITH NUMBER OF CASES | BE204: =F5 -> No. of Persons Injured | BI204: =J5 -> No. of Persons Died
BE205: =F6 -> Male | BF205: =G6 -> Female | BG205: =H6 -> Transgender | BH205: =I6 -> Total[sum of (4) to (6)] | BI205: Male | BJ205: =K6 -> Female | BK205: =L6 -> Transgender | BL205: =M6 -> Total[sum of (8) to (10)]
BA206: =B7 -> (1) | BB206: (2) | BC206: (3) | BE206: (4) | BF206: (5) | BG206: (6) | BH206: (7) | BI206: (8) | BJ206: (9) | BK206: (10) | BL206: (11)
BA207: 1 | BB207: Sudden Deaths (Total) (sum of 1.1 to 1.3) | BC207: 49 | BD207: =E8 ->  | BE207: 0 | BF207: 0 | BG207: 0 | BH207: 0 | BI207: 42 | BJ207: 9 | BK207: 0 | BL207: 51
BB208: =C9 -> 1.1 Industrial Accidents | BC208: =D9 -> 1 | BE208: 0 | BF208: 0 | BG208: 0 | BH208: 0 | BI208: 3 | BJ208: 0 | BK208: 0 | BL208: 3
BB209: 1.2 Heart Attack | BC209: 39 | BE209: 0 | BF209: 0 | BG209: 0 | BH209: 0 | BI209: 32 | BJ209: 7 | BK209: 0 | BL209: 39
BB210: 1.3 Others | BC210: 9 | BE210: 0 | BF210: 0 | BG210: 0 | BH210: 0 | BI210: 7 | BJ210: 2 | BK210: 0 | BL210: 9
BA211: =B12 -> 2 | BB211: Deaths of Women during Pregnancy (Total) (sum of 2.1 and 2.2) | BC211: 0 | BE211: 0 | BF211: 0 | BG211: 0 | BH211: 0 | BI211: 0 | BJ211: 0 | BK211: 0 | BL211: 0
BB212: 2.1 Due to Abortions | BC212: 0 | BE212: 0 | BF212: 0 | BG212: 0 | BH212: 0 | BI212: 0 | BJ212: 0 | BK212: 0 | BL212: 0
BB213: 2.2 Due to Other accidents during Pregnancy | BC213: 0 | BE213: 0 | BF213: 0 | BG213: 0 | BH213: 0 | BI213: 0 | BJ213: 0 | BK213: 0 | BL213: 0
BA214: =B15 -> 3 | BB214: Deaths Due to consumption of Illicit/Spurious Liquor | BC214: 0 | BE214: 0 | BF214: 0 | BG214: 0 | BH214: 0 | BI214: 0 | BJ214: 0 | BK214: 0 | BL214: 0
BA215: =B16 -> 4 | BB215: Killed by animals | BC215: 0 | BE215: 0 | BF215: 0 | BG215: 0 | BH215: 0 | BI215: 0 | BJ215: 0 | BK215: 0 | BL215: 0
BA216: =B17 -> 5 | BB216: Poisoning (Total) (sum of 5.1 to 5.3 & 5.4 to 5.6) | BC216: 4 | BE216: 0 | BF216: 0 | BG216: 0 | BH216: 0 | BI216: 3 | BJ216: 1 | BK216: 0 | BL216: 4
BB217: 5.1 Food Poisoning | BC217: 0 | BE217: 0 | BF217: 0 | BG217: 0 | BH217: 0 | BI217: 0 | BJ217: 0 | BK217: 0 | BL217: 0
BB218: 5.2 Accidental intake of Insecticides/Pesticides | BC218: 3 | BE218: 0 | BF218: 0 | BG218: 0 | BH218: 0 | BI218: 2 | BJ218: 1 | BK218: 0 | BL218: 3
BB219: 5.3 Poisonous Gases (Total) (sum of 5.3.1 & 5.3.2) | BC219: 0 | BE219: 0 | BF219: 0 | BG219: 0 | BH219: 0 | BI219: 0 | BJ219: 0 | BK219: 0 | BL219: 0
BB220: 5.3.1 Carbon Monoxide (CO) Gas | BC220: 0 | BE220: 0 | BF220: 0 | BG220: 0 | BH220: 0 | BI220: 0 | BJ220: 0 | BK220: 0 | BL220: 0
BB221: 5.3.2 Other poisonous Gases | BC221: 0 | BE221: 0 | BF221: 0 | BG221: 0 | BH221: 0 | BI221: 0 | BJ221: 0 | BK221: 0 | BL221: 0
BB222: 5.4 Snake bite | BC222: 1 | BE222: 0 | BF222: 0 | BG222: 0 | BH222: 0 | BI222: 1 | BJ222: 0 | BK222: 0 | BL222: 1
BB223: 5.5 Animal/Reptiles/Insects bite | BC223: 0 | BE223: 0 | BF223: 0 | BG223: 0 | BH223: 0 | BI223: 0 | BJ223: 0 | BK223: 0 | BL223: 0
BB224: 5.6 Other | BC224: 0 | BE224: 0 | BF224: 0 | BG224: 0 | BH224: 0 | BI224: 0 | BJ224: 0 | BK224: 0 | BL224: 0
BA225: =B26 -> 6 | BB225: Suffocation | BC225: 1 | BE225: 0 | BF225: 0 | BG225: 0 | BH225: 0 | BI225: 1 | BJ225: 0 | BK225: 0 | BL225: 1
BA226: =B27 -> 7 | BB226: Drug Overdose | BC226: 2 | BE226: 0 | BF226: 0 | BG226: 0 | BH226: 0 | BI226: 1 | BJ226: 1 | BK226: 0 | BL226: 2
BA227: =B28 -> 8 | BB227: =C28 -> Total (sum of Sl. 1 to 7) | BC227: =D28 -> 56 | BD227: =E28 ->  | BE227: =F28 -> 0 | BF227: =G28 -> 0 | BG227: =H28 -> 0 | BH227: =I28 -> 0 | BI227: =J28 -> 47 | BJ227: =K28 -> 11 | BK227: =L28 -> 0 | BL227: =M28 -> 58
A500: StateUTCityCode | B500: DistrictCode | C500: CrimeCode | D500: DataYear | E500: Number of Cases | F500: Injured_Male | G500: Injured_Female | H500: Injured_Trans | I500: Injured_Total | J500: Died_Male | K500: Died_Female | L500: Died_Trans | M500: Died_Total
A501: =IF(ADSI!$G$12="",ADSI!$H$16,ADSI!$H$12) -> 6 | B501: =IF(ADSI!$G$12="",ADSI!$H$16,ADSI!$H$14) ->  | C501: =A8 -> 300 | D501: =ADSI!$K$12 -> 2022 | E501: =D8 -> 49 | F501: =F8 -> 0 | G501: 0 | H501: 0 | I501: 0 | J501: 42 | K501: 9 | L501: 0 | M501: 51
A502: =IF(ADSI!$G$12="",ADSI!$H$16,ADSI!$H$12) -> 6 | B502: =IF(ADSI!$G$12="",ADSI!$H$16,ADSI!$H$14) ->  | C502: 301 | D502: =ADSI!$K$12 -> 2022 | E502: 1 | F502: =F9 -> 0 | G502: 0 | H502: 0 | I502: 0 | J502: 3 | K502: 0 | L502: 0 | M502: 3
A503: =IF(ADSI!$G$12="",ADSI!$H$16,ADSI!$H$12) -> 6 | B503: =IF(ADSI!$G$12="",ADSI!$H$16,ADSI!$H$14) ->  | C503: 302 | D503: =ADSI!$K$12 -> 2022 | E503: 39 | F503: =F10 -> 0 | G503: 0 | H503: 0 | I503: 0 | J503: 32 | K503: 7 | L503: 0 | M503: 39
A504: =IF(ADSI!$G$12="",ADSI!$H$16,ADSI!$H$12) -> 6 | B504: =IF(ADSI!$G$12="",ADSI!$H$16,ADSI!$H$14) ->  | C504: 303 | D504: =ADSI!$K$12 -> 2022 | E504: 9 | F504: =F11 -> 0 | G504: 0 | H504: 0 | I504: 0 | J504: 7 | K504: 2 | L504: 0 | M504: 9
A505: =IF(ADSI!$G$12="",ADSI!$H$16,ADSI!$H$12) -> 6 | B505: =IF(ADSI!$G$12="",ADSI!$H$16,ADSI!$H$14) ->  | C505: 304 | D505: =ADSI!$K$12 -> 2022 | E505: 0 | F505: =F12 -> 0 | G505: 0 | H505: 0 | I505: 0 | J505: 0 | K505: 0 | L505: 0 | M505: 0
A506: =IF(ADSI!$G$12="",ADSI!$H$16,ADSI!$H$12) -> 6 | B506: =IF(ADSI!$G$12="",ADSI!$H$16,ADSI!$H$14) ->  | C506: 305 | D506: =ADSI!$K$12 -> 2022 | E506: 0 | F506: =F13 -> 0 | G506: 0 | H506: 0 | I506: 0 | J506: 0 | K506: 0 | L506: 0 | M506: 0
A507: =IF(ADSI!$G$12="",ADSI!$H$16,ADSI!$H$12) -> 6 | B507: =IF(ADSI!$G$12="",ADSI!$H$16,ADSI!$H$14) ->  | C507: 306 | D507: =ADSI!$K$12 -> 2022 | E507: 0 | F507: =F14 -> 0 | G507: 0 | H507: 0 | I507: 0 | J507: 0 | K507: 0 | L507: 0 | M507: 0
A508: =IF(ADSI!$G$12="",ADSI!$H$16,ADSI!$H$12) -> 6 | B508: =IF(ADSI!$G$12="",ADSI!$H$16,ADSI!$H$14) ->  | C508: 307 | D508: =ADSI!$K$12 -> 2022 | E508: 0 | F508: =F15 -> 0 | G508: 0 | H508: 0 | I508: 0 | J508: 0 | K508: 0 | L508: 0 | M508: 0
A509: =IF(ADSI!$G$12="",ADSI!$H$16,ADSI!$H$12) -> 6 | B509: =IF(ADSI!$G$12="",ADSI!$H$16,ADSI!$H$14) ->  | C509: 308 | D509: =ADSI!$K$12 -> 2022 | E509: 0 | F509: =F16 -> 0 | G509: 0 | H509: 0 | I509: 0 | J509: 0 | K509: 0 | L509: 0 | M509: 0
A510: =IF(ADSI!$G$12="",ADSI!$H$16,ADSI!$H$12) -> 6 | B510: =IF(ADSI!$G$12="",ADSI!$H$16,ADSI!$H$14) ->  | C510: 309 | D510: =ADSI!$K$12 -> 2022 | E510: 4 | F510: =F17 -> 0 | G510: 0 | H510: 0 | I510: 0 | J510: 3 | K510: 1 | L510: 0 | M510: 4
A511: =IF(ADSI!$G$12="",ADSI!$H$16,ADSI!$H$12) -> 6 | B511: =IF(ADSI!$G$12="",ADSI!$H$16,ADSI!$H$14) ->  | C511: 310 | D511: =ADSI!$K$12 -> 2022 | E511: 0 | F511: =F18 -> 0 | G511: 0 | H511: 0 | I511: 0 | J511: 0 | K511: 0 | L511: 0 | M511: 0
A512: =IF(ADSI!$G$12="",ADSI!$H$16,ADSI!$H$12) -> 6 | B512: =IF(ADSI!$G$12="",ADSI!$H$16,ADSI!$H$14) ->  | C512: 311 | D512: =ADSI!$K$12 -> 2022 | E512: 3 | F512: =F19 -> 0 | G512: 0 | H512: 0 | I512: 0 | J512: 2 | K512: 1 | L512: 0 | M512: 3
A513: =IF(ADSI!$G$12="",ADSI!$H$16,ADSI!$H$12) -> 6 | B513: =IF(ADSI!$G$12="",ADSI!$H$16,ADSI!$H$14) ->  | C513: 312 | D513: =ADSI!$K$12 -> 2022 | E513: 0 | F513: =F20 -> 0 | G513: 0 | H513: 0 | I513: 0 | J513: 0 | K513: 0 | L513: 0 | M513: 0
A514: =IF(ADSI!$G$12="",ADSI!$H$16,ADSI!$H$12) -> 6 | B514: =IF(ADSI!$G$12="",ADSI!$H$16,ADSI!$H$14) ->  | C514: 313 | D514: =ADSI!$K$12 -> 2022 | E514: 0 | F514: =F21 -> 0 | G514: 0 | H514: 0 | I514: 0 | J514: 0 | K514: 0 | L514: 0 | M514: 0
A515: =IF(ADSI!$G$12="",ADSI!$H$16,ADSI!$H$12) -> 6 | B515: =IF(ADSI!$G$12="",ADSI!$H$16,ADSI!$H$14) ->  | C515: 314 | D515: =ADSI!$K$12 -> 2022 | E515: 0 | F515: =F22 -> 0 | G515: 0 | H515: 0 | I515: 0 | J515: 0 | K515: 0 | L515: 0 | M515: 0
A516: =IF(ADSI!$G$12="",ADSI!$H$16,ADSI!$H$12) -> 6 | B516: =IF(ADSI!$G$12="",ADSI!$H$16,ADSI!$H$14) ->  | C516: 315 | D516: =ADSI!$K$12 -> 2022 | E516: 1 | F516: =F23 -> 0 | G516: 0 | H516: 0 | I516: 0 | J516: 1 | K516: 0 | L516: 0 | M516: 1
A517: =IF(ADSI!$G$12="",ADSI!$H$16,ADSI!$H$12) -> 6 | B517: =IF(ADSI!$G$12="",ADSI!$H$16,ADSI!$H$14) ->  | C517: 316 | D517: =ADSI!$K$12 -> 2022 | E517: 0 | F517: =F24 -> 0 | G517: 0 | H517: 0 | I517: 0 | J517: 0 | K517: 0 | L517: 0 | M517: 0
A518: =IF(ADSI!$G$12="",ADSI!$H$16,ADSI!$H$12) -> 6 | B518: =IF(ADSI!$G$12="",ADSI!$H$16,ADSI!$H$14) ->  | C518: 317 | D518: =ADSI!$K$12 -> 2022 | E518: 0 | F518: =F25 -> 0 | G518: 0 | H518: 0 | I518: 0 | J518: 0 | K518: 0 | L518: 0 | M518: 0
A519: =IF(ADSI!$G$12="",ADSI!$H$16,ADSI!$H$12) -> 6 | B519: =IF(ADSI!$G$12="",ADSI!$H$16,ADSI!$H$14) ->  | C519: 318 | D519: =ADSI!$K$12 -> 2022 | E519: 1 | F519: =F26 -> 0 | G519: 0 | H519: 0 | I519: 0 | J519: 1 | K519: 0 | L519: 0 | M519: 1
A520: =IF(ADSI!$G$12="",ADSI!$H$16,ADSI!$H$12) -> 6 | B520: =IF(ADSI!$G$12="",ADSI!$H$16,ADSI!$H$14) ->  | C520: 319 | D520: =ADSI!$K$12 -> 2022 | E520: 2 | F520: =F27 -> 0 | G520: 0 | H520: 0 | I520: 0 | J520: 1 | K520: 1 | L520: 0 | M520: 2
A521: =IF(ADSI!$G$12="",ADSI!$H$16,ADSI!$H$12) -> 6 | B521: =IF(ADSI!$G$12="",ADSI!$H$16,ADSI!$H$14) ->  | C521: 335 | D521: =ADSI!$K$12 -> 2022 | E521: 56 | F521: =F28 -> 0 | G521: 0 | H521: 0 | I521: 0 | J521: 47 | K521: 11 | L521: 0 | M521: 58

Sheet P-V
A1: =ADSI!$B$1 -> Goa, , ADSI-2022
A2: Errors | C2: =COUNTIF(L9:L29,FALSE)+COUNTIF(U9:U29,FALSE)+COUNTIF(AD9:AD29,FALSE)+COUNTIF(AG9:AG29,FALSE) -> 0
A3: =IF(ADSI!$L$10=1,LangMaster!A145,LangMaster!B145) -> Proforma-V
A4: =IF(ADSI!$L$10=1,LangMaster!A146,LangMaster!B146) -> Age Wise Distribution of Accidental Deaths by Other than Un-natural Causes
A5: =IF(ADSI!$L$10=1,LangMaster!A26,LangMaster!B26) -> Code | B5: =IF(ADSI!$L$10=1,LangMaster!A27,LangMaster!B27) -> S.No. | C5: =IF(ADSI!$L$10=1,LangMaster!A478,LangMaster!B478) -> Causes | D5: =IF(ADSI!$L$10=1,LangMaster!A29,LangMaster!B29) -> Number of Accidental Deaths | AE5: =IF(ADSI!$L$10=1,LangMaster!A473,LangMaster!B473) -> Grand Total (9) + (16)+(23) | AF5: PROFORMA–IV VALUES [Col.–(11) (Total Died)] | AG5: VALIDATION WITH PROFORMA–IV [Col.–(11) (Total Died)]
D6: =IF(ADSI!$L$10=1,LangMaster!A30,LangMaster!B30) -> Male | M6: =IF(ADSI!$L$10=1,LangMaster!A31,LangMaster!B31) -> Female | V6: =IF(ADSI!$L$10=1,LangMaster!A32,LangMaster!B32) -> Transgender
D7: =IF(ADSI!$L$10=1,LangMaster!A461,LangMaster!B461) -> below 14 years | E7: =IF(ADSI!$L$10=1,LangMaster!A462,LangMaster!B462) -> 14 and above – below 18 years | F7: =IF(ADSI!$L$10=1,LangMaster!A463,LangMaster!B463) -> 18 and above – below 30 years | G7: =IF(ADSI!$L$10=1,LangMaster!A464,LangMaster!B464) -> 30 and above – below 45 years | H7: =IF(ADSI!$L$10=1,LangMaster!A465,LangMaster!B465) -> 45 and above – below 60 years | I7: =IF(ADSI!$L$10=1,LangMaster!A466,LangMaster!B466) -> 60 years & above | J7: =IF(ADSI!$L$10=1,LangMaster!A470,LangMaster!B470) -> Total [sum of (3) to (8)] | K7: PROFORMA–IV VALUES [Col.–(8) (Male Died)] | L7: VALIDATION WITH PROFORMA–IV [Col.–(8) (Male Died)] | M7: =IF(ADSI!$L$10=1,LangMaster!A461,LangMaster!B461) -> below 14 years | N7: =IF(ADSI!$L$10=1,LangMaster!A462,LangMaster!B462) -> 14 and above – below 18 years | O7: =IF(ADSI!$L$10=1,LangMaster!A463,LangMaster!B463) -> 18 and above – below 30 years | P7: =IF(ADSI!$L$10=1,LangMaster!A464,LangMaster!B464) -> 30 and above – below 45 years | Q7: =IF(ADSI!$L$10=1,LangMaster!A465,LangMaster!B465) -> 45 and above – below 60 years | R7: =IF(ADSI!$L$10=1,LangMaster!A466,LangMaster!B466) -> 60 years & above | S7: =IF(ADSI!$L$10=1,LangMaster!A471,LangMaster!B471) -> Total [sum of (10) to (15)] | T7: PROFORMA–IV VALUES [Col.–(9) (Female Died)] | U7: VALIDATION WITH PROFORMA–IV [Col.–(9) (Female Died)] | V7: =IF(ADSI!$L$10=1,LangMaster!A461,LangMaster!B461) -> below 14 years | W7: =IF(ADSI!$L$10=1,LangMaster!A462,LangMaster!B462) -> 14 and above – below 18 years | X7: =IF(ADSI!$L$10=1,LangMaster!A463,LangMaster!B463) -> 18 and above – below 30 years | Y7: =IF(ADSI!$L$10=1,LangMaster!A464,LangMaster!B464) -> 30 and above – below 45 years | Z7: =IF(ADSI!$L$10=1,LangMaster!A465,LangMaster!B465) -> 45 and above – below 60 years | AA7: =IF(ADSI!$L$10=1,LangMaster!A466,LangMaster!B466) -> 60 years & above | AB7: =IF(ADSI!$L$10=1,LangMaster!A472,LangMaster!B472) -> Total [sum of (17) to (22)] | AC7: PROFORMA–IV VALUES [Col.–(10) Transgender Died)] | AD7: VALIDATION WITH PROFORMA–IV [Col.–(10) Transgender Died)]
B8: (1) | C8: (2) | D8: (3) | E8: (4) | F8: (5) | G8: (6) | H8: (7) | I8: (8) | J8: (9) | M8: (10) | N8: (11) | O8: (12) | P8: (13) | Q8: (14) | R8: (15) | S8: (16) | V8: (17) | W8: (18) | X8: (19) | Y8: (20) | Z8: (21) | AA8: (22) | AB8: (23) | AE8: (24)
A9: 350 | B9: 1 | C9: =IF(ADSI!$L$10=1,LangMaster!A124,LangMaster!B124) -> Sudden Deaths (Total) (sum of 1.1 to 1.3) | D9: =SUM(D10:D12) -> 0 | E9: =SUM(E10:E12) -> 0 | F9: 8 | G9: 16 | H9: 13 | I9: 5 | J9: =SUM(D9:I9) -> 42 | K9: ='P-IV'!J8 -> 42 | L9: =IF(J9='P-IV'!J8,"",FALSE) ->  | M9: =SUM(M10:M12) -> 0 | N9: =SUM(N10:N12) -> 0 | O9: =SUM(O10:O12) -> 0 | P9: =SUM(P10:P12) -> 2 | Q9: =SUM(Q10:Q12) -> 3 | R9: =SUM(R10:R12) -> 4 | S9: =SUM(M9:R9) -> 9 | T9: ='P-IV'!K8 -> 9 | U9: =IF(S9='P-IV'!K8,"",FALSE) ->  | V9: 0 | W9: 0 | X9: 0 | Y9: 0 | Z9: 0 | AA9: 0 | AB9: =SUM(V9:AA9) -> 0 | AC9: ='P-IV'!L8 -> 0 | AD9: =IF(AB9='P-IV'!L8,"",FALSE) ->  | AE9: =SUM(J9+S9+AB9) -> 51 | AF9: ='P-IV'!M8 -> 51 | AG9: =IF(AE9='P-IV'!M8,"",FALSE) -> 
A10: 351 | C10: =IF(ADSI!$L$10=1,LangMaster!A125,LangMaster!B125) -> 1.1 Industrial Accidents | D10: 0 | E10: 0 | F10: 1 | G10: 2 | H10: 0 | I10: 0 | J10: =SUM(D10:I10) -> 3 | K10: ='P-IV'!J9 -> 3 | L10: =IF(J10='P-IV'!J9,"",FALSE) ->  | M10: 0 | N10: 0 | O10: 0 | P10: 0 | Q10: 0 | R10: 0 | S10: =SUM(M10:R10) -> 0 | T10: ='P-IV'!K9 -> 0 | U10: =IF(S10='P-IV'!K9,"",FALSE) ->  | V10: 0 | W10: 0 | X10: 0 | Y10: 0 | Z10: 0 | AA10: 0 | AB10: =SUM(V10:AA10) -> 0 | AC10: ='P-IV'!L9 -> 0 | AD10: =IF(AB10='P-IV'!L9,"",FALSE) ->  | AE10: =SUM(J10+S10+AB10) -> 3 | AF10: ='P-IV'!M9 -> 3 | AG10: =IF(AE10='P-IV'!M9,"",FALSE) -> 
A11: 352 | C11: =IF(ADSI!$L$10=1,LangMaster!A126,LangMaster!B126) -> 1.2 Heart Attack | D11: 0 | E11: 0 | F11: 4 | G11: 13 | H11: 10 | I11: 5 | J11: 32 | K11: ='P-IV'!J10 -> 32 | L11: =IF(J11='P-IV'!J10,"",FALSE) ->  | M11: 0 | N11: 0 | O11: 0 | P11: 2 | Q11: 2 | R11: 3 | S11: 7 | T11: ='P-IV'!K10 -> 7 | U11: =IF(S11='P-IV'!K10,"",FALSE) ->  | V11: 0 | W11: 0 | X11: 0 | Y11: 0 | Z11: 0 | AA11: 0 | AB11: 0 | AC11: ='P-IV'!L10 -> 0 | AD11: =IF(AB11='P-IV'!L10,"",FALSE) ->  | AE11: 39 | AF11: ='P-IV'!M10 -> 39 | AG11: =IF(AE11='P-IV'!M10,"",FALSE) -> 
A12: 353 | C12: =IF(ADSI!$L$10=1,LangMaster!A127,LangMaster!B127) -> 1.3 Others | D12: 0 | E12: 0 | F12: 3 | G12: 1 | H12: 3 | I12: 0 | J12: 7 | K12: ='P-IV'!J11 -> 7 | L12: =IF(J12='P-IV'!J11,"",FALSE) ->  | M12: 0 | N12: 0 | O12: 0 | P12: 0 | Q12: 1 | R12: 1 | S12: 2 | T12: ='P-IV'!K11 -> 2 | U12: =IF(S12='P-IV'!K11,"",FALSE) ->  | V12: 0 | W12: 0 | X12: 0 | Y12: 0 | Z12: 0 | AA12: 0 | AB12: 0 | AC12: ='P-IV'!L11 -> 0 | AD12: =IF(AB12='P-IV'!L11,"",FALSE) ->  | AE12: 9 | AF12: ='P-IV'!M11 -> 9 | AG12: =IF(AE12='P-IV'!M11,"",FALSE) -> 
A13: 354 | B13: 2 | C13: =IF(ADSI!$L$10=1,LangMaster!A128,LangMaster!B128) -> Deaths of Women during Pregnancy (Total) (sum of 2.1 and 2.2) | D13: =SUM(D14:D15) -> 0 | E13: =SUM(E14:E15) -> 0 | F13: 0 | G13: 0 | H13: 0 | I13: 0 | J13: 0 | K13: ='P-IV'!J12 -> 0 | L13: =IF(J13='P-IV'!J12,"",FALSE) ->  | M13: 0 | N13: 0 | O13: 0 | P13: 0 | Q13: 0 | R13: 0 | S13: 0 | T13: ='P-IV'!K12 -> 0 | U13: =IF(S13='P-IV'!K12,"",FALSE) ->  | V13: 0 | W13: 0 | X13: 0 | Y13: =SUM(Y14:Y15) -> 0 | Z13: =SUM(Z14:Z15) -> 0 | AA13: =SUM(AA14:AA15) -> 0 | AB13: 0 | AC13: ='P-IV'!L12 -> 0 | AD13: =IF(AB13='P-IV'!L12,"",FALSE) ->  | AE13: 0 | AF13: ='P-IV'!M12 -> 0 | AG13: =IF(AE13='P-IV'!M12,"",FALSE) -> 
A14: 355 | C14: =IF(ADSI!$L$10=1,LangMaster!A129,LangMaster!B129) -> 2.1 Due to Abortions | D14: 0 | E14: 0 | F14: 0 | G14: 0 | H14: 0 | I14: 0 | J14: 0 | K14: ='P-IV'!J13 -> 0 | L14: =IF(J14='P-IV'!J13,"",FALSE) ->  | M14: 0 | N14: 0 | O14: 0 | P14: 0 | Q14: 0 | R14: 0 | S14: 0 | T14: ='P-IV'!K13 -> 0 | U14: =IF(S14='P-IV'!K13,"",FALSE) ->  | V14: 0 | W14: 0 | X14: 0 | Y14: 0 | Z14: 0 | AA14: 0 | AB14: 0 | AC14: ='P-IV'!L13 -> 0 | AD14: =IF(AB14='P-IV'!L13,"",FALSE) ->  | AE14: 0 | AF14: ='P-IV'!M13 -> 0 | AG14: =IF(AE14='P-IV'!M13,"",FALSE) -> 
A15: 356 | C15: =IF(ADSI!$L$10=1,LangMaster!A130,LangMaster!B130) -> 2.2 Due to Other accidents during Pregnancy | D15: 0 | E15: 0 | F15: 0 | G15: 0 | H15: 0 | I15: 0 | J15: 0 | K15: ='P-IV'!J14 -> 0 | L15: =IF(J15='P-IV'!J14,"",FALSE) ->  | M15: 0 | N15: 0 | O15: 0 | P15: 0 | Q15: 0 | R15: 0 | S15: 0 | T15: ='P-IV'!K14 -> 0 | U15: =IF(S15='P-IV'!K14,"",FALSE) ->  | V15: 0 | W15: 0 | X15: 0 | Y15: 0 | Z15: 0 | AA15: 0 | AB15: 0 | AC15: ='P-IV'!L14 -> 0 | AD15: =IF(AB15='P-IV'!L14,"",FALSE) ->  | AE15: 0 | AF15: ='P-IV'!M14 -> 0 | AG15: =IF(AE15='P-IV'!M14,"",FALSE) -> 
A16: 357 | B16: 3 | C16: =IF(ADSI!$L$10=1,LangMaster!A131,LangMaster!B131) -> Deaths Due to consumption of Illicit/Spurious Liquor | D16: 0 | E16: 0 | F16: 0 | G16: 0 | H16: 0 | I16: 0 | J16: 0 | K16: ='P-IV'!J15 -> 0 | L16: =IF(J16='P-IV'!J15,"",FALSE) ->  | M16: 0 | N16: 0 | O16: 0 | P16: 0 | Q16: 0 | R16: 0 | S16: 0 | T16: ='P-IV'!K15 -> 0 | U16: =IF(S16='P-IV'!K15,"",FALSE) ->  | V16: 0 | W16: 0 | X16: 0 | Y16: 0 | Z16: 0 | AA16: 0 | AB16: 0 | AC16: ='P-IV'!L15 -> 0 | AD16: =IF(AB16='P-IV'!L15,"",FALSE) ->  | AE16: 0 | AF16: ='P-IV'!M15 -> 0 | AG16: =IF(AE16='P-IV'!M15,"",FALSE) -> 
A17: 358 | B17: 4 | C17: =IF(ADSI!$L$10=1,LangMaster!A132,LangMaster!B132) -> Killed by animals | D17: 0 | E17: 0 | F17: 0 | G17: 0 | H17: 0 | I17: 0 | J17: 0 | K17: ='P-IV'!J16 -> 0 | L17: =IF(J17='P-IV'!J16,"",FALSE) ->  | M17: 0 | N17: 0 | O17: 0 | P17: 0 | Q17: 0 | R17: 0 | S17: 0 | T17: ='P-IV'!K16 -> 0 | U17: =IF(S17='P-IV'!K16,"",FALSE) ->  | V17: 0 | W17: 0 | X17: 0 | Y17: 0 | Z17: 0 | AA17: 0 | AB17: 0 | AC17: ='P-IV'!L16 -> 0 | AD17: =IF(AB17='P-IV'!L16,"",FALSE) ->  | AE17: 0 | AF17: ='P-IV'!M16 -> 0 | AG17: =IF(AE17='P-IV'!M16,"",FALSE) -> 
A18: 359 | B18: 5 | C18: =IF(ADSI!$L$10=1,LangMaster!A133,LangMaster!B133) -> Poisoning (Total) (sum of 5.1 to 5.3 & 5.4 to 5.6) | D18: =SUM(D19:D21,D24:D26) -> 0 | E18: =SUM(E19:E21,E24:E26) -> 0 | F18: 1 | G18: 2 | H18: 0 | I18: 0 | J18: 3 | K18: ='P-IV'!J17 -> 3 | L18: =IF(J18='P-IV'!J17,"",FALSE) ->  | M18: =SUM(M19:M21,M24:M26) -> 0 | N18: 0 | O18: 0 | P18: 1 | Q18: 0 | R18: 0 | S18: 1 | T18: ='P-IV'!K17 -> 1 | U18: =IF(S18='P-IV'!K17,"",FALSE) ->  | V18: =SUM(V19:V21,V24:V26) -> 0 | W18: 0 | X18: 0 | Y18: 0 | Z18: 0 | AA18: 0 | AB18: 0 | AC18: ='P-IV'!L17 -> 0 | AD18: =IF(AB18='P-IV'!L17,"",FALSE) ->  | AE18: 4 | AF18: ='P-IV'!M17 -> 4 | AG18: =IF(AE18='P-IV'!M17,"",FALSE) -> 
A19: 360 | C19: =IF(ADSI!$L$10=1,LangMaster!A134,LangMaster!B134) -> 5.1 Food Poisoning | D19: 0 | E19: 0 | F19: 0 | G19: 0 | H19: 0 | I19: 0 | J19: 0 | K19: ='P-IV'!J18 -> 0 | L19: =IF(J19='P-IV'!J18,"",FALSE) ->  | M19: 0 | N19: 0 | O19: 0 | P19: 0 | Q19: 0 | R19: 0 | S19: 0 | T19: ='P-IV'!K18 -> 0 | U19: =IF(S19='P-IV'!K18,"",FALSE) ->  | V19: 0 | W19: 0 | X19: 0 | Y19: 0 | Z19: 0 | AA19: 0 | AB19: 0 | AC19: ='P-IV'!L18 -> 0 | AD19: =IF(AB19='P-IV'!L18,"",FALSE) ->  | AE19: 0 | AF19: ='P-IV'!M18 -> 0 | AG19: =IF(AE19='P-IV'!M18,"",FALSE) -> 
A20: 361 | C20: =IF(ADSI!$L$10=1,LangMaster!A135,LangMaster!B135) -> 5.2 Accidental intake of Insecticides/Pesticides | D20: 0 | E20: 0 | F20: 1 | G20: 1 | H20: 0 | I20: 0 | J20: 2 | K20: ='P-IV'!J19 -> 2 | L20: =IF(J20='P-IV'!J19,"",FALSE) ->  | M20: 0 | N20: 0 | O20: 0 | P20: 1 | Q20: 0 | R20: 0 | S20: 1 | T20: ='P-IV'!K19 -> 1 | U20: =IF(S20='P-IV'!K19,"",FALSE) ->  | V20: 0 | W20: 0 | X20: 0 | Y20: 0 | Z20: 0 | AA20: 0 | AB20: 0 | AC20: ='P-IV'!L19 -> 0 | AD20: =IF(AB20='P-IV'!L19,"",FALSE) ->  | AE20: 3 | AF20: ='P-IV'!M19 -> 3 | AG20: =IF(AE20='P-IV'!M19,"",FALSE) -> 
A21: 362 | C21: =IF(ADSI!$L$10=1,LangMaster!A136,LangMaster!B136) -> 5.3 Poisonous Gases (Total) (sum of 5.3.1 & 5.3.2) | D21: =SUM(D22:D23) -> 0 | E21: =SUM(E22:E23) -> 0 | F21: 0 | G21: 0 | H21: 0 | I21: 0 | J21: 0 | K21: ='P-IV'!J20 -> 0 | L21: =IF(J21='P-IV'!J20,"",FALSE) ->  | M21: =SUM(M22:M23) -> 0 | N21: =SUM(N22:N23) -> 0 | O21: =SUM(O22:O23) -> 0 | P21: =SUM(P22:P23) -> 0 | Q21: =SUM(Q22:Q23) -> 0 | R21: =SUM(R22:R23) -> 0 | S21: 0 | T21: ='P-IV'!K20 -> 0 | U21: =IF(S21='P-IV'!K20,"",FALSE) ->  | V21: 0 | W21: 0 | X21: 0 | Y21: 0 | Z21: 0 | AA21: 0 | AB21: 0 | AC21: ='P-IV'!L20 -> 0 | AD21: =IF(AB21='P-IV'!L20,"",FALSE) ->  | AE21: 0 | AF21: ='P-IV'!M20 -> 0 | AG21: =IF(AE21='P-IV'!M20,"",FALSE) -> 
A22: 363 | C22: =IF(ADSI!$L$10=1,LangMaster!A137,LangMaster!B137) -> 5.3.1 Carbon Monoxide (CO) Gas | D22: 0 | E22: 0 | F22: 0 | G22: 0 | H22: 0 | I22: 0 | J22: 0 | K22: ='P-IV'!J21 -> 0 | L22: =IF(J22='P-IV'!J21,"",FALSE) ->  | M22: 0 | N22: 0 | O22: 0 | P22: 0 | Q22: 0 | R22: 0 | S22: 0 | T22: ='P-IV'!K21 -> 0 | U22: =IF(S22='P-IV'!K21,"",FALSE) ->  | V22: 0 | W22: 0 | X22: 0 | Y22: 0 | Z22: 0 | AA22: 0 | AB22: 0 | AC22: ='P-IV'!L21 -> 0 | AD22: =IF(AB22='P-IV'!L21,"",FALSE) ->  | AE22: 0 | AF22: ='P-IV'!M21 -> 0 | AG22: =IF(AE22='P-IV'!M21,"",FALSE) -> 
A23: 364 | C23: =IF(ADSI!$L$10=1,LangMaster!A138,LangMaster!B138) -> 5.3.2 Other poisonous Gases | D23: 0 | E23: 0 | F23: 0 | G23: 0 | H23: 0 | I23: 0 | J23: 0 | K23: ='P-IV'!J22 -> 0 | L23: =IF(J23='P-IV'!J22,"",FALSE) ->  | M23: 0 | N23: 0 | O23: 0 | P23: 0 | Q23: 0 | R23: 0 | S23: 0 | T23: ='P-IV'!K22 -> 0 | U23: =IF(S23='P-IV'!K22,"",FALSE) ->  | V23: 0 | W23: 0 | X23: 0 | Y23: 0 | Z23: 0 | AA23: 0 | AB23: 0 | AC23: ='P-IV'!L22 -> 0 | AD23: =IF(AB23='P-IV'!L22,"",FALSE) ->  | AE23: 0 | AF23: ='P-IV'!M22 -> 0 | AG23: =IF(AE23='P-IV'!M22,"",FALSE) -> 
A24: 365 | C24: =IF(ADSI!$L$10=1,LangMaster!A139,LangMaster!B139) -> 5.4 Snake bite | D24: 0 | E24: 0 | F24: 0 | G24: 1 | H24: 0 | I24: 0 | J24: 1 | K24: ='P-IV'!J23 -> 1 | L24: =IF(J24='P-IV'!J23,"",FALSE) ->  | M24: 0 | N24: 0 | O24: 0 | P24: 0 | Q24: 0 | R24: 0 | S24: 0 | T24: ='P-IV'!K23 -> 0 | U24: =IF(S24='P-IV'!K23,"",FALSE) ->  | V24: 0 | W24: 0 | X24: 0 | Y24: 0 | Z24: 0 | AA24: 0 | AB24: 0 | AC24: ='P-IV'!L23 -> 0 | AD24: =IF(AB24='P-IV'!L23,"",FALSE) ->  | AE24: 1 | AF24: ='P-IV'!M23 -> 1 | AG24: =IF(AE24='P-IV'!M23,"",FALSE) -> 
A25: 366 | C25: =IF(ADSI!$L$10=1,LangMaster!A140,LangMaster!B140) -> 5.5 Animal/Reptiles/Insects bite | D25: 0 | E25: 0 | F25: 0 | G25: 0 | H25: 0 | I25: 0 | J25: 0 | K25: ='P-IV'!J24 -> 0 | L25: =IF(J25='P-IV'!J24,"",FALSE) ->  | M25: 0 | N25: 0 | O25: 0 | P25: 0 | Q25: 0 | R25: 0 | S25: 0 | T25: ='P-IV'!K24 -> 0 | U25: =IF(S25='P-IV'!K24,"",FALSE) ->  | V25: 0 | W25: 0 | X25: 0 | Y25: 0 | Z25: 0 | AA25: 0 | AB25: 0 | AC25: ='P-IV'!L24 -> 0 | AD25: =IF(AB25='P-IV'!L24,"",FALSE) ->  | AE25: 0 | AF25: ='P-IV'!M24 -> 0 | AG25: =IF(AE25='P-IV'!M24,"",FALSE) -> 
A26: 367 | C26: =IF(ADSI!$L$10=1,LangMaster!A141,LangMaster!B141) -> 5.6 Other | D26: 0 | E26: 0 | F26: 0 | G26: 0 | H26: 0 | I26: 0 | J26: 0 | K26: ='P-IV'!J25 -> 0 | L26: =IF(J26='P-IV'!J25,"",FALSE) ->  | M26: 0 | N26: 0 | O26: 0 | P26: 0 | Q26: 0 | R26: 0 | S26: 0 | T26: ='P-IV'!K25 -> 0 | U26: =IF(S26='P-IV'!K25,"",FALSE) ->  | V26: 0 | W26: 0 | X26: 0 | Y26: 0 | Z26: 0 | AA26: 0 | AB26: 0 | AC26: ='P-IV'!L25 -> 0 | AD26: =IF(AB26='P-IV'!L25,"",FALSE) ->  | AE26: 0 | AF26: ='P-IV'!M25 -> 0 | AG26: =IF(AE26='P-IV'!M25,"",FALSE) -> 
A27: 368 | B27: 6 | C27: =IF(ADSI!$L$10=1,LangMaster!A142,LangMaster!B142) -> Suffocation | D27: 0 | E27: 0 | F27: 0 | G27: 1 | H27: 0 | I27: 0 | J27: 1 | K27: ='P-IV'!J26 -> 1 | L27: =IF(J27='P-IV'!J26,"",FALSE) ->  | M27: 0 | N27: 0 | O27: 0 | P27: 0 | Q27: 0 | R27: 0 | S27: 0 | T27: ='P-IV'!K26 -> 0 | U27: =IF(S27='P-IV'!K26,"",FALSE) ->  | V27: 0 | W27: 0 | X27: 0 | Y27: 0 | Z27: 0 | AA27: 0 | AB27: 0 | AC27: ='P-IV'!L26 -> 0 | AD27: =IF(AB27='P-IV'!L26,"",FALSE) ->  | AE27: 1 | AF27: ='P-IV'!M26 -> 1 | AG27: =IF(AE27='P-IV'!M26,"",FALSE) -> 
A28: 369 | B28: 7 | C28: =IF(ADSI!$L$10=1,LangMaster!A143,LangMaster!B143) -> Drug Overdose | D28: 0 | E28: 0 | F28: 0 | G28: 1 | H28: 0 | I28: 0 | J28: 1 | K28: ='P-IV'!J27 -> 1 | L28: =IF(J28='P-IV'!J27,"",FALSE) ->  | M28: 0 | N28: 0 | O28: 0 | P28: 1 | Q28: 0 | R28: 0 | S28: 1 | T28: ='P-IV'!K27 -> 1 | U28: =IF(S28='P-IV'!K27,"",FALSE) ->  | V28: 0 | W28: 0 | X28: 0 | Y28: 0 | Z28: 0 | AA28: 0 | AB28: 0 | AC28: ='P-IV'!L27 -> 0 | AD28: =IF(AB28='P-IV'!L27,"",FALSE) ->  | AE28: 2 | AF28: ='P-IV'!M27 -> 2 | AG28: =IF(AE28='P-IV'!M27,"",FALSE) -> 
A29: 390 | B29: 8 | C29: =IF(ADSI!$L$10=1,LangMaster!A144,LangMaster!B144) -> Total (sum of Sl. 1 to 7) | D29: =SUM(D9,D13,D16:D18,D27:D28) -> 0 | E29: 0 | F29: 9 | G29: 20 | H29: 13 | I29: 5 | J29: 47 | K29: ='P-IV'!J28 -> 47 | L29: =IF(J29='P-IV'!J28,"",FALSE) ->  | M29: =SUM(M9,M13,M16:M18,M27:M28) -> 0 | N29: 0 | O29: 0 | P29: 4 | Q29: 3 | R29: 4 | S29: 11 | T29: ='P-IV'!K28 -> 11 | U29: =IF(S29='P-IV'!K28,"",FALSE) ->  | V29: =SUM(V9,V13,V16:V18,V27:V28) -> 0 | W29: 0 | X29: 0 | Y29: 0 | Z29: 0 | AA29: 0 | AB29: 0 | AC29: ='P-IV'!L28 -> 0 | AD29: =IF(AB29='P-IV'!L28,"",FALSE) ->  | AE29: =SUM(AE9,AE13,AE16:AE18,AE27:AE28) -> 58 | AF29: ='P-IV'!M28 -> 58 | AG29: =IF(AE29='P-IV'!M28,"",FALSE) -> 
BA200: =A1 -> Goa, , ADSI-2022
BA201: =A2 -> Errors | BB201: =C2 -> 0
BA202: =A3 -> Proforma-V
BA203: =A4 -> Age Wise Distribution of Accidental Deaths by Other than Un-natural Causes
BA204: =B5 -> S.No. | BB204: =C5 -> Causes | BC204: =D5 -> Number of Accidental Deaths | CD204: =AE5 -> Grand Total (9) + (16)+(23) | CE204: =AF5 -> PROFORMA–IV VALUES [Col.–(11) (Total Died)] | CF204: =AG5 -> VALIDATION WITH PROFORMA–IV [Col.–(11) (Total Died)]
BC205: =D6 -> Male | BL205: =M6 -> Female | BU205: =V6 -> Transgender
BC206: below 14 years | BD206: =E7 -> 14 and above – below 18 years | BE206: 18 and above – below 30 years | BF206: 30 and above – below 45 years | BG206: 45 and above – below 60 years | BH206: 60 years & above | BI206: Total [sum of (3) to (8)] | BJ206: PROFORMA–IV VALUES [Col.–(8) (Male Died)] | BK206: VALIDATION WITH PROFORMA–IV [Col.–(8) (Male Died)] | BL206: below 14 years | BM206: =N7 -> 14 and above – below 18 years | BN206: 18 and above – below 30 years | BO206: 30 and above – below 45 years | BP206: 45 and above – below 60 years | BQ206: 60 years & above | BR206: Total [sum of (10) to (15)] | BS206: PROFORMA–IV VALUES [Col.–(9) (Female Died)] | BT206: VALIDATION WITH PROFORMA–IV [Col.–(9) (Female Died)] | BU206: below 14 years | BV206: =W7 -> 14 and above – below 18 years | BW206: 18 and above – below 30 years | BX206: 30 and above – below 45 years | BY206: 45 and above – below 60 years | BZ206: 60 years & above | CA206: Total [sum of (17) to (22)] | CB206: PROFORMA–IV VALUES [Col.–(10) Transgender Died)] | CC206: VALIDATION WITH PROFORMA–IV [Col.–(10) Transgender Died)]
BA207: =B8 -> (1) | BB207: =C8 -> (2) | BC207: (3) | BD207: =E8 -> (4) | BE207: =F8 -> (5) | BF207: =G8 -> (6) | BG207: =H8 -> (7) | BH207: =I8 -> (8) | BI207: =J8 -> (9) | BL207: (10) | BM207: =N8 -> (11) | BN207: =O8 -> (12) | BO207: =P8 -> (13) | BP207: =Q8 -> (14) | BQ207: =R8 -> (15) | BR207: =S8 -> (16) | BU207: (17) | BV207: =W8 -> (18) | BW207: =X8 -> (19) | BX207: =Y8 -> (20) | BY207: =Z8 -> (21) | BZ207: =AA8 -> (22) | CA207: =AB8 -> (23) | CD207: =AE8 -> (24)
BA208: =B9 -> 1 | BB208: =C9 -> Sudden Deaths (Total) (sum of 1.1 to 1.3) | BC208: 0 | BD208: 0 | BE208: 8 | BF208: 16 | BG208: 13 | BH208: 5 | BI208: 42 | BJ208: =K9 -> 42 | BK208: =L9 ->  | BL208: 0 | BM208: 0 | BN208: 0 | BO208: 2 | BP208: 3 | BQ208: 4 | BR208: 9 | BS208: =T9 -> 9 | BT208: =U9 ->  | BU208: 0 | BV208: 0 | BW208: 0 | BX208: 0 | BY208: 0 | BZ208: 0 | CA208: 0 | CB208: =AC9 -> 0 | CC208: =AD9 ->  | CD208: 51 | CE208: =AF9 -> 51 | CF208: =AG9 -> 
BB209: =C10 -> 1.1 Industrial Accidents | BC209: 0 | BD209: 0 | BE209: 1 | BF209: 2 | BG209: 0 | BH209: 0 | BI209: 3 | BJ209: 3 | BL209: 0 | BM209: 0 | BN209: 0 | BO209: 0 | BP209: 0 | BQ209: 0 | BR209: 0 | BS209: 0 | BU209: 0 | BV209: 0 | BW209: 0 | BX209: 0 | BY209: 0 | BZ209: 0 | CA209: 0 | CB209: 0 | CD209: 3 | CE209: 3
BB210: 1.2 Heart Attack | BC210: 0 | BD210: 0 | BE210: 4 | BF210: 13 | BG210: 10 | BH210: 5 | BI210: 32 | BJ210: 32 | BL210: 0 | BM210: 0 | BN210: 0 | BO210: 2 | BP210: 2 | BQ210: 3 | BR210: 7 | BS210: 7 | BU210: 0 | BV210: 0 | BW210: 0 | BX210: 0 | BY210: 0 | BZ210: 0 | CA210: 0 | CB210: 0 | CD210: 39 | CE210: 39
BB211: 1.3 Others | BC211: 0 | BD211: 0 | BE211: 3 | BF211: 1 | BG211: 3 | BH211: 0 | BI211: 7 | BJ211: 7 | BL211: 0 | BM211: 0 | BN211: 0 | BO211: 0 | BP211: 1 | BQ211: 1 | BR211: 2 | BS211: 2 | BU211: 0 | BV211: 0 | BW211: 0 | BX211: 0 | BY211: 0 | BZ211: 0 | CA211: 0 | CB211: 0 | CD211: 9 | CE211: 9
BA212: =B13 -> 2 | BB212: Deaths of Women during Pregnancy (Total) (sum of 2.1 and 2.2) | BC212: 0 | BD212: 0 | BE212: 0 | BF212: 0 | BG212: 0 | BH212: 0 | BI212: 0 | BJ212: 0 | BL212: 0 | BM212: 0 | BN212: 0 | BO212: 0 | BP212: 0 | BQ212: 0 | BR212: 0 | BS212: 0 | BU212: 0 | BV212: 0 | BW212: 0 | BX212: 0 | BY212: 0 | BZ212: 0 | CA212: 0 | CB212: 0 | CD212: 0 | CE212: 0
BB213: 2.1 Due to Abortions | BC213: 0 | BD213: 0 | BE213: 0 | BF213: 0 | BG213: 0 | BH213: 0 | BI213: 0 | BJ213: 0 | BL213: 0 | BM213: 0 | BN213: 0 | BO213: 0 | BP213: 0 | BQ213: 0 | BR213: 0 | BS213: 0 | BU213: 0 | BV213: 0 | BW213: 0 | BX213: 0 | BY213: 0 | BZ213: 0 | CA213: 0 | CB213: 0 | CD213: 0 | CE213: 0
BB214: 2.2 Due to Other accidents during Pregnancy | BC214: 0 | BD214: 0 | BE214: 0 | BF214: 0 | BG214: 0 | BH214: 0 | BI214: 0 | BJ214: 0 | BL214: 0 | BM214: 0 | BN214: 0 | BO214: 0 | BP214: 0 | BQ214: 0 | BR214: 0 | BS214: 0 | BU214: 0 | BV214: 0 | BW214: 0 | BX214: 0 | BY214: 0 | BZ214: 0 | CA214: 0 | CB214: 0 | CD214: 0 | CE214: 0
BA215: =B16 -> 3 | BB215: Deaths Due to consumption of Illicit/Spurious Liquor | BC215: 0 | BD215: 0 | BE215: 0 | BF215: 0 | BG215: 0 | BH215: 0 | BI215: 0 | BJ215: 0 | BL215: 0 | BM215: 0 | BN215: 0 | BO215: 0 | BP215: 0 | BQ215: 0 | BR215: 0 | BS215: 0 | BU215: 0 | BV215: 0 | BW215: 0 | BX215: 0 | BY215: 0 | BZ215: 0 | CA215: 0 | CB215: 0 | CD215: 0 | CE215: 0
BA216: =B17 -> 4 | BB216: Killed by animals | BC216: 0 | BD216: 0 | BE216: 0 | BF216: 0 | BG216: 0 | BH216: 0 | BI216: 0 | BJ216: 0 | BL216: 0 | BM216: 0 | BN216: 0 | BO216: 0 | BP216: 0 | BQ216: 0 | BR216: 0 | BS216: 0 | BU216: 0 | BV216: 0 | BW216: 0 | BX216: 0 | BY216: 0 | BZ216: 0 | CA216: 0 | CB216: 0 | CD216: 0 | CE216: 0
BA217: =B18 -> 5 | BB217: Poisoning (Total) (sum of 5.1 to 5.3 & 5.4 to 5.6) | BC217: 0 | BD217: 0 | BE217: 1 | BF217: 2 | BG217: 0 | BH217: 0 | BI217: 3 | BJ217: 3 | BL217: 0 | BM217: 0 | BN217: 0 | BO217: 1 | BP217: 0 | BQ217: 0 | BR217: 1 | BS217: 1 | BU217: 0 | BV217: 0 | BW217: 0 | BX217: 0 | BY217: 0 | BZ217: 0 | CA217: 0 | CB217: 0 | CD217: 4 | CE217: 4
BB218: 5.1 Food Poisoning | BC218: 0 | BD218: 0 | BE218: 0 | BF218: 0 | BG218: 0 | BH218: 0 | BI218: 0 | BJ218: 0 | BL218: 0 | BM218: 0 | BN218: 0 | BO218: 0 | BP218: 0 | BQ218: 0 | BR218: 0 | BS218: 0 | BU218: 0 | BV218: 0 | BW218: 0 | BX218: 0 | BY218: 0 | BZ218: 0 | CA218: 0 | CB218: 0 | CD218: 0 | CE218: 0
BB219: 5.2 Accidental intake of Insecticides/Pesticides | BC219: 0 | BD219: 0 | BE219: 1 | BF219: 1 | BG219: 0 | BH219: 0 | BI219: 2 | BJ219: 2 | BL219: 0 | BM219: 0 | BN219: 0 | BO219: 1 | BP219: 0 | BQ219: 0 | BR219: 1 | BS219: 1 | BU219: 0 | BV219: 0 | BW219: 0 | BX219: 0 | BY219: 0 | BZ219: 0 | CA219: 0 | CB219: 0 | CD219: 3 | CE219: 3
BB220: 5.3 Poisonous Gases (Total) (sum of 5.3.1 & 5.3.2) | BC220: 0 | BD220: 0 | BE220: 0 | BF220: 0 | BG220: 0 | BH220: 0 | BI220: 0 | BJ220: 0 | BL220: 0 | BM220: 0 | BN220: 0 | BO220: 0 | BP220: 0 | BQ220: 0 | BR220: 0 | BS220: 0 | BU220: 0 | BV220: 0 | BW220: 0 | BX220: 0 | BY220: 0 | BZ220: 0 | CA220: 0 | CB220: 0 | CD220: 0 | CE220: 0
BB221: 5.3.1 Carbon Monoxide (CO) Gas | BC221: 0 | BD221: 0 | BE221: 0 | BF221: 0 | BG221: 0 | BH221: 0 | BI221: 0 | BJ221: 0 | BL221: 0 | BM221: 0 | BN221: 0 | BO221: 0 | BP221: 0 | BQ221: 0 | BR221: 0 | BS221: 0 | BU221: 0 | BV221: 0 | BW221: 0 | BX221: 0 | BY221: 0 | BZ221: 0 | CA221: 0 | CB221: 0 | CD221: 0 | CE221: 0
BB222: 5.3.2 Other poisonous Gases | BC222: 0 | BD222: 0 | BE222: 0 | BF222: 0 | BG222: 0 | BH222: 0 | BI222: 0 | BJ222: 0 | BL222: 0 | BM222: 0 | BN222: 0 | BO222: 0 | BP222: 0 | BQ222: 0 | BR222: 0 | BS222: 0 | BU222: 0 | BV222: 0 | BW222: 0 | BX222: 0 | BY222: 0 | BZ222: 0 | CA222: 0 | CB222: 0 | CD222: 0 | CE222: 0
BB223: 5.4 Snake bite | BC223: 0 | BD223: 0 | BE223: 0 | BF223: 1 | BG223: 0 | BH223: 0 | BI223: 1 | BJ223: 1 | BL223: 0 | BM223: 0 | BN223: 0 | BO223: 0 | BP223: 0 | BQ223: 0 | BR223: 0 | BS223: 0 | BU223: 0 | BV223: 0 | BW223: 0 | BX223: 0 | BY223: 0 | BZ223: 0 | CA223: 0 | CB223: 0 | CD223: 1 | CE223: 1
BB224: 5.5 Animal/Reptiles/Insects bite | BC224: 0 | BD224: 0 | BE224: 0 | BF224: 0 | BG224: 0 | BH224: 0 | BI224: 0 | BJ224: 0 | BL224: 0 | BM224: 0 | BN224: 0 | BO224: 0 | BP224: 0 | BQ224: 0 | BR224: 0 | BS224: 0 | BU224: 0 | BV224: 0 | BW224: 0 | BX224: 0 | BY224: 0 | BZ224: 0 | CA224: 0 | CB224: 0 | CD224: 0 | CE224: 0
BB225: 5.6 Other | BC225: 0 | BD225: 0 | BE225: 0 | BF225: 0 | BG225: 0 | BH225: 0 | BI225: 0 | BJ225: 0 | BL225: 0 | BM225: 0 | BN225: 0 | BO225: 0 | BP225: 0 | BQ225: 0 | BR225: 0 | BS225: 0 | BU225: 0 | BV225: 0 | BW225: 0 | BX225: 0 | BY225: 0 | BZ225: 0 | CA225: 0 | CB225: 0 | CD225: 0 | CE225: 0
BA226: =B27 -> 6 | BB226: Suffocation | BC226: 0 | BD226: 0 | BE226: 0 | BF226: 1 | BG226: 0 | BH226: 0 | BI226: 1 | BJ226: 1 | BL226: 0 | BM226: 0 | BN226: 0 | BO226: 0 | BP226: 0 | BQ226: 0 | BR226: 0 | BS226: 0 | BU226: 0 | BV226: 0 | BW226: 0 | BX226: 0 | BY226: 0 | BZ226: 0 | CA226: 0 | CB226: 0 | CD226: 1 | CE226: 1
BA227: =B28 -> 7 | BB227: Drug Overdose | BC227: 0 | BD227: 0 | BE227: 0 | BF227: 1 | BG227: 0 | BH227: 0 | BI227: 1 | BJ227: 1 | BL227: 0 | BM227: 0 | BN227: 0 | BO227: 1 | BP227: 0 | BQ227: 0 | BR227: 1 | BS227: 1 | BU227: 0 | BV227: 0 | BW227: 0 | BX227: 0 | BY227: 0 | BZ227: 0 | CA227: 0 | CB227: 0 | CD227: 2 | CE227: 2
BA228: =B29 -> 8 | BB228: =C29 -> Total (sum of Sl. 1 to 7) | BC228: =D29 -> 0 | BD228: =E29 -> 0 | BE228: =F29 -> 9 | BF228: =G29 -> 20 | BG228: =H29 -> 13 | BH228: =I29 -> 5 | BI228: =J29 -> 47 | BJ228: =K29 -> 47 | BK228: =L29 ->  | BL228: =M29 -> 0 | BM228: =N29 -> 0 | BN228: =O29 -> 0 | BO228: =P29 -> 4 | BP228: =Q29 -> 3 | BQ228: =R29 -> 4 | BR228: =S29 -> 11 | BS228: =T29 -> 11 | BT228: =U29 ->  | BU228: =V29 -> 0 | BV228: =W29 -> 0 | BW228: =X29 -> 0 | BX228: =Y29 -> 0 | BY228: =Z29 -> 0 | BZ228: =AA29 -> 0 | CA228: =AB29 -> 0 | CB228: =AC29 -> 0 | CC228: =AD29 ->  | CD228: =AE29 -> 58 | CE228: =AF29 -> 58 | CF228: =AG29 -> 
A500: StateUTCityCode | B500: DistrictCode | C500: CrimeCode | D500: DataYear | E500: Male_below 14 years | F500: Male_14 and above – below 18 years | G500: Male_18 and above – below 30 years | H500: Male_30 and above – below 45 years | I500: Male_45 and above – below 60 years | J500: Male_60 years & above | K500: Male_Total | L500: Female_below 14 years | M500: Female_14 and above – below 18 years | N500: Female_18 and above – below 30 years | O500: Female_30 and above – below 45 years | P500: Female_45 and above – below 60 years | Q500: Female_60 years & above | R500: Female_Total | S500: Trans_below 14 years | T500: Trans_14 and above – below 18 years | U500: Trans_18 and above – below 30 years | V500: Trans_30 and above – below 45 years | W500: Trans_45 and above – below 60 years | X500: Trans_60 years & above | Y500: Trans_Total | Z500: Grand Total
A501: =IF(ADSI!$G$12="",ADSI!$H$16,ADSI!$H$12) -> 6 | B501: =IF(ADSI!$G$12="",ADSI!$H$16,ADSI!$H$14) ->  | C501: =A9 -> 350 | D501: =ADSI!$K$12 -> 2022 | E501: =D9 -> 0 | F501: 0 | G501: 8 | H501: 16 | I501: 13 | J501: 5 | K501: 42 | L501: =M9 -> 0 | M501: 0 | N501: 0 | O501: 2 | P501: 3 | Q501: 4 | R501: 9 | S501: =V9 -> 0 | T501: =W9 -> 0 | U501: =X9 -> 0 | V501: =Y9 -> 0 | W501: =Z9 -> 0 | X501: =AA9 -> 0 | Y501: =AB9 -> 0 | Z501: =AE9 -> 51
A502: =IF(ADSI!$G$12="",ADSI!$H$16,ADSI!$H$12) -> 6 | B502: =IF(ADSI!$G$12="",ADSI!$H$16,ADSI!$H$14) ->  | C502: 351 | D502: =ADSI!$K$12 -> 2022 | E502: 0 | F502: 0 | G502: 1 | H502: 2 | I502: 0 | J502: 0 | K502: 3 | L502: 0 | M502: 0 | N502: 0 | O502: 0 | P502: 0 | Q502: 0 | R502: 0 | S502: 0 | T502: 0 | U502: 0 | V502: 0 | W502: 0 | X502: 0 | Y502: 0 | Z502: 3
A503: =IF(ADSI!$G$12="",ADSI!$H$16,ADSI!$H$12) -> 6 | B503: =IF(ADSI!$G$12="",ADSI!$H$16,ADSI!$H$14) ->  | C503: 352 | D503: =ADSI!$K$12 -> 2022 | E503: 0 | F503: 0 | G503: 4 | H503: 13 | I503: 10 | J503: 5 | K503: 32 | L503: 0 | M503: 0 | N503: 0 | O503: 2 | P503: 2 | Q503: 3 | R503: 7 | S503: 0 | T503: 0 | U503: 0 | V503: 0 | W503: 0 | X503: 0 | Y503: 0 | Z503: 39
A504: =IF(ADSI!$G$12="",ADSI!$H$16,ADSI!$H$12) -> 6 | B504: =IF(ADSI!$G$12="",ADSI!$H$16,ADSI!$H$14) ->  | C504: 353 | D504: =ADSI!$K$12 -> 2022 | E504: 0 | F504: 0 | G504: 3 | H504: 1 | I504: 3 | J504: 0 | K504: 7 | L504: 0 | M504: 0 | N504: 0 | O504: 0 | P504: 1 | Q504: 1 | R504: 2 | S504: 0 | T504: 0 | U504: 0 | V504: 0 | W504: 0 | X504: 0 | Y504: 0 | Z504: 9
A505: =IF(ADSI!$G$12="",ADSI!$H$16,ADSI!$H$12) -> 6 | B505: =IF(ADSI!$G$12="",ADSI!$H$16,ADSI!$H$14) ->  | C505: 354 | D505: =ADSI!$K$12 -> 2022 | E505: 0 | F505: 0 | G505: 0 | H505: 0 | I505: 0 | J505: 0 | K505: 0 | L505: 0 | M505: 0 | N505: 0 | O505: 0 | P505: 0 | Q505: 0 | R505: 0 | S505: 0 | T505: 0 | U505: 0 | V505: 0 | W505: 0 | X505: 0 | Y505: 0 | Z505: 0
A506: =IF(ADSI!$G$12="",ADSI!$H$16,ADSI!$H$12) -> 6 | B506: =IF(ADSI!$G$12="",ADSI!$H$16,ADSI!$H$14) ->  | C506: 355 | D506: =ADSI!$K$12 -> 2022 | E506: 0 | F506: 0 | G506: 0 | H506: 0 | I506: 0 | J506: 0 | K506: 0 | L506: 0 | M506: 0 | N506: 0 | O506: 0 | P506: 0 | Q506: 0 | R506: 0 | S506: 0 | T506: 0 | U506: 0 | V506: 0 | W506: 0 | X506: 0 | Y506: 0 | Z506: 0
A507: =IF(ADSI!$G$12="",ADSI!$H$16,ADSI!$H$12) -> 6 | B507: =IF(ADSI!$G$12="",ADSI!$H$16,ADSI!$H$14) ->  | C507: 356 | D507: =ADSI!$K$12 -> 2022 | E507: 0 | F507: 0 | G507: 0 | H507: 0 | I507: 0 | J507: 0 | K507: 0 | L507: 0 | M507: 0 | N507: 0 | O507: 0 | P507: 0 | Q507: 0 | R507: 0 | S507: 0 | T507: 0 | U507: 0 | V507: 0 | W507: 0 | X507: 0 | Y507: 0 | Z507: 0
A508: =IF(ADSI!$G$12="",ADSI!$H$16,ADSI!$H$12) -> 6 | B508: =IF(ADSI!$G$12="",ADSI!$H$16,ADSI!$H$14) ->  | C508: 357 | D508: =ADSI!$K$12 -> 2022 | E508: 0 | F508: 0 | G508: 0 | H508: 0 | I508: 0 | J508: 0 | K508: 0 | L508: 0 | M508: 0 | N508: 0 | O508: 0 | P508: 0 | Q508: 0 | R508: 0 | S508: 0 | T508: 0 | U508: 0 | V508: 0 | W508: 0 | X508: 0 | Y508: 0 | Z508: 0
A509: =IF(ADSI!$G$12="",ADSI!$H$16,ADSI!$H$12) -> 6 | B509: =IF(ADSI!$G$12="",ADSI!$H$16,ADSI!$H$14) ->  | C509: 358 | D509: =ADSI!$K$12 -> 2022 | E509: 0 | F509: 0 | G509: 0 | H509: 0 | I509: 0 | J509: 0 | K509: 0 | L509: 0 | M509: 0 | N509: 0 | O509: 0 | P509: 0 | Q509: 0 | R509: 0 | S509: 0 | T509: 0 | U509: 0 | V509: 0 | W509: 0 | X509: 0 | Y509: 0 | Z509: 0
A510: =IF(ADSI!$G$12="",ADSI!$H$16,ADSI!$H$12) -> 6 | B510: =IF(ADSI!$G$12="",ADSI!$H$16,ADSI!$H$14) ->  | C510: 359 | D510: =ADSI!$K$12 -> 2022 | E510: 0 | F510: 0 | G510: 1 | H510: 2 | I510: 0 | J510: 0 | K510: 3 | L510: 0 | M510: 0 | N510: 0 | O510: 1 | P510: 0 | Q510: 0 | R510: 1 | S510: 0 | T510: 0 | U510: 0 | V510: 0 | W510: 0 | X510: 0 | Y510: 0 | Z510: 4
A511: =IF(ADSI!$G$12="",ADSI!$H$16,ADSI!$H$12) -> 6 | B511: =IF(ADSI!$G$12="",ADSI!$H$16,ADSI!$H$14) ->  | C511: 360 | D511: =ADSI!$K$12 -> 2022 | E511: =D19 -> 0 | F511: 0 | G511: 0 | H511: 0 | I511: 0 | J511: 0 | K511: 0 | L511: =M19 -> 0 | M511: 0 | N511: 0 | O511: 0 | P511: 0 | Q511: 0 | R511: 0 | S511: 0 | T511: 0 | U511: 0 | V511: 0 | W511: 0 | X511: 0 | Y511: 0 | Z511: 0
A512: =IF(ADSI!$G$12="",ADSI!$H$16,ADSI!$H$12) -> 6 | B512: =IF(ADSI!$G$12="",ADSI!$H$16,ADSI!$H$14) ->  | C512: 361 | D512: =ADSI!$K$12 -> 2022 | E512: 0 | F512: 0 | G512: 1 | H512: 1 | I512: 0 | J512: 0 | K512: 2 | L512: 0 | M512: 0 | N512: 0 | O512: 1 | P512: 0 | Q512: 0 | R512: 1 | S512: 0 | T512: 0 | U512: 0 | V512: 0 | W512: 0 | X512: 0 | Y512: 0 | Z512: 3
A513: =IF(ADSI!$G$12="",ADSI!$H$16,ADSI!$H$12) -> 6 | B513: =IF(ADSI!$G$12="",ADSI!$H$16,ADSI!$H$14) ->  | C513: 362 | D513: =ADSI!$K$12 -> 2022 | E513: 0 | F513: 0 | G513: 0 | H513: 0 | I513: 0 | J513: 0 | K513: 0 | L513: 0 | M513: 0 | N513: 0 | O513: 0 | P513: 0 | Q513: 0 | R513: 0 | S513: 0 | T513: 0 | U513: 0 | V513: 0 | W513: 0 | X513: 0 | Y513: 0 | Z513: 0
A514: =IF(ADSI!$G$12="",ADSI!$H$16,ADSI!$H$12) -> 6 | B514: =IF(ADSI!$G$12="",ADSI!$H$16,ADSI!$H$14) ->  | C514: 363 | D514: =ADSI!$K$12 -> 2022 | E514: 0 | F514: 0 | G514: 0 | H514: 0 | I514: 0 | J514: 0 | K514: 0 | L514: 0 | M514: 0 | N514: 0 | O514: 0 | P514: 0 | Q514: 0 | R514: 0 | S514: 0 | T514: 0 | U514: 0 | V514: 0 | W514: 0 | X514: 0 | Y514: 0 | Z514: 0
A515: =IF(ADSI!$G$12="",ADSI!$H$16,ADSI!$H$12) -> 6 | B515: =IF(ADSI!$G$12="",ADSI!$H$16,ADSI!$H$14) ->  | C515: 364 | D515: =ADSI!$K$12 -> 2022 | E515: 0 | F515: 0 | G515: 0 | H515: 0 | I515: 0 | J515: 0 | K515: 0 | L515: 0 | M515: 0 | N515: 0 | O515: 0 | P515: 0 | Q515: 0 | R515: 0 | S515: 0 | T515: 0 | U515: 0 | V515: 0 | W515: 0 | X515: 0 | Y515: 0 | Z515: 0
A516: =IF(ADSI!$G$12="",ADSI!$H$16,ADSI!$H$12) -> 6 | B516: =IF(ADSI!$G$12="",ADSI!$H$16,ADSI!$H$14) ->  | C516: 365 | D516: =ADSI!$K$12 -> 2022 | E516: 0 | F516: 0 | G516: 0 | H516: 1 | I516: 0 | J516: 0 | K516: 1 | L516: 0 | M516: 0 | N516: 0 | O516: 0 | P516: 0 | Q516: 0 | R516: 0 | S516: 0 | T516: 0 | U516: 0 | V516: 0 | W516: 0 | X516: 0 | Y516: 0 | Z516: 1
A517: =IF(ADSI!$G$12="",ADSI!$H$16,ADSI!$H$12) -> 6 | B517: =IF(ADSI!$G$12="",ADSI!$H$16,ADSI!$H$14) ->  | C517: 366 | D517: =ADSI!$K$12 -> 2022 | E517: 0 | F517: 0 | G517: 0 | H517: 0 | I517: 0 | J517: 0 | K517: 0 | L517: 0 | M517: 0 | N517: 0 | O517: 0 | P517: 0 | Q517: 0 | R517: 0 | S517: 0 | T517: 0 | U517: 0 | V517: 0 | W517: 0 | X517: 0 | Y517: 0 | Z517: 0
A518: =IF(ADSI!$G$12="",ADSI!$H$16,ADSI!$H$12) -> 6 | B518: =IF(ADSI!$G$12="",ADSI!$H$16,ADSI!$H$14) ->  | C518: 367 | D518: =ADSI!$K$12 -> 2022 | E518: 0 | F518: 0 | G518: 0 | H518: 0 | I518: 0 | J518: 0 | K518: 0 | L518: 0 | M518: 0 | N518: 0 | O518: 0 | P518: 0 | Q518: 0 | R518: 0 | S518: 0 | T518: 0 | U518: 0 | V518: 0 | W518: 0 | X518: 0 | Y518: 0 | Z518: 0
A519: =IF(ADSI!$G$12="",ADSI!$H$16,ADSI!$H$12) -> 6 | B519: =IF(ADSI!$G$12="",ADSI!$H$16,ADSI!$H$14) ->  | C519: 368 | D519: =ADSI!$K$12 -> 2022 | E519: 0 | F519: 0 | G519: 0 | H519: 1 | I519: 0 | J519: 0 | K519: 1 | L519: 0 | M519: 0 | N519: 0 | O519: 0 | P519: 0 | Q519: 0 | R519: 0 | S519: 0 | T519: 0 | U519: 0 | V519: 0 | W519: 0 | X519: 0 | Y519: 0 | Z519: 1
A520: =IF(ADSI!$G$12="",ADSI!$H$16,ADSI!$H$12) -> 6 | B520: =IF(ADSI!$G$12="",ADSI!$H$16,ADSI!$H$14) ->  | C520: 369 | D520: =ADSI!$K$12 -> 2022 | E520: 0 | F520: 0 | G520: 0 | H520: 1 | I520: 0 | J520: 0 | K520: 1 | L520: 0 | M520: 0 | N520: 0 | O520: 1 | P520: 0 | Q520: 0 | R520: 1 | S520: 0 | T520: 0 | U520: 0 | V520: 0 | W520: 0 | X520: 0 | Y520: 0 | Z520: 2
A521: =IF(ADSI!$G$12="",ADSI!$H$16,ADSI!$H$12) -> 6 | B521: =IF(ADSI!$G$12="",ADSI!$H$16,ADSI!$H$14) ->  | C521: 390 | D521: =ADSI!$K$12 -> 2022 | E521: =D29 -> 0 | F521: 0 | G521: 9 | H521: 20 | I521: 13 | J521: 5 | K521: 47 | L521: =M29 -> 0 | M521: 0 | N521: 0 | O521: 4 | P521: 3 | Q521: 4 | R521: 11 | S521: 0 | T521: 0 | U521: 0 | V521: 0 | W521: 0 | X521: 0 | Y521: 0 | Z521: 58

Sheet P-VI
A1: =ADSI!$B$1 -> Goa, , ADSI-2022
A2: Errors | C2: =COUNTIF(E31:L33,FALSE) -> 0
A3: =IF(ADSI!$L$10=1,LangMaster!A147,LangMaster!B147) -> Proforma-VI
A4: =IF(ADSI!$L$10=1,LangMaster!A167,LangMaster!B167) -> Details of Road Accident According to Type of Vehicle and Mode of Transport involved
A5: =IF(ADSI!$L$10=1,LangMaster!A26,LangMaster!B26) -> Code | B5: =IF(ADSI!$L$10=1,LangMaster!A27,LangMaster!B27) -> S.No. | C5: =IF(ADSI!$L$10=1,LangMaster!A148,LangMaster!B148) -> Mode of Transport | E5: =IF(ADSI!$L$10=1,LangMaster!A168,LangMaster!B168) -> Number of Persons Travelling in the Involved mode of Transport
E7: =IF(ADSI!$L$10=1,LangMaster!A481,LangMaster!B481) -> No. of Persons Injured | I7: =IF(ADSI!$L$10=1,LangMaster!A482,LangMaster!B482) -> No. of Persons Died
E8: =IF(ADSI!$L$10=1,LangMaster!A30,LangMaster!B30) -> Male | F8: =IF(ADSI!$L$10=1,LangMaster!A31,LangMaster!B31) -> Female | G8: =IF(ADSI!$L$10=1,LangMaster!A32,LangMaster!B32) -> Transgender | H8: =IF(ADSI!$L$10=1,LangMaster!A169,LangMaster!B169) -> Total [sum of (3) to (5)] | I8: =IF(ADSI!$L$10=1,LangMaster!A30,LangMaster!B30) -> Male | J8: =IF(ADSI!$L$10=1,LangMaster!A31,LangMaster!B31) -> Female | K8: =IF(ADSI!$L$10=1,LangMaster!A32,LangMaster!B32) -> Transgender | L8: =IF(ADSI!$L$10=1,LangMaster!A170,LangMaster!B170) -> Total [sum of (7) to (9)]
B9: (1) | C9: (2) | E9: (3) | F9: (4) | G9: (5) | H9: (6) | I9: (7) | J9: (8) | K9: (9) | L9: (10)
A10: 400 | B10: 1 | C10: =IF(ADSI!$L$10=1,LangMaster!A149,LangMaster!B149) -> Truck/Lorry/Mini Truck | E10: 25 | F10: 3 | G10: 0 | H10: =SUM(E10:G10) -> 28 | I10: 4 | J10: 0 | K10: 0 | L10: =SUM(I10:K10) -> 4
A11: 405 | B11: 2 | C11: =IF(ADSI!$L$10=1,LangMaster!A150,LangMaster!B150) -> Bus | E11: 31 | F11: 9 | G11: 0 | H11: =SUM(E11:G11) -> 40 | I11: 2 | J11: 1 | K11: 0 | L11: =SUM(I11:K11) -> 3
A12: 409 | B12: 3 | C12: =IF(ADSI!$L$10=1,LangMaster!A151,LangMaster!B151) -> SUV / Car / Jeep / etc. | E12: 135 | F12: 43 | G12: 0 | H12: 178 | I12: 22 | J12: 4 | K12: 0 | L12: 26
A13: 420 | B13: 4 | C13: =IF(ADSI!$L$10=1,LangMaster!A152,LangMaster!B152) -> Tractor | E13: 0 | F13: 0 | G13: 0 | H13: 0 | I13: 1 | J13: 0 | K13: 0 | L13: 1
A14: 421 | B14: 5 | C14: =IF(ADSI!$L$10=1,LangMaster!A153,LangMaster!B153) -> Three Wheeler/Auto rickshaw | D14: =IF(ADSI!$L$10=1,LangMaster!A156,LangMaster!B156) -> Total (sum of 5.1 & 5.2) | E14: =SUM(E15:E16) -> 3 | F14: 1 | G14: 0 | H14: 4 | I14: 0 | J14: 0 | K14: 0 | L14: 0
A15: 422 | D15: =IF(ADSI!$L$10=1,LangMaster!A154,LangMaster!B154) -> 5.1 Passenger Carriers | E15: 2 | F15: 0 | G15: 0 | H15: 2 | I15: 0 | J15: 0 | K15: 0 | L15: 0
A16: 423 | D16: =IF(ADSI!$L$10=1,LangMaster!A155,LangMaster!B155) -> 5.2 Goods Carriers | E16: 1 | F16: 1 | G16: 0 | H16: 2 | I16: 0 | J16: 0 | K16: 0 | L16: 0
A17: 424 | B17: 6 | C17: =IF(ADSI!$L$10=1,LangMaster!A157,LangMaster!B157) -> Two Wheeler | E17: 584 | F17: 147 | G17: 0 | H17: 731 | I17: 157 | J17: 23 | K17: 0 | L17: 180
A18: 428 | B18: 7 | C18: =IF(ADSI!$L$10=1,LangMaster!A158,LangMaster!B158) -> Other Motor Vehicles | E18: 1 | F18: 1 | G18: 0 | H18: 2 | I18: 0 | J18: 0 | K18: 0 | L18: 0
A19: 429 | B19: 8 | C19: =IF(ADSI!$L$10=1,LangMaster!A159,LangMaster!B159) -> Sub-Total (sum of Sl. 1 to 7) | E19: =SUM(E10:E14,E17:E18) -> 779 | F19: =SUM(F10:F14,F17:F18) -> 204 | G19: 0 | H19: 983 | I19: =SUM(I10:I14,I17:I18) -> 186 | J19: 28 | K19: 0 | L19: 214
A20: 430 | B20: 9 | C20: =IF(ADSI!$L$10=1,LangMaster!A160,LangMaster!B160) -> Bicycle | E20: 9 | F20: 0 | G20: 0 | H20: 9 | I20: 2 | J20: 1 | K20: 0 | L20: 3
A21: 431 | B21: 10 | C21: =IF(ADSI!$L$10=1,LangMaster!A161,LangMaster!B161) -> Hand Drawn Vehicle/Cycle rickshaw | E21: 0 | F21: 0 | G21: 0 | H21: 0 | I21: 0 | J21: 0 | K21: 0 | L21: 0
A22: 432 | B22: 11 | C22: =IF(ADSI!$L$10=1,LangMaster!A162,LangMaster!B162) -> Animal Drawn Vehicle | E22: 0 | F22: 0 | G22: 0 | H22: 0 | I22: 0 | J22: 0 | K22: 0 | L22: 0
A23: 433 | B23: 12 | C23: =IF(ADSI!$L$10=1,LangMaster!A163,LangMaster!B163) -> Pedestrian | E23: 54 | F23: 25 | G23: 0 | H23: 79 | I23: 42 | J23: 12 | K23: 0 | L23: 54
A24: 434 | B24: 13 | C24: =IF(ADSI!$L$10=1,LangMaster!A164,LangMaster!B164) -> Others | E24: 0 | F24: 0 | G24: 0 | H24: 0 | I24: 3 | J24: 0 | K24: 0 | L24: 3
A25: 435 | B25: 14 | C25: =IF(ADSI!$L$10=1,LangMaster!A165,LangMaster!B165) -> Sub-Total (sum of Sl. 9 to 13) | E25: =SUM(E20:E24) -> 63 | F25: 25 | G25: 0 | H25: 88 | I25: 47 | J25: 13 | K25: 0 | L25: 60
A26: 450 | C26: =IF(ADSI!$L$10=1,LangMaster!A166,LangMaster!B166) -> Total (sum of Sl. 8 & 14) | E26: =SUM(E19+E25) -> 842 | F26: 229 | G26: 0 | H26: 1071 | I26: 233 | J26: 41 | K26: 0 | L26: 274
A27: VALIDATION WITH PROFORMA–II [Sl.–12.1 (Road Accidents Total)] | E27: No. of Persons Injured | I27: No. of Persons Died
E28: Male | F28: Female | G28: Transgender | H28: Total | I28: Male | J28: Female | K28: Transgender | L28: Total
A29: PROFORMA–II VALUES [Sl.– 12.1 (Road Accidents Total)] | E29: ='P-II'!F43 -> 842 | F29: ='P-II'!G43 -> 229 | G29: ='P-II'!H43 -> 0 | H29: ='P-II'!I43 -> 1071 | I29: ='P-II'!J43 -> 233 | J29: ='P-II'!K43 -> 41 | K29: ='P-II'!L43 -> 0 | L29: ='P-II'!M43 -> 274
A30: VALIDATION FOR INJURED and DIED [sum of Offending Driver/Pedestrian and Victims] | E30: =IF(E26=E29,"",FALSE) ->  | F30: =IF(F26=F29,"",FALSE) -> 
A31: SL-7 ABNORMAL VARIATION IN "OTHER MOTOR VEHICLES" DATA | E31: =IF(E19>0,IF((E18/E19*100)>10,"ABVAR",""),"") -> 
A32: SL-12 ABNORMAL VARIATION IN "PEDESTRIAN" DATA | E32: =IF(E25>0,IF((E23/E26*100)>15,"RE-CHECK",""),"") ->  | I32: RE-CHECK | J32: RE-CHECK | L32: RE-CHECK
A33: SL-13 ABNORMAL VARIATION IN "OTHERS" DATA | E33: =IF(E25>0,IF((E24/E25*100)>10,"ABVAR",""),"") -> 
AK180: =A1 -> Goa, , ADSI-2022
AK181: =A2 -> Errors | AL181: =C2 -> 0
AK182: =A3 -> Proforma-VI
AK183: =A4 -> Details of Road Accident According to Type of Vehicle and Mode of Transport involved
AK184: =B5 -> S.No. | AL184: =C5 -> Mode of Transport
AN185: =E5 -> Number of Persons Travelling in the Involved mode of Transport | AR185: Victims
AN186: =E7 -> No. of Persons Injured | AR186: =I7 -> No. of Persons Died
AN187: Male | AO187: =F8 -> Female | AP187: =G8 -> Transgender | AQ187: =H8 -> Total [sum of (3) to (5)] | AR187: Male | AS187: =J8 -> Female | AT187: =K8 -> Transgender | AU187: =L8 -> Total [sum of (7) to (9)]
AK188: =B9 -> (1) | AL188: (2) | AN188: (3) | AO188: (4) | AP188: (5) | AQ188: (6) | AR188: (7) | AS188: (8) | AT188: (9) | AU188: (10)
AK189: 1 | AL189: Truck/Lorry/Mini Truck | AM189: =D10 -> 0 | AN189: 25 | AO189: 3 | AP189: 0 | AQ189: 28 | AR189: 4 | AS189: 0 | AT189: 0 | AU189: 4
AK190: 2 | AL190: Bus | AM190: 0 | AN190: 31 | AO190: 9 | AP190: 0 | AQ190: 40 | AR190: 2 | AS190: 1 | AT190: 0 | AU190: 3
AK191: 3 | AL191: SUV / Car / Jeep / etc. | AM191: 0 | AN191: 135 | AO191: 43 | AP191: 0 | AQ191: 178 | AR191: 22 | AS191: 4 | AT191: 0 | AU191: 26
AK192: 4 | AL192: Tractor | AM192: 0 | AN192: 0 | AO192: 0 | AP192: 0 | AQ192: 0 | AR192: 1 | AS192: 0 | AT192: 0 | AU192: 1
AK193: 5 | AL193: Three Wheeler/Auto rickshaw | AM193: Total (sum of 5.1 & 5.2) | AN193: 3 | AO193: 1 | AP193: 0 | AQ193: 4 | AR193: 0 | AS193: 0 | AT193: 0 | AU193: 0
AM194: 5.1 Passenger Carriers | AN194: 2 | AO194: 0 | AP194: 0 | AQ194: 2 | AR194: 0 | AS194: 0 | AT194: 0 | AU194: 0
AM195: 5.2 Goods Carriers | AN195: 1 | AO195: 1 | AP195: 0 | AQ195: 2 | AR195: 0 | AS195: 0 | AT195: 0 | AU195: 0
AK196: =B17 -> 6 | AL196: =C17 -> Two Wheeler | AM196: 0 | AN196: 584 | AO196: 147 | AP196: 0 | AQ196: 731 | AR196: 157 | AS196: 23 | AT196: 0 | AU196: 180
AK197: 7 | AL197: Other Motor Vehicles | AN197: 1 | AO197: 1 | AP197: 0 | AQ197: 2 | AR197: 0 | AS197: 0 | AT197: 0 | AU197: 0
AK198: 8 | AL198: Sub-Total (sum of Sl. 1 to 7) | AN198: 779 | AO198: 204 | AP198: 0 | AQ198: 983 | AR198: 186 | AS198: 28 | AT198: 0 | AU198: 214
AK199: 9 | AL199: Bicycle | AN199: 9 | AO199: 0 | AP199: 0 | AQ199: 9 | AR199: 2 | AS199: 1 | AT199: 0 | AU199: 3
AK200: 10 | AL200: Hand Drawn Vehicle/Cycle rickshaw | AN200: 0 | AO200: 0 | AP200: 0 | AQ200: 0 | AR200: 0 | AS200: 0 | AT200: 0 | AU200: 0
AK201: 11 | AL201: Animal Drawn Vehicle | AN201: 0 | AO201: 0 | AP201: 0 | AQ201: 0 | AR201: 0 | AS201: 0 | AT201: 0 | AU201: 0
AK202: 12 | AL202: Pedestrian | AN202: 54 | AO202: 25 | AP202: 0 | AQ202: 79 | AR202: 42 | AS202: 12 | AT202: 0 | AU202: 54
AK203: 13 | AL203: Others | AN203: 0 | AO203: 0 | AP203: 0 | AQ203: 0 | AR203: 3 | AS203: 0 | AT203: 0 | AU203: 3
AK204: 14 | AL204: Sub-Total (sum of Sl. 9 to 13) | AN204: 63 | AO204: 25 | AP204: 0 | AQ204: 88 | AR204: 47 | AS204: 13 | AT204: 0 | AU204: 60
AK205: 0 | AL205: Total (sum of Sl. 8 & 14) | AN205: 842 | AO205: 229 | AP205: 0 | AQ205: 1071 | AR205: 233 | AS205: 41 | AT205: 0 | AU205: 274
AK206: =A27 -> VALIDATION WITH PROFORMA–II [Sl.–12.1 (Road Accidents Total)]
AK208: =A29 -> PROFORMA–II VALUES [Sl.– 12.1 (Road Accidents Total)]
AK209: =A30 -> VALIDATION FOR INJURED and DIED [sum of Offending Driver/Pedestrian and Victims]
AK210: =A31 -> SL-7 ABNORMAL VARIATION IN "OTHER MOTOR VEHICLES" DATA | AN210: =E31 -> 
AK211: =A32 -> SL-12 ABNORMAL VARIATION IN "PEDESTRIAN" DATA | AN211: =E32 ->  | AO211: =F32 ->  | AP211: =G32 ->  | AQ211: =H32 ->  | AR211: =I32 -> RE-CHECK | AS211: =J32 -> RE-CHECK | AT211: =K32 ->  | AU211: =L32 -> RE-CHECK
AK212: =A33 -> SL-13 ABNORMAL VARIATION IN "OTHERS" DATA | AN212: =E33 -> 
A480: StateUTCityCode | B480: DistrictCode | C480: CrimeCode | D480: DataYear | E480: Victims Died_Male | F480: Victims Died_Female | G480: Victims Died_Trans | H480: Victims Died_Total | I480: Victims Injured_Male | J480: Victims Injured_Female | K480: Victims Injured_Trans | L480: Victims Injured_Total
A481: =IF(ADSI!$G$12="",ADSI!$H$16,ADSI!$H$12) -> 6 | B481: =IF(ADSI!$G$12="",ADSI!$H$16,ADSI!$H$14) ->  | C481: =A10 -> 400 | D481: =ADSI!$K$12 -> 2022 | E481: =E10 -> 25 | F481: 3 | G481: 0 | H481: 28 | I481: 4 | J481: 0 | K481: 0 | L481: 4
A482: =IF(ADSI!$G$12="",ADSI!$H$16,ADSI!$H$12) -> 6 | B482: =IF(ADSI!$G$12="",ADSI!$H$16,ADSI!$H$14) ->  | C482: 405 | D482: =ADSI!$K$12 -> 2022 | E482: 31 | F482: 9 | G482: 0 | H482: 40 | I482: 2 | J482: 1 | K482: 0 | L482: 3
A483: =IF(ADSI!$G$12="",ADSI!$H$16,ADSI!$H$12) -> 6 | B483: =IF(ADSI!$G$12="",ADSI!$H$16,ADSI!$H$14) ->  | C483: 409 | D483: =ADSI!$K$12 -> 2022 | E483: 135 | F483: 43 | G483: 0 | H483: 178 | I483: 22 | J483: 4 | K483: 0 | L483: 26
A484: =IF(ADSI!$G$12="",ADSI!$H$16,ADSI!$H$12) -> 6 | B484: =IF(ADSI!$G$12="",ADSI!$H$16,ADSI!$H$14) ->  | C484: 420 | D484: =ADSI!$K$12 -> 2022 | E484: 0 | F484: 0 | G484: 0 | H484: 0 | I484: 1 | J484: 0 | K484: 0 | L484: 1
A485: =IF(ADSI!$G$12="",ADSI!$H$16,ADSI!$H$12) -> 6 | B485: =IF(ADSI!$G$12="",ADSI!$H$16,ADSI!$H$14) ->  | C485: 421 | D485: =ADSI!$K$12 -> 2022 | E485: 3 | F485: 1 | G485: 0 | H485: 4 | I485: 0 | J485: 0 | K485: 0 | L485: 0
A486: =IF(ADSI!$G$12="",ADSI!$H$16,ADSI!$H$12) -> 6 | B486: =IF(ADSI!$G$12="",ADSI!$H$16,ADSI!$H$14) ->  | C486: 422 | D486: =ADSI!$K$12 -> 2022 | E486: 2 | F486: 0 | G486: 0 | H486: 2 | I486: 0 | J486: 0 | K486: 0 | L486: 0
A487: =IF(ADSI!$G$12="",ADSI!$H$16,ADSI!$H$12) -> 6 | B487: =IF(ADSI!$G$12="",ADSI!$H$16,ADSI!$H$14) ->  | C487: 423 | D487: =ADSI!$K$12 -> 2022 | E487: 1 | F487: 1 | G487: 0 | H487: 2 | I487: 0 | J487: 0 | K487: 0 | L487: 0
A488: =IF(ADSI!$G$12="",ADSI!$H$16,ADSI!$H$12) -> 6 | B488: =IF(ADSI!$G$12="",ADSI!$H$16,ADSI!$H$14) ->  | C488: 424 | D488: =ADSI!$K$12 -> 2022 | E488: 584 | F488: 147 | G488: 0 | H488: 731 | I488: 157 | J488: 23 | K488: 0 | L488: 180
A489: =IF(ADSI!$G$12="",ADSI!$H$16,ADSI!$H$12) -> 6 | B489: =IF(ADSI!$G$12="",ADSI!$H$16,ADSI!$H$14) ->  | C489: =A18 -> 428 | D489: =ADSI!$K$12 -> 2022 | E489: =E18 -> 1 | F489: 1 | G489: 0 | H489: 2 | I489: 0 | J489: 0 | K489: 0 | L489: 0
A490: =IF(ADSI!$G$12="",ADSI!$H$16,ADSI!$H$12) -> 6 | B490: =IF(ADSI!$G$12="",ADSI!$H$16,ADSI!$H$14) ->  | C490: 429 | D490: =ADSI!$K$12 -> 2022 | E490: =E19 -> 779 | F490: 204 | G490: 0 | H490: 983 | I490: 186 | J490: 28 | K490: 0 | L490: 214
A491: =IF(ADSI!$G$12="",ADSI!$H$16,ADSI!$H$12) -> 6 | B491: =IF(ADSI!$G$12="",ADSI!$H$16,ADSI!$H$14) ->  | C491: 430 | D491: =ADSI!$K$12 -> 2022 | E491: =E20 -> 9 | F491: 0 | G491: 0 | H491: 9 | I491: 2 | J491: 1 | K491: 0 | L491: 3
A492: =IF(ADSI!$G$12="",ADSI!$H$16,ADSI!$H$12) -> 6 | B492: =IF(ADSI!$G$12="",ADSI!$H$16,ADSI!$H$14) ->  | C492: 431 | D492: =ADSI!$K$12 -> 2022 | E492: =E21 -> 0 | F492: 0 | G492: 0 | H492: 0 | I492: 0 | J492: 0 | K492: 0 | L492: 0
A493: =IF(ADSI!$G$12="",ADSI!$H$16,ADSI!$H$12) -> 6 | B493: =IF(ADSI!$G$12="",ADSI!$H$16,ADSI!$H$14) ->  | C493: 432 | D493: =ADSI!$K$12 -> 2022 | E493: =E22 -> 0 | F493: 0 | G493: 0 | H493: 0 | I493: 0 | J493: 0 | K493: 0 | L493: 0
A494: =IF(ADSI!$G$12="",ADSI!$H$16,ADSI!$H$12) -> 6 | B494: =IF(ADSI!$G$12="",ADSI!$H$16,ADSI!$H$14) ->  | C494: =A23 -> 433 | D494: =ADSI!$K$12 -> 2022 | E494: =E23 -> 54 | F494: 25 | G494: 0 | H494: 79 | I494: 42 | J494: 12 | K494: 0 | L494: 54
A495: =IF(ADSI!$G$12="",ADSI!$H$16,ADSI!$H$12) -> 6 | B495: =IF(ADSI!$G$12="",ADSI!$H$16,ADSI!$H$14) ->  | C495: 434 | D495: =ADSI!$K$12 -> 2022 | E495: =E24 -> 0 | F495: 0 | G495: 0 | H495: 0 | I495: 3 | J495: 0 | K495: 0 | L495: 3
A496: =IF(ADSI!$G$12="",ADSI!$H$16,ADSI!$H$12) -> 6 | B496: =IF(ADSI!$G$12="",ADSI!$H$16,ADSI!$H$14) ->  | C496: 435 | D496: =ADSI!$K$12 -> 2022 | E496: =E25 -> 63 | F496: 25 | G496: 0 | H496: 88 | I496: 47 | J496: 13 | K496: 0 | L496: 60
A497: =IF(ADSI!$G$12="",ADSI!$H$16,ADSI!$H$12) -> 6 | B497: =IF(ADSI!$G$12="",ADSI!$H$16,ADSI!$H$14) ->  | C497: 450 | D497: =ADSI!$K$12 -> 2022 | E497: =E26 -> 842 | F497: 229 | G497: 0 | H497: 1071 | I497: 233 | J497: 41 | K497: 0 | L497: 274
A500: StateUTCityCode | B500: DistrictCode | C500: CrimeCode | D500: DataYear | E500: Victims Injured_Male | F500: Victims Injured_Female | G500: Victims Injured_Trans | H500: Victims Injured_Total | I500: Victims Died_Male | J500: Victims Died_Female | K500: Victims Died_Trans | L500: Victims Died_Total
A501: =IF(ADSI!$G$12="",ADSI!$H$16,ADSI!$H$12) -> 6 | B501: =IF(ADSI!$G$12="",ADSI!$H$16,ADSI!$H$14) ->  | C501: =A10 -> 400 | D501: =ADSI!$K$12 -> 2022 | E501: =E10 -> 25 | F501: =F10 -> 3 | G501: 0 | H501: 28 | I501: 4 | J501: 0 | K501: 0 | L501: 4
A502: =IF(ADSI!$G$12="",ADSI!$H$16,ADSI!$H$12) -> 6 | B502: =IF(ADSI!$G$12="",ADSI!$H$16,ADSI!$H$14) ->  | C502: =A11 -> 405 | D502: =ADSI!$K$12 -> 2022 | E502: =E11 -> 31 | F502: 9 | G502: 0 | H502: 40 | I502: 2 | J502: 1 | K502: 0 | L502: 3
A503: =IF(ADSI!$G$12="",ADSI!$H$16,ADSI!$H$12) -> 6 | B503: =IF(ADSI!$G$12="",ADSI!$H$16,ADSI!$H$14) ->  | C503: 409 | D503: =ADSI!$K$12 -> 2022 | E503: 135 | F503: 43 | G503: 0 | H503: 178 | I503: 22 | J503: 4 | K503: 0 | L503: 26
A504: =IF(ADSI!$G$12="",ADSI!$H$16,ADSI!$H$12) -> 6 | B504: =IF(ADSI!$G$12="",ADSI!$H$16,ADSI!$H$14) ->  | C504: 420 | D504: =ADSI!$K$12 -> 2022 | E504: 0 | F504: 0 | G504: 0 | H504: 0 | I504: 1 | J504: 0 | K504: 0 | L504: 1
A505: =IF(ADSI!$G$12="",ADSI!$H$16,ADSI!$H$12) -> 6 | B505: =IF(ADSI!$G$12="",ADSI!$H$16,ADSI!$H$14) ->  | C505: 421 | D505: =ADSI!$K$12 -> 2022 | E505: 3 | F505: 1 | G505: 0 | H505: 4 | I505: 0 | J505: 0 | K505: 0 | L505: 0
A506: =IF(ADSI!$G$12="",ADSI!$H$16,ADSI!$H$12) -> 6 | B506: =IF(ADSI!$G$12="",ADSI!$H$16,ADSI!$H$14) ->  | C506: 422 | D506: =ADSI!$K$12 -> 2022 | E506: 2 | F506: 0 | G506: 0 | H506: 2 | I506: 0 | J506: 0 | K506: 0 | L506: 0
A507: =IF(ADSI!$G$12="",ADSI!$H$16,ADSI!$H$12) -> 6 | B507: =IF(ADSI!$G$12="",ADSI!$H$16,ADSI!$H$14) ->  | C507: 423 | D507: =ADSI!$K$12 -> 2022 | E507: 1 | F507: 1 | G507: 0 | H507: 2 | I507: 0 | J507: 0 | K507: 0 | L507: 0
A508: =IF(ADSI!$G$12="",ADSI!$H$16,ADSI!$H$12) -> 6 | B508: =IF(ADSI!$G$12="",ADSI!$H$16,ADSI!$H$14) ->  | C508: 424 | D508: =ADSI!$K$12 -> 2022 | E508: 584 | F508: 147 | G508: 0 | H508: 731 | I508: 157 | J508: 23 | K508: 0 | L508: 180
A509: =IF(ADSI!$G$12="",ADSI!$H$16,ADSI!$H$12) -> 6 | B509: =IF(ADSI!$G$12="",ADSI!$H$16,ADSI!$H$14) ->  | C509: 428 | D509: =ADSI!$K$12 -> 2022 | E509: 1 | F509: 1 | G509: 0 | H509: 2 | I509: 0 | J509: 0 | K509: 0 | L509: 0
A510: =IF(ADSI!$G$12="",ADSI!$H$16,ADSI!$H$12) -> 6 | B510: =IF(ADSI!$G$12="",ADSI!$H$16,ADSI!$H$14) ->  | C510: 429 | D510: =ADSI!$K$12 -> 2022 | E510: 779 | F510: 204 | G510: 0 | H510: 983 | I510: 186 | J510: 28 | K510: 0 | L510: 214
A511: =IF(ADSI!$G$12="",ADSI!$H$16,ADSI!$H$12) -> 6 | B511: =IF(ADSI!$G$12="",ADSI!$H$16,ADSI!$H$14) ->  | C511: 430 | D511: =ADSI!$K$12 -> 2022 | E511: 9 | F511: 0 | G511: 0 | H511: 9 | I511: 2 | J511: 1 | K511: 0 | L511: 3
A512: =IF(ADSI!$G$12="",ADSI!$H$16,ADSI!$H$12) -> 6 | B512: =IF(ADSI!$G$12="",ADSI!$H$16,ADSI!$H$14) ->  | C512: 431 | D512: =ADSI!$K$12 -> 2022 | E512: 0 | F512: 0 | G512: 0 | H512: 0 | I512: 0 | J512: 0 | K512: 0 | L512: 0
A513: =IF(ADSI!$G$12="",ADSI!$H$16,ADSI!$H$12) -> 6 | B513: =IF(ADSI!$G$12="",ADSI!$H$16,ADSI!$H$14) ->  | C513: 432 | D513: =ADSI!$K$12 -> 2022 | E513: 0 | F513: 0 | G513: 0 | H513: 0 | I513: 0 | J513: 0 | K513: 0 | L513: 0
A514: =IF(ADSI!$G$12="",ADSI!$H$16,ADSI!$H$12) -> 6 | B514: =IF(ADSI!$G$12="",ADSI!$H$16,ADSI!$H$14) ->  | C514: 433 | D514: =ADSI!$K$12 -> 2022 | E514: 54 | F514: 25 | G514: 0 | H514: 79 | I514: 42 | J514: 12 | K514: 0 | L514: 54
A515: =IF(ADSI!$G$12="",ADSI!$H$16,ADSI!$H$12) -> 6 | B515: =IF(ADSI!$G$12="",ADSI!$H$16,ADSI!$H$14) ->  | C515: 434 | D515: =ADSI!$K$12 -> 2022 | E515: 0 | F515: 0 | G515: 0 | H515: 0 | I515: 3 | J515: 0 | K515: 0 | L515: 3
A516: =IF(ADSI!$G$12="",ADSI!$H$16,ADSI!$H$12) -> 6 | B516: =IF(ADSI!$G$12="",ADSI!$H$16,ADSI!$H$14) ->  | C516: 435 | D516: =ADSI!$K$12 -> 2022 | E516: 63 | F516: 25 | G516: 0 | H516: 88 | I516: 47 | J516: 13 | K516: 0 | L516: 60
A517: =IF(ADSI!$G$12="",ADSI!$H$16,ADSI!$H$12) -> 6 | B517: =IF(ADSI!$G$12="",ADSI!$H$16,ADSI!$H$14) ->  | C517: 450 | D517: =ADSI!$K$12 -> 2022 | E517: 842 | F517: 229 | G517: 0 | H517: 1071 | I517: 233 | J517: 41 | K517: 0 | L517: 274

Sheet P-VII
A1: =ADSI!$B$1 -> Goa, , ADSI-2022
A2: Errors | C2: =COUNTIF(D14:M14,FALSE)+COUNTIF(E8:E12,FALSE) -> 0
A3: =IF(ADSI!$L$10=1,LangMaster!A171,LangMaster!B171) -> ProformaVII
A4: =IF(ADSI!$L$10=1,LangMaster!A172,LangMaster!B172) -> Road Accidents Classified According to classification of Road
A5: =IF(ADSI!$L$10=1,LangMaster!A26,LangMaster!B26) -> Code | B5: =IF(ADSI!$L$10=1,LangMaster!A27,LangMaster!B27) -> S.No. | C5: =IF(ADSI!$L$10=1,LangMaster!A173,LangMaster!B173) -> Classification of Roads | D5: =IF(ADSI!$L$10=1,LangMaster!A479,LangMaster!B479) -> No. of Cases | E5: =IF(ADSI!$L$10=1,LangMaster!A480,LangMaster!B480) -> VALIDATION WITH NUMBER OF CASES | F5: =IF(ADSI!$L$10=1,LangMaster!A481,LangMaster!B481) -> No. of Persons Injured | J5: =IF(ADSI!$L$10=1,LangMaster!A482,LangMaster!B482) -> No. of Persons Died
F6: =IF(ADSI!$L$10=1,LangMaster!A30,LangMaster!B30) -> Male | G6: =IF(ADSI!$L$10=1,LangMaster!A31,LangMaster!B31) -> Female | H6: =IF(ADSI!$L$10=1,LangMaster!A32,LangMaster!B32) -> Transgender | I6: =IF(ADSI!$L$10=1,LangMaster!A174,LangMaster!B174) -> Total [sum of (4) to (6)] | J6: =IF(ADSI!$L$10=1,LangMaster!A30,LangMaster!B30) -> Male | K6: =IF(ADSI!$L$10=1,LangMaster!A31,LangMaster!B31) -> Female | L6: =IF(ADSI!$L$10=1,LangMaster!A32,LangMaster!B32) -> Transgender | M6: =IF(ADSI!$L$10=1,LangMaster!A175,LangMaster!B175) -> Total [sum of (8) to (10)]
B7: (1) | C7: (2) | D7: (3) | F7: (4) | G7: (5) | H7: (6) | I7: (7) | J7: (8) | K7: (9) | L7: (10) | M7: (11)
A8: 476 | B8: 1 | C8: =IF(ADSI!$L$10=1,LangMaster!A176,LangMaster!B176) -> National Highways | D8: 1227 | E8: =IF(AND(OR(I8>0,M8>0),D8=0),FALSE,"") ->  | F8: 270 | G8: 74 | H8: 0 | I8: =SUM(F8:H8) -> 344 | J8: 104 | K8: 17 | L8: 0 | M8: =SUM(J8:L8) -> 121
A9: 477 | B9: 2 | C9: =IF(ADSI!$L$10=1,LangMaster!A177,LangMaster!B177) -> State Highways | D9: 408 | E9: =IF(AND(OR(I9>0,M9>0),D9=0),FALSE,"") ->  | F9: 146 | G9: 48 | H9: 0 | I9: =SUM(F9:H9) -> 194 | J9: 33 | K9: 4 | L9: 0 | M9: =SUM(J9:L9) -> 37
A10: 478 | B10: 3 | C10: =IF(ADSI!$L$10=1,LangMaster!A178,LangMaster!B178) -> Expressways | D10: 0 | F10: 0 | G10: 0 | H10: 0 | I10: 0 | J10: 0 | K10: 0 | L10: 0 | M10: 0
A11: 479 | B11: 4 | C11: =IF(ADSI!$L$10=1,LangMaster!A179,LangMaster!B179) -> Other Roads | D11: 1377 | E11: =IF(AND(OR(I11>0,M11>0),D11=0),FALSE,"") ->  | F11: 426 | G11: 107 | H11: 0 | I11: 533 | J11: 96 | K11: 20 | L11: 0 | M11: 116
A12: 490 | B12: 5 | C12: =IF(ADSI!$L$10=1,LangMaster!A180,LangMaster!B180) -> Total (sum of Sl. 1 to 4) | D12: =SUM(D8:D11) -> 3012 | E12: =IF(AND(OR(I12>0,M12>0),D12=0),FALSE,"") ->  | F12: =SUM(F8:F11) -> 842 | G12: 229 | H12: 0 | I12: 1071 | J12: 233 | K12: 41 | L12: 0 | M12: 274
A13: PROFORMA–II VALUES [Sl.– 12.1 (Road Accidents Total)] | D13: ='P-II'!D43 -> 3012 | F13: ='P-II'!F43 -> 842 | G13: ='P-II'!G43 -> 229 | H13: ='P-II'!H43 -> 0 | I13: ='P-II'!I43 -> 1071 | J13: ='P-II'!J43 -> 233 | K13: ='P-II'!K43 -> 41 | L13: ='P-II'!L43 -> 0 | M13: ='P-II'!M43 -> 274
A14: VALIDATION WITH PROFORMA–II [Sl.– 12.1 (Road Accidents Total)] | D14: =IF(D12='P-II'!D43,"",FALSE) ->  | F14: =IF(F12='P-II'!F43,"",FALSE) ->  | G14: =IF(G12='P-II'!G43,"",FALSE) ->  | H14: =IF(H12='P-II'!H43,"",FALSE) ->  | I14: =IF(I12='P-II'!I43,"",FALSE) ->  | J14: =IF(J12='P-II'!J43,"",FALSE) ->  | K14: =IF(K12='P-II'!K43,"",FALSE) ->  | L14: =IF(L12='P-II'!L43,"",FALSE) ->  | M14: =IF(M12='P-II'!M43,"",FALSE) -> 
BA200: =A1 -> Goa, , ADSI-2022
BA201: =A2 -> Errors | BB201: =C2 -> 0
BA202: =A3 -> ProformaVII
BA203: =A4 -> Road Accidents Classified According to classification of Road
BA204: =B5 -> S.No. | BB204: =C5 -> Classification of Roads | BC204: =D5 -> No. of Cases | BD204: =E5 -> VALIDATION WITH NUMBER OF CASES | BE204: =F5 -> No. of Persons Injured | BI204: =J5 -> No. of Persons Died
BE205: Male | BF205: =G6 -> Female | BG205: =H6 -> Transgender | BH205: =I6 -> Total [sum of (4) to (6)] | BI205: Male | BJ205: =K6 -> Female | BK205: =L6 -> Transgender | BL205: =M6 -> Total [sum of (8) to (10)]
BA206: =B7 -> (1) | BB206: (2) | BC206: (3) | BE206: (4) | BF206: (5) | BG206: (6) | BH206: (7) | BI206: (8) | BJ206: (9) | BK206: (10) | BL206: (11)
BA207: 1 | BB207: National Highways | BC207: 1227 | BD207: =E8 ->  | BE207: 270 | BF207: 74 | BG207: 0 | BH207: 344 | BI207: 104 | BJ207: 17 | BK207: 0 | BL207: 121
BA208: 2 | BB208: State Highways | BC208: 408 | BD208: =E9 ->  | BE208: 146 | BF208: 48 | BG208: 0 | BH208: 194 | BI208: 33 | BJ208: 4 | BK208: 0 | BL208: 37
BA209: 3 | BB209: Expressways | BC209: 0 | BE209: 0 | BF209: 0 | BG209: 0 | BH209: 0 | BI209: 0 | BJ209: 0 | BK209: 0 | BL209: 0
BA210: 4 | BB210: Other Roads | BC210: 1377 | BE210: 426 | BF210: 107 | BG210: 0 | BH210: 533 | BI210: 96 | BJ210: 20 | BK210: 0 | BL210: 116
BA211: 5 | BB211: Total (sum of Sl. 1 to 4) | BC211: 3012 | BE211: 842 | BF211: 229 | BG211: 0 | BH211: 1071 | BI211: 233 | BJ211: 41 | BK211: 0 | BL211: 274
BA212: =A13 -> PROFORMA–II VALUES [Sl.– 12.1 (Road Accidents Total)] | BC212: 3012 | BE212: 842 | BF212: 229 | BG212: 0 | BH212: 1071 | BI212: 233 | BJ212: 41 | BK212: 0 | BL212: 274
BA213: =A14 -> VALIDATION WITH PROFORMA–II [Sl.– 12.1 (Road Accidents Total)]
A500: StateUTCityCode | B500: DistrictCode | C500: CrimeCode | D500: DataYear | E500: Number of Cases | F500: Injured_Male | G500: Injured_Female | H500: Injured_Trans | I500: Injured_Total | J500: Died_Male | K500: Died_Female | L500: Died_Trans | M500: Died_Total
A501: =IF(ADSI!$G$12="",ADSI!$H$16,ADSI!$H$12) -> 6 | B501: =IF(ADSI!$G$12="",ADSI!$H$16,ADSI!$H$14) ->  | C501: =A8 -> 476 | D501: =ADSI!$K$12 -> 2022 | E501: =D8 -> 1227 | F501: =F8 -> 270 | G501: =G8 -> 74 | H501: 0 | I501: 344 | J501: 104 | K501: 17 | L501: 0 | M501: 121
A502: =IF(ADSI!$G$12="",ADSI!$H$16,ADSI!$H$12) -> 6 | B502: =IF(ADSI!$G$12="",ADSI!$H$16,ADSI!$H$14) ->  | C502: =A9 -> 477 | D502: =ADSI!$K$12 -> 2022 | E502: =D9 -> 408 | F502: =F9 -> 146 | G502: 48 | H502: 0 | I502: 194 | J502: 33 | K502: 4 | L502: 0 | M502: 37
A503: =IF(ADSI!$G$12="",ADSI!$H$16,ADSI!$H$12) -> 6 | B503: =IF(ADSI!$G$12="",ADSI!$H$16,ADSI!$H$14) ->  | C503: 478 | D503: =ADSI!$K$12 -> 2022 | E503: 0 | F503: =F10 -> 0 | G503: 0 | H503: 0 | I503: 0 | J503: 0 | K503: 0 | L503: 0 | M503: 0
A504: =IF(ADSI!$G$12="",ADSI!$H$16,ADSI!$H$12) -> 6 | B504: =IF(ADSI!$G$12="",ADSI!$H$16,ADSI!$H$14) ->  | C504: 479 | D504: =ADSI!$K$12 -> 2022 | E504: 1377 | F504: =F11 -> 426 | G504: 107 | H504: 0 | I504: 533 | J504: 96 | K504: 20 | L504: 0 | M504: 116
A505: =IF(ADSI!$G$12="",ADSI!$H$16,ADSI!$H$12) -> 6 | B505: =IF(ADSI!$G$12="",ADSI!$H$16,ADSI!$H$14) ->  | C505: 490 | D505: =ADSI!$K$12 -> 2022 | E505: 3012 | F505: =F12 -> 842 | G505: 229 | H505: 0 | I505: 1071 | J505: 233 | K505: 41 | L505: 0 | M505: 274

Sheet P-VIII
A1: =ADSI!$B$1 -> Goa, , ADSI-2022
A2: Errors | C2: =COUNTIF(D27:M27,FALSE)+COUNTIF(E9:E15,FALSE)+COUNTIF(E17:E25,FALSE) -> 0 | E2: Abnormal Variations/Re-check | F2: =COUNTIF(D28:M30,"ABVAR")+COUNTIF(D28:M30,"RE-CHECK") -> 12 | G2: =IF(ADSI!$L$10=1,LangMaster!A183,LangMaster!B183) -> Place of occurrence refers to the nearest point from the spot of accident occurred.
A3: =IF(ADSI!$L$10=1,LangMaster!A181,LangMaster!B181) -> Proforma-VIII
A4: =IF(ADSI!$L$10=1,LangMaster!A182,LangMaster!B182) -> Road Accidents Classified According to Place of Occurrence
A5: =IF(ADSI!$L$10=1,LangMaster!A26,LangMaster!B26) -> Code | B5: =IF(ADSI!$L$10=1,LangMaster!A27,LangMaster!B27) -> S.No. | C5: =IF(ADSI!$L$10=1,LangMaster!A185,LangMaster!B185) -> Place of Occurrence | D5: =IF(ADSI!$L$10=1,LangMaster!A479,LangMaster!B479) -> No. of Cases | E5: =IF(ADSI!$L$10=1,LangMaster!A480,LangMaster!B480) -> VALIDATION WITH NUMBER OF CASES | F5: =IF(ADSI!$L$10=1,LangMaster!A481,LangMaster!B481) -> No. of Persons Injured | J5: =IF(ADSI!$L$10=1,LangMaster!A482,LangMaster!B482) -> No. of Persons Died
F6: =IF(ADSI!$L$10=1,LangMaster!A30,LangMaster!B30) -> Male | G6: =IF(ADSI!$L$10=1,LangMaster!A31,LangMaster!B31) -> Female | H6: =IF(ADSI!$L$10=1,LangMaster!A32,LangMaster!B32) -> Transgender | I6: =IF(ADSI!$L$10=1,LangMaster!A174,LangMaster!B174) -> Total [sum of (4) to (6)] | J6: =IF(ADSI!$L$10=1,LangMaster!A30,LangMaster!B30) -> Male | K6: =IF(ADSI!$L$10=1,LangMaster!A31,LangMaster!B31) -> Female | L6: =IF(ADSI!$L$10=1,LangMaster!A32,LangMaster!B32) -> Transgender | M6: =IF(ADSI!$L$10=1,LangMaster!A175,LangMaster!B175) -> Total [sum of (8) to (10)]
B7: (1) | C7: (2) | D7: (3) | F7: (4) | G7: (5) | H7: (6) | I7: (7) | J7: (8) | K7: (9) | L7: (10) | M7: (11)
A8: =IF(ADSI!$L$10=1,LangMaster!A201,LangMaster!B201) -> Rural Area
A9: 500 | B9: 1 | C9: =IF(ADSI!$L$10=1,LangMaster!A184,LangMaster!B184) -> Near School/College/Educational institution | D9: 129 | E9: =IF(AND(OR(I9>0,M9>0),D9=0),FALSE,"") ->  | F9: 48 | G9: 14 | H9: 0 | I9: =SUM(F9:H9) -> 62 | J9: 12 | K9: 2 | L9: 0 | M9: =SUM(J9:L9) -> 14
A10: 501 | B10: 2 | C10: =IF(ADSI!$L$10=1,LangMaster!A186,LangMaster!B186) -> Near Residential area | D10: 1217 | E10: =IF(AND(OR(I10>0,M10>0),D10=0),FALSE,"") ->  | F10: 338 | G10: 82 | H10: 0 | I10: =SUM(F10:H10) -> 420 | J10: 118 | K10: 26 | L10: 0 | M10: =SUM(J10:L10) -> 144
A11: 502 | B11: 3 | C11: =IF(ADSI!$L$10=1,LangMaster!A187,LangMaster!B187) -> Near religious place | D11: 201 | F11: 45 | G11: 16 | H11: 0 | I11: 61 | J11: 10 | K11: 0 | L11: 0 | M11: 10
A12: 503 | B12: 4 | C12: =IF(ADSI!$L$10=1,LangMaster!A188,LangMaster!B188) -> Near recreation place/cinema hall | D12: 100 | F12: 25 | G12: 4 | H12: 0 | I12: 29 | J12: 6 | K12: 0 | L12: 0 | M12: 6
A13: 504 | B13: 5 | C13: =IF(ADSI!$L$10=1,LangMaster!A189,LangMaster!B189) -> Near Factory | D13: 163 | F13: 24 | G13: 6 | H13: 0 | I13: 30 | J13: 10 | K13: 1 | L13: 0 | M13: 11
A14: 505 | B14: 6 | C14: =IF(ADSI!$L$10=1,LangMaster!A190,LangMaster!B190) -> Other Rural Area | D14: 400 | F14: 84 | G14: 21 | H14: 0 | I14: 105 | J14: 34 | K14: 4 | L14: 0 | M14: 38
A15: 515 | B15: 7 | C15: =IF(ADSI!$L$10=1,LangMaster!A191,LangMaster!B191) -> Sub-Total (Rural) (sum of Sl. 1 to 6) | D15: =SUM(D9:D14) -> 2210 | F15: =SUM(F9:F14) -> 564 | G15: 143 | H15: 0 | I15: 707 | J15: 190 | K15: 33 | L15: 0 | M15: 223
A16: =IF(ADSI!$L$10=1,LangMaster!A202,LangMaster!B202) -> Urban Area
A17: 525 | B17: 8 | C17: =IF(ADSI!$L$10=1,LangMaster!A192,LangMaster!B192) -> Near School/College/Educational institution | D17: 45 | F17: 13 | G17: 4 | H17: 0 | I17: =SUM(F17:H17) -> 17 | J17: 7 | K17: 1 | L17: 0 | M17: =SUM(J17:L17) -> 8
A18: 526 | B18: 9 | C18: =IF(ADSI!$L$10=1,LangMaster!A193,LangMaster!B193) -> Near Residential area | D18: 345 | F18: 172 | G18: 47 | H18: 0 | I18: =SUM(F18:H18) -> 219 | J18: 17 | K18: 4 | L18: 0 | M18: =SUM(J18:L18) -> 21
A19: 527 | B19: 10 | C19: =IF(ADSI!$L$10=1,LangMaster!A194,LangMaster!B194) -> Near religious place | D19: 88 | F19: 29 | G19: 8 | H19: 0 | I19: 37 | J19: 1 | K19: 0 | L19: 0 | M19: 1
A20: 528 | B20: 11 | C20: =IF(ADSI!$L$10=1,LangMaster!A195,LangMaster!B195) -> Near recreation place/cinema hall | D20: 84 | F20: 29 | G20: 13 | H20: 0 | I20: 42 | J20: 4 | K20: 1 | L20: 0 | M20: 5
A21: 529 | B21: 12 | C21: =IF(ADSI!$L$10=1,LangMaster!A196,LangMaster!B196) -> Near Factory/Industrial area | D21: 13 | F21: 10 | G21: 3 | H21: 0 | I21: =SUM(F21:H21) -> 13 | J21: 2 | K21: 0 | L21: 0 | M21: 2
A22: 530 | B22: 13 | C22: =IF(ADSI!$L$10=1,LangMaster!A197,LangMaster!B197) -> At Pedestrian crossing | D22: 5 | F22: 0 | G22: 0 | H22: 0 | I22: 0 | J22: 0 | K22: 0 | L22: 0 | M22: 0
A23: 531 | B23: 14 | C23: =IF(ADSI!$L$10=1,LangMaster!A198,LangMaster!B198) -> Other Urban Area | D23: 222 | F23: 25 | G23: 11 | H23: 0 | I23: 36 | J23: 12 | K23: 2 | L23: 0 | M23: 14
A24: 532 | B24: 15 | C24: =IF(ADSI!$L$10=1,LangMaster!A199,LangMaster!B199) -> Sub-Total (Urban) (sum of Sl. 8 to 14) | D24: =SUM(D17:D23) -> 802 | F24: =SUM(F17:F23) -> 278 | G24: 86 | H24: 0 | I24: 364 | J24: 43 | K24: 8 | L24: 0 | M24: 51
A25: 545 | B25: 16 | C25: =IF(ADSI!$L$10=1,LangMaster!A200,LangMaster!B200) -> Grand Total (sum of Sl. 7 & 15) | D25: =D24+D15 -> 3012 | F25: =F24+F15 -> 842 | G25: 229 | H25: 0 | I25: 1071 | J25: 233 | K25: 41 | L25: 0 | M25: =SUM(J25:L25) -> 274
A26: PROFORMA–II VALUES [Sl.– 12.1 (Road Accidents Total)] | D26: ='P-II'!D43 -> 3012 | F26: ='P-II'!F43 -> 842 | G26: ='P-II'!G43 -> 229 | H26: ='P-II'!H43 -> 0 | I26: ='P-II'!I43 -> 1071 | J26: ='P-II'!J43 -> 233 | K26: ='P-II'!K43 -> 41 | L26: ='P-II'!L43 -> 0 | M26: ='P-II'!M43 -> 274
A27: VALIDATION WITH PROFORMA–II [Sl.– 12.1 (Road Accidents Total)] | D27: =IF(D25='P-II'!D43,"",FALSE) ->  | F27: =IF(F25='P-II'!F43,"",FALSE) ->  | G27: =IF(G25='P-II'!G43,"",FALSE) ->  | H27: =IF(H25='P-II'!H43,"",FALSE) ->  | I27: =IF(I25='P-II'!I43,"",FALSE) ->  | J27: =IF(J25='P-II'!J43,"",FALSE) ->  | K27: =IF(K25='P-II'!K43,"",FALSE) ->  | L27: =IF(L25='P-II'!L43,"",FALSE) ->  | M27: =IF(M25='P-II'!M43,"",FALSE) -> 
A28: SL-6 ABNORMAL VARIATION IN "OTHER RURAL AREA" DATA | D28: =IF(D15>0,IF((D14/D15*100)>10,"ABVAR",""),"") -> ABVAR | F28: =IF(F15>0,IF((F14/F15*100)>10,"ABVAR",""),"") -> ABVAR | G28: =IF(G15>0,IF((G14/G15*100)>10,"ABVAR",""),"") -> ABVAR | I28: ABVAR | J28: ABVAR | K28: ABVAR | M28: ABVAR
A29: SL-13 ABNORMAL VARIATION IN "PEDESTRIAN CROSSING" DATA WITH PROFORMA-VI "PEDESTRIAN" DATA
A30: SL-14 ABNORMAL VARIATION IN "OTHER URBAN AREA" DATA | D30: =IF(D24>0,IF((D23/D24*100)>10,"ABVAR",""),"") -> ABVAR | F30: =IF(F24>0,IF((F23/F24*100)>10,"ABVAR",""),"") ->  | G30: =IF(G24>0,IF((G23/G24*100)>10,"ABVAR",""),"") -> ABVAR | I30: =IF(I24>0,IF((I23/I24*100)>10,"ABVAR",""),"") ->  | J30: ABVAR | K30: ABVAR | M30: ABVAR
BA200: =A1 -> Goa, , ADSI-2022
BA201: =A2 -> Errors | BB201: =C2 -> 0 | BD201: =E2 -> Abnormal Variations/Re-check | BE201: =F2 -> 12
BA202: =A3 -> Proforma-VIII
BA203: =A4 -> Road Accidents Classified According to Place of Occurrence
BA204: =B5 -> S.No. | BB204: =C5 -> Place of Occurrence | BC204: =D5 -> No. of Cases | BD204: =E5 -> VALIDATION WITH NUMBER OF CASES | BE204: =F5 -> No. of Persons Injured | BI204: =J5 -> No. of Persons Died
BE205: =F6 -> Male | BF205: Female | BG205: Transgender | BH205: Total [sum of (4) to (6)] | BI205: =J6 -> Male | BJ205: =K6 -> Female | BK205: Transgender | BL205: Total [sum of (8) to (10)]
BA206: =B7 -> (1) | BB206: =C7 -> (2) | BC206: =D7 -> (3) | BE206: (4) | BF206: (5) | BG206: (6) | BH206: (7) | BI206: =J7 -> (8) | BJ206: (9) | BK206: (10) | BL206: (11)
BA207: =A8 -> Rural Area
BA208: =B9 -> 1 | BB208: Near School/College/Educational institution | BC208: 129 | BE208: 48 | BF208: 14 | BG208: 0 | BH208: 62 | BI208: 12 | BJ208: 2 | BK208: 0 | BL208: 14
BA209: 2 | BB209: Near Residential area | BC209: 1217 | BE209: 338 | BF209: 82 | BG209: 0 | BH209: 420 | BI209: 118 | BJ209: 26 | BK209: 0 | BL209: 144
BA210: 3 | BB210: Near religious place | BC210: 201 | BE210: 45 | BF210: 16 | BG210: 0 | BH210: 61 | BI210: 10 | BJ210: 0 | BK210: 0 | BL210: 10
BA211: 4 | BB211: Near recreation place/cinema hall | BC211: 100 | BE211: 25 | BF211: 4 | BG211: 0 | BH211: 29 | BI211: 6 | BJ211: 0 | BK211: 0 | BL211: 6
BA212: 5 | BB212: Near Factory | BC212: 163 | BE212: 24 | BF212: 6 | BG212: 0 | BH212: 30 | BI212: 10 | BJ212: 1 | BK212: 0 | BL212: 11
BA213: 6 | BB213: Other Rural Area | BC213: 400 | BE213: 84 | BF213: 21 | BG213: 0 | BH213: 105 | BI213: 34 | BJ213: 4 | BK213: 0 | BL213: 38
BA214: 7 | BB214: Sub-Total (Rural) (sum of Sl. 1 to 6) | BC214: 2210 | BE214: 564 | BF214: 143 | BG214: 0 | BH214: 707 | BI214: 190 | BJ214: 33 | BK214: 0 | BL214: 223
BA215: =A16 -> Urban Area
BA216: =B17 -> 8 | BB216: =C17 -> Near School/College/Educational institution | BC216: =D17 -> 45 | BD216: =E17 ->  | BE216: =F17 -> 13 | BF216: =G17 -> 4 | BG216: =H17 -> 0 | BH216: =I17 -> 17 | BI216: =J17 -> 7 | BJ216: =K17 -> 1 | BK216: =L17 -> 0 | BL216: =M17 -> 8
BA217: 9 | BB217: Near Residential area | BC217: 345 | BE217: 172 | BF217: 47 | BG217: 0 | BH217: 219 | BI217: 17 | BJ217: 4 | BK217: 0 | BL217: 21
BA218: 10 | BB218: Near religious place | BC218: 88 | BE218: 29 | BF218: 8 | BG218: 0 | BH218: 37 | BI218: 1 | BJ218: 0 | BK218: 0 | BL218: 1
BA219: 11 | BB219: Near recreation place/cinema hall | BC219: 84 | BE219: 29 | BF219: 13 | BG219: 0 | BH219: 42 | BI219: 4 | BJ219: 1 | BK219: 0 | BL219: 5
BA220: 12 | BB220: Near Factory/Industrial area | BC220: 13 | BE220: 10 | BF220: 3 | BG220: 0 | BH220: 13 | BI220: 2 | BJ220: 0 | BK220: 0 | BL220: 2
BA221: 13 | BB221: At Pedestrian crossing | BC221: 5 | BE221: 0 | BF221: 0 | BG221: 0 | BH221: 0 | BI221: 0 | BJ221: 0 | BK221: 0 | BL221: 0
BA222: 14 | BB222: Other Urban Area | BC222: 222 | BE222: 25 | BF222: 11 | BG222: 0 | BH222: 36 | BI222: 12 | BJ222: 2 | BK222: 0 | BL222: 14
BA223: 15 | BB223: Sub-Total (Urban) (sum of Sl. 8 to 14) | BC223: 802 | BE223: 278 | BF223: 86 | BG223: 0 | BH223: 364 | BI223: 43 | BJ223: 8 | BK223: 0 | BL223: 51
BA224: 16 | BB224: Grand Total (sum of Sl. 7 & 15) | BC224: 3012 | BE224: 842 | BF224: 229 | BG224: 0 | BH224: 1071 | BI224: 233 | BJ224: 41 | BK224: 0 | BL224: 274
BA225: =A26 -> PROFORMA–II VALUES [Sl.– 12.1 (Road Accidents Total)] | BC225: =D26 -> 3012 | BE225: =F26 -> 842 | BF225: 229 | BG225: 0 | BH225: 1071 | BI225: 233 | BJ225: 41 | BK225: 0 | BL225: 274
BA226: =A27 -> VALIDATION WITH PROFORMA–II [Sl.– 12.1 (Road Accidents Total)] | BC226: =D27 -> 
BA227: =A28 -> SL-6 ABNORMAL VARIATION IN "OTHER RURAL AREA" DATA | BC227: =D28 -> ABVAR | BE227: ABVAR | BF227: ABVAR | BH227: ABVAR | BI227: ABVAR | BJ227: ABVAR | BL227: ABVAR
BA228: =A29 -> SL-13 ABNORMAL VARIATION IN "PEDESTRIAN CROSSING" DATA WITH PROFORMA-VI "PEDESTRIAN" DATA | BH228: =I29 -> 0 | BL228: =M29 -> 0
BA229: =A30 -> SL-14 ABNORMAL VARIATION IN "OTHER URBAN AREA" DATA | BC229: =D30 -> ABVAR | BE229: =F30 ->  | BF229: ABVAR | BI229: ABVAR | BJ229: ABVAR | BL229: ABVAR
A500: StateUTCityCode | B500: DistrictCode | C500: CrimeCode | D500: DataYear | E500: Number of Cases | F500: Injured_Male | G500: Injured_Female | H500: Injured_Trans | I500: Injured_Total | J500: Died_Male | K500: Died_Female | L500: Died_Trans | M500: Died_Total
A501: =IF(ADSI!$G$12="",ADSI!$H$16,ADSI!$H$12) -> 6 | B501: =IF(ADSI!$G$12="",ADSI!$H$16,ADSI!$H$14) ->  | C501: =A9 -> 500 | D501: =ADSI!$K$12 -> 2022 | E501: =D9 -> 129 | F501: =F9 -> 48 | G501: =G9 -> 14 | H501: 0 | I501: 62 | J501: 12 | K501: 2 | L501: 0 | M501: 14
A502: =IF(ADSI!$G$12="",ADSI!$H$16,ADSI!$H$12) -> 6 | B502: =IF(ADSI!$G$12="",ADSI!$H$16,ADSI!$H$14) ->  | C502: =A10 -> 501 | D502: =ADSI!$K$12 -> 2022 | E502: =D10 -> 1217 | F502: =F10 -> 338 | G502: 82 | H502: 0 | I502: 420 | J502: 118 | K502: 26 | L502: 0 | M502: 144
A503: =IF(ADSI!$G$12="",ADSI!$H$16,ADSI!$H$12) -> 6 | B503: =IF(ADSI!$G$12="",ADSI!$H$16,ADSI!$H$14) ->  | C503: 502 | D503: =ADSI!$K$12 -> 2022 | E503: 201 | F503: =F11 -> 45 | G503: 16 | H503: 0 | I503: 61 | J503: 10 | K503: 0 | L503: 0 | M503: 10
A504: =IF(ADSI!$G$12="",ADSI!$H$16,ADSI!$H$12) -> 6 | B504: =IF(ADSI!$G$12="",ADSI!$H$16,ADSI!$H$14) ->  | C504: 503 | D504: =ADSI!$K$12 -> 2022 | E504: 100 | F504: =F12 -> 25 | G504: 4 | H504: 0 | I504: 29 | J504: 6 | K504: 0 | L504: 0 | M504: 6
A505: =IF(ADSI!$G$12="",ADSI!$H$16,ADSI!$H$12) -> 6 | B505: =IF(ADSI!$G$12="",ADSI!$H$16,ADSI!$H$14) ->  | C505: 504 | D505: =ADSI!$K$12 -> 2022 | E505: 163 | F505: =F13 -> 24 | G505: 6 | H505: 0 | I505: 30 | J505: 10 | K505: 1 | L505: 0 | M505: 11
A506: =IF(ADSI!$G$12="",ADSI!$H$16,ADSI!$H$12) -> 6 | B506: =IF(ADSI!$G$12="",ADSI!$H$16,ADSI!$H$14) ->  | C506: 505 | D506: =ADSI!$K$12 -> 2022 | E506: 400 | F506: =F14 -> 84 | G506: 21 | H506: 0 | I506: 105 | J506: 34 | K506: 4 | L506: 0 | M506: 38
A507: =IF(ADSI!$G$12="",ADSI!$H$16,ADSI!$H$12) -> 6 | B507: =IF(ADSI!$G$12="",ADSI!$H$16,ADSI!$H$14) ->  | C507: 515 | D507: =ADSI!$K$12 -> 2022 | E507: 2210 | F507: =F15 -> 564 | G507: 143 | H507: 0 | I507: 707 | J507: 190 | K507: 33 | L507: 0 | M507: 223
A508: =IF(ADSI!$G$12="",ADSI!$H$16,ADSI!$H$12) -> 6 | B508: =IF(ADSI!$G$12="",ADSI!$H$16,ADSI!$H$14) ->  | C508: =A17 -> 525 | D508: =ADSI!$K$12 -> 2022 | E508: =D17 -> 45 | F508: =F17 -> 13 | G508: =G17 -> 4 | H508: 0 | I508: 17 | J508: 7 | K508: 1 | L508: 0 | M508: 8
A509: =IF(ADSI!$G$12="",ADSI!$H$16,ADSI!$H$12) -> 6 | B509: =IF(ADSI!$G$12="",ADSI!$H$16,ADSI!$H$14) ->  | C509: =A18 -> 526 | D509: =ADSI!$K$12 -> 2022 | E509: =D18 -> 345 | F509: =F18 -> 172 | G509: 47 | H509: 0 | I509: 219 | J509: 17 | K509: 4 | L509: 0 | M509: 21
A510: =IF(ADSI!$G$12="",ADSI!$H$16,ADSI!$H$12) -> 6 | B510: =IF(ADSI!$G$12="",ADSI!$H$16,ADSI!$H$14) ->  | C510: 527 | D510: =ADSI!$K$12 -> 2022 | E510: 88 | F510: =F19 -> 29 | G510: 8 | H510: 0 | I510: 37 | J510: 1 | K510: 0 | L510: 0 | M510: 1
A511: =IF(ADSI!$G$12="",ADSI!$H$16,ADSI!$H$12) -> 6 | B511: =IF(ADSI!$G$12="",ADSI!$H$16,ADSI!$H$14) ->  | C511: 528 | D511: =ADSI!$K$12 -> 2022 | E511: 84 | F511: =F20 -> 29 | G511: 13 | H511: 0 | I511: 42 | J511: 4 | K511: 1 | L511: 0 | M511: 5
A512: =IF(ADSI!$G$12="",ADSI!$H$16,ADSI!$H$12) -> 6 | B512: =IF(ADSI!$G$12="",ADSI!$H$16,ADSI!$H$14) ->  | C512: 529 | D512: =ADSI!$K$12 -> 2022 | E512: 13 | F512: =F21 -> 10 | G512: 3 | H512: 0 | I512: 13 | J512: 2 | K512: 0 | L512: 0 | M512: 2
A513: =IF(ADSI!$G$12="",ADSI!$H$16,ADSI!$H$12) -> 6 | B513: =IF(ADSI!$G$12="",ADSI!$H$16,ADSI!$H$14) ->  | C513: 530 | D513: =ADSI!$K$12 -> 2022 | E513: 5 | F513: =F22 -> 0 | G513: 0 | H513: 0 | I513: 0 | J513: 0 | K513: 0 | L513: 0 | M513: 0
A514: =IF(ADSI!$G$12="",ADSI!$H$16,ADSI!$H$12) -> 6 | B514: =IF(ADSI!$G$12="",ADSI!$H$16,ADSI!$H$14) ->  | C514: 531 | D514: =ADSI!$K$12 -> 2022 | E514: 222 | F514: =F23 -> 25 | G514: 11 | H514: 0 | I514: 36 | J514: 12 | K514: 2 | L514: 0 | M514: 14
A515: =IF(ADSI!$G$12="",ADSI!$H$16,ADSI!$H$12) -> 6 | B515: =IF(ADSI!$G$12="",ADSI!$H$16,ADSI!$H$14) ->  | C515: 532 | D515: =ADSI!$K$12 -> 2022 | E515: 802 | F515: =F24 -> 278 | G515: 86 | H515: 0 | I515: 364 | J515: 43 | K515: 8 | L515: 0 | M515: 51
A516: =IF(ADSI!$G$12="",ADSI!$H$16,ADSI!$H$12) -> 6 | B516: =IF(ADSI!$G$12="",ADSI!$H$16,ADSI!$H$14) ->  | C516: 545 | D516: =ADSI!$K$12 -> 2022 | E516: 3012 | F516: =F25 -> 842 | G516: 229 | H516: 0 | I516: 1071 | J516: 233 | K516: 41 | L516: 0 | M516: 274

Sheet P-IX
A1: =ADSI!$B$1 -> Goa, , ADSI-2022
A2: Errors | C2: =COUNTIF(D25:M26,FALSE)+COUNTIF(E8:E22,FALSE) -> 0 | E2: Abnormal Variations | F2: =COUNTIF(D27:M28,"ABVAR") -> 0
A3: =IF(ADSI!$L$10=1,LangMaster!A203,LangMaster!B203) -> Proforma-IX
A4: =IF(ADSI!$L$10=1,LangMaster!A204,LangMaster!B204) -> Road Accidents Classified According to Causes and Unmanned Railway Crossing Accidents
A5: =IF(ADSI!$L$10=1,LangMaster!A26,LangMaster!B26) -> Code | B5: =IF(ADSI!$L$10=1,LangMaster!A27,LangMaster!B27) -> S.No. | C5: =IF(ADSI!$L$10=1,LangMaster!A478,LangMaster!B478) -> Causes | D5: =IF(ADSI!$L$10=1,LangMaster!A479,LangMaster!B479) -> No. of Cases | E5: =IF(ADSI!$L$10=1,LangMaster!A480,LangMaster!B480) -> VALIDATION WITH NUMBER OF CASES | F5: =IF(ADSI!$L$10=1,LangMaster!A481,LangMaster!B481) -> No. of Persons Injured | J5: =IF(ADSI!$L$10=1,LangMaster!A482,LangMaster!B482) -> No. of Persons Died
F6: =IF(ADSI!$L$10=1,LangMaster!A30,LangMaster!B30) -> Male | G6: =IF(ADSI!$L$10=1,LangMaster!A31,LangMaster!B31) -> Female | H6: =IF(ADSI!$L$10=1,LangMaster!A32,LangMaster!B32) -> Transgender | I6: =IF(ADSI!$L$10=1,LangMaster!A174,LangMaster!B174) -> Total [sum of (4) to (6)] | J6: =IF(ADSI!$L$10=1,LangMaster!A30,LangMaster!B30) -> Male | K6: =IF(ADSI!$L$10=1,LangMaster!A31,LangMaster!B31) -> Female | L6: =IF(ADSI!$L$10=1,LangMaster!A32,LangMaster!B32) -> Transgender | M6: =IF(ADSI!$L$10=1,LangMaster!A175,LangMaster!B175) -> Total [sum of (8) to (10)]
B7: (1) | C7: (2) | D7: (3) | F7: (4) | G7: (5) | H7: (6) | I7: (7) | J7: (8) | K7: (9) | L7: (10) | M7: (11)
A8: 550 | B8: 1 | C8: =IF(ADSI!$L$10=1,LangMaster!A205,LangMaster!B205) -> Dangerous/Over-taking/Careless/etc. | D8: 1571 | E8: =IF(AND(OR(I8>0,M8>0),D8=0),FALSE,"") ->  | F8: 449 | G8: 135 | H8: 0 | I8: =SUM(F8:H8) -> 584 | J8: 131 | K8: 24 | L8: 0 | M8: =SUM(J8:L8) -> 155
A9: 551 | B9: 2 | C9: =IF(ADSI!$L$10=1,LangMaster!A206,LangMaster!B206) -> Over speeding | D9: 1395 | E9: =IF(AND(OR(I9>0,M9>0),D9=0),FALSE,"") ->  | F9: 372 | G9: 90 | H9: 0 | I9: =SUM(F9:H9) -> 462 | J9: 97 | K9: 16 | L9: 0 | M9: =SUM(J9:L9) -> 113
A10: 552 | B10: 3 | C10: =IF(ADSI!$L$10=1,LangMaster!A207,LangMaster!B207) -> Driving under influence of drug/alcohol | D10: 6 | F10: 5 | G10: 2 | H10: 0 | I10: 7 | J10: 1 | K10: 0 | L10: 0 | M10: 1
A11: 553 | B11: 4 | C11: =IF(ADSI!$L$10=1,LangMaster!A208,LangMaster!B208) -> Physical fatigue of Drivers | D11: 2 | F11: 0 | G11: 0 | H11: 0 | I11: 0 | J11: 0 | K11: 0 | L11: 0 | M11: 0
A12: 554 | B12: 5 | C12: =IF(ADSI!$L$10=1,LangMaster!A209,LangMaster!B209) -> Defect in Mechanical condition of Motor Vehicle | D12: 6 | F12: 2 | G12: 0 | H12: 0 | I12: 2 | J12: 0 | K12: 1 | L12: 0 | M12: 1
A13: 555 | B13: 6 | C13: =IF(ADSI!$L$10=1,LangMaster!A210,LangMaster!B210) -> Animal Crossing | D13: 12 | F13: 2 | G13: 2 | H13: 0 | I13: 4 | J13: 2 | K13: 0 | L13: 0 | M13: 2
A14: 556 | B14: 7 | C14: =IF(ADSI!$L$10=1,LangMaster!A211,LangMaster!B211) -> Weather condition (sum of 7.1 & 7.2) | D14: =SUM(D15:D16) -> 1 | F14: =SUM(F15:F16) -> 0 | G14: 0 | H14: 0 | I14: 0 | J14: =SUM(J15:J16) -> 0 | K14: =SUM(K15:K16) -> 0 | L14: 0 | M14: 0
A15: 557 | C15: =IF(ADSI!$L$10=1,LangMaster!A212,LangMaster!B212) -> 7.1 Poor visibility | D15: 0 | F15: 0 | G15: 0 | H15: 0 | I15: 0 | J15: 0 | K15: 0 | L15: 0 | M15: 0
A16: 558 | C16: =IF(ADSI!$L$10=1,LangMaster!A213,LangMaster!B213) -> 7.2 Others causes of weather condition | D16: 1 | F16: 0 | G16: 0 | H16: 0 | I16: 0 | J16: 0 | K16: 0 | L16: 0 | M16: 0
A17: 559 | B17: 8 | C17: =IF(ADSI!$L$10=1,LangMaster!A214,LangMaster!B214) -> Lack of road infrastructure | D17: 1 | F17: 0 | G17: 0 | H17: 0 | I17: 0 | J17: 1 | K17: 0 | L17: 0 | M17: 1
A18: 560 | B18: 9 | C18: =IF(ADSI!$L$10=1,LangMaster!A215,LangMaster!B215) -> Vehicles Parking at road shoulders | D18: 13 | F18: 8 | G18: 0 | H18: 0 | I18: 8 | J18: 1 | K18: 0 | L18: 0 | M18: 1
A19: 561 | B19: 10 | C19: =IF(ADSI!$L$10=1,LangMaster!A216,LangMaster!B216) -> Unmanned Railway Crossing | D19: 0 | F19: 0 | G19: 0 | H19: 0 | I19: 0 | J19: 0 | K19: 0 | L19: 0 | M19: 0
A20: 562 | B20: 11 | C20: =IF(ADSI!$L$10=1,LangMaster!A217,LangMaster!B217) -> Causes not known | D20: 0 | F20: 0 | G20: 0 | H20: 0 | I20: 0 | J20: 0 | K20: 0 | L20: 0 | M20: 0
A21: 563 | B21: 12 | C21: =IF(ADSI!$L$10=1,LangMaster!A218,LangMaster!B218) -> Other Causes | D21: 5 | F21: 4 | G21: 0 | H21: 0 | I21: 4 | J21: 0 | K21: 0 | L21: 0 | M21: 0
A22: 580 | B22: 13 | C22: =IF(ADSI!$L$10=1,LangMaster!A219,LangMaster!B219) -> Total (sum of Sl. 1 to 12) | D22: =SUM(D8:D14)+D17+D18+D19+D20+D21 -> 3012 | F22: =SUM(F8:F14)+F17+F18+F19+F20+F21 -> 842 | G22: 229 | H22: 0 | I22: 1071 | J22: 233 | K22: 41 | L22: 0 | M22: 274
B23: 14 | C23: =IF(ADSI!$L$10=1,LangMaster!A220,LangMaster!B220) -> ROAD ACCIDENTS TOTAL (EXCLUDING Unmanned Railway Crossing Accidents; Sl.–10) | D23: =D22-D19 -> 3012 | F23: =F22-F19 -> 842 | G23: 229 | H23: 0 | I23: 1071 | J23: 233 | K23: 41 | L23: 0 | M23: 274
A24: PROFORMA–II VALUES [Sl.– 12.1 (Road Accidents Total)] | D24: ='P-II'!D43 -> 3012 | F24: ='P-II'!F43 -> 842 | G24: ='P-II'!G43 -> 229 | H24: ='P-II'!H43 -> 0 | I24: ='P-II'!I43 -> 1071 | J24: ='P-II'!J43 -> 233 | K24: ='P-II'!K43 -> 41 | L24: ='P-II'!L43 -> 0 | M24: ='P-II'!M43 -> 274
A25: VALIDATION WITH PROFORMA–II [Sl.– 12.1 (Road Accidents Total)] | D25: =IF(D24=D23,"",FALSE) ->  | F25: =IF(F24=F23,"",FALSE) -> 
A26: VALIDATION WITH PROFORMA–II [Sl.– 12.2 (Railway Crossing) with "Unmanned Railway Crossing"] | D26: =IF(D19<='P-II'!D46,"",FALSE) ->  | F26: =IF(F19<='P-II'!F46,"",FALSE) ->  | G26: =IF(G19<='P-II'!G46,"",FALSE) ->  | H26: =IF(H19<='P-II'!H46,"",FALSE) ->  | I26: =IF(I19<='P-II'!I46,"",FALSE) ->  | J26: =IF(J19<='P-II'!J46,"",FALSE) ->  | K26: =IF(K19<='P-II'!K46,"",FALSE) ->  | L26: =IF(L19<='P-II'!L46,"",FALSE) ->  | M26: =IF(M19<='P-II'!M46,"",FALSE) -> 
A27: SL-11 ABNORMAL VARIATION IN "CAUSES NOT KNOWN" DATA | D27: =IF(D22>0,IF((D20/D22*100)>20,"ABVAR",""),"") ->  | F27: =IF(F22>0,IF((F20/F22*100)>20,"ABVAR",""),"") -> 
A28: SL-12 ABNORMAL VARIATION IN "OTHER CAUSES" DATA | D28: =IF(D22>0,IF((D21/D22*100)>20,"ABVAR",""),"") ->  | F28: =IF(F22>0,IF((F21/F22*100)>20,"ABVAR",""),"") -> 
BA200: =A1 -> Goa, , ADSI-2022 | BD200: =E2 -> Abnormal Variations | BE200: =F2 -> 0
BA201: =A2 -> Errors | BB201: =C2 -> 0
BA202: =A3 -> Proforma-IX
BA203: =A4 -> Road Accidents Classified According to Causes and Unmanned Railway Crossing Accidents
BA204: =B5 -> S.No. | BB204: =C5 -> Causes | BC204: =D5 -> No. of Cases | BD204: =E5 -> VALIDATION WITH NUMBER OF CASES | BE204: =F5 -> No. of Persons Injured | BI204: =J5 -> No. of Persons Died
BE205: =F6 -> Male | BF205: =G6 -> Female | BG205: =H6 -> Transgender | BH205: =I6 -> Total [sum of (4) to (6)] | BI205: Male | BJ205: =K6 -> Female | BK205: =L6 -> Transgender | BL205: =M6 -> Total [sum of (8) to (10)]
BA206: =B7 -> (1) | BB206: (2) | BC206: (3) | BE206: (4) | BF206: (5) | BG206: (6) | BH206: (7) | BI206: (8) | BJ206: (9) | BK206: (10) | BL206: (11)
BA207: 1 | BB207: Dangerous/Over-taking/Careless/etc. | BC207: 1571 | BD207: =E8 ->  | BE207: 449 | BF207: 135 | BG207: 0 | BH207: 584 | BI207: 131 | BJ207: 24 | BK207: 0 | BL207: 155
BA208: 2 | BB208: Over speeding | BC208: 1395 | BE208: 372 | BF208: 90 | BG208: 0 | BH208: 462 | BI208: 97 | BJ208: 16 | BK208: 0 | BL208: 113
BA209: 3 | BB209: Driving under influence of drug/alcohol | BC209: 6 | BE209: 5 | BF209: 2 | BG209: 0 | BH209: 7 | BI209: 1 | BJ209: 0 | BK209: 0 | BL209: 1
BA210: 4 | BB210: Physical fatigue of Drivers | BC210: 2 | BE210: 0 | BF210: 0 | BG210: 0 | BH210: 0 | BI210: 0 | BJ210: 0 | BK210: 0 | BL210: 0
BA211: 5 | BB211: Defect in Mechanical condition of Motor Vehicle | BC211: 6 | BE211: 2 | BF211: 0 | BG211: 0 | BH211: 2 | BI211: 0 | BJ211: 1 | BK211: 0 | BL211: 1
BA212: 6 | BB212: Animal Crossing | BC212: 12 | BE212: 2 | BF212: 2 | BG212: 0 | BH212: 4 | BI212: 2 | BJ212: 0 | BK212: 0 | BL212: 2
BA213: 7 | BB213: Weather condition (sum of 7.1 & 7.2) | BC213: 1 | BE213: 0 | BF213: 0 | BG213: 0 | BH213: 0 | BI213: 0 | BJ213: 0 | BK213: 0 | BL213: 0
BB214: =C15 -> 7.1 Poor visibility | BC214: 0 | BE214: 0 | BF214: 0 | BG214: 0 | BH214: 0 | BI214: 0 | BJ214: 0 | BK214: 0 | BL214: 0
BB215: 7.2 Others causes of weather condition | BC215: 1 | BE215: 0 | BF215: 0 | BG215: 0 | BH215: 0 | BI215: 0 | BJ215: 0 | BK215: 0 | BL215: 0
BA216: =B17 -> 8 | BB216: Lack of road infrastructure | BC216: 1 | BE216: 0 | BF216: 0 | BG216: 0 | BH216: 0 | BI216: 1 | BJ216: 0 | BK216: 0 | BL216: 1
BA217: 9 | BB217: Vehicles Parking at road shoulders | BC217: 13 | BE217: 8 | BF217: 0 | BG217: 0 | BH217: 8 | BI217: 1 | BJ217: 0 | BK217: 0 | BL217: 1
BA218: 10 | BB218: Unmanned Railway Crossing | BC218: 0 | BE218: 0 | BF218: 0 | BG218: 0 | BH218: 0 | BI218: 0 | BJ218: 0 | BK218: 0 | BL218: 0
BA219: 11 | BB219: Causes not known | BC219: 0 | BE219: 0 | BF219: 0 | BG219: 0 | BH219: 0 | BI219: 0 | BJ219: 0 | BK219: 0 | BL219: 0
BA220: 12 | BB220: Other Causes | BC220: 5 | BE220: 4 | BF220: 0 | BG220: 0 | BH220: 4 | BI220: 0 | BJ220: 0 | BK220: 0 | BL220: 0
BA221: 13 | BB221: Total (sum of Sl. 1 to 12) | BC221: 3012 | BE221: 842 | BF221: 229 | BG221: 0 | BH221: 1071 | BI221: 233 | BJ221: 41 | BK221: 0 | BL221: 274
BA222: =C23 -> ROAD ACCIDENTS TOTAL (EXCLUDING Unmanned Railway Crossing Accidents; Sl.–10) | BC222: =D23 -> 3012 | BE222: =F23 -> 842 | BF222: 229 | BG222: 0 | BH222: 1071 | BI222: 233 | BJ222: 41 | BK222: 0 | BL222: 274
BA223: =A24 -> PROFORMA–II VALUES [Sl.– 12.1 (Road Accidents Total)] | BC223: 3012 | BE223: =F24 -> 842 | BF223: 229 | BG223: 0 | BH223: 1071 | BI223: 233 | BJ223: 41 | BK223: 0 | BL223: 274
BA224: =A25 -> VALIDATION WITH PROFORMA–II [Sl.– 12.1 (Road Accidents Total)]
BA225: =A26 -> VALIDATION WITH PROFORMA–II [Sl.– 12.2 (Railway Crossing) with "Unmanned Railway Crossing"]
BA226: =A27 -> SL-11 ABNORMAL VARIATION IN "CAUSES NOT KNOWN" DATA | BE226: =F27 ->  | BF226: =G27 ->  | BG226: =H27 ->  | BH226: =I27 ->  | BI226: =J27 ->  | BJ226: =K27 ->  | BK226: =L27 ->  | BL226: =M27 -> 
BA227: =A28 -> SL-12 ABNORMAL VARIATION IN "OTHER CAUSES" DATA
A500: StateUTCityCode | B500: DistrictCode | C500: CrimeCode | D500: DataYear | E500: Number of Cases | F500: Injured_Male | G500: Injured_Female | H500: Injured_Trans | I500: Injured_Total | J500: Died_Male | K500: Died_Female | L500: Died_Trans | M500: Died_Total
A501: =IF(ADSI!$G$12="",ADSI!$H$16,ADSI!$H$12) -> 6 | B501: =IF(ADSI!$G$12="",ADSI!$H$16,ADSI!$H$14) ->  | C501: =A8 -> 550 | D501: =ADSI!$K$12 -> 2022 | E501: =D8 -> 1571 | F501: =F8 -> 449 | G501: =G8 -> 135 | H501: 0 | I501: 584 | J501: 131 | K501: 24 | L501: 0 | M501: 155
A502: =IF(ADSI!$G$12="",ADSI!$H$16,ADSI!$H$12) -> 6 | B502: =IF(ADSI!$G$12="",ADSI!$H$16,ADSI!$H$14) ->  | C502: =A9 -> 551 | D502: =ADSI!$K$12 -> 2022 | E502: =D9 -> 1395 | F502: =F9 -> 372 | G502: 90 | H502: 0 | I502: 462 | J502: 97 | K502: 16 | L502: 0 | M502: 113
A503: =IF(ADSI!$G$12="",ADSI!$H$16,ADSI!$H$12) -> 6 | B503: =IF(ADSI!$G$12="",ADSI!$H$16,ADSI!$H$14) ->  | C503: 552 | D503: =ADSI!$K$12 -> 2022 | E503: 6 | F503: =F10 -> 5 | G503: 2 | H503: 0 | I503: 7 | J503: 1 | K503: 0 | L503: 0 | M503: 1
A504: =IF(ADSI!$G$12="",ADSI!$H$16,ADSI!$H$12) -> 6 | B504: =IF(ADSI!$G$12="",ADSI!$H$16,ADSI!$H$14) ->  | C504: 553 | D504: =ADSI!$K$12 -> 2022 | E504: 2 | F504: =F11 -> 0 | G504: 0 | H504: 0 | I504: 0 | J504: 0 | K504: 0 | L504: 0 | M504: 0
A505: =IF(ADSI!$G$12="",ADSI!$H$16,ADSI!$H$12) -> 6 | B505: =IF(ADSI!$G$12="",ADSI!$H$16,ADSI!$H$14) ->  | C505: 554 | D505: =ADSI!$K$12 -> 2022 | E505: 6 | F505: =F12 -> 2 | G505: 0 | H505: 0 | I505: 2 | J505: 0 | K505: 1 | L505: 0 | M505: 1
A506: =IF(ADSI!$G$12="",ADSI!$H$16,ADSI!$H$12) -> 6 | B506: =IF(ADSI!$G$12="",ADSI!$H$16,ADSI!$H$14) ->  | C506: 555 | D506: =ADSI!$K$12 -> 2022 | E506: 12 | F506: =F13 -> 2 | G506: 2 | H506: 0 | I506: 4 | J506: 2 | K506: 0 | L506: 0 | M506: 2
A507: =IF(ADSI!$G$12="",ADSI!$H$16,ADSI!$H$12) -> 6 | B507: =IF(ADSI!$G$12="",ADSI!$H$16,ADSI!$H$14) ->  | C507: 556 | D507: =ADSI!$K$12 -> 2022 | E507: 1 | F507: =F14 -> 0 | G507: 0 | H507: 0 | I507: 0 | J507: 0 | K507: 0 | L507: 0 | M507: 0
A508: =IF(ADSI!$G$12="",ADSI!$H$16,ADSI!$H$12) -> 6 | B508: =IF(ADSI!$G$12="",ADSI!$H$16,ADSI!$H$14) ->  | C508: 557 | D508: =ADSI!$K$12 -> 2022 | E508: 0 | F508: =F15 -> 0 | G508: 0 | H508: 0 | I508: 0 | J508: 0 | K508: 0 | L508: 0 | M508: 0
A509: =IF(ADSI!$G$12="",ADSI!$H$16,ADSI!$H$12) -> 6 | B509: =IF(ADSI!$G$12="",ADSI!$H$16,ADSI!$H$14) ->  | C509: 558 | D509: =ADSI!$K$12 -> 2022 | E509: 1 | F509: =F16 -> 0 | G509: 0 | H509: 0 | I509: 0 | J509: 0 | K509: 0 | L509: 0 | M509: 0
A510: =IF(ADSI!$G$12="",ADSI!$H$16,ADSI!$H$12) -> 6 | B510: =IF(ADSI!$G$12="",ADSI!$H$16,ADSI!$H$14) ->  | C510: 559 | D510: =ADSI!$K$12 -> 2022 | E510: 1 | F510: =F17 -> 0 | G510: 0 | H510: 0 | I510: 0 | J510: 1 | K510: 0 | L510: 0 | M510: 1
A511: =IF(ADSI!$G$12="",ADSI!$H$16,ADSI!$H$12) -> 6 | B511: =IF(ADSI!$G$12="",ADSI!$H$16,ADSI!$H$14) ->  | C511: 560 | D511: =ADSI!$K$12 -> 2022 | E511: 13 | F511: =F18 -> 8 | G511: 0 | H511: 0 | I511: 8 | J511: 1 | K511: 0 | L511: 0 | M511: 1
A512: =IF(ADSI!$G$12="",ADSI!$H$16,ADSI!$H$12) -> 6 | B512: =IF(ADSI!$G$12="",ADSI!$H$16,ADSI!$H$14) ->  | C512: 561 | D512: =ADSI!$K$12 -> 2022 | E512: 0 | F512: =F19 -> 0 | G512: 0 | H512: 0 | I512: 0 | J512: 0 | K512: 0 | L512: 0 | M512: 0
A513: =IF(ADSI!$G$12="",ADSI!$H$16,ADSI!$H$12) -> 6 | B513: =IF(ADSI!$G$12="",ADSI!$H$16,ADSI!$H$14) ->  | C513: 562 | D513: =ADSI!$K$12 -> 2022 | E513: 0 | F513: =F20 -> 0 | G513: 0 | H513: 0 | I513: 0 | J513: 0 | K513: 0 | L513: 0 | M513: 0
A514: =IF(ADSI!$G$12="",ADSI!$H$16,ADSI!$H$12) -> 6 | B514: =IF(ADSI!$G$12="",ADSI!$H$16,ADSI!$H$14) ->  | C514: 563 | D514: =ADSI!$K$12 -> 2022 | E514: 5 | F514: =F21 -> 4 | G514: 0 | H514: 0 | I514: 4 | J514: 0 | K514: 0 | L514: 0 | M514: 0
A515: =IF(ADSI!$G$12="",ADSI!$H$16,ADSI!$H$12) -> 6 | B515: =IF(ADSI!$G$12="",ADSI!$H$16,ADSI!$H$14) ->  | C515: 580 | D515: =ADSI!$K$12 -> 2022 | E515: 3012 | F515: =F22 -> 842 | G515: 229 | H515: 0 | I515: 1071 | J515: 233 | K515: 41 | L515: 0 | M515: 274

Sheet P-X
A1: =ADSI!$B$1 -> Goa, , ADSI-2022
A2: Errors | C2: =COUNTIF(D22:R22,FALSE)+COUNTIF(E8:E20,FALSE)+COUNTIF(I8:I20,FALSE)+COUNTIF(M8:M20,FALSE) -> 0
A3: =IF(ADSI!$L$10=1,LangMaster!A221,LangMaster!B221) -> Proforma-X
A4: =IF(ADSI!$L$10=1,LangMaster!A222,LangMaster!B222) -> Month wise occurence of Traffic Accidents
A5: =IF(ADSI!$L$10=1,LangMaster!A26,LangMaster!B26) -> Code | B5: =IF(ADSI!$L$10=1,LangMaster!A27,LangMaster!B27) -> S.No. | C5: =IF(ADSI!$L$10=1,LangMaster!A223,LangMaster!B223) -> Month | D5: Road Accidents | H5: Railways Crossing Accidents | L5: Railway Accidents | P5: Total
D6: =IF(ADSI!$L$10=1,LangMaster!A479,LangMaster!B479) -> No. of Cases | E6: =IF(ADSI!$L$10=1,LangMaster!A480,LangMaster!B480) -> VALIDATION WITH NUMBER OF CASES | F6: =IF(ADSI!$L$10=1,LangMaster!A481,LangMaster!B481) -> No. of Persons Injured | G6: =IF(ADSI!$L$10=1,LangMaster!A482,LangMaster!B482) -> No. of Persons Died | H6: =IF(ADSI!$L$10=1,LangMaster!A479,LangMaster!B479) -> No. of Cases | I6: =IF(ADSI!$L$10=1,LangMaster!A480,LangMaster!B480) -> VALIDATION WITH NUMBER OF CASES | J6: =IF(ADSI!$L$10=1,LangMaster!A481,LangMaster!B481) -> No. of Persons Injured | K6: =IF(ADSI!$L$10=1,LangMaster!A482,LangMaster!B482) -> No. of Persons Died | L6: =IF(ADSI!$L$10=1,LangMaster!A479,LangMaster!B479) -> No. of Cases | M6: =IF(ADSI!$L$10=1,LangMaster!A480,LangMaster!B480) -> VALIDATION WITH NUMBER OF CASES | N6: =IF(ADSI!$L$10=1,LangMaster!A481,LangMaster!B481) -> No. of Persons Injured | O6: =IF(ADSI!$L$10=1,LangMaster!A482,LangMaster!B482) -> No. of Persons Died | P6: No. of Cases [Col. (3)+(6)+(9)] | Q6: No. of Persons Injured [Col. (4)+(7)+(10)] | R6: No. of Persons Died [Col. (5)+(8)+(11)]
B7: (1) | C7: (2) | D7: (3) | F7: (4) | G7: (5) | H7: (6) | J7: (7) | K7: (8) | L7: (9) | N7: (10) | O7: (11) | P7: (12) | Q7: (13) | R7: (14)
A8: 600 | B8: 1 | C8: =IF(ADSI!$L$10=1,LangMaster!A224,LangMaster!B224) -> January | D8: 260 | E8: =IF(AND(OR(F8>0,G8>0),D8=0),FALSE,"") ->  | F8: 81 | G8: 22 | H8: 0 | I8: =IF(AND(OR(J8>0,K8>0),H8=0),FALSE,"") ->  | J8: 0 | K8: 0 | L8: 5 | M8: =IF(AND(OR(N8>0,O8>0),L8=0),FALSE,"") ->  | N8: 0 | O8: 5 | P8: =SUM(D8+H8+L8) -> 265 | Q8: =SUM(F8+J8+N8) -> 81 | R8: =SUM(G8+K8+O8) -> 27
A9: 601 | B9: 2 | C9: =IF(ADSI!$L$10=1,LangMaster!A225,LangMaster!B225) -> February | D9: 251 | E9: =IF(AND(OR(F9>0,G9>0),D9=0),FALSE,"") ->  | F9: 94 | G9: 24 | H9: 0 | I9: =IF(AND(OR(J9>0,K9>0),H9=0),FALSE,"") ->  | J9: 0 | K9: 0 | L9: 2 | M9: =IF(AND(OR(N9>0,O9>0),L9=0),FALSE,"") ->  | N9: 0 | O9: 2 | P9: =SUM(D9+H9+L9) -> 253 | Q9: 94 | R9: 26
A10: 602 | B10: 3 | C10: =IF(ADSI!$L$10=1,LangMaster!A226,LangMaster!B226) -> March | D10: 275 | F10: 79 | G10: 25 | H10: 0 | J10: 0 | K10: 0 | L10: 5 | N10: 0 | O10: 5 | P10: 280 | Q10: 79 | R10: 30
A11: 603 | B11: 4 | C11: =IF(ADSI!$L$10=1,LangMaster!A227,LangMaster!B227) -> April | D11: 242 | F11: 83 | G11: 13 | H11: 0 | J11: 0 | K11: 0 | L11: 4 | N11: 0 | O11: 4 | P11: 246 | Q11: 83 | R11: 17
A12: 604 | B12: 5 | C12: =IF(ADSI!$L$10=1,LangMaster!A228,LangMaster!B228) -> May | D12: 324 | F12: 98 | G12: 36 | H12: 0 | J12: 0 | K12: 0 | L12: 4 | N12: 0 | O12: 4 | P12: 328 | Q12: 98 | R12: 40
A13: 605 | B13: 6 | C13: =IF(ADSI!$L$10=1,LangMaster!A229,LangMaster!B229) -> June | D13: 239 | F13: 91 | G13: 20 | H13: 0 | J13: 0 | K13: 0 | L13: 2 | N13: 0 | O13: 2 | P13: 241 | Q13: 91 | R13: 22
A14: 606 | B14: 7 | C14: =IF(ADSI!$L$10=1,LangMaster!A230,LangMaster!B230) -> July | D14: 238 | F14: 92 | G14: 20 | H14: 0 | J14: 0 | K14: 0 | L14: 2 | N14: 0 | O14: 2 | P14: 240 | Q14: 92 | R14: 22
A15: 607 | B15: 8 | C15: =IF(ADSI!$L$10=1,LangMaster!A231,LangMaster!B231) -> August | D15: 182 | F15: 75 | G15: 13 | H15: 0 | J15: 0 | K15: 0 | L15: 4 | N15: 0 | O15: 4 | P15: 186 | Q15: 75 | R15: 17
A16: 608 | B16: 9 | C16: =IF(ADSI!$L$10=1,LangMaster!A232,LangMaster!B232) -> September | D16: 234 | F16: 88 | G16: 29 | H16: 0 | J16: 0 | K16: 0 | L16: 5 | N16: 0 | O16: 5 | P16: 239 | Q16: 88 | R16: 34
A17: 609 | B17: 10 | C17: =IF(ADSI!$L$10=1,LangMaster!A233,LangMaster!B233) -> October | D17: 251 | F17: 93 | G17: 25 | H17: 0 | J17: 0 | K17: 0 | L17: 9 | N17: 0 | O17: 9 | P17: 260 | Q17: 93 | R17: 34
A18: 610 | B18: 11 | C18: =IF(ADSI!$L$10=1,LangMaster!A234,LangMaster!B234) -> November | D18: 232 | F18: 80 | G18: 26 | H18: 0 | J18: 0 | K18: 0 | L18: 6 | N18: 0 | O18: 6 | P18: 238 | Q18: 80 | R18: 32
A19: 611 | B19: 12 | C19: =IF(ADSI!$L$10=1,LangMaster!A235,LangMaster!B235) -> December | D19: 284 | F19: 117 | G19: 21 | H19: 0 | J19: 0 | K19: 0 | L19: 6 | N19: 0 | O19: 6 | P19: 290 | Q19: 117 | R19: 27
A20: 612 | B20: 13 | C20: =IF(ADSI!$L$10=1,LangMaster!A236,LangMaster!B236) -> Total (sum of Sl. 1 to 12) | D20: =SUM(D8:D19) -> 3012 | F20: =SUM(F8:F19) -> 1071 | G20: 274 | H20: 0 | J20: 0 | K20: 0 | L20: 54 | N20: 0 | O20: 54 | P20: 3066 | Q20: =SUM(Q8:Q19) -> 1071 | R20: =SUM(R8:R19) -> 328
A21: PROFORMA–II VALUES [Sl.– 12.1 (Road), Sl.– 12.2 (Railway Crossing) and Sl.– 12.3 (Railway) Accidents] | D21: ='P-II'!D43 -> 3012 | F21: ='P-II'!I43 -> 1071 | G21: ='P-II'!M43 -> 274 | H21: ='P-II'!D46 -> 0 | J21: ='P-II'!I46 -> 0 | K21: ='P-II'!M46 -> 0 | L21: ='P-II'!D47 -> 54 | N21: ='P-II'!I47 -> 0 | O21: ='P-II'!M47 -> 54 | P21: ='P-II'!D42 -> 3066 | Q21: ='P-II'!I42 -> 1071 | R21: ='P-II'!M42 -> 328
A22: VALIDATION WITH PROFORMA–II [Sl.– 12.1 (Road), Sl.– 12.2 (Railway Crossing) and Sl.– 12.3 (Railway) Accidents] | D22: =IF(D20='P-II'!D43,"",FALSE) ->  | F22: =IF(F20='P-II'!I43,"",FALSE) ->  | G22: =IF(G20='P-II'!M43,"",FALSE) ->  | H22: =IF(H20='P-II'!D46,"",FALSE) ->  | J22: =IF(J20='P-II'!I46,"",FALSE) ->  | K22: =IF(K20='P-II'!M46,"",FALSE) ->  | L22: =IF(L20='P-II'!D47,"",FALSE) ->  | N22: =IF(N20='P-II'!I47,"",FALSE) ->  | O22: =IF(O20='P-II'!M47,"",FALSE) ->  | P22: =IF(P20='P-II'!D42,"",FALSE) ->  | Q22: =IF(Q20='P-II'!I42,"",FALSE) ->  | R22: =IF(R20='P-II'!M42,"",FALSE) -> 
BA200: =A1 -> Goa, , ADSI-2022
BA201: =A2 -> Errors | BB201: =C2 -> 0
BA202: =A3 -> Proforma-X
BA203: =A4 -> Month wise occurence of Traffic Accidents
BA204: =B5 -> S.No. | BB204: =C5 -> Month | BC204: =D5 -> Road Accidents | BG204: =H5 -> Railways Crossing Accidents | BK204: =L5 -> Railway Accidents | BO204: =P5 -> Total
BC205: =D6 -> No. of Cases | BD205: =E6 -> VALIDATION WITH NUMBER OF CASES | BE205: =F6 -> No. of Persons Injured | BF205: =G6 -> No. of Persons Died | BG205: No. of Cases | BH205: =I6 -> VALIDATION WITH NUMBER OF CASES | BI205: =J6 -> No. of Persons Injured | BJ205: =K6 -> No. of Persons Died | BK205: No. of Cases | BL205: =M6 -> VALIDATION WITH NUMBER OF CASES | BM205: =N6 -> No. of Persons Injured | BN205: =O6 -> No. of Persons Died | BO205: No. of Cases [Col. (3)+(6)+(9)] | BP205: =Q6 -> No. of Persons Injured [Col. (4)+(7)+(10)] | BQ205: =R6 -> No. of Persons Died [Col. (5)+(8)+(11)]
BA206: =B7 -> (1) | BB206: =C7 -> (2) | BC206: =D7 -> (3) | BE206: =F7 -> (4) | BF206: =G7 -> (5) | BG206: (6) | BI206: =J7 -> (7) | BJ206: =K7 -> (8) | BK206: (9) | BM206: =N7 -> (10) | BN206: =O7 -> (11) | BO206: (12) | BP206: (13) | BQ206: (14)
BA207: 1 | BB207: January | BC207: 260 | BD207: =E8 ->  | BE207: 81 | BF207: 22 | BG207: 0 | BH207: =I8 ->  | BI207: 0 | BJ207: 0 | BK207: 5 | BL207: =M8 ->  | BM207: 0 | BN207: 5 | BO207: 265 | BP207: 81 | BQ207: 27
BA208: 2 | BB208: February | BC208: 251 | BD208: =E9 ->  | BE208: 94 | BF208: 24 | BG208: 0 | BH208: =I9 ->  | BI208: 0 | BJ208: 0 | BK208: 2 | BL208: =M9 ->  | BM208: 0 | BN208: 2 | BO208: 253 | BP208: 94 | BQ208: 26
BA209: 3 | BB209: March | BC209: 275 | BE209: 79 | BF209: 25 | BG209: 0 | BI209: 0 | BJ209: 0 | BK209: 5 | BM209: 0 | BN209: 5 | BO209: 280 | BP209: 79 | BQ209: 30
BA210: 4 | BB210: April | BC210: 242 | BE210: 83 | BF210: 13 | BG210: 0 | BI210: 0 | BJ210: 0 | BK210: 4 | BM210: 0 | BN210: 4 | BO210: 246 | BP210: 83 | BQ210: 17
BA211: 5 | BB211: May | BC211: 324 | BE211: 98 | BF211: 36 | BG211: 0 | BI211: 0 | BJ211: 0 | BK211: 4 | BM211: 0 | BN211: 4 | BO211: 328 | BP211: 98 | BQ211: 40
BA212: 6 | BB212: June | BC212: 239 | BE212: 91 | BF212: 20 | BG212: 0 | BI212: 0 | BJ212: 0 | BK212: 2 | BM212: 0 | BN212: 2 | BO212: 241 | BP212: 91 | BQ212: 22
BA213: 7 | BB213: July | BC213: 238 | BE213: 92 | BF213: 20 | BG213: 0 | BI213: 0 | BJ213: 0 | BK213: 2 | BM213: 0 | BN213: 2 | BO213: 240 | BP213: 92 | BQ213: 22
BA214: 8 | BB214: August | BC214: 182 | BE214: 75 | BF214: 13 | BG214: 0 | BI214: 0 | BJ214: 0 | BK214: 4 | BM214: 0 | BN214: 4 | BO214: 186 | BP214: 75 | BQ214: 17
BA215: 9 | BB215: September | BC215: 234 | BE215: 88 | BF215: 29 | BG215: 0 | BI215: 0 | BJ215: 0 | BK215: 5 | BM215: 0 | BN215: 5 | BO215: 239 | BP215: 88 | BQ215: 34
BA216: 10 | BB216: October | BC216: 251 | BE216: 93 | BF216: 25 | BG216: 0 | BI216: 0 | BJ216: 0 | BK216: 9 | BM216: 0 | BN216: 9 | BO216: 260 | BP216: 93 | BQ216: 34
BA217: 11 | BB217: November | BC217: 232 | BE217: 80 | BF217: 26 | BG217: 0 | BI217: 0 | BJ217: 0 | BK217: 6 | BM217: 0 | BN217: 6 | BO217: 238 | BP217: 80 | BQ217: 32
BA218: 12 | BB218: December | BC218: 284 | BE218: 117 | BF218: 21 | BG218: 0 | BI218: 0 | BJ218: 0 | BK218: 6 | BM218: 0 | BN218: 6 | BO218: 290 | BP218: 117 | BQ218: 27
BA219: 13 | BB219: Total (sum of Sl. 1 to 12) | BC219: 3012 | BE219: 1071 | BF219: 274 | BG219: 0 | BI219: 0 | BJ219: 0 | BK219: 54 | BM219: 0 | BN219: 54 | BO219: 3066 | BP219: 1071 | BQ219: 328
BA220: =A21 -> PROFORMA–II VALUES [Sl.– 12.1 (Road), Sl.– 12.2 (Railway Crossing) and Sl.– 12.3 (Railway) Accidents] | BC220: =D21 -> 3012 | BE220: 1071 | BF220: 274 | BG220: 0 | BI220: 0 | BJ220: 0 | BK220: 54 | BM220: 0 | BN220: 54 | BO220: 3066 | BP220: 1071 | BQ220: 328
BA221: =A22 -> VALIDATION WITH PROFORMA–II [Sl.– 12.1 (Road), Sl.– 12.2 (Railway Crossing) and Sl.– 12.3 (Railway) Accidents] | BC221: =D22 -> 
A500: StateUTCityCode | B500: DistrictCode | C500: CrimeCode | D500: DataYear | E500: Road Accident_Cases | F500: Road Accident_Injured | G500: Road Accident_Died | H500: Railway Crossing_Cases | I500: Railway Crossing_Injured | J500: Railway Crossing_Died | K500: Railway Accident_Cases | L500: Railway Accident_Injured | M500: Railway Accident_Died | N500: Total Traffic_Cases | O500: Total Traffic_Injured | P500: Total Traffic_Died
A501: =IF(ADSI!$G$12="",ADSI!$H$16,ADSI!$H$12) -> 6 | B501: =IF(ADSI!$G$12="",ADSI!$H$16,ADSI!$H$14) ->  | C501: =A8 -> 600 | D501: =ADSI!$K$12 -> 2022 | E501: =D8 -> 260 | F501: =F8 -> 81 | G501: =G8 -> 22 | H501: =H8 -> 0 | I501: =J8 -> 0 | J501: =K8 -> 0 | K501: =L8 -> 5 | L501: =N8 -> 0 | M501: =O8 -> 5 | N501: =P8 -> 265 | O501: =Q8 -> 81 | P501: 27
A502: =IF(ADSI!$G$12="",ADSI!$H$16,ADSI!$H$12) -> 6 | B502: =IF(ADSI!$G$12="",ADSI!$H$16,ADSI!$H$14) ->  | C502: =A9 -> 601 | D502: =ADSI!$K$12 -> 2022 | E502: =D9 -> 251 | F502: =F9 -> 94 | G502: 24 | H502: 0 | I502: =J9 -> 0 | J502: 0 | K502: 2 | L502: =N9 -> 0 | M502: 2 | N502: 253 | O502: =Q9 -> 94 | P502: =R9 -> 26
A503: =IF(ADSI!$G$12="",ADSI!$H$16,ADSI!$H$12) -> 6 | B503: =IF(ADSI!$G$12="",ADSI!$H$16,ADSI!$H$14) ->  | C503: 602 | D503: =ADSI!$K$12 -> 2022 | E503: 275 | F503: =F10 -> 79 | G503: 25 | H503: 0 | I503: =J10 -> 0 | J503: 0 | K503: 5 | L503: =N10 -> 0 | M503: 5 | N503: 280 | O503: 79 | P503: 30
A504: =IF(ADSI!$G$12="",ADSI!$H$16,ADSI!$H$12) -> 6 | B504: =IF(ADSI!$G$12="",ADSI!$H$16,ADSI!$H$14) ->  | C504: 603 | D504: =ADSI!$K$12 -> 2022 | E504: 242 | F504: =F11 -> 83 | G504: 13 | H504: 0 | I504: =J11 -> 0 | J504: 0 | K504: 4 | L504: =N11 -> 0 | M504: 4 | N504: 246 | O504: 83 | P504: 17
A505: =IF(ADSI!$G$12="",ADSI!$H$16,ADSI!$H$12) -> 6 | B505: =IF(ADSI!$G$12="",ADSI!$H$16,ADSI!$H$14) ->  | C505: 604 | D505: =ADSI!$K$12 -> 2022 | E505: 324 | F505: =F12 -> 98 | G505: 36 | H505: 0 | I505: =J12 -> 0 | J505: 0 | K505: 4 | L505: =N12 -> 0 | M505: 4 | N505: 328 | O505: 98 | P505: 40
A506: =IF(ADSI!$G$12="",ADSI!$H$16,ADSI!$H$12) -> 6 | B506: =IF(ADSI!$G$12="",ADSI!$H$16,ADSI!$H$14) ->  | C506: 605 | D506: =ADSI!$K$12 -> 2022 | E506: 239 | F506: =F13 -> 91 | G506: 20 | H506: 0 | I506: =J13 -> 0 | J506: 0 | K506: 2 | L506: =N13 -> 0 | M506: 2 | N506: 241 | O506: 91 | P506: 22
A507: =IF(ADSI!$G$12="",ADSI!$H$16,ADSI!$H$12) -> 6 | B507: =IF(ADSI!$G$12="",ADSI!$H$16,ADSI!$H$14) ->  | C507: 606 | D507: =ADSI!$K$12 -> 2022 | E507: 238 | F507: =F14 -> 92 | G507: 20 | H507: 0 | I507: =J14 -> 0 | J507: 0 | K507: 2 | L507: =N14 -> 0 | M507: 2 | N507: 240 | O507: 92 | P507: 22
A508: =IF(ADSI!$G$12="",ADSI!$H$16,ADSI!$H$12) -> 6 | B508: =IF(ADSI!$G$12="",ADSI!$H$16,ADSI!$H$14) ->  | C508: 607 | D508: =ADSI!$K$12 -> 2022 | E508: 182 | F508: =F15 -> 75 | G508: 13 | H508: 0 | I508: =J15 -> 0 | J508: 0 | K508: 4 | L508: =N15 -> 0 | M508: 4 | N508: 186 | O508: 75 | P508: 17
A509: =IF(ADSI!$G$12="",ADSI!$H$16,ADSI!$H$12) -> 6 | B509: =IF(ADSI!$G$12="",ADSI!$H$16,ADSI!$H$14) ->  | C509: 608 | D509: =ADSI!$K$12 -> 2022 | E509: 234 | F509: =F16 -> 88 | G509: 29 | H509: 0 | I509: =J16 -> 0 | J509: 0 | K509: 5 | L509: =N16 -> 0 | M509: 5 | N509: 239 | O509: 88 | P509: 34
A510: =IF(ADSI!$G$12="",ADSI!$H$16,ADSI!$H$12) -> 6 | B510: =IF(ADSI!$G$12="",ADSI!$H$16,ADSI!$H$14) ->  | C510: 609 | D510: =ADSI!$K$12 -> 2022 | E510: 251 | F510: =F17 -> 93 | G510: 25 | H510: 0 | I510: =J17 -> 0 | J510: 0 | K510: 9 | L510: =N17 -> 0 | M510: 9 | N510: 260 | O510: 93 | P510: 34
A511: =IF(ADSI!$G$12="",ADSI!$H$16,ADSI!$H$12) -> 6 | B511: =IF(ADSI!$G$12="",ADSI!$H$16,ADSI!$H$14) ->  | C511: 610 | D511: =ADSI!$K$12 -> 2022 | E511: 232 | F511: =F18 -> 80 | G511: 26 | H511: 0 | I511: =J18 -> 0 | J511: 0 | K511: 6 | L511: =N18 -> 0 | M511: 6 | N511: 238 | O511: 80 | P511: 32
A512: =IF(ADSI!$G$12="",ADSI!$H$16,ADSI!$H$12) -> 6 | B512: =IF(ADSI!$G$12="",ADSI!$H$16,ADSI!$H$14) ->  | C512: 611 | D512: =ADSI!$K$12 -> 2022 | E512: 284 | F512: =F19 -> 117 | G512: 21 | H512: 0 | I512: =J19 -> 0 | J512: 0 | K512: 6 | L512: =N19 -> 0 | M512: 6 | N512: 290 | O512: 117 | P512: 27
A513: =IF(ADSI!$G$12="",ADSI!$H$16,ADSI!$H$12) -> 6 | B513: =IF(ADSI!$G$12="",ADSI!$H$16,ADSI!$H$14) ->  | C513: 612 | D513: =ADSI!$K$12 -> 2022 | E513: 3012 | F513: =F20 -> 1071 | G513: 274 | H513: 0 | I513: =J20 -> 0 | J513: 0 | K513: 54 | L513: =N20 -> 0 | M513: 54 | N513: 3066 | O513: 1071 | P513: 328

Sheet P-XI
A1: =ADSI!$B$1 -> Goa, , ADSI-2022
A2: Errors | C2: =COUNTIF(D18:R18,FALSE)+COUNTIF(E8:E16,FALSE)+COUNTIF(I8:I16,FALSE)+COUNTIF(M8:M16,FALSE) -> 0
A3: =IF(ADSI!$L$10=1,LangMaster!A237,LangMaster!B237) -> Proforma-XI
A4: =IF(ADSI!$L$10=1,LangMaster!A238,LangMaster!B238) -> Time wise occurence of Traffic Accidents
A5: =IF(ADSI!$L$10=1,LangMaster!A26,LangMaster!B26) -> Code | B5: =IF(ADSI!$L$10=1,LangMaster!A27,LangMaster!B27) -> S.No. | C5: =IF(ADSI!$L$10=1,LangMaster!A239,LangMaster!B239) -> Time | D5: Road Accidents | H5: Railways Crossing Accidents | L5: Railway Accidents | P5: Total
D6: =IF(ADSI!$L$10=1,LangMaster!A479,LangMaster!B479) -> No. of Cases | E6: =IF(ADSI!$L$10=1,LangMaster!A480,LangMaster!B480) -> VALIDATION WITH NUMBER OF CASES | F6: =IF(ADSI!$L$10=1,LangMaster!A481,LangMaster!B481) -> No. of Persons Injured | G6: =IF(ADSI!$L$10=1,LangMaster!A482,LangMaster!B482) -> No. of Persons Died | H6: =IF(ADSI!$L$10=1,LangMaster!A479,LangMaster!B479) -> No. of Cases | I6: =IF(ADSI!$L$10=1,LangMaster!A480,LangMaster!B480) -> VALIDATION WITH NUMBER OF CASES | J6: =IF(ADSI!$L$10=1,LangMaster!A481,LangMaster!B481) -> No. of Persons Injured | K6: =IF(ADSI!$L$10=1,LangMaster!A482,LangMaster!B482) -> No. of Persons Died | L6: =IF(ADSI!$L$10=1,LangMaster!A479,LangMaster!B479) -> No. of Cases | M6: VALIDATION WITH NUMBER OF CASES | N6: =IF(ADSI!$L$10=1,LangMaster!A481,LangMaster!B481) -> No. of Persons Injured | O6: =IF(ADSI!$L$10=1,LangMaster!A482,LangMaster!B482) -> No. of Persons Died | P6: No. of Cases [col. (3)+(6)+(9)] | Q6: No. of Persons Injured [co. (4)+(7)+(10)] | R6: No. of Persons Died [col. (5)+(8)+(11)]
B7: (1) | C7: (2) | D7: (3) | F7: (4) | G7: (5) | H7: (6) | J7: (7) | K7: (8) | L7: (9) | N7: (10) | O7: (11) | P7: (12) | Q7: (13) | R7: (14)
A8: 625 | B8: 1 | C8: =IF(ADSI!$L$10=1,LangMaster!A240,LangMaster!B240) -> 00:00 hrs. to 03:00 hrs. (Night) | D8: 286 | E8: =IF(AND(OR(F8>0,G8>0),D8=0),FALSE,"") ->  | F8: 87 | G8: 26 | H8: 0 | I8: =IF(AND(OR(J8>0,K8>0),H8=0),FALSE,"") ->  | J8: 0 | K8: 0 | L8: 3 | M8: =IF(AND(OR(N8>0,O8>0),L8=0),FALSE,"") ->  | N8: 0 | O8: 3 | P8: =SUM(D8+H8+L8) -> 289 | Q8: =SUM(F8+J8+N8) -> 87 | R8: 29
A9: 626 | B9: 2 | C9: =IF(ADSI!$L$10=1,LangMaster!A241,LangMaster!B241) -> 03:00 hrs. to 06:00 hrs. (Night) | D9: 152 | F9: 48 | G9: 12 | H9: 0 | I9: =IF(AND(OR(J9>0,K9>0),H9=0),FALSE,"") ->  | J9: 0 | K9: 0 | L9: 5 | M9: =IF(AND(OR(N9>0,O9>0),L9=0),FALSE,"") ->  | N9: 0 | O9: 5 | P9: =SUM(D9+H9+L9) -> 157 | Q9: 48 | R9: 17
A10: 627 | B10: 3 | C10: =IF(ADSI!$L$10=1,LangMaster!A242,LangMaster!B242) -> 06:00 hrs. to 09:00 hrs. (Day) | D10: 260 | F10: 93 | G10: 25 | H10: 0 | J10: 0 | K10: 0 | L10: 9 | N10: 0 | O10: 9 | P10: 269 | Q10: 93 | R10: 34
A11: 628 | B11: 4 | C11: =IF(ADSI!$L$10=1,LangMaster!A243,LangMaster!B243) -> 09:00 hrs. to 12:00 hrs. (Day) | D11: 393 | F11: 143 | G11: 16 | H11: 0 | J11: 0 | K11: 0 | L11: 7 | N11: 0 | O11: 7 | P11: 400 | Q11: 143 | R11: 23
A12: 629 | B12: 5 | C12: =IF(ADSI!$L$10=1,LangMaster!A244,LangMaster!B244) -> 12:00 hrs. to 15:00 hrs. (Day) | D12: 471 | F12: 188 | G12: 41 | H12: 0 | J12: 0 | K12: 0 | L12: 6 | N12: 0 | O12: 6 | P12: 477 | Q12: 188 | R12: 47
A13: 630 | B13: 6 | C13: =IF(ADSI!$L$10=1,LangMaster!A245,LangMaster!B245) -> 15:00 hrs. to 18:00 hrs. (Day) | D13: 457 | F13: 172 | G13: 42 | H13: 0 | J13: 0 | K13: 0 | L13: 8 | N13: 0 | O13: 8 | P13: 465 | Q13: 172 | R13: 50
A14: 631 | B14: 7 | C14: =IF(ADSI!$L$10=1,LangMaster!A246,LangMaster!B246) -> 18:00 hrs. to 21:00 hrs. (Night) | D14: 619 | F14: 237 | G14: 56 | H14: 0 | J14: 0 | K14: 0 | L14: 10 | N14: 0 | O14: 10 | P14: 629 | Q14: 237 | R14: 66
A15: 632 | B15: 8 | C15: =IF(ADSI!$L$10=1,LangMaster!A247,LangMaster!B247) -> 21:00 hrs. to 24:00 hrs. (Night) | D15: 374 | F15: 103 | G15: 56 | H15: 0 | J15: 0 | K15: 0 | L15: 6 | N15: 0 | O15: 6 | P15: 380 | Q15: 103 | R15: 62
A16: 633 | B16: 9 | C16: =IF(ADSI!$L$10=1,LangMaster!A248,LangMaster!B248) -> Total (sum of (Sl. 1 to 8)) | D16: =SUM(D8:D15) -> 3012 | E16: =IF(AND(OR(F16>0,G16>0),D16=0),FALSE,"") ->  | F16: =SUM(F8:F15) -> 1071 | G16: =SUM(G8:G15) -> 274 | H16: =SUM(H8:H15) -> 0 | J16: 0 | K16: 0 | L16: 54 | N16: 0 | O16: 54 | P16: 3066 | Q16: 1071 | R16: 328
A17: PROFORMA–II VALUES [Sl.– 12.1 (Road), Sl.– 12.2 (Railway Crossing) and Sl.– 12.3 (Railway) Accidents] | D17: ='P-II'!D43 -> 3012 | F17: ='P-II'!I43 -> 1071 | G17: ='P-II'!M43 -> 274 | H17: ='P-II'!D46 -> 0 | J17: ='P-II'!I46 -> 0 | K17: ='P-II'!M46 -> 0 | L17: ='P-II'!D47 -> 54 | N17: ='P-II'!I47 -> 0 | O17: ='P-II'!M47 -> 54 | P17: ='P-II'!D42 -> 3066 | Q17: ='P-II'!I42 -> 1071 | R17: ='P-II'!M42 -> 328
A18: VALIDATION WITH PROFORMA–II [Sl.– 12.1 (Road), Sl.– 12.2 (Railway Crossing) and Sl.– 12.3 (Railway) Accidents] | D18: =IF(D16='P-II'!D43,"",FALSE) ->  | F18: =IF(F16='P-II'!I43,"",FALSE) ->  | G18: =IF(G16='P-II'!M43,"",FALSE) ->  | H18: =IF(H16='P-II'!D46,"",FALSE) ->  | J18: =IF(J16='P-II'!I46,"",FALSE) ->  | K18: =IF(K16='P-II'!M46,"",FALSE) ->  | L18: =IF(L16='P-II'!D47,"",FALSE) ->  | N18: =IF(N16='P-II'!I47,"",FALSE) ->  | O18: =IF(O16='P-II'!M47,"",FALSE) ->  | P18: =IF(P16='P-II'!D42,"",FALSE) ->  | Q18: =IF(Q16='P-II'!I42,"",FALSE) ->  | R18: =IF(R16='P-II'!M42,"",FALSE) -> 
BA200: =A1 -> Goa, , ADSI-2022
BA201: =A2 -> Errors | BB201: =C2 -> 0
BA202: =A3 -> Proforma-XI
BA203: =A4 -> Time wise occurence of Traffic Accidents
BA204: =B5 -> S.No. | BB204: =C5 -> Time | BC204: =D5 -> Road Accidents | BG204: =H5 -> Railways Crossing Accidents | BK204: =L5 -> Railway Accidents | BO204: =P5 -> Total
BC205: No. of Cases | BD205: =E6 -> VALIDATION WITH NUMBER OF CASES | BE205: =F6 -> No. of Persons Injured | BF205: =G6 -> No. of Persons Died | BG205: No. of Cases | BH205: =I6 -> VALIDATION WITH NUMBER OF CASES | BI205: =J6 -> No. of Persons Injured | BJ205: =K6 -> No. of Persons Died | BK205: No. of Cases | BL205: =M6 -> VALIDATION WITH NUMBER OF CASES | BM205: =N6 -> No. of Persons Injured | BN205: =O6 -> No. of Persons Died | BO205: No. of Cases [col. (3)+(6)+(9)] | BP205: =Q6 -> No. of Persons Injured [co. (4)+(7)+(10)] | BQ205: =R6 -> No. of Persons Died [col. (5)+(8)+(11)]
BA206: =B7 -> (1) | BB206: (2) | BC206: (3) | BE206: (4) | BF206: (5) | BG206: (6) | BI206: (7) | BJ206: (8) | BK206: (9) | BM206: (10) | BN206: (11) | BO206: (12) | BP206: (13) | BQ206: (14)
BA207: 1 | BB207: 00:00 hrs. to 03:00 hrs. (Night) | BC207: 286 | BD207: =E8 ->  | BE207: =F8 -> 87 | BF207: =G8 -> 26 | BG207: 0 | BH207: =I8 ->  | BI207: 0 | BJ207: 0 | BK207: 3 | BL207: =M8 ->  | BM207: 0 | BN207: 3 | BO207: 289 | BP207: 87 | BQ207: 29
BA208: 2 | BB208: 03:00 hrs. to 06:00 hrs. (Night) | BC208: 152 | BD208: =E9 ->  | BE208: 48 | BF208: 12 | BG208: 0 | BH208: =I9 ->  | BI208: 0 | BJ208: 0 | BK208: 5 | BL208: =M9 ->  | BM208: 0 | BN208: 5 | BO208: 157 | BP208: 48 | BQ208: 17
BA209: 3 | BB209: 06:00 hrs. to 09:00 hrs. (Day) | BC209: 260 | BE209: 93 | BF209: 25 | BG209: 0 | BI209: 0 | BJ209: 0 | BK209: 9 | BM209: 0 | BN209: 9 | BO209: 269 | BP209: 93 | BQ209: 34
BA210: 4 | BB210: 09:00 hrs. to 12:00 hrs. (Day) | BC210: 393 | BE210: 143 | BF210: 16 | BG210: 0 | BI210: 0 | BJ210: 0 | BK210: 7 | BM210: 0 | BN210: 7 | BO210: 400 | BP210: 143 | BQ210: 23
BA211: 5 | BB211: 12:00 hrs. to 15:00 hrs. (Day) | BC211: 471 | BE211: 188 | BF211: 41 | BG211: 0 | BI211: 0 | BJ211: 0 | BK211: 6 | BM211: 0 | BN211: 6 | BO211: 477 | BP211: 188 | BQ211: 47
BA212: 6 | BB212: 15:00 hrs. to 18:00 hrs. (Day) | BC212: 457 | BE212: 172 | BF212: 42 | BG212: 0 | BI212: 0 | BJ212: 0 | BK212: 8 | BM212: 0 | BN212: 8 | BO212: 465 | BP212: 172 | BQ212: 50
BA213: 7 | BB213: 18:00 hrs. to 21:00 hrs. (Night) | BC213: 619 | BE213: 237 | BF213: 56 | BG213: 0 | BI213: 0 | BJ213: 0 | BK213: 10 | BM213: 0 | BN213: 10 | BO213: 629 | BP213: 237 | BQ213: 66
BA214: 8 | BB214: 21:00 hrs. to 24:00 hrs. (Night) | BC214: 374 | BE214: 103 | BF214: 56 | BG214: 0 | BI214: 0 | BJ214: 0 | BK214: 6 | BM214: 0 | BN214: 6 | BO214: 380 | BP214: 103 | BQ214: 62
BA215: 9 | BB215: =C16 -> Total (sum of (Sl. 1 to 8)) | BC215: =D16 -> 3012 | BE215: 1071 | BF215: 274 | BG215: =H16 -> 0 | BI215: =J16 -> 0 | BJ215: 0 | BK215: 54 | BM215: =N16 -> 0 | BN215: 54 | BO215: 3066 | BP215: 1071 | BQ215: 328
BA216: =A17 -> PROFORMA–II VALUES [Sl.– 12.1 (Road), Sl.– 12.2 (Railway Crossing) and Sl.– 12.3 (Railway) Accidents] | BC216: =D17 -> 3012 | BE216: 1071 | BF216: 274 | BG216: =H17 -> 0 | BI216: 0 | BJ216: 0 | BK216: 54 | BM216: =N17 -> 0 | BN216: 54 | BO216: 3066 | BP216: 1071 | BQ216: 328
BA217: =A18 -> VALIDATION WITH PROFORMA–II [Sl.– 12.1 (Road), Sl.– 12.2 (Railway Crossing) and Sl.– 12.3 (Railway) Accidents] | BC217: =D18 ->  | BG217: =H18 -> 
A500: StateUTCityCode | B500: DistrictCode | C500: CrimeCode | D500: DataYear | E500: Road Accident_Cases | F500: Road Accident_Injured | G500: Road Accident_Died | H500: Railway Crossing_Cases | I500: Railway Crossing_Injured | J500: Railway Crossing_Died | K500: Railway Accident_Cases | L500: Railway Accident_Injured | M500: Railway Accident_Died | N500: Total Traffic_Cases | O500: Total Traffic_Injured | P500: Total Traffic_Died
A501: =IF(ADSI!$G$12="",ADSI!$H$16,ADSI!$H$12) -> 6 | B501: =IF(ADSI!$G$12="",ADSI!$H$16,ADSI!$H$14) ->  | C501: =A8 -> 625 | D501: =ADSI!$K$12 -> 2022 | E501: =D8 -> 286 | F501: =F8 -> 87 | G501: =G8 -> 26 | H501: =H8 -> 0 | I501: =J8 -> 0 | J501: =K8 -> 0 | K501: =L8 -> 3 | L501: =N8 -> 0 | M501: =O8 -> 3 | N501: =P8 -> 289 | O501: =Q8 -> 87 | P501: 29
A502: =IF(ADSI!$G$12="",ADSI!$H$16,ADSI!$H$12) -> 6 | B502: =IF(ADSI!$G$12="",ADSI!$H$16,ADSI!$H$14) ->  | C502: =A9 -> 626 | D502: =ADSI!$K$12 -> 2022 | E502: =D9 -> 152 | F502: =F9 -> 48 | G502: 12 | H502: 0 | I502: =J9 -> 0 | J502: 0 | K502: 5 | L502: =N9 -> 0 | M502: 5 | N502: 157 | O502: =Q9 -> 48 | P502: =R9 -> 17
A503: =IF(ADSI!$G$12="",ADSI!$H$16,ADSI!$H$12) -> 6 | B503: =IF(ADSI!$G$12="",ADSI!$H$16,ADSI!$H$14) ->  | C503: 627 | D503: =ADSI!$K$12 -> 2022 | E503: 260 | F503: =F10 -> 93 | G503: 25 | H503: 0 | I503: =J10 -> 0 | J503: 0 | K503: 9 | L503: =N10 -> 0 | M503: 9 | N503: 269 | O503: 93 | P503: 34
A504: =IF(ADSI!$G$12="",ADSI!$H$16,ADSI!$H$12) -> 6 | B504: =IF(ADSI!$G$12="",ADSI!$H$16,ADSI!$H$14) ->  | C504: 628 | D504: =ADSI!$K$12 -> 2022 | E504: 393 | F504: =F11 -> 143 | G504: 16 | H504: 0 | I504: =J11 -> 0 | J504: 0 | K504: 7 | L504: =N11 -> 0 | M504: 7 | N504: 400 | O504: 143 | P504: 23
A505: =IF(ADSI!$G$12="",ADSI!$H$16,ADSI!$H$12) -> 6 | B505: =IF(ADSI!$G$12="",ADSI!$H$16,ADSI!$H$14) ->  | C505: 629 | D505: =ADSI!$K$12 -> 2022 | E505: 471 | F505: =F12 -> 188 | G505: 41 | H505: 0 | I505: =J12 -> 0 | J505: 0 | K505: 6 | L505: =N12 -> 0 | M505: 6 | N505: 477 | O505: 188 | P505: 47
A506: =IF(ADSI!$G$12="",ADSI!$H$16,ADSI!$H$12) -> 6 | B506: =IF(ADSI!$G$12="",ADSI!$H$16,ADSI!$H$14) ->  | C506: 630 | D506: =ADSI!$K$12 -> 2022 | E506: 457 | F506: =F13 -> 172 | G506: 42 | H506: 0 | I506: =J13 -> 0 | J506: 0 | K506: 8 | L506: =N13 -> 0 | M506: 8 | N506: 465 | O506: 172 | P506: 50
A507: =IF(ADSI!$G$12="",ADSI!$H$16,ADSI!$H$12) -> 6 | B507: =IF(ADSI!$G$12="",ADSI!$H$16,ADSI!$H$14) ->  | C507: 631 | D507: =ADSI!$K$12 -> 2022 | E507: 619 | F507: =F14 -> 237 | G507: 56 | H507: 0 | I507: =J14 -> 0 | J507: 0 | K507: 10 | L507: =N14 -> 0 | M507: 10 | N507: 629 | O507: 237 | P507: 66
A508: =IF(ADSI!$G$12="",ADSI!$H$16,ADSI!$H$12) -> 6 | B508: =IF(ADSI!$G$12="",ADSI!$H$16,ADSI!$H$14) ->  | C508: 632 | D508: =ADSI!$K$12 -> 2022 | E508: 374 | F508: =F15 -> 103 | G508: 56 | H508: 0 | I508: =J15 -> 0 | J508: 0 | K508: 6 | L508: =N15 -> 0 | M508: 6 | N508: 380 | O508: 103 | P508: 62
A509: =IF(ADSI!$G$12="",ADSI!$H$16,ADSI!$H$12) -> 6 | B509: =IF(ADSI!$G$12="",ADSI!$H$16,ADSI!$H$14) ->  | C509: 633 | D509: =ADSI!$K$12 -> 2022 | E509: 3012 | F509: =F16 -> 1071 | G509: 274 | H509: 0 | I509: =J16 -> 0 | J509: 0 | K509: 54 | L509: =N16 -> 0 | M509: 54 | N509: 3066 | O509: 1071 | P509: 328

Sheet P-XII
A1: =ADSI!$B$1 -> Goa, , ADSI-2022
A2: Errors | C2: =COUNTIF(D16:M16,FALSE)+COUNTIF(D24:M24,FALSE)+COUNTIF(D26:M26,FALSE)+COUNTIF(E9:E14,FALSE)+COUNTIF(E18:E23,FALSE) -> 0 | E2: Abnormal Variations | F2: =COUNTIF(D27:M30,"ABVAR") -> 3
A3: =IF(ADSI!$L$10=1,LangMaster!A249,LangMaster!B249) -> Proforma-XII
A4: =IF(ADSI!$L$10=1,LangMaster!A250,LangMaster!B250) -> Classification of Railway Accidents and Causes of Railway Accidents
A5: =IF(ADSI!$L$10=1,LangMaster!A26,LangMaster!B26) -> Code | B5: =IF(ADSI!$L$10=1,LangMaster!A27,LangMaster!B27) -> S.No. | C5: =IF(ADSI!$L$10=1,LangMaster!A251,LangMaster!B251) -> Classification/Causes | D5: =IF(ADSI!$L$10=1,LangMaster!A479,LangMaster!B479) -> No. of Cases | E5: =IF(ADSI!$L$10=1,LangMaster!A480,LangMaster!B480) -> VALIDATION WITH NUMBER OF CASES | F5: =IF(ADSI!$L$10=1,LangMaster!A481,LangMaster!B481) -> No. of Persons Injured | J5: =IF(ADSI!$L$10=1,LangMaster!A482,LangMaster!B482) -> No. of Persons Died
F6: =IF(ADSI!$L$10=1,LangMaster!A30,LangMaster!B30) -> Male | G6: =IF(ADSI!$L$10=1,LangMaster!A31,LangMaster!B31) -> Female | H6: =IF(ADSI!$L$10=1,LangMaster!A32,LangMaster!B32) -> Transgender | I6: =IF(ADSI!$L$10=1,LangMaster!A174,LangMaster!B174) -> Total [sum of (4) to (6)] | J6: =IF(ADSI!$L$10=1,LangMaster!A30,LangMaster!B30) -> Male | K6: =IF(ADSI!$L$10=1,LangMaster!A31,LangMaster!B31) -> Female | L6: =IF(ADSI!$L$10=1,LangMaster!A32,LangMaster!B32) -> Transgender | M6: =IF(ADSI!$L$10=1,LangMaster!A174,LangMaster!B174) -> Total [sum of (4) to (6)]
B7: (1) | C7: (2) | D7: (3) | F7: (4) | G7: (5) | H7: (6) | I7: (7) | J7: (8) | K7: (9) | L7: (10) | M7: (11)
A8: =IF(ADSI!$L$10=1,LangMaster!A252,LangMaster!B252) -> Part-I:Classification of Railway Accidents
A9: 650 | B9: 1 | C9: =IF(ADSI!$L$10=1,LangMaster!A253,LangMaster!B253) -> Train Collisions | D9: 0 | E9: =IF(AND(OR(I9>0,M9>0),D9=0),FALSE,"") ->  | F9: 0 | G9: 0 | H9: 0 | I9: =SUM(F9:H9) -> 0 | J9: 0 | K9: 0 | L9: 0 | M9: =SUM(J9:L9) -> 0
A10: 651 | B10: 2 | C10: =IF(ADSI!$L$10=1,LangMaster!A254,LangMaster!B254) -> Train Derailments | D10: 0 | E10: =IF(AND(OR(I10>0,M10>0),D10=0),FALSE,"") ->  | F10: 0 | G10: 0 | H10: 0 | I10: =SUM(F10:H10) -> 0 | J10: 0 | K10: 0 | L10: 0 | M10: =SUM(J10:L10) -> 0
A11: 652 | B11: 3 | C11: =IF(ADSI!$L$10=1,LangMaster!A255,LangMaster!B255) -> Fall from train/Collision with people at tracks | D11: 54 | F11: 0 | G11: 0 | H11: 0 | I11: 0 | J11: 54 | K11: 0 | L11: 0 | M11: 54
A12: 653 | B12: 4 | C12: =IF(ADSI!$L$10=1,LangMaster!A256,LangMaster!B256) -> Explosion/Fire in Train | D12: 0 | F12: 0 | G12: 0 | H12: 0 | I12: 0 | J12: 0 | K12: 0 | L12: 0 | M12: 0
A13: 654 | B13: 5 | C13: =IF(ADSI!$L$10=1,LangMaster!A257,LangMaster!B257) -> Other Classifications | D13: 0 | F13: 0 | G13: 0 | H13: 0 | I13: 0 | J13: 0 | K13: 0 | L13: 0 | M13: 0
A14: 665 | B14: 6 | C14: =IF(ADSI!$L$10=1,LangMaster!A258,LangMaster!B258) -> Total (Classification) (sum of Sl. 1 to 5) | D14: =SUM(D9:D13) -> 54 | F14: =SUM(F9:F13) -> 0 | G14: 0 | H14: 0 | I14: 0 | J14: =SUM(J9:J13) -> 54 | K14: =SUM(K9:K13) -> 0 | L14: 0 | M14: 54
A15: PROFORMA–II VALUES [Sl.– 12.3 (Railway Accidents)] | D15: ='P-II'!D47 -> 54 | F15: ='P-II'!F47 -> 0 | G15: ='P-II'!G47 -> 0 | H15: ='P-II'!H47 -> 0 | I15: ='P-II'!I47 -> 0 | J15: ='P-II'!J47 -> 54 | K15: ='P-II'!K47 -> 0 | L15: ='P-II'!L47 -> 0 | M15: ='P-II'!M47 -> 54
A16: VALIDATION FOR PART-I WITH PROFORMA–II [Sl.– 12.3 (Railway Accidents)] | D16: =IF(D14='P-II'!D47,"",FALSE) ->  | F16: =IF(F14='P-II'!F47,"",FALSE) ->  | G16: =IF(G14='P-II'!G47,"",FALSE) ->  | H16: =IF(H14='P-II'!H47,"",FALSE) ->  | I16: =IF(I14='P-II'!I47,"",FALSE) ->  | J16: =IF(J14='P-II'!J47,"",FALSE) ->  | K16: =IF(K14='P-II'!K47,"",FALSE) ->  | L16: =IF(L14='P-II'!L47,"",FALSE) ->  | M16: =IF(M14='P-II'!M47,"",FALSE) -> 
A17: =IF(ADSI!$L$10=1,LangMaster!A259,LangMaster!B259) -> Part-II: Causes of Railway Accidents
A18: 675 | B18: 7 | C18: =IF(ADSI!$L$10=1,LangMaster!A260,LangMaster!B260) -> Fault of Driver | D18: 0 | E18: =IF(AND(OR(I18>0,M18>0),D18=0),FALSE,"") ->  | F18: 0 | G18: 0 | H18: 0 | I18: =SUM(F18:H18) -> 0 | J18: 0 | K18: 0 | L18: 0 | M18: =SUM(J18:L18) -> 0
A19: 676 | B19: 8 | C19: =IF(ADSI!$L$10=1,LangMaster!A261,LangMaster!B261) -> Sabotage by Extremist/Terrorist/others | D19: 0 | E19: =IF(AND(OR(I19>0,M19>0),D19=0),FALSE,"") ->  | F19: 0 | G19: 0 | H19: 0 | I19: =SUM(F19:H19) -> 0 | J19: 0 | K19: 0 | L19: 0 | M19: =SUM(J19:L19) -> 0
A20: 677 | B20: 9 | C20: =IF(ADSI!$L$10=1,LangMaster!A262,LangMaster!B262) -> Signalmen's Error | D20: 0 | F20: 0 | G20: 0 | H20: 0 | I20: 0 | J20: 0 | K20: 0 | L20: 0 | M20: 0
A21: 678 | B21: 10 | C21: =IF(ADSI!$L$10=1,LangMaster!A263,LangMaster!B263) -> Mechanical Failures (like poor design, track faults, bridge/tunnel collapse, etc.) | D21: 0 | F21: 0 | G21: 0 | H21: 0 | I21: 0 | J21: 0 | K21: 0 | L21: 0 | M21: 0
A22: 679 | B22: 11 | C22: =IF(ADSI!$L$10=1,LangMaster!A264,LangMaster!B264) -> Other Causes | D22: 54 | F22: 0 | G22: 0 | H22: 0 | I22: =SUM(F22:H22) -> 0 | J22: 54 | K22: 0 | L22: 0 | M22: =SUM(J22:L22) -> 54
A23: 690 | B23: 12 | C23: =IF(ADSI!$L$10=1,LangMaster!A265,LangMaster!B265) -> Total (Causes) (sum of Sl. 7 to 11) | D23: =SUM(D18:D22) -> 54 | F23: =SUM(F18:F22) -> 0 | G23: 0 | H23: 0 | I23: 0 | J23: 54 | K23: 0 | L23: 0 | M23: 54
A24: VALIDATION WITHIN PROFORMA–XII PART–I & PART–II | D24: =IF(D23=D14,"",FALSE) ->  | F24: =IF(F23=F14,"",FALSE) -> 
A25: PROFORMA–II VALUES [Sl.– 12.3 (Railway Accidents)] | D25: ='P-II'!D47 -> 54 | F25: ='P-II'!F47 -> 0 | G25: ='P-II'!G47 -> 0 | H25: ='P-II'!H47 -> 0 | I25: ='P-II'!I47 -> 0 | J25: ='P-II'!J47 -> 54 | K25: ='P-II'!K47 -> 0 | L25: ='P-II'!L47 -> 0 | M25: ='P-II'!M47 -> 54
A26: VALIDATION FOR PART–II WITH PROFORMA–II [Sl.– 12.3 (Railway Accidents)] | D26: =IF(D23='P-II'!D47,"",FALSE) ->  | F26: =IF(F23='P-II'!F47,"",FALSE) ->  | G26: =IF(G23='P-II'!G47,"",FALSE) ->  | H26: =IF(H23='P-II'!H47,"",FALSE) ->  | I26: =IF(I23='P-II'!I47,"",FALSE) ->  | J26: =IF(J23='P-II'!J47,"",FALSE) ->  | K26: =IF(K23='P-II'!K47,"",FALSE) ->  | L26: =IF(L23='P-II'!L47,"",FALSE) ->  | M26: =IF(M23='P-II'!M47,"",FALSE) -> 
A27: SL-1 ABNORMAL VARIATION IN "TRAIN COLLISIONS" DATA | D27: =IF(D9>0,IF((M9>D9),"","ABVAR"),"") ->  | I27: =IF(I9>0,IF((I9>D9),"","ABVAR"),"") ->  | M27: =IF(M9>0,IF((M9>D9),"","ABVAR"),"") -> 
A28: SL-2 ABNORMAL VARIATION IN "TRAIN DERAILMENTS" DATA | D28: =IF(D10>0,IF((M10>D10),"","ABVAR"),"") ->  | I28: =IF(I10>0,IF((I10>D10),"","ABVAR"),"") ->  | M28: =IF(M10>0,IF((M10>D10),"","ABVAR"),"") -> 
A29: SL-5 ABNORMAL VARIATION IN "OTHER CLASSIFICATIONS" DATA | D29: =IF(D14>0,IF((D13/D14*100)>20,"ABVAR",""),"") ->  | F29: =IF(F14>0,IF((F13/F14*100)>20,"ABVAR",""),"") -> 
A30: SL-11 ABNORMAL VARIATION IN "OTHER CAUSES" DATA | D30: =IF(D23>0,IF((D22/D23*100)>20,"ABVAR",""),"") -> ABVAR | F30: =IF(F23>0,IF((F22/F23*100)>20,"ABVAR",""),"") ->  | J30: ABVAR | M30: ABVAR
BA200: =A1 -> Goa, , ADSI-2022
BA201: =A2 -> Errors | BB201: =C2 -> 0 | BD201: =E2 -> Abnormal Variations | BE201: =F2 -> 3
BA202: =A3 -> Proforma-XII
BA203: =A4 -> Classification of Railway Accidents and Causes of Railway Accidents
BA204: =B5 -> S.No. | BB204: =C5 -> Classification/Causes | BC204: =D5 -> No. of Cases | BD204: =E5 -> VALIDATION WITH NUMBER OF CASES | BE204: =F5 -> No. of Persons Injured | BI204: =J5 -> No. of Persons Died
BE205: =F6 -> Male | BF205: Female | BG205: Transgender | BH205: Total [sum of (4) to (6)] | BI205: =J6 -> Male | BJ205: =K6 -> Female | BK205: Transgender | BL205: Total [sum of (4) to (6)]
BA206: =B7 -> (1) | BB206: =C7 -> (2) | BC206: =D7 -> (3) | BE206: (4) | BF206: (5) | BG206: (6) | BH206: (7) | BI206: =J7 -> (8) | BJ206: (9) | BK206: (10) | BL206: (11)
BA207: =A8 -> Part-I:Classification of Railway Accidents
BA208: =B9 -> 1 | BB208: Train Collisions | BC208: 0 | BE208: 0 | BF208: 0 | BG208: 0 | BH208: 0 | BI208: 0 | BJ208: 0 | BK208: 0 | BL208: 0
BA209: 2 | BB209: Train Derailments | BC209: 0 | BE209: 0 | BF209: 0 | BG209: 0 | BH209: 0 | BI209: 0 | BJ209: 0 | BK209: 0 | BL209: 0
BA210: 3 | BB210: Fall from train/Collision with people at tracks | BC210: 54 | BE210: 0 | BF210: 0 | BG210: 0 | BH210: 0 | BI210: 54 | BJ210: 0 | BK210: 0 | BL210: 54
BA211: 4 | BB211: Explosion/Fire in Train | BC211: 0 | BE211: 0 | BF211: 0 | BG211: 0 | BH211: 0 | BI211: 0 | BJ211: 0 | BK211: 0 | BL211: 0
BA212: 5 | BB212: Other Classifications | BC212: 0 | BE212: 0 | BF212: 0 | BG212: 0 | BH212: 0 | BI212: 0 | BJ212: 0 | BK212: 0 | BL212: 0
